Workbook

Sheet Ideas
C3: T | D3: Transparent ---> Do not use Long formulas; no copy and paste macros
C4: S | D4: Structured ----> Separate operations from financing, start with physical operations; next free cash flow
C5: F | D5: Flexible ----> Allow flexible timing and scenarios
C6: A | D6: Accurate/Appropriate ---> Let excel find the errors; include a balance sheet
H8: Lines | I8: Hours | J8: Minutes | K8: Lines/Minute
C9: File 1: Assumptions Only | H9: 500 | I9: 7 | J9: =I9*60 -> 420 | K9: =H9/J9 -> 1.19047619
C10: File 2: Include Timing
C11: File 3: Include Operations
C12: File 4: Incude Operating Cash Flow
C13: File 5: Sources and Uses
C14: File 6: Debt Schedule
C15: File 7: Waterfall and Balance Sheet
C16: File 8: Financial Ratios
C17: File 8: Summary
C18: File 9: Scenarios
C19: File 10: Completed File

Sheet Functions
B1: Not a lot of excel functions for structured, transparent, accurate and structured model
B3: EDATE for Dates and CNTL, F3
B4: LOOKUP with Entire Row and Column; not vlookup
B5: SUMIF and SUMIFS for annual adjustments
B6: MIN for testing limits on hours, taxes, depreciation, financing, waterfall
B7: MAX for testing positive or negative number ---> MAX(-cell,0) for negative
B8: INDEX for scenario analysis
B10: Conditional formatting with new rule/use formula
B12: Use generic macros file for the course and use SHIFT,CNTL,R and SHIFT,CNTL,C
B14: Reference Macros at 1992 Style Website www.edbodmer.com

Sheet Outline
A1: One Day Project Finance Analysis in Excel
A2: MODULE I
A3: · Flexible Timing in Project Finance Models Very brief
A4: - Review of actual models and date inputs and timing
A5: - Modelling project phases with switches and timing switches
A7: · Operating analysis and pre-tax IRR
A8: - Setting-up operating assumptions for revenues, operating expenses and capital expenditures
A9: - Alternative methods for presenting time series assumptions
A10: - Modelling inflation rates and growth rates with different time periods
A11: - Calculation of pre-tax IRR and construction of summary page
A12: - Calculation of contract price from required pre-tax IRR
A14: · Depreciation, capital allowance and fixed asset module
A15: - Use of timing switches for depreciation and/or capital allowance
A16: - Introduction to verification and auditing for testing balances
A17: - Benefits of separating deprecation on interest during construction and fees from other depreciation and amortisation
A18: - Calculation of after-tax project IRR
A20: MODULE 2
A21: · Funding Analysis During Construction
A22: - Interest during construction and interest capitalised using periodic interest rates and credit spreads
A23: - Set-up of summary sources and uses of funds to resolve circularity
A24: - Up-front fees and commitment fees
A25: - Repayment of construction debt at project completion date to avoid DSRA circularity
A27: MODULE 3
A28: · Debt Schedule and Debt Capacity
A29: - Set-up of debt schedule from construction debt
A30: - Debt capacity from debt service coverage
A31: - Debt repayment with equal instalments or mortgage repayments
A32: - Presentation of cash flow and debt service on summary page
A33: · Cash Flow Sweep and Cash Trap Covenants
A34: - Incorporation of cash sweep in debt schedule
A35: - Limits on cash sweep using MIN function
A36: - Programming cash trap covenants
A37: - Set-up of cash lock-up account
A38: · Efficient Cash Flow Waterfall Modelling
A39: - Setting up debt and reserve schedule combined with cash flow analysis
A40: - Setting up cash flow with positive and negative conditions
A41: - Use of sub-totals in modelling cash flow
A42: - Application of MAX and MIN functions to limit cash flows
A44: MODULE 4
A45: · Calculation of Alternative Financial Ratios
A46: - DSCR with and without tax effect of interest during construction and fees
A47: - Calculation and interpretation of PLCR with varying interest rates
A48: - Adjustments to compute LLCR
A49: - Alternative calculations of loan life
A51: MODULE 5
A52: · Major Risks of Projects (analysis and mitigation)
A53: - Commodity price risk versus volume risk
A54: - Technology risk (breakdown and obsolescence)
A55: - Input supply and availability risk
A56: - Foreign currency and political risk
A57: - Construction cost
A58: - Contract breakage risk
A59: · Sensitivity analysis and graphs
A60: · Scenario analysis
A61: · Circularity Macros and Functions for Capitalised Interest and Fees
A62: - Alternative methods to resolve circularity
A63: - Illustration of four methods for resolving circularity with fee example No Macros however

Sheet Scenario
B2: Waterfall Chart | I2: ='Accuracy Test'!E17 -> Model OK | R2: row output | S2: =ROW(S12) -> 12
C3: Code Number | D3: 1 | R3: row start | S3: =ROW(S13) -> 13
C4: PPA Period | D4: ='Periodic Model'!F76 -> 0 | R4: row end | S4: =ROW(Q67) -> 67
C5: Credit Spread | D5: ='Periodic Model'!G139 -> 0.022 | R5: col sens | S5: =COLUMN(Q13) -> 17
C6: Debt Amount | D6: ='Periodic Model'!F123 -> 250000 | R6: col start | S6: =COLUMN(R14) -> 18
C7: Debt Tenor | D7: ='Periodic Model'!F130 -> 19 | R7: col_end | S7: =COLUMN(V12) -> 22
C8: Cash Sweep | D8: ='Periodic Model'!F146 -> 0
D10: 1 | E10: 2 | F10: 3 | G10: 4 | H10: 5 | I10: 6 | J10: 7 | K10: 8 | L10: 9 | M10: 10 | N10: 11 | O10: 12 | P10: 13
D11: Construction Period | E11: Economic Capacity Factor | F11: Fored Outage Rate | G11: Heat Rate | H11: Heat Rate Degradation | I11: EPC Cost | J11: S-Curve Code | K11: EOA to Major Maintenace | L11: Length of Maintenance Outage | M11: Fixed O&M Actual | N11: Variable O&M Actual | O11: Merchant Capacity Price Scenario | P11: Merchant Energy Price Scenario | R11: Projet IRR | S11: Equity IRR | T11: DSCR | U11: LLCR | V11: PLCR
D12: Months | E12: Percent | F12: Percent | G12: BTU/kWh | H12: Percent | I12: USD/kW | J12: Code | K12: Hours | L12: Hours | M12: USD/kW-yr | N12: USD/MWH | O12: USD/MW-day | P12: Code | R12: =Summary!G3 -> 0.08218312562 | S12: =Summary!G8 -> 0.1250515878 | T12: =Summary!G11 -> 1.222034571 | U12: =Summary!G12 -> 1.69341256 | V12: =Summary!G13 -> 1.935792562
C13: Base Case | D13: 30 | E13: 0.7 | F13: 0.025 | G13: 6450 | H13: 0.005 | I13: 985 | J13: 1 | K13: 40000 | L13: 700 | M13: 16 | N13: 3.6 | O13: 1 | P13: 1 | Q13: 1 | R13: 0.08218312562 | S13: 0.1250515878 | T13: 1.222034571 | U13: 1.69341256 | V13: 1.935792562
C14: Low Case | D14: 50 | E14: 0.6 | F14: 0.04 | G14: 6700 | H14: 0.007 | I14: 1200 | J14: 3 | K14: 30000 | L14: 1000 | M14: 20 | N14: 5 | O14: 2 | P14: 2 | Q14: 2 | R14: 2.980232239e-09 | S14: 2.980232239e-09 | T14: 0.5484840357 | U14: 0.7836203493 | V14: 0.91466424
C15: High Case | D15: 25 | E15: 0.8 | F15: 0.015 | G15: 6300 | H15: 0.003 | I15: 900 | J15: 2 | K15: 50000 | L15: 500 | M15: 10 | N15: 2 | O15: 3 | P15: 3 | Q15: 3 | R15: 0.1668553531 | S15: 0.3320500433 | T15: 2.117539751 | U15: 2.428806909 | V15: 2.84645841
B16: 1 | C16: =TRANSPOSE(D11:P11)&" Low" -> Construction Period Low | D16: =IF($B16=D$10,D$14,D$13) -> 50 | E16: =IF($B16=E$10,E$14,E$13) -> 0.7 | F16: 0.025 | G16: 6450 | H16: 0.005 | I16: 985 | J16: 1 | K16: 40000 | L16: 700 | M16: 16 | N16: 3.6 | O16: 1 | P16: 1 | Q16: 4 | R16: 0.07142341435 | S16: 0.1009578407 | T16: 1.205311724 | U16: 1.714062309 | V16: 1.954569577
B17: 2 | C17: Economic Capacity Factor Low | D17: =IF($B17=D$10,D$14,D$13) -> 30 | E17: 0.6 | F17: 0.025 | G17: 6450 | H17: 0.005 | I17: 985 | J17: 1 | K17: 40000 | L17: 700 | M17: 16 | N17: 3.6 | O17: 1 | P17: 1 | Q17: 5 | R17: 0.07549864948 | S17: 0.1124273837 | T17: 1.121885307 | U17: 1.608000135 | V17: 1.827713031
B18: 3 | C18: Fored Outage Rate Low | D18: 30 | E18: 0.7 | F18: 0.04 | G18: 6450 | H18: 0.005 | I18: 985 | J18: 1 | K18: 40000 | L18: 700 | M18: 16 | N18: 3.6 | O18: 1 | P18: 1 | Q18: 6 | R18: 0.08121289909 | S18: 0.1232526243 | T18: 1.203717704 | U18: 1.680712504 | V18: 1.919757604
B19: 4 | C19: Heat Rate Low | D19: 30 | E19: 0.7 | F19: 0.025 | G19: 6700 | H19: 0.005 | I19: 985 | J19: 1 | K19: 40000 | L19: 700 | M19: 16 | N19: 3.6 | O19: 1 | P19: 1 | Q19: 7 | R19: 0.07974122465 | S19: 0.1194647849 | T19: 1.197289377 | U19: 1.662987657 | V19: 1.89957335
B20: 5 | C20: Heat Rate Degradation Low | D20: 30 | E20: 0.7 | F20: 0.025 | G20: 6450 | H20: 0.007 | I20: 985 | J20: 1 | K20: 40000 | L20: 700 | M20: 16 | N20: 3.6 | O20: 1 | P20: 1 | Q20: 8 | R20: 0.08179332912 | S20: 0.1242153108 | T20: 1.21347059 | U20: 1.688469923 | V20: 1.929794241
B21: 6 | C21: EPC Cost Low | D21: 30 | E21: 0.7 | F21: 0.025 | G21: 6450 | H21: 0.005 | I21: 1200 | J21: 1 | K21: 40000 | L21: 700 | M21: 16 | N21: 3.6 | O21: 1 | P21: 1 | Q21: 9 | R21: 0.06355263889 | S21: 0.07170519531 | T21: 1.47545169 | U21: 1.752804621 | V21: 1.995184622
B22: 7 | C22: S-Curve Code Low | D22: 30 | E22: 0.7 | F22: 0.025 | G22: 6450 | H22: 0.005 | I22: 985 | J22: 3 | K22: 40000 | L22: 700 | M22: 16 | N22: 3.6 | O22: 1 | P22: 1 | Q22: 10 | R22: 0.08166807592 | S22: 0.1242677987 | T22: 1.222034571 | U22: 1.693635741 | V22: 1.936015742
B23: 8 | C23: EOA to Major Maintenace Low | D23: 30 | E23: 0.7 | F23: 0.025 | G23: 6450 | H23: 0.005 | I23: 985 | J23: 1 | K23: 30000 | L23: 700 | M23: 16 | N23: 3.6 | O23: 1 | P23: 1 | Q23: 11 | R23: 0.08206184208 | S23: 0.1247252047 | T23: 1.267217284 | U23: 1.691329447 | V23: 1.93414917
B24: 9 | C24: Length of Maintenance Outage Low | D24: 30 | E24: 0.7 | F24: 0.025 | G24: 6450 | H24: 0.005 | I24: 985 | J24: 1 | K24: 40000 | L24: 1000 | M24: 16 | N24: 3.6 | O24: 1 | P24: 1 | Q24: 12 | R24: 0.08184356391 | S24: 0.124389559 | T24: 1.138624432 | U24: 1.689333766 | V24: 1.930388185
B25: 10 | C25: Fixed O&M Actual Low | D25: 30 | E25: 0.7 | F25: 0.025 | G25: 6450 | H25: 0.005 | I25: 985 | J25: 1 | K25: 40000 | L25: 700 | M25: 20 | N25: 3.6 | O25: 1 | P25: 1 | Q25: 13 | R25: 0.07783445418 | S25: 0.115424329 | T25: 1.16264688 | U25: 1.639725682 | V25: 1.8700631
B26: 11 | C26: Variable O&M Actual Low | D26: 30 | E26: 0.7 | F26: 0.025 | G26: 6450 | H26: 0.005 | I26: 985 | J26: 1 | K26: 40000 | L26: 700 | M26: 16 | N26: 5 | O26: 1 | P26: 1 | Q26: 14 | R26: 0.07295739353 | S26: 0.1044368446 | T26: 1.23459435 | U26: 1.580875197 | V26: 1.798831407
B27: 12 | C27: Merchant Capacity Price Scenario Low | D27: 30 | E27: 0.7 | F27: 0.025 | G27: 6450 | H27: 0.005 | I27: 985 | J27: 1 | K27: 40000 | L27: 700 | M27: 16 | N27: 3.6 | O27: 2 | P27: 1 | Q27: 15 | R27: 0.06034164131 | S27: 0.07617129385 | T27: 1.196957641 | U27: 1.431664295 | V27: 1.623371542
B28: 13 | C28: Merchant Energy Price Scenario Low | D28: 30 | E28: 0.7 | F28: 0.025 | G28: 6450 | H28: 0.005 | I28: 985 | J28: 1 | K28: 40000 | L28: 700 | M28: 16 | N28: 3.6 | O28: 1 | P28: 2 | Q28: 16 | R28: 0.06077062786 | S28: 0.07699156702 | T28: 1.200629338 | U28: 1.436195836 | V28: 1.62958383
B29: 1 | C29: =TRANSPOSE(D11:P11)&" High" -> Construction Period High | D29: =IF($B29=D$10,D$15,D$13) -> 25 | E29: =IF($B29=E$10,E$15,E$13) -> 0.7 | F29: 0.025 | G29: 6450 | H29: 0.005 | I29: 985 | J29: 1 | K29: 40000 | L29: 700 | M29: 16 | N29: 3.6 | O29: 1 | P29: 1 | Q29: 17 | R29: 0.08469575942 | S29: 0.1304364622 | T29: 1.206542006 | U29: 1.679720287 | V29: 1.922678756
B30: 2 | C30: Economic Capacity Factor High | D30: =IF($B30=D$10,D$15,D$13) -> 30 | E30: 0.8 | F30: 0.025 | G30: 6450 | H30: 0.005 | I30: 985 | J30: 1 | K30: 40000 | L30: 700 | M30: 16 | N30: 3.6 | O30: 1 | P30: 1 | Q30: 18 | R30: 0.08833203614 | S30: 0.1362978518 | T30: 1.326926724 | U30: 1.775057155 | V30: 2.040364422
B31: 3 | C31: Fored Outage Rate High | D31: 30 | E31: 0.7 | F31: 0.015 | G31: 6450 | H31: 0.005 | I31: 985 | J31: 1 | K31: 40000 | L31: 700 | M31: 16 | N31: 3.6 | O31: 1 | P31: 1 | Q31: 19 | R31: 0.08282437623 | S31: 0.1262371361 | T31: 1.234245815 | U31: 1.701879265 | V31: 1.946482533
B32: 4 | C32: Heat Rate High | D32: 30 | E32: 0.7 | F32: 0.025 | G32: 6300 | H32: 0.005 | I32: 985 | J32: 1 | K32: 40000 | L32: 700 | M32: 16 | N32: 3.6 | O32: 1 | P32: 1 | Q32: 20 | R32: 0.08363433182 | S32: 0.1283756673 | T32: 1.236881688 | U32: 1.711620776 | V32: 1.957477362
B33: 5 | C33: Heat Rate Degradation High | D33: 30 | E33: 0.7 | F33: 0.025 | G33: 6450 | H33: 0.003 | I33: 985 | J33: 1 | K33: 40000 | L33: 700 | M33: 16 | N33: 3.6 | O33: 1 | P33: 1 | Q33: 21 | R33: 0.08256916702 | S33: 0.1258804739 | T33: 1.23049875 | U33: 1.69832049 | V33: 1.941746438
B34: 6 | C34: EPC Cost High | D34: 30 | E34: 0.7 | F34: 0.025 | G34: 6450 | H34: 0.005 | I34: 900 | J34: 1 | K34: 40000 | L34: 700 | M34: 16 | N34: 3.6 | O34: 1 | P34: 1 | Q34: 22 | R34: 0.09117617905 | S34: 0.1666935623 | T34: 1.222034571 | U34: 1.668795999 | V34: 1.911176
B35: 7 | C35: S-Curve Code High | D35: 30 | E35: 0.7 | F35: 0.025 | G35: 6450 | H35: 0.005 | I35: 985 | J35: 2 | K35: 40000 | L35: 700 | M35: 16 | N35: 3.6 | O35: 1 | P35: 1 | Q35: 23 | R35: 0.08834464848 | S35: 0.1339812577 | T35: 1.222034571 | U35: 1.690892483 | V35: 1.933272484
B36: 8 | C36: EOA to Major Maintenace High | D36: 30 | E36: 0.7 | F36: 0.025 | G36: 6450 | H36: 0.005 | I36: 985 | J36: 1 | K36: 50000 | L36: 700 | M36: 16 | N36: 3.6 | O36: 1 | P36: 1 | Q36: 24 | R36: 0.0822039634 | S36: 0.1251393735 | T36: 1.278665724 | U36: 1.691605848 | V36: 1.935868199
B37: 9 | C37: Length of Maintenance Outage High | D37: 30 | E37: 0.7 | F37: 0.025 | G37: 6450 | H37: 0.005 | I37: 985 | J37: 1 | K37: 40000 | L37: 500 | M37: 16 | N37: 3.6 | O37: 1 | P37: 1 | Q37: 25 | R37: 0.08240892589 | S37: 0.1254914105 | T37: 1.27764133 | U37: 1.696131757 | V37: 1.939395479
B38: 10 | C38: Fixed O&M Actual High | D38: 30 | E38: 0.7 | F38: 0.025 | G38: 6450 | H38: 0.005 | I38: 985 | J38: 1 | K38: 40000 | L38: 700 | M38: 10 | N38: 3.6 | O38: 1 | P38: 1 | Q38: 26 | R38: 0.08850004375 | S38: 0.139037925 | T38: 1.311116107 | U38: 1.773488387 | V38: 2.033932263
B39: 11 | C39: Variable O&M Actual High | D39: 30 | E39: 0.7 | F39: 0.025 | G39: 6450 | H39: 0.005 | I39: 985 | J39: 1 | K39: 40000 | L39: 700 | M39: 16 | N39: 2 | O39: 1 | P39: 1 | Q39: 27 | R39: 0.09216682613 | S39: 0.1474470913 | T39: 1.329626063 | U39: 1.820662694 | V39: 2.0909556
B40: 12 | C40: Merchant Capacity Price Scenario High | D40: 30 | E40: 0.7 | F40: 0.025 | G40: 6450 | H40: 0.005 | I40: 985 | J40: 1 | K40: 40000 | L40: 700 | M40: 16 | N40: 3.6 | O40: 3 | P40: 1 | Q40: 28 | R40: 0.08892164528 | S40: 0.1403359115 | T40: 1.313043296 | U40: 1.77906283 | V40: 2.038333749
B41: 13 | C41: Merchant Energy Price Scenario High | D41: 30 | E41: 0.7 | F41: 0.025 | G41: 6450 | H41: 0.005 | I41: 985 | J41: 1 | K41: 40000 | L41: 700 | M41: 16 | N41: 3.6 | O41: 1 | P41: 3 | Q41: 29 | R41: 0.1075475633 | S41: 0.1820412099 | T41: 1.496605881 | U41: 2.025750247 | V41: 2.333452925
B42: 1 | C42: =C16 -> Construction Period Low | D42: =IF($B42>=D$10,D$14,D$13) -> 50 | E42: =IF($B42>=E$10,E$14,E$13) -> 0.7 | F42: 0.025 | G42: 6450 | H42: 0.005 | I42: 985 | J42: 1 | K42: 40000 | L42: 700 | M42: 16 | N42: 3.6 | O42: 1 | P42: 1 | Q42: 30 | R42: 0.07142341435 | S42: 0.1009578407 | T42: 1.205311724 | U42: 1.714062309 | V42: 1.954569577
B43: 2 | C43: =C17 -> Economic Capacity Factor Low | D43: =IF($B43>=D$10,D$14,D$13) -> 50 | E43: 0.6 | F43: 0.025 | G43: 6450 | H43: 0.005 | I43: 985 | J43: 1 | K43: 40000 | L43: 700 | M43: 16 | N43: 3.6 | O43: 1 | P43: 1 | Q43: 31 | R43: 0.0657640487 | S43: 0.09069479406 | T43: 1.122565591 | U43: 1.62901396 | V43: 1.847008696
B44: 3 | C44: Fored Outage Rate Low | D44: 50 | E44: 0.6 | F44: 0.04 | G44: 6450 | H44: 0.005 | I44: 985 | J44: 1 | K44: 40000 | L44: 700 | M44: 16 | N44: 3.6 | O44: 1 | P44: 1 | Q44: 32 | R44: 0.06486302316 | S44: 0.08902532756 | T44: 1.085766262 | U44: 1.616029555 | V44: 1.830411246
B45: 4 | C45: Heat Rate Low | D45: 50 | E45: 0.6 | F45: 0.04 | G45: 6700 | H45: 0.005 | I45: 985 | J45: 1 | K45: 40000 | L45: 700 | M45: 16 | N45: 3.6 | O45: 1 | P45: 1 | Q45: 33 | R45: 0.06295946538 | S45: 0.08489317 | T45: 1.065607794 | U45: 1.588927305 | V45: 1.798467549
B46: 5 | C46: Heat Rate Degradation Low | D46: 50 | E46: 0.6 | F46: 0.04 | G46: 6700 | H46: 0.007 | I46: 985 | J46: 1 | K46: 40000 | L46: 700 | M46: 16 | N46: 3.6 | O46: 1 | P46: 1 | Q46: 34 | R46: 0.06259438694 | S46: 0.08414939344 | T46: 1.056707989 | U46: 1.584011266 | V46: 1.792172148
B47: 6 | C47: EPC Cost Low | D47: 50 | E47: 0.6 | F47: 0.04 | G47: 6700 | H47: 0.007 | I47: 1200 | J47: 1 | K47: 40000 | L47: 700 | M47: 16 | N47: 3.6 | O47: 1 | P47: 1 | Q47: 35 | R47: 0.04718928635 | S47: 0.04617241323 | T47: 1.332033253 | U47: 1.640022189 | V47: 1.848183071
B48: 7 | C48: S-Curve Code Low | D48: 50 | E48: 0.6 | F48: 0.04 | G48: 6700 | H48: 0.007 | I48: 1200 | J48: 3 | K48: 40000 | L48: 700 | M48: 16 | N48: 3.6 | O48: 1 | P48: 1 | Q48: 36 | R48: 0.04695614278 | S48: 0.04592345059 | T48: 1.332033253 | U48: 1.640215658 | V48: 1.84837654
B49: 8 | C49: EOA to Major Maintenace Low | D49: 50 | E49: 0.6 | F49: 0.04 | G49: 6700 | H49: 0.007 | I49: 1200 | J49: 3 | K49: 30000 | L49: 700 | M49: 16 | N49: 3.6 | O49: 1 | P49: 1 | Q49: 37 | R49: 0.04696440399 | S49: 0.04592403471 | T49: 1.132006824 | U49: 1.638847075 | V49: 1.848564125
B50: 9 | C50: Length of Maintenance Outage Low | D50: 50 | E50: 0.6 | F50: 0.04 | G50: 6700 | H50: 0.007 | I50: 1200 | J50: 3 | K50: 30000 | L50: 1000 | M50: 16 | N50: 3.6 | O50: 1 | P50: 1 | Q50: 38 | R50: 0.04659415185 | S50: 0.04531813562 | T50: 1.04425678 | U50: 1.633055408 | V50: 1.841695114
B51: 10 | C51: Fixed O&M Actual Low | D51: 50 | E51: 0.6 | F51: 0.04 | G51: 6700 | H51: 0.007 | I51: 1200 | J51: 3 | K51: 30000 | L51: 1000 | M51: 20 | N51: 3.6 | O51: 1 | P51: 1 | Q51: 39 | R51: 0.04275684655 | S51: 0.03899794519 | T51: 0.9724343849 | U51: 1.576065465 | V51: 1.77246121
B52: 11 | C52: Variable O&M Actual Low | D52: 50 | E52: 0.6 | F52: 0.04 | G52: 6700 | H52: 0.007 | I52: 1200 | J52: 3 | K52: 30000 | L52: 1000 | M52: 20 | N52: 5 | O52: 1 | P52: 1 | Q52: 40 | R52: 0.03555424511 | S52: 0.02722619474 | T52: 1.060131923 | U52: 1.471745785 | V52: 1.647789897
B53: 12 | C53: Merchant Capacity Price Scenario Low | D53: 50 | E53: 0.6 | F53: 0.04 | G53: 6700 | H53: 0.007 | I53: 1200 | J53: 3 | K53: 30000 | L53: 1000 | M53: 20 | N53: 5 | O53: 2 | P53: 1 | Q53: 41 | R53: 0.0138104111 | S53: 2.980232239e-09 | T53: 0.7162630704 | U53: 1.101903316 | V53: 1.294787414
B54: 13 | C54: Merchant Energy Price Scenario Low | D54: 50 | E54: 0.6 | F54: 0.04 | G54: 6700 | H54: 0.007 | I54: 1200 | J54: 3 | K54: 30000 | L54: 1000 | M54: 20 | N54: 5 | O54: 2 | P54: 2 | Q54: 42 | R54: 2.980232239e-09 | S54: 2.980232239e-09 | T54: 0.5484840357 | U54: 0.7836203493 | V54: 0.91466424
B55: 1 | C55: Construction Period High | D55: =IF($B55>=D$10,D$15,D$13) -> 25 | E55: =IF($B55>=E$10,E$15,E$13) -> 0.7 | F55: 0.025 | G55: 6450 | H55: 0.005 | I55: 985 | J55: 1 | K55: 40000 | L55: 700 | M55: 16 | N55: 3.6 | O55: 1 | P55: 1 | Q55: 43 | R55: 0.08469575942 | S55: 0.1304364622 | T55: 1.206542006 | U55: 1.679720287 | V55: 1.922678756
B56: 2 | C56: Economic Capacity Factor High | D56: =IF($B56>=D$10,D$15,D$13) -> 25 | E56: 0.8 | F56: 0.025 | G56: 6450 | H56: 0.005 | I56: 985 | J56: 1 | K56: 40000 | L56: 700 | M56: 16 | N56: 3.6 | O56: 1 | P56: 1 | Q56: 44 | R56: 0.09113157094 | S56: 0.1423733413 | T56: 1.310616621 | U56: 1.761153833 | V56: 2.027089122
B57: 3 | C57: Fored Outage Rate High | D57: 25 | E57: 0.8 | F57: 0.015 | G57: 6450 | H57: 0.005 | I57: 985 | J57: 1 | K57: 40000 | L57: 700 | M57: 16 | N57: 3.6 | O57: 1 | P57: 1 | Q57: 45 | R57: 0.09176175296 | S57: 0.1435151279 | T57: 1.322501284 | U57: 1.769570735 | V57: 2.037737895
B58: 4 | C58: Heat Rate High | D58: 25 | E58: 0.8 | F58: 0.015 | G58: 6300 | H58: 0.005 | I58: 985 | J58: 1 | K58: 40000 | L58: 700 | M58: 16 | N58: 3.6 | O58: 1 | P58: 1 | Q58: 46 | R58: 0.0933744818 | S58: 0.1471912086 | T58: 1.33971819 | U58: 1.789670268 | V58: 2.06189681
B59: 5 | C59: Heat Rate Degradation High | D59: 25 | E59: 0.8 | F59: 0.015 | G59: 6300 | H59: 0.003 | I59: 985 | J59: 1 | K59: 40000 | L59: 700 | M59: 16 | N59: 3.6 | O59: 1 | P59: 1 | Q59: 47 | R59: 0.09377225339 | S59: 0.1480488837 | T59: 1.347882322 | U59: 1.794752594 | V59: 2.068066637
B60: 6 | C60: EPC Cost High | D60: 25 | E60: 0.8 | F60: 0.015 | G60: 6300 | H60: 0.003 | I60: 900 | J60: 1 | K60: 40000 | L60: 700 | M60: 16 | N60: 3.6 | O60: 1 | P60: 1 | Q60: 48 | R60: 0.1034072936 | S60: 0.1948596895 | T60: 1.347882322 | U60: 1.769248106 | V60: 2.042562149
B61: 7 | C61: S-Curve Code High | D61: 25 | E61: 0.8 | F61: 0.015 | G61: 6300 | H61: 0.003 | I61: 900 | J61: 2 | K61: 40000 | L61: 700 | M61: 16 | N61: 3.6 | O61: 1 | P61: 1 | Q61: 49 | R61: 0.1100278795 | S61: 0.2045628011 | T61: 1.347882322 | U61: 1.767160232 | V61: 2.040474275
B62: 8 | C62: EOA to Major Maintenace High | D62: 25 | E62: 0.8 | F62: 0.015 | G62: 6300 | H62: 0.003 | I62: 900 | J62: 2 | K62: 50000 | L62: 700 | M62: 16 | N62: 3.6 | O62: 1 | P62: 1 | Q62: 50 | R62: 0.1101761043 | S62: 0.2049476922 | T62: 1.42272416 | U62: 1.770135346 | V62: 2.042739283
B63: 9 | C63: Length of Maintenance Outage High | D63: 25 | E63: 0.8 | F63: 0.015 | G63: 6300 | H63: 0.003 | I63: 900 | J63: 2 | K63: 50000 | L63: 500 | M63: 16 | N63: 3.6 | O63: 1 | P63: 1 | Q63: 51 | R63: 0.110383302 | S63: 0.2052819192 | T63: 1.483190358 | U63: 1.772707263 | V63: 2.046150066
B64: 10 | C64: Fixed O&M Actual High | D64: 25 | E64: 0.8 | F64: 0.015 | G64: 6300 | H64: 0.003 | I64: 900 | J64: 2 | K64: 50000 | L64: 500 | M64: 10 | N64: 3.6 | O64: 1 | P64: 1 | Q64: 52 | R64: 0.1174940169 | S64: 0.2232590497 | T64: 1.578820991 | U64: 1.850842219 | V64: 2.142274159
B65: 11 | C65: Variable O&M Actual High | D65: 25 | E65: 0.8 | F65: 0.015 | G65: 6300 | H65: 0.003 | I65: 900 | J65: 2 | K65: 50000 | L65: 500 | M65: 10 | N65: 2 | O65: 1 | P65: 1 | Q65: 53 | R65: 0.1297036231 | S65: 0.2527078569 | T65: 1.728202669 | U65: 1.989148432 | V65: 2.313204287
B66: 12 | C66: Merchant Capacity Price Scenario High | D66: 25 | E66: 0.8 | F66: 0.015 | G66: 6300 | H66: 0.003 | I66: 900 | J66: 2 | K66: 50000 | L66: 500 | M66: 10 | N66: 2 | O66: 3 | P66: 1 | Q66: 54 | R66: 0.1369795263 | S66: 0.2703766167 | T66: 1.823849478 | U66: 2.071499265 | V66: 2.412452851
B67: 13 | C67: Merchant Energy Price Scenario High | D67: 25 | E67: 0.8 | F67: 0.015 | G67: 6300 | H67: 0.003 | I67: 900 | J67: 2 | K67: 50000 | L67: 500 | M67: 10 | N67: 2 | O67: 3 | P67: 3 | Q67: 55 | R67: 0.1668553531 | S67: 0.3320500433 | T67: 2.117539751 | U67: 2.428806909 | V67: 2.84645841
C69: =INDEX(C13:C67,$D$3) -> Base Case | D69: =INDEX(D13:D67,$D$3) -> 30 | E69: =INDEX(E13:E67,$D$3) -> 0.7 | F69: 0.025 | G69: 6450 | H69: 0.005 | I69: 985 | J69: 1 | K69: 40000 | L69: 700 | M69: 16 | N69: 3.6 | O69: 1 | P69: =INDEX(P13:P67,$D$3) -> 1
C71: Use INDEX
H72: Waterfall Diagram | I72: PLCR
D73: Equity IRR
D74: High vs Base | E74: Low vs Base | H74: =C13 -> Base Case | I74: =V13 -> 1.935792562
B75: 1 | C75: =TRANSPOSE(D11:P11) -> Construction Period | D75: =S29-$S$13 -> 0.005384874344 | E75: =S16-$S$13 -> -0.02409374714 | H75: =C75 -> Construction Period | I75: =V42-I74 -> 0.01877701504
B76: 2 | C76: Economic Capacity Factor | D76: =S30-$S$13 -> 0.01124626398 | E76: =S17-$S$13 -> -0.01262420416 | H76: =C76 -> Economic Capacity Factor | I76: =V43-V42 -> -0.1075608806
B77: 3 | C77: Fored Outage Rate | D77: 0.001185548306 | E77: -0.001798963547 | H77: Fored Outage Rate | I77: =V44-V43 -> -0.01659744968
B78: 4 | C78: Heat Rate | D78: 0.003324079514 | E78: -0.005586802959 | H78: Heat Rate | I78: -0.0319436973
B79: 5 | C79: Heat Rate Degradation | D79: 0.0008288860321 | E79: -0.0008362770081 | H79: Heat Rate Degradation | I79: -0.00629540133
B80: 6 | C80: EPC Cost | D80: 0.04164197445 | E80: -0.05334639251 | H80: EPC Cost | I80: 0.05601092332
B81: 7 | C81: S-Curve Code | D81: 0.008929669857 | E81: -0.0007837891579 | H81: S-Curve Code | I81: 0.0001934694775
B82: 8 | C82: EOA to Major Maintenace | D82: 8.778572083e-05 | E82: -0.0003263831139 | H82: EOA to Major Maintenace | I82: 0.0001875845928
B83: 9 | C83: Length of Maintenance Outage | D83: 0.0004398226738 | E83: -0.0006620287895 | H83: Length of Maintenance Outage | I83: -0.006869010642
B84: 10 | C84: Fixed O&M Actual | D84: 0.01398633718 | E84: -0.009627258778 | H84: Fixed O&M Actual | I84: -0.06923390414
B85: 11 | C85: Variable O&M Actual | D85: 0.02239550352 | E85: -0.02061474323 | H85: Variable O&M Actual | I85: -0.1246713127
B86: 12 | C86: Merchant Capacity Price Scenario | D86: 0.01528432369 | E86: -0.04888029397 | H86: Merchant Capacity Price Scenario | I86: -0.3530024836
B87: 13 | C87: Merchant Energy Price Scenario | D87: 0.05698962212 | E87: -0.0480600208 | H87: Merchant Energy Price Scenario | I87: -0.3801231739
H88: Low Case

Sheet Summary
B2: Key Assumptions | F2: Investor Returns | N2: ='Accuracy Test'!E17 -> Model OK
B3: Capacity Price | D3: =Capprice -> 7.5 | F3: Project IRR Pre-tax | G3: ='Periodic Model'!F259 -> 0.08218312562
B4: PPA Term | D4: ='Periodic Model'!F76 -> 0 | F4: Project IRR After-tax | G4: ='Periodic Model'!F287 -> 0.06633972824
B5: Merchant Capacity Price | D5: ='Periodic Model'!F102 -> 170 | F5: Debt IRR Pre-tax | G5: ='Periodic Model'!F504 -> 0.03639519513
B6: Merchant Spark Spread | D6: ='Periodic Model'!F111 -> 22 | F6: Debt IRR After-tax | G6: ='Periodic Model'!F509 -> 0.02332338393
B7: Economic Capacity Factor | D7: ='Periodic Model'!J32 -> 0.7
B8: Cost per kW | D8: ='Periodic Model'!F49 -> 985 | F8: Equity IRR | G8: ='Periodic Model'!F445 -> 0.1250515878
B9: Fixed O&M/kW-year | D9: ='Periodic Model'!F72 -> 16
B10: Variable O&M/MWH | D10: ='Periodic Model'!F73 -> 3.6 | F10: Lender Evaluation
F11: DSCR | G11: ='Periodic Model'!F450 -> 1.222034571
B12: Tax Rate | D12: ='Periodic Model'!$F$117 -> 0.35 | F12: LLCR | G12: ='Periodic Model'!F457 -> 1.69341256
B13: Level Payment | F13: PLCR | G13: ='Periodic Model'!F462 -> 1.935792562 | I13: Uses | M13: Sources
I14: ='Periodic Model'!C291 -> Development cost | K14: ='Periodic Model'!F291 -> 15000 | M14: ='Periodic Model'!C300 -> Debt | N14: ='Periodic Model'!F300 -> 250000
B15: Debt Structuring | F15: Debt to Capital COD | G15: ='Periodic Model'!G300 -> 0.7449806926 | I15: ='Periodic Model'!C292 -> Capital Expenditures | K15: ='Periodic Model'!F292 -> 295500 | M15: ='Periodic Model'!C301 -> Equity | N15: ='Periodic Model'!F301 -> 85579.16667
B16: Debt Amount | D16: ='Periodic Model'!F123 -> 250000 | F16: Average Life of Debt | G16: ='Periodic Model'!F467 -> 9.75 | I16: ='Periodic Model'!C293 -> IDC | K16: ='Periodic Model'!F293 -> 9739.583333 | M16: Total | N16: ='Periodic Model'!F302 -> 335579.1667
B17: Debt Tenor | D17: ='Periodic Model'!F130 -> 19 | I17: ='Periodic Model'!C294 -> Up-Front Fee | K17: ='Periodic Model'!F294 -> 8750
B18: Credit Spread | D18: ='Periodic Model'!I139 -> 0.022 | I18: ='Periodic Model'!C295 -> Commitment Fee | K18: ='Periodic Model'!F295 -> 2589.583333
B19: Cash Sweep Percent | D19: ='Periodic Model'!F146 -> 0 | I19: ='Periodic Model'!C296 -> DSRA | K19: ='Periodic Model'!F296 -> 4000
I20: Total | K20: ='Periodic Model'!F297 -> 335579.1667

Sheet Periodic Model
A1: Time Lines | G1: =H492 -> TRUE | H1: ='Accuracy Test'!E17 -> Model OK
B2: Period (EIS and TAB) | J2: 1 | K2: 2 | L2: 3 | M2: 4 | N2: 5 | O2: 6 | P2: 7 | Q2: 8 | R2: 9 | S2: 10 | T2: 11 | U2: 12 | V2: 13 | W2: 14 | X2: 15 | Y2: 16 | Z2: 17 | AA2: 18 | AB2: 19 | AC2: 20 | AD2: 21 | AE2: 22 | AF2: 23 | AG2: 24 | AH2: 25 | AI2: 26 | AJ2: 27 | AK2: 28 | AL2: 29 | AM2: 30 | AN2: 31 | AO2: 32 | AP2: 33 | AQ2: 34 | AR2: 35 | AS2: 36 | AT2: 37 | AU2: 38 | AV2: 39 | AW2: 40 | AX2: 41 | AY2: 42 | AZ2: 43 | BA2: 44 | BB2: 45 | BC2: 46 | BD2: 47 | BE2: 48 | BF2: 49 | BG2: 50 | BH2: 51 | BI2: 52 | BJ2: 53 | BK2: 54 | BL2: 55 | BM2: 56 | BN2: 57 | BO2: 58 | BP2: 59 | BQ2: 60 | BR2: 61 | BS2: 62 | BT2: 63 | BU2: 64 | BV2: 65 | BW2: 66 | BX2: 67 | BY2: 68 | BZ2: 69 | CA2: 70 | CB2: 71 | CC2: 72 | CD2: 73 | CE2: 74 | CF2: 75 | CG2: 76 | CH2: 77 | CI2: 78 | CJ2: 79 | CK2: 80 | CL2: 81 | CM2: 82 | CN2: 83 | CO2: 84 | CP2: 85 | CQ2: 86 | CR2: 87 | CS2: 88 | CT2: 89 | CU2: 90 | CV2: 91 | CW2: 92 | CX2: 93 | CY2: 94 | CZ2: 95 | DA2: 96 | DB2: 97 | DC2: 98 | DD2: 99 | DE2: 100 | DF2: 101 | DG2: 102 | DH2: 103 | DI2: 104 | DJ2: 105 | DK2: 106 | DL2: 107 | DM2: 108 | DN2: 109 | DO2: 110 | DP2: 111 | DQ2: 112 | DR2: 113 | DS2: 114 | DT2: 115 | DU2: 116 | DV2: 117 | DW2: 118 | DX2: 119 | DY2: 120 | DZ2: 121 | EA2: 122 | EB2: 123 | EC2: 124 | ED2: 125 | EE2: 126 | EF2: 127 | EG2: 128 | EH2: 129 | EI2: 130 | EJ2: 131 | EK2: 132 | EL2: 133 | EM2: 134 | EN2: 135 | EO2: 136 | EP2: 137 | EQ2: 138 | ER2: 139 | ES2: 140 | ET2: 141 | EU2: 142 | EV2: 143 | EW2: 144 | EX2: 145 | EY2: 146 | EZ2: 147 | FA2: 148 | FB2: 149 | FC2: 150
B3: Months per Period | F3: =F23 -> 1 | G3: =F24 -> 6 | H3: =F25 -> 52 | J3: =IF(J2<=$H$3,$F$3,$G$3) -> 1 | K3: =IF(K2<=$H$3,$F$3,$G$3) -> 1 | L3: 1 | M3: 1 | N3: 1 | O3: 1 | P3: 1 | Q3: 1 | R3: 1 | S3: 1 | T3: 1 | U3: 1 | V3: 1 | W3: 1 | X3: 1 | Y3: 1 | Z3: 1 | AA3: 1 | AB3: 1 | AC3: 1 | AD3: 1 | AE3: 1 | AF3: 1 | AG3: 1 | AH3: 1 | AI3: 1 | AJ3: 1 | AK3: 1 | AL3: 1 | AM3: 1 | AN3: 1 | AO3: 1 | AP3: 1 | AQ3: 1 | AR3: 1 | AS3: 1 | AT3: 1 | AU3: 1 | AV3: 1 | AW3: 1 | AX3: 1 | AY3: 1 | AZ3: 1 | BA3: 1 | BB3: 1 | BC3: 1 | BD3: 1 | BE3: 1 | BF3: 1 | BG3: 1 | BH3: 1 | BI3: 1 | BJ3: 6 | BK3: 6 | BL3: 6 | BM3: 6 | BN3: 6 | BO3: 6 | BP3: 6 | BQ3: 6 | BR3: 6 | BS3: 6 | BT3: 6 | BU3: 6 | BV3: 6 | BW3: =IF(BW2<=$H$3,$F$3,$G$3) -> 6 | BX3: 6 | BY3: 6 | BZ3: 6 | CA3: 6 | CB3: 6 | CC3: 6 | CD3: 6 | CE3: 6 | CF3: 6 | CG3: 6 | CH3: 6 | CI3: 6 | CJ3: 6 | CK3: 6 | CL3: 6 | CM3: 6 | CN3: 6 | CO3: 6 | CP3: 6 | CQ3: 6 | CR3: 6 | CS3: 6 | CT3: 6 | CU3: 6 | CV3: 6 | CW3: 6 | CX3: 6 | CY3: 6 | CZ3: 6 | DA3: 6 | DB3: 6 | DC3: 6 | DD3: 6 | DE3: 6 | DF3: 6 | DG3: 6 | DH3: 6 | DI3: 6 | DJ3: 6 | DK3: 6 | DL3: 6 | DM3: 6 | DN3: 6 | DO3: 6 | DP3: 6 | DQ3: 6 | DR3: 6 | DS3: 6 | DT3: 6 | DU3: 6 | DV3: 6 | DW3: 6 | DX3: 6 | DY3: 6 | DZ3: 6 | EA3: 6 | EB3: 6 | EC3: 6 | ED3: 6 | EE3: 6 | EF3: 6 | EG3: 6 | EH3: 6 | EI3: =IF(EI2<=$H$3,$F$3,$G$3) -> 6 | EJ3: 6 | EK3: 6 | EL3: 6 | EM3: 6 | EN3: 6 | EO3: 6 | EP3: 6 | EQ3: 6 | ER3: 6 | ES3: 6 | ET3: 6 | EU3: 6 | EV3: 6 | EW3: 6 | EX3: 6 | EY3: 6 | EZ3: 6 | FA3: 6 | FB3: 6 | FC3: 6
B4: Start of Period | J4: =I5+1 -> 2017-02-01 | K4: =J5+1 -> 2017-03-01 | L4: 2017-04-01 | M4: 2017-05-01 | N4: 2017-06-01 | O4: 2017-07-01 | P4: 2017-08-01 | Q4: 2017-09-01 | R4: 2017-10-01 | S4: 2017-11-01 | T4: 2017-12-01 | U4: 2018-01-01 | V4: 2018-02-01 | W4: 2018-03-01 | X4: 2018-04-01 | Y4: 2018-05-01 | Z4: 2018-06-01 | AA4: 2018-07-01 | AB4: 2018-08-01 | AC4: 2018-09-01 | AD4: 2018-10-01 | AE4: 2018-11-01 | AF4: 2018-12-01 | AG4: 2019-01-01 | AH4: 2019-02-01 | AI4: 2019-03-01 | AJ4: 2019-04-01 | AK4: 2019-05-01 | AL4: 2019-06-01 | AM4: 2019-07-01 | AN4: 2019-08-01 | AO4: 2019-09-01 | AP4: 2019-10-01 | AQ4: 2019-11-01 | AR4: 2019-12-01 | AS4: 2020-01-01 | AT4: 2020-02-01 | AU4: 2020-03-01 | AV4: 2020-04-01 | AW4: 2020-05-01 | AX4: 2020-06-01 | AY4: 2020-07-01 | AZ4: 2020-08-01 | BA4: 2020-09-01 | BB4: 2020-10-01 | BC4: 2020-11-01 | BD4: 2020-12-01 | BE4: 2021-01-01 | BF4: 2021-02-01 | BG4: 2021-03-01 | BH4: 2021-04-01 | BI4: 2021-05-01 | BJ4: 2021-06-01 | BK4: 2021-12-01 | BL4: 2022-06-01 | BM4: 2022-12-01 | BN4: 2023-06-01 | BO4: 2023-12-01 | BP4: 2024-06-01 | BQ4: 2024-12-01 | BR4: 2025-06-01 | BS4: 2025-12-01 | BT4: 2026-06-01 | BU4: 2026-12-01 | BV4: 2027-06-01 | BW4: =BV5+1 -> 2027-12-01 | BX4: 2028-06-01 | BY4: 2028-12-01 | BZ4: 2029-06-01 | CA4: 2029-12-01 | CB4: 2030-06-01 | CC4: 2030-12-01 | CD4: 2031-06-01 | CE4: 2031-12-01 | CF4: 2032-06-01 | CG4: 2032-12-01 | CH4: 2033-06-01 | CI4: 2033-12-01 | CJ4: 2034-06-01 | CK4: 2034-12-01 | CL4: 2035-06-01 | CM4: 2035-12-01 | CN4: 2036-06-01 | CO4: 2036-12-01 | CP4: 2037-06-01 | CQ4: 2037-12-01 | CR4: 2038-06-01 | CS4: 2038-12-01 | CT4: 2039-06-01 | CU4: 2039-12-01 | CV4: 2040-06-01 | CW4: 2040-12-01 | CX4: 2041-06-01 | CY4: 2041-12-01 | CZ4: 2042-06-01 | DA4: 2042-12-01 | DB4: 2043-06-01 | DC4: 2043-12-01 | DD4: 2044-06-01 | DE4: 2044-12-01 | DF4: 2045-06-01 | DG4: 2045-12-01 | DH4: 2046-06-01 | DI4: 2046-12-01 | DJ4: 2047-06-01 | DK4: 2047-12-01 | DL4: 2048-06-01 | DM4: 2048-12-01 | DN4: 2049-06-01 | DO4: 2049-12-01 | DP4: 2050-06-01 | DQ4: 2050-12-01 | DR4: 2051-06-01 | DS4: 2051-12-01 | DT4: 2052-06-01 | DU4: 2052-12-01 | DV4: 2053-06-01 | DW4: 2053-12-01 | DX4: 2054-06-01 | DY4: 2054-12-01 | DZ4: 2055-06-01 | EA4: 2055-12-01 | EB4: 2056-06-01 | EC4: 2056-12-01 | ED4: 2057-06-01 | EE4: 2057-12-01 | EF4: 2058-06-01 | EG4: 2058-12-01 | EH4: 2059-06-01 | EI4: =EH5+1 -> 2059-12-01 | EJ4: 2060-06-01 | EK4: 2060-12-01 | EL4: 2061-06-01 | EM4: 2061-12-01 | EN4: 2062-06-01 | EO4: 2062-12-01 | EP4: 2063-06-01 | EQ4: 2063-12-01 | ER4: 2064-06-01 | ES4: 2064-12-01 | ET4: 2065-06-01 | EU4: 2065-12-01 | EV4: 2066-06-01 | EW4: 2066-12-01 | EX4: 2067-06-01 | EY4: 2067-12-01 | EZ4: 2068-06-01 | FA4: 2068-12-01 | FB4: 2069-06-01 | FC4: 2069-12-01
B5: End of Period | H5: Check | I5: =F15-1 -> 2017-01-31 | J5: =EDATE(J4,J3)-1 -> 2017-02-28 | K5: =EDATE(K4,K3)-1 -> 2017-03-31 | L5: 2017-04-30 | M5: 2017-05-31 | N5: 2017-06-30 | O5: 2017-07-31 | P5: 2017-08-31 | Q5: 2017-09-30 | R5: 2017-10-31 | S5: 2017-11-30 | T5: 2017-12-31 | U5: 2018-01-31 | V5: 2018-02-28 | W5: 2018-03-31 | X5: 2018-04-30 | Y5: 2018-05-31 | Z5: 2018-06-30 | AA5: 2018-07-31 | AB5: 2018-08-31 | AC5: 2018-09-30 | AD5: 2018-10-31 | AE5: 2018-11-30 | AF5: 2018-12-31 | AG5: 2019-01-31 | AH5: 2019-02-28 | AI5: 2019-03-31 | AJ5: 2019-04-30 | AK5: 2019-05-31 | AL5: 2019-06-30 | AM5: 2019-07-31 | AN5: 2019-08-31 | AO5: 2019-09-30 | AP5: 2019-10-31 | AQ5: 2019-11-30 | AR5: 2019-12-31 | AS5: 2020-01-31 | AT5: 2020-02-29 | AU5: 2020-03-31 | AV5: 2020-04-30 | AW5: 2020-05-31 | AX5: 2020-06-30 | AY5: 2020-07-31 | AZ5: 2020-08-31 | BA5: 2020-09-30 | BB5: 2020-10-31 | BC5: 2020-11-30 | BD5: 2020-12-31 | BE5: 2021-01-31 | BF5: 2021-02-28 | BG5: 2021-03-31 | BH5: 2021-04-30 | BI5: 2021-05-31 | BJ5: 2021-11-30 | BK5: 2022-05-31 | BL5: 2022-11-30 | BM5: 2023-05-31 | BN5: 2023-11-30 | BO5: 2024-05-31 | BP5: 2024-11-30 | BQ5: 2025-05-31 | BR5: 2025-11-30 | BS5: 2026-05-31 | BT5: 2026-11-30 | BU5: 2027-05-31 | BV5: 2027-11-30 | BW5: =EDATE(BW4,BW3)-1 -> 2028-05-31 | BX5: 2028-11-30 | BY5: 2029-05-31 | BZ5: 2029-11-30 | CA5: 2030-05-31 | CB5: 2030-11-30 | CC5: 2031-05-31 | CD5: 2031-11-30 | CE5: 2032-05-31 | CF5: 2032-11-30 | CG5: 2033-05-31 | CH5: 2033-11-30 | CI5: 2034-05-31 | CJ5: 2034-11-30 | CK5: 2035-05-31 | CL5: 2035-11-30 | CM5: 2036-05-31 | CN5: 2036-11-30 | CO5: 2037-05-31 | CP5: 2037-11-30 | CQ5: 2038-05-31 | CR5: 2038-11-30 | CS5: 2039-05-31 | CT5: 2039-11-30 | CU5: 2040-05-31 | CV5: 2040-11-30 | CW5: 2041-05-31 | CX5: 2041-11-30 | CY5: 2042-05-31 | CZ5: 2042-11-30 | DA5: 2043-05-31 | DB5: 2043-11-30 | DC5: 2044-05-31 | DD5: 2044-11-30 | DE5: 2045-05-31 | DF5: 2045-11-30 | DG5: 2046-05-31 | DH5: 2046-11-30 | DI5: 2047-05-31 | DJ5: 2047-11-30 | DK5: 2048-05-31 | DL5: 2048-11-30 | DM5: 2049-05-31 | DN5: 2049-11-30 | DO5: 2050-05-31 | DP5: 2050-11-30 | DQ5: 2051-05-31 | DR5: 2051-11-30 | DS5: 2052-05-31 | DT5: 2052-11-30 | DU5: 2053-05-31 | DV5: 2053-11-30 | DW5: 2054-05-31 | DX5: 2054-11-30 | DY5: 2055-05-31 | DZ5: 2055-11-30 | EA5: 2056-05-31 | EB5: 2056-11-30 | EC5: 2057-05-31 | ED5: 2057-11-30 | EE5: 2058-05-31 | EF5: 2058-11-30 | EG5: 2059-05-31 | EH5: 2059-11-30 | EI5: =EDATE(EI4,EI3)-1 -> 2060-05-31 | EJ5: 2060-11-30 | EK5: 2061-05-31 | EL5: 2061-11-30 | EM5: 2062-05-31 | EN5: 2062-11-30 | EO5: 2063-05-31 | EP5: 2063-11-30 | EQ5: 2064-05-31 | ER5: 2064-11-30 | ES5: 2065-05-31 | ET5: 2065-11-30 | EU5: 2066-05-31 | EV5: 2066-11-30 | EW5: 2067-05-31 | EX5: 2067-11-30 | EY5: 2068-05-31 | EZ5: 2068-11-30 | FA5: 2069-05-31 | FB5: 2069-11-30 | FC5: 2070-05-31
B6: Development Period | F6: =F15 -> 2017-02-01 | G6: =F17 -> 2018-12-01 | H6: =COUNTIF(J6:FC6,TRUE)=F16 -> TRUE | J6: =AND(J$4>=$F6,J$4<$G6) -> TRUE | K6: =AND(K$4>=$F6,K$4<$G6) -> TRUE | L6: TRUE | M6: TRUE | N6: TRUE | O6: TRUE | P6: TRUE | Q6: TRUE | R6: TRUE | S6: TRUE | T6: TRUE | U6: TRUE | V6: TRUE | W6: TRUE | X6: TRUE | Y6: TRUE | Z6: TRUE | AA6: TRUE | AB6: TRUE | AC6: TRUE | AD6: TRUE | AE6: TRUE | AF6: FALSE | AG6: FALSE | AH6: FALSE | AI6: FALSE | AJ6: FALSE | AK6: FALSE | AL6: FALSE | AM6: FALSE | AN6: FALSE | AO6: FALSE | AP6: FALSE | AQ6: FALSE | AR6: FALSE | AS6: FALSE | AT6: FALSE | AU6: FALSE | AV6: FALSE | AW6: FALSE | AX6: FALSE | AY6: FALSE | AZ6: FALSE | BA6: FALSE | BB6: FALSE | BC6: FALSE | BD6: FALSE | BE6: FALSE | BF6: FALSE | BG6: FALSE | BH6: FALSE | BI6: FALSE | BJ6: FALSE | BK6: FALSE | BL6: FALSE | BM6: FALSE | BN6: FALSE | BO6: FALSE | BP6: FALSE | BQ6: FALSE | BR6: FALSE | BS6: FALSE | BT6: FALSE | BU6: FALSE | BV6: FALSE | BW6: =AND(BW$4>=$F6,BW$4<$G6) -> FALSE | BX6: FALSE | BY6: FALSE | BZ6: FALSE | CA6: FALSE | CB6: FALSE | CC6: FALSE | CD6: FALSE | CE6: FALSE | CF6: FALSE | CG6: FALSE | CH6: FALSE | CI6: FALSE | CJ6: FALSE | CK6: FALSE | CL6: FALSE | CM6: FALSE | CN6: FALSE | CO6: FALSE | CP6: FALSE | CQ6: FALSE | CR6: FALSE | CS6: FALSE | CT6: FALSE | CU6: FALSE | CV6: FALSE | CW6: FALSE | CX6: FALSE | CY6: FALSE | CZ6: FALSE | DA6: FALSE | DB6: FALSE | DC6: FALSE | DD6: FALSE | DE6: FALSE | DF6: FALSE | DG6: FALSE | DH6: FALSE | DI6: FALSE | DJ6: FALSE | DK6: FALSE | DL6: FALSE | DM6: FALSE | DN6: FALSE | DO6: FALSE | DP6: FALSE | DQ6: FALSE | DR6: FALSE | DS6: FALSE | DT6: FALSE | DU6: FALSE | DV6: FALSE | DW6: FALSE | DX6: FALSE | DY6: FALSE | DZ6: FALSE | EA6: FALSE | EB6: FALSE | EC6: FALSE | ED6: FALSE | EE6: FALSE | EF6: FALSE | EG6: FALSE | EH6: FALSE | EI6: =AND(EI$4>=$F6,EI$4<$G6) -> FALSE | EJ6: FALSE | EK6: FALSE | EL6: FALSE | EM6: FALSE | EN6: FALSE | EO6: FALSE | EP6: FALSE | EQ6: FALSE | ER6: FALSE | ES6: FALSE | ET6: FALSE | EU6: FALSE | EV6: FALSE | EW6: FALSE | EX6: FALSE | EY6: FALSE | EZ6: FALSE | FA6: FALSE | FB6: FALSE | FC6: FALSE
B7: Conctruction Period | F7: =F17 -> 2018-12-01 | G7: =F19 -> 2021-06-01 | H7: =COUNTIF(J7:FC7,TRUE)=F18 -> TRUE | J7: =AND(J$4>=$F7,J$4<$G7) -> FALSE | K7: FALSE | L7: FALSE | M7: FALSE | N7: FALSE | O7: FALSE | P7: FALSE | Q7: FALSE | R7: FALSE | S7: FALSE | T7: FALSE | U7: FALSE | V7: FALSE | W7: FALSE | X7: FALSE | Y7: FALSE | Z7: FALSE | AA7: FALSE | AB7: FALSE | AC7: FALSE | AD7: FALSE | AE7: FALSE | AF7: TRUE | AG7: TRUE | AH7: TRUE | AI7: TRUE | AJ7: TRUE | AK7: TRUE | AL7: TRUE | AM7: TRUE | AN7: TRUE | AO7: TRUE | AP7: TRUE | AQ7: TRUE | AR7: TRUE | AS7: TRUE | AT7: TRUE | AU7: TRUE | AV7: TRUE | AW7: TRUE | AX7: TRUE | AY7: TRUE | AZ7: TRUE | BA7: TRUE | BB7: TRUE | BC7: TRUE | BD7: TRUE | BE7: TRUE | BF7: TRUE | BG7: TRUE | BH7: TRUE | BI7: TRUE | BJ7: FALSE | BK7: FALSE | BL7: FALSE | BM7: FALSE | BN7: FALSE | BO7: FALSE | BP7: FALSE | BQ7: FALSE | BR7: FALSE | BS7: FALSE | BT7: FALSE | BU7: FALSE | BV7: FALSE | BW7: FALSE | BX7: FALSE | BY7: FALSE | BZ7: FALSE | CA7: FALSE | CB7: FALSE | CC7: FALSE | CD7: FALSE | CE7: FALSE | CF7: FALSE | CG7: FALSE | CH7: FALSE | CI7: FALSE | CJ7: FALSE | CK7: FALSE | CL7: FALSE | CM7: FALSE | CN7: FALSE | CO7: FALSE | CP7: FALSE | CQ7: FALSE | CR7: FALSE | CS7: FALSE | CT7: FALSE | CU7: FALSE | CV7: FALSE | CW7: FALSE | CX7: FALSE | CY7: FALSE | CZ7: FALSE | DA7: FALSE | DB7: FALSE | DC7: FALSE | DD7: FALSE | DE7: FALSE | DF7: FALSE | DG7: FALSE | DH7: FALSE | DI7: FALSE | DJ7: FALSE | DK7: FALSE | DL7: FALSE | DM7: FALSE | DN7: FALSE | DO7: FALSE | DP7: FALSE | DQ7: FALSE | DR7: FALSE | DS7: FALSE | DT7: FALSE | DU7: FALSE | DV7: FALSE | DW7: FALSE | DX7: FALSE | DY7: FALSE | DZ7: FALSE | EA7: FALSE | EB7: FALSE | EC7: FALSE | ED7: FALSE | EE7: FALSE | EF7: FALSE | EG7: FALSE | EH7: FALSE | EI7: FALSE | EJ7: FALSE | EK7: FALSE | EL7: FALSE | EM7: FALSE | EN7: FALSE | EO7: FALSE | EP7: FALSE | EQ7: FALSE | ER7: FALSE | ES7: FALSE | ET7: FALSE | EU7: FALSE | EV7: FALSE | EW7: FALSE | EX7: FALSE | EY7: FALSE | EZ7: FALSE | FA7: FALSE | FB7: FALSE | FC7: FALSE
B8: Operation Period | F8: =F19 -> 2021-06-01 | G8: =F21 -> 2046-06-01 | H8: =COUNTIF(J8:FC8,TRUE)=F20*12/F24 -> TRUE | J8: FALSE | K8: FALSE | L8: FALSE | M8: FALSE | N8: FALSE | O8: FALSE | P8: FALSE | Q8: FALSE | R8: FALSE | S8: FALSE | T8: FALSE | U8: FALSE | V8: FALSE | W8: FALSE | X8: FALSE | Y8: FALSE | Z8: FALSE | AA8: FALSE | AB8: FALSE | AC8: FALSE | AD8: FALSE | AE8: FALSE | AF8: FALSE | AG8: FALSE | AH8: FALSE | AI8: FALSE | AJ8: FALSE | AK8: FALSE | AL8: FALSE | AM8: FALSE | AN8: FALSE | AO8: FALSE | AP8: FALSE | AQ8: FALSE | AR8: FALSE | AS8: FALSE | AT8: FALSE | AU8: FALSE | AV8: FALSE | AW8: FALSE | AX8: FALSE | AY8: FALSE | AZ8: FALSE | BA8: FALSE | BB8: FALSE | BC8: FALSE | BD8: FALSE | BE8: FALSE | BF8: FALSE | BG8: FALSE | BH8: FALSE | BI8: FALSE | BJ8: TRUE | BK8: TRUE | BL8: TRUE | BM8: TRUE | BN8: TRUE | BO8: TRUE | BP8: TRUE | BQ8: TRUE | BR8: TRUE | BS8: TRUE | BT8: TRUE | BU8: TRUE | BV8: TRUE | BW8: TRUE | BX8: TRUE | BY8: TRUE | BZ8: TRUE | CA8: TRUE | CB8: TRUE | CC8: TRUE | CD8: TRUE | CE8: TRUE | CF8: TRUE | CG8: TRUE | CH8: TRUE | CI8: TRUE | CJ8: TRUE | CK8: TRUE | CL8: TRUE | CM8: TRUE | CN8: TRUE | CO8: TRUE | CP8: TRUE | CQ8: TRUE | CR8: TRUE | CS8: TRUE | CT8: TRUE | CU8: TRUE | CV8: TRUE | CW8: TRUE | CX8: TRUE | CY8: TRUE | CZ8: TRUE | DA8: TRUE | DB8: TRUE | DC8: TRUE | DD8: TRUE | DE8: TRUE | DF8: TRUE | DG8: TRUE | DH8: FALSE | DI8: FALSE | DJ8: FALSE | DK8: FALSE | DL8: FALSE | DM8: FALSE | DN8: FALSE | DO8: FALSE | DP8: FALSE | DQ8: FALSE | DR8: FALSE | DS8: FALSE | DT8: FALSE | DU8: FALSE | DV8: FALSE | DW8: FALSE | DX8: FALSE | DY8: FALSE | DZ8: FALSE | EA8: FALSE | EB8: FALSE | EC8: FALSE | ED8: FALSE | EE8: FALSE | EF8: FALSE | EG8: FALSE | EH8: FALSE | EI8: FALSE | EJ8: FALSE | EK8: FALSE | EL8: FALSE | EM8: FALSE | EN8: FALSE | EO8: FALSE | EP8: FALSE | EQ8: FALSE | ER8: FALSE | ES8: FALSE | ET8: FALSE | EU8: FALSE | EV8: FALSE | EW8: FALSE | EX8: FALSE | EY8: FALSE | EZ8: FALSE | FA8: FALSE | FB8: FALSE | FC8: FALSE
B9: Year | F9: =F27 -> 5 | G9: COD - 1 | I9: =YEAR(I5) -> 2017 | J9: =IF(MONTH(I5)=$F$9,I9+1,I9) -> 2017 | K9: 2017 | L9: 2017 | M9: 2017 | N9: 2018 | O9: 2018 | P9: 2018 | Q9: 2018 | R9: 2018 | S9: 2018 | T9: 2018 | U9: 2018 | V9: 2018 | W9: 2018 | X9: 2018 | Y9: 2018 | Z9: 2019 | AA9: 2019 | AB9: 2019 | AC9: 2019 | AD9: 2019 | AE9: 2019 | AF9: 2019 | AG9: 2019 | AH9: 2019 | AI9: 2019 | AJ9: 2019 | AK9: 2019 | AL9: 2020 | AM9: 2020 | AN9: 2020 | AO9: 2020 | AP9: =IF(MONTH(AO5)=$F$9,AO9+1,AO9) -> 2020 | AQ9: 2020 | AR9: 2020 | AS9: 2020 | AT9: 2020 | AU9: 2020 | AV9: 2020 | AW9: 2020 | AX9: 2021 | AY9: 2021 | AZ9: 2021 | BA9: 2021 | BB9: 2021 | BC9: 2021 | BD9: 2021 | BE9: 2021 | BF9: 2021 | BG9: 2021 | BH9: 2021 | BI9: 2021 | BJ9: 2022 | BK9: 2022 | BL9: 2023 | BM9: 2023 | BN9: 2024 | BO9: 2024 | BP9: 2025 | BQ9: 2025 | BR9: 2026 | BS9: 2026 | BT9: 2027 | BU9: 2027 | BV9: =IF(MONTH(BU5)=$F$9,BU9+1,BU9) -> 2028 | BW9: 2028 | BX9: 2029 | BY9: 2029 | BZ9: 2030 | CA9: 2030 | CB9: 2031 | CC9: 2031 | CD9: 2032 | CE9: 2032 | CF9: 2033 | CG9: 2033 | CH9: 2034 | CI9: 2034 | CJ9: 2035 | CK9: 2035 | CL9: 2036 | CM9: 2036 | CN9: 2037 | CO9: 2037 | CP9: 2038 | CQ9: 2038 | CR9: 2039 | CS9: 2039 | CT9: 2040 | CU9: 2040 | CV9: 2041 | CW9: 2041 | CX9: 2042 | CY9: 2042 | CZ9: 2043 | DA9: 2043 | DB9: =IF(MONTH(DA5)=$F$9,DA9+1,DA9) -> 2044 | DC9: 2044 | DD9: 2045 | DE9: 2045 | DF9: 2046 | DG9: 2046 | DH9: 2047 | DI9: 2047 | DJ9: 2048 | DK9: 2048 | DL9: 2049 | DM9: 2049 | DN9: 2050 | DO9: 2050 | DP9: 2051 | DQ9: 2051 | DR9: 2052 | DS9: 2052 | DT9: 2053 | DU9: 2053 | DV9: 2054 | DW9: 2054 | DX9: 2055 | DY9: 2055 | DZ9: 2056 | EA9: 2056 | EB9: 2057 | EC9: 2057 | ED9: 2058 | EE9: 2058 | EF9: 2059 | EG9: 2059 | EH9: =IF(MONTH(EG5)=$F$9,EG9+1,EG9) -> 2060 | EI9: 2060 | EJ9: 2061 | EK9: 2061 | EL9: 2062 | EM9: 2062 | EN9: 2063 | EO9: 2063 | EP9: 2064 | EQ9: 2064 | ER9: 2065 | ES9: 2065 | ET9: 2066 | EU9: 2066 | EV9: 2067 | EW9: 2067 | EX9: 2068 | EY9: 2068 | EZ9: 2069 | FA9: 2069 | FB9: 2070 | FC9: 2070
B10: Days | J10: =J5-J4+1 -> 28 | K10: =K5-K4+1 -> 31 | L10: 30 | M10: 31 | N10: 30 | O10: 31 | P10: 31 | Q10: 30 | R10: 31 | S10: 30 | T10: 31 | U10: 31 | V10: 28 | W10: 31 | X10: 30 | Y10: 31 | Z10: 30 | AA10: 31 | AB10: 31 | AC10: 30 | AD10: 31 | AE10: 30 | AF10: 31 | AG10: 31 | AH10: 28 | AI10: 31 | AJ10: 30 | AK10: 31 | AL10: 30 | AM10: 31 | AN10: 31 | AO10: 30 | AP10: 31 | AQ10: 30 | AR10: 31 | AS10: 31 | AT10: 29 | AU10: 31 | AV10: 30 | AW10: 31 | AX10: 30 | AY10: 31 | AZ10: 31 | BA10: 30 | BB10: 31 | BC10: 30 | BD10: 31 | BE10: 31 | BF10: 28 | BG10: 31 | BH10: 30 | BI10: 31 | BJ10: 183 | BK10: 182 | BL10: 183 | BM10: 182 | BN10: 183 | BO10: 183 | BP10: 183 | BQ10: 182 | BR10: 183 | BS10: 182 | BT10: 183 | BU10: 182 | BV10: 183 | BW10: =BW5-BW4+1 -> 183 | BX10: 183 | BY10: 182 | BZ10: 183 | CA10: 182 | CB10: 183 | CC10: 182 | CD10: 183 | CE10: 183 | CF10: 183 | CG10: 182 | CH10: 183 | CI10: 182 | CJ10: 183 | CK10: 182 | CL10: 183 | CM10: 183 | CN10: 183 | CO10: 182 | CP10: 183 | CQ10: 182 | CR10: 183 | CS10: 182 | CT10: 183 | CU10: 183 | CV10: 183 | CW10: 182 | CX10: 183 | CY10: 182 | CZ10: 183 | DA10: 182 | DB10: 183 | DC10: 183 | DD10: 183 | DE10: 182 | DF10: 183 | DG10: 182 | DH10: 183 | DI10: 182 | DJ10: 183 | DK10: 183 | DL10: 183 | DM10: 182 | DN10: 183 | DO10: 182 | DP10: 183 | DQ10: 182 | DR10: 183 | DS10: 183 | DT10: 183 | DU10: 182 | DV10: 183 | DW10: 182 | DX10: 183 | DY10: 182 | DZ10: 183 | EA10: 183 | EB10: 183 | EC10: 182 | ED10: 183 | EE10: 182 | EF10: 183 | EG10: 182 | EH10: 183 | EI10: =EI5-EI4+1 -> 183 | EJ10: 183 | EK10: 182 | EL10: 183 | EM10: 182 | EN10: 183 | EO10: 182 | EP10: 183 | EQ10: 183 | ER10: 183 | ES10: 182 | ET10: 183 | EU10: 182 | EV10: 183 | EW10: 182 | EX10: 183 | EY10: 183 | EZ10: 183 | FA10: 182 | FB10: 183 | FC10: 182
B11: Hours | J11: =J10*24 -> 672 | K11: =K10*24 -> 744 | L11: 720 | M11: 744 | N11: 720 | O11: 744 | P11: 744 | Q11: 720 | R11: 744 | S11: 720 | T11: 744 | U11: 744 | V11: 672 | W11: 744 | X11: 720 | Y11: 744 | Z11: 720 | AA11: 744 | AB11: 744 | AC11: 720 | AD11: 744 | AE11: 720 | AF11: 744 | AG11: 744 | AH11: 672 | AI11: 744 | AJ11: 720 | AK11: 744 | AL11: 720 | AM11: 744 | AN11: 744 | AO11: 720 | AP11: 744 | AQ11: 720 | AR11: 744 | AS11: 744 | AT11: 696 | AU11: 744 | AV11: 720 | AW11: 744 | AX11: 720 | AY11: 744 | AZ11: 744 | BA11: 720 | BB11: 744 | BC11: 720 | BD11: 744 | BE11: 744 | BF11: 672 | BG11: 744 | BH11: 720 | BI11: 744 | BJ11: 4392 | BK11: 4368 | BL11: 4392 | BM11: 4368 | BN11: 4392 | BO11: 4392 | BP11: 4392 | BQ11: 4368 | BR11: 4392 | BS11: 4368 | BT11: 4392 | BU11: 4368 | BV11: 4392 | BW11: =BW10*24 -> 4392 | BX11: 4392 | BY11: 4368 | BZ11: 4392 | CA11: 4368 | CB11: 4392 | CC11: 4368 | CD11: 4392 | CE11: 4392 | CF11: 4392 | CG11: 4368 | CH11: 4392 | CI11: 4368 | CJ11: 4392 | CK11: 4368 | CL11: 4392 | CM11: 4392 | CN11: 4392 | CO11: 4368 | CP11: 4392 | CQ11: 4368 | CR11: 4392 | CS11: 4368 | CT11: 4392 | CU11: 4392 | CV11: 4392 | CW11: 4368 | CX11: 4392 | CY11: 4368 | CZ11: 4392 | DA11: 4368 | DB11: 4392 | DC11: 4392 | DD11: 4392 | DE11: 4368 | DF11: 4392 | DG11: 4368 | DH11: 4392 | DI11: 4368 | DJ11: 4392 | DK11: 4392 | DL11: 4392 | DM11: 4368 | DN11: 4392 | DO11: 4368 | DP11: 4392 | DQ11: 4368 | DR11: 4392 | DS11: 4392 | DT11: 4392 | DU11: 4368 | DV11: 4392 | DW11: 4368 | DX11: 4392 | DY11: 4368 | DZ11: 4392 | EA11: 4392 | EB11: 4392 | EC11: 4368 | ED11: 4392 | EE11: 4368 | EF11: 4392 | EG11: 4368 | EH11: 4392 | EI11: =EI10*24 -> 4392 | EJ11: 4392 | EK11: 4368 | EL11: 4392 | EM11: 4368 | EN11: 4392 | EO11: 4368 | EP11: 4392 | EQ11: 4392 | ER11: 4392 | ES11: 4368 | ET11: 4392 | EU11: 4368 | EV11: 4392 | EW11: 4368 | EX11: 4392 | EY11: 4392 | EZ11: 4392 | FA11: 4368 | FB11: 4392 | FC11: 4368
B12: End of Year | J12: =MONTH(J5)=$F$9 -> FALSE | K12: =MONTH(K5)=$F$9 -> FALSE | L12: FALSE | M12: TRUE | N12: FALSE | O12: FALSE | P12: FALSE | Q12: FALSE | R12: FALSE | S12: FALSE | T12: FALSE | U12: FALSE | V12: FALSE | W12: FALSE | X12: FALSE | Y12: TRUE | Z12: FALSE | AA12: FALSE | AB12: FALSE | AC12: FALSE | AD12: FALSE | AE12: FALSE | AF12: FALSE | AG12: FALSE | AH12: FALSE | AI12: FALSE | AJ12: FALSE | AK12: TRUE | AL12: FALSE | AM12: FALSE | AN12: FALSE | AO12: FALSE | AP12: FALSE | AQ12: FALSE | AR12: FALSE | AS12: FALSE | AT12: FALSE | AU12: FALSE | AV12: FALSE | AW12: TRUE | AX12: FALSE | AY12: FALSE | AZ12: FALSE | BA12: FALSE | BB12: FALSE | BC12: FALSE | BD12: FALSE | BE12: FALSE | BF12: FALSE | BG12: FALSE | BH12: FALSE | BI12: TRUE | BJ12: FALSE | BK12: TRUE | BL12: FALSE | BM12: TRUE | BN12: FALSE | BO12: TRUE | BP12: FALSE | BQ12: TRUE | BR12: FALSE | BS12: TRUE | BT12: FALSE | BU12: TRUE | BV12: FALSE | BW12: =MONTH(BW5)=$F$9 -> TRUE | BX12: FALSE | BY12: TRUE | BZ12: FALSE | CA12: TRUE | CB12: FALSE | CC12: TRUE | CD12: FALSE | CE12: TRUE | CF12: FALSE | CG12: TRUE | CH12: FALSE | CI12: TRUE | CJ12: FALSE | CK12: TRUE | CL12: FALSE | CM12: TRUE | CN12: FALSE | CO12: TRUE | CP12: FALSE | CQ12: TRUE | CR12: FALSE | CS12: TRUE | CT12: FALSE | CU12: TRUE | CV12: FALSE | CW12: TRUE | CX12: FALSE | CY12: TRUE | CZ12: FALSE | DA12: TRUE | DB12: FALSE | DC12: TRUE | DD12: FALSE | DE12: TRUE | DF12: FALSE | DG12: TRUE | DH12: FALSE | DI12: TRUE | DJ12: FALSE | DK12: TRUE | DL12: FALSE | DM12: TRUE | DN12: FALSE | DO12: TRUE | DP12: FALSE | DQ12: TRUE | DR12: FALSE | DS12: TRUE | DT12: FALSE | DU12: TRUE | DV12: FALSE | DW12: TRUE | DX12: FALSE | DY12: TRUE | DZ12: FALSE | EA12: TRUE | EB12: FALSE | EC12: TRUE | ED12: FALSE | EE12: TRUE | EF12: FALSE | EG12: TRUE | EH12: FALSE | EI12: =MONTH(EI5)=$F$9 -> TRUE | EJ12: FALSE | EK12: TRUE | EL12: FALSE | EM12: TRUE | EN12: FALSE | EO12: TRUE | EP12: FALSE | EQ12: TRUE | ER12: FALSE | ES12: TRUE | ET12: FALSE | EU12: TRUE | EV12: FALSE | EW12: TRUE | EX12: FALSE | EY12: TRUE | EZ12: FALSE | FA12: TRUE | FB12: FALSE | FC12: TRUE
A14: Timing Assumptions
B15: Development start date | E15: Date | F15: 2017-02-01
B16: Development Period | E16: Months | F16: 22
B17: Financial Close | E17: Date | F17: =EDATE(F15,F16) -> 2018-12-01
B18: Construction Period | E18: Months | F18: =Scenario!D69 -> 30
B19: COD | E19: Date | F19: =EDATE(F17,F18) -> 2021-06-01 | H19: =TEXT(F19,"DDDD") -> Tuesday
B20: Operating Life | E20: Years | F20: 25 | H20: =TEXT($F$19,"DDd") -> Tue
B21: Decommissioning | E21: Date | F21: =EDATE(F19,F20*12) -> 2046-06-01 | H21: =TEXT($F$19,"Dd") -> 01
H22: =TEXT($F$19,"D") -> 1
B23: Months in Period pre COD | E23: Months | F23: 1
B24: Months in Period post COD | E24: Months | F24: 6
B25: Total months pre COD | E25: Months | F25: =F16+F18 -> 52
B26: Month of COD | E26: Month | F26: =MONTH(F19) -> 6
B27: Last month in Year | E27: Month | F27: =IF(F26<>1,F26-1,12) -> 5
A29: Operating Assumptions
B30: Net Capacity | E30: MW | F30: 300
B31: Year | F31: 0 | G31: 1 | H31: 5 | I31: 10 | J31: 20
B32: Economic Capacity Factor | F32: 0 | G32: 0.75 | H32: =Scenario!E69 -> 0.7 | I32: =H32 -> 0.7 | J32: =I32 -> 0.7
B33: Forced Outage | F33: 0.02 | G33: 0.021 | H33: =Scenario!F69 -> 0.025 | I33: =H33 -> 0.025 | J33: =I33 -> 0.025
B36: Actual Heat Rate (Conversions) | E36: Btu/kWh | F36: =Scenario!G69 -> 6450
E37: MJ/Mwh | F37: =F36*1.05 -> 6772.5
E38: MMBtu/MWh | F38: =F36/1000000*1000 -> 6.45
E39: kWh/kWh | F39: =3412/F36 -> 0.5289922481
B41: Heat Rate degradation | E41: %/yr | F41: =Scenario!H69 -> 0.005
B42: Heat Rate recovery | E42: % | F42: 0.97
B44: Major Maintenance | E44: hours | F44: =Scenario!K69 -> 40000
B45: Maintenance Outage | E45: hours | F45: =Scenario!L69 -> 700
A47: Assumptions for CAPEX (EPC Contract)
B48: Development Cost | E48: USD/kW | F48: 50
B49: Total EPC cost | E49: USD/kW | F49: =Scenario!I69 -> 985
F51: 0 | G51: 1 | H51: 2 | I51: 3 | J51: 4 | K51: 5 | L51: 6 | M51: 7 | N51: 8 | O51: 9 | P51: 10 | Q51: 11 | R51: 12 | S51: 13 | T51: 14 | U51: 15 | V51: 16 | W51: 17 | X51: 18 | Y51: 19 | Z51: 20 | AA51: 21 | AB51: 22 | AC51: 23 | AD51: 24 | AE51: 25 | AF51: 26 | AG51: 27 | AH51: 28 | AI51: 29 | AJ51: 30 | AK51: 31 | AL51: 32 | AM51: 33 | AN51: 34 | AO51: 35 | AP51: 36 | AQ51: 37 | AR51: 38 | AS51: 39 | AT51: 40 | AU51: 41 | AV51: 42 | AW51: 43 | AX51: 44 | AY51: 45 | AZ51: 46
B52: 1 | C52: S-curve Pecentage (base case) | E52: =SUM(F52:AJ52)=1 -> TRUE | F52: 0 | G52: 0.03 | H52: 0.03 | I52: 0.03 | J52: 0.05 | K52: 0 | L52: 0.05 | M52: 0.08 | N52: 0.08 | O52: 0.08 | P52: 0 | Q52: 0.12 | R52: 0.12 | S52: 0.03 | T52: 0.03 | U52: 0.03 | V52: 0.03 | W52: 0.03 | X52: 0.03 | Y52: 0.03 | Z52: 0.03 | AA52: 0.03 | AB52: 0.03 | AC52: 0.03 | AD52: 0 | AE52: 0 | AF52: 0 | AG52: 0 | AH52: 0 | AI52: 0 | AJ52: 0 | AK52: 0 | AL52: 0 | AM52: 0 | AN52: 0 | AO52: 0 | AP52: 0 | AQ52: 0 | AR52: 0 | AS52: 0 | AT52: 0 | AU52: 0 | AV52: 0 | AW52: 0 | AX52: 0 | AY52: 0 | AZ52: 0
B53: 2 | C53: S-curve Percentage (flat) | E53: =SUM(F53:BJ53)=1 -> TRUE | F53: 0 | G53: =1/45 -> 0.02222222222 | H53: =1/45 -> 0.02222222222 | I53: 0.02222222222 | J53: 0.02222222222 | K53: 0.02222222222 | L53: 0.02222222222 | M53: 0.02222222222 | N53: 0.02222222222 | O53: 0.02222222222 | P53: 0.02222222222 | Q53: 0.02222222222 | R53: 0.02222222222 | S53: 0.02222222222 | T53: 0.02222222222 | U53: 0.02222222222 | V53: 0.02222222222 | W53: 0.02222222222 | X53: 0.02222222222 | Y53: 0.02222222222 | Z53: 0.02222222222 | AA53: 0.02222222222 | AB53: 0.02222222222 | AC53: 0.02222222222 | AD53: 0.02222222222 | AE53: 0.02222222222 | AF53: 0.02222222222 | AG53: 0.02222222222 | AH53: 0.02222222222 | AI53: 0.02222222222 | AJ53: 0.02222222222 | AK53: 0.02222222222 | AL53: 0.02222222222 | AM53: 0.02222222222 | AN53: 0.02222222222 | AO53: 0.02222222222 | AP53: 0.02222222222 | AQ53: 0.02222222222 | AR53: 0.02222222222 | AS53: 0.02222222222 | AT53: 0.02222222222 | AU53: 0.02222222222 | AV53: 0.02222222222 | AW53: 0.02222222222 | AX53: 0.02222222222 | AY53: 0.02222222222 | AZ53: 0
B54: 3 | C54: S-curve Percentage (early) | E54: =SUM(F54:AJ54)=1 -> TRUE | F54: 0 | G54: =1/20 -> 0.05 | H54: =1/20 -> 0.05 | I54: 0.05 | J54: 0.05 | K54: 0.05 | L54: 0.05 | M54: 0.05 | N54: 0.05 | O54: 0.05 | P54: 0.05 | Q54: 0.05 | R54: 0.05 | S54: 0.05 | T54: 0.05 | U54: 0.05 | V54: 0.05 | W54: 0.05 | X54: 0.05 | Y54: 0.05 | Z54: 0.05 | AA54: 0 | AB54: 0 | AC54: 0 | AD54: 0 | AE54: 0 | AF54: 0 | AG54: 0 | AH54: 0 | AI54: 0 | AJ54: 0 | AK54: 0 | AL54: 0 | AM54: 0 | AN54: 0 | AO54: 0 | AP54: 0 | AQ54: 0 | AR54: 0 | AS54: 0 | AT54: 0 | AU54: 0 | AV54: 0 | AW54: 0 | AX54: 0 | AY54: 0 | AZ54: 0
B56: S-curve code number | F56: =Scenario!J69 -> 1
B57: =INDEX(C52:C54,$F$56) -> S-curve Pecentage (base case) | F57: =INDEX(F52:F54,$F$56) -> 0 | G57: =INDEX(G52:G54,$F$56) -> 0.03 | H57: 0.03 | I57: 0.03 | J57: 0.05 | K57: 0 | L57: 0.05 | M57: 0.08 | N57: 0.08 | O57: 0.08 | P57: 0 | Q57: 0.12 | R57: 0.12 | S57: 0.03 | T57: 0.03 | U57: 0.03 | V57: 0.03 | W57: 0.03 | X57: 0.03 | Y57: 0.03 | Z57: 0.03 | AA57: 0.03 | AB57: 0.03 | AC57: 0.03 | AD57: 0 | AE57: 0 | AF57: 0 | AG57: 0 | AH57: 0 | AI57: 0 | AJ57: 0 | AK57: 0 | AL57: 0 | AM57: 0 | AN57: 0 | AO57: 0 | AP57: 0 | AQ57: 0 | AR57: 0 | AS57: 0 | AT57: 0 | AU57: 0 | AV57: 0 | AW57: 0 | AX57: 0 | AY57: 0 | AZ57: 0
A59: Operating Expenses (O&M Contract)
B60: Year | F60: 2016 | G60: 2017 | H60: 2018 | I60: 2019 | J60: 2020 | K60: 2021
B61: Fuel Cost | E61: USD/MMBtu | F61: 1.7 | G61: 1.7 | H61: 1.7 | I61: 1.7 | J61: 1.7 | K61: 1.7
B62: Inflation in price | E62: Switch | F62: TRUE
B63: USD Inflation rate
C64: Year | F64: 2016 | G64: 2017 | H64: 2020 | I64: 2025
C65: Base case | F65: 0.01 | G65: 0.015 | H65: 0.02 | I65: 0.025
C66: Low Inflation case | F66: 0.01 | G66: 0.01 | H66: 0.01 | I66: 0.01
C67: High Inflation rate case | F67: 0.015 | G67: 0.025 | H67: 0.03 | I67: 0.035
C69: Inflation Code number | F69: 2
C70: =INDEX(C65:C67,$F$69) -> Low Inflation case | F70: =INDEX(F65:F67,$F$69) -> 0.01 | G70: =INDEX(G65:G67,$F$69) -> 0.01 | H70: =INDEX(H65:H67,$F$69) -> 0.01 | I70: =INDEX(I65:I67,$F$69) -> 0.01
C72: Actual Fixed O&M Cost | E72: USD/kW-yr | F72: =Scenario!M69 -> 16
C73: Actual Non Fuel variable O&M | E73: USD/MWh | F73: =Scenario!N69 -> 3.6
A75: PPA Assumptions/Merchant Assumptions (PPA Contract and Merchant Prices)
B76: PPA Period | E76: Years | F76: =H76 -> 0 | H76: 0
B77: PPA End Date | E77: Date | F77: =EDATE(F19,F76*12) -> 2021-06-01
B79: Capacity price
C80: Base Capacity price | E80: USD/kW/mth | F80: 7.5
C81: Availability penalty | E81: % of Cap Price | F81: 1.5
C82: Target Availability | E82: % | F82: 0.94
C84: Target Project IRR (Goal Seek Macro) | E84: % | F84: =H84/100 -> 0.07 | H84: 7
C85: Target Equity IRR (Goal Seek Macro) | E85: % | F85: =H85/100 -> 0.1 | H85: 10
B87: Energy price
C88: Year | F88: 2016 | G88: 2017 | H88: 2018 | I88: 2019 | J88: 2020 | K88: 2021
C89: Fuel Cost | E89: USD/MMBtu | F89: 1.7 | G89: 1.7 | H89: 1.7 | I89: 1.7 | J89: 1.7 | K89: 1.7
C91: Contract Heat Rate | E91: MMBtu/MWh | F91: 6.9
C92: Fixed O&M price | E92: USD/kW-yr | F92: 16
C93: Variable O&M price | E93: USD/MWh | F93: 3
B95: Merchant Prices
F96: 2016 | G96: 2017 | H96: 2018 | I96: 2019 | J96: 2020 | K96: 2021 | L96: 2022 | M96: 2023 | N96: 2024 | O96: 2025 | P96: 2026
C97: Capacity Price - Base Case | E97: USD/MW-day | F97: 170 | G97: =F97 -> 170 | H97: =G97 -> 170 | I97: 170 | J97: 170 | K97: 170 | L97: 170 | M97: 170 | N97: 170 | O97: 170 | P97: 170 | Q97: 170 | R97: 170 | S97: 170 | T97: 170 | U97: 170 | V97: 170 | W97: 170 | X97: 170 | Y97: 170 | Z97: 170 | AA97: 170 | AB97: 170 | AC97: 170 | AD97: 170 | AE97: 170 | AF97: 170 | AG97: 170 | AH97: 170 | AI97: 170 | AJ97: 170
C98: Capacity Price - Low Case | E98: USD/MW-day | F98: 110 | G98: =F98 -> 110 | H98: =G98 -> 110 | I98: 110 | J98: 110 | K98: 110 | L98: 110 | M98: 110 | N98: 110 | O98: 110 | P98: 110 | Q98: 110 | R98: 110 | S98: 110 | T98: 110 | U98: 110 | V98: 110 | W98: 110 | X98: 110 | Y98: 110 | Z98: 110 | AA98: 110 | AB98: 110 | AC98: 110 | AD98: 110 | AE98: 110 | AF98: 110 | AG98: 110 | AH98: 110 | AI98: 110 | AJ98: 110
C99: Capacity Price - High Case | E99: USD/MW-day | F99: 190 | G99: =F99 -> 190 | H99: =G99 -> 190 | I99: 190 | J99: 190 | K99: 190 | L99: 190 | M99: 190 | N99: 190 | O99: 190 | P99: 190 | Q99: 190 | R99: 190 | S99: 190 | T99: 190 | U99: 190 | V99: 190 | W99: 190 | X99: 190 | Y99: 190 | Z99: 190 | AA99: 190 | AB99: 190 | AC99: 190 | AD99: 190 | AE99: 190 | AF99: 190 | AG99: 190 | AH99: 190 | AI99: 190 | AJ99: 190
C101: Capacity Price Scenario | E101: =Scenario!O69 -> 1
C102: =INDEX(C97:C99,$E$101) -> Capacity Price - Base Case | E102: =INDEX(E97:E99,$E$101) -> USD/MW-day | F102: =INDEX(F97:F99,$E$101) -> 170 | G102: =INDEX(G97:G99,$E$101) -> 170 | H102: 170 | I102: 170 | J102: 170 | K102: 170 | L102: 170 | M102: 170 | N102: 170 | O102: 170 | P102: 170
C104: Spark Spread Base Case | E104: USD/MWh | F104: 22 | G104: =F104*1.02 -> 22.44 | H104: =G104*1.02 -> 22.8888 | I104: 23.346576 | J104: 23.81350752 | K104: 24.28977767 | L104: 24.77557322 | M104: 25.27108469 | N104: 25.77650638 | O104: 26.29203651 | P104: 26.81787724
C105: Spark Spread Low Case | E105: USD/MWh | F105: 19 | G105: =F105*1.02 -> 19.38 | H105: =G105*1.02 -> 19.7676 | I105: 20.162952 | J105: 20.56621104 | K105: 20.97753526 | L105: 21.39708597 | M105: 21.82502769 | N105: 22.26152824 | O105: 22.7067588 | P105: 23.16089398
C106: Spark Spread High Case | E106: USD/MWh | F106: 26 | G106: =F106*1.02 -> 26.52 | H106: 27.0504 | I106: 27.591408 | J106: 28.14323616 | K106: 28.70610088 | L106: 29.2802229 | M106: 29.86582736 | N106: 30.46314391 | O106: 31.07240678 | P106: 31.69385492
C107: Spark Spread Break Even Case | E107: USD/MWh | F107: 19 | G107: =F107 -> 19 | H107: =G107 -> 19 | I107: 19 | J107: 19 | K107: 19 | L107: 19 | M107: 19 | N107: 19 | O107: 19 | P107: 19
C109: Spark Spread Code Number | E109: =Scenario!P69 -> 1
B111: =INDEX(B109,B104:B107,$E$109) ->  | C111: =INDEX(C104:C107,$E$109) -> Spark Spread Base Case | F111: =INDEX(F104:F107,$E$109) -> 22 | G111: =INDEX(G104:G107,$E$109) -> 22.44 | H111: 22.8888 | I111: 23.346576 | J111: 23.81350752 | K111: 24.28977767 | L111: 24.77557322 | M111: 25.27108469 | N111: 25.77650638 | O111: 26.29203651 | P111: 26.81787724
A113: Depreciation and Taxes
G114: 0 | H114: =G114+1 -> 1 | I114: =H114+1 -> 2 | J114: 3 | K114: 4 | L114: 5 | M114: 6 | N114: 7 | O114: 8 | P114: 9 | Q114: 10 | R114: 11 | S114: 12
C115: VDB | G115: 0 | H115: =VDB(1,0,10,G114,H114) -> 0.2 | I115: =VDB(1,0,10,H114,I114) -> 0.16 | J115: 0.128 | K115: 0.1024 | L115: 0.08192 | M115: 0.065536 | N115: 0.065536 | O115: 0.065536 | P115: 0.065536 | Q115: 0.065536 | R115: 0 | S115: 0
C116: Depreciation rate | G116: 0 | H116: =G115*0.5+H115*0.5 -> 0.1 | I116: =H115*0.5+I115*0.5 -> 0.18 | J116: 0.144 | K116: 0.1152 | L116: 0.09216 | M116: 0.073728 | N116: 0.065536 | O116: 0.065536 | P116: 0.065536 | Q116: 0.065536 | R116: 0.032768 | S116: 0
C117: Income tax rate | E117: % | F117: =H117/100 -> 0.35 | H117: 35
C119: Fee Amortisation Rate for Tax | E119: Years | F119: 5
A121: Financing Assumptions
B122: Debt Assumptions
C123: Amount of debt | E123: $'000 | F123: =H123*10000 -> 250000 | H123: 25
C125: Draw down methods
D126: Pro-rata | E126: Switch | F126: TRUE
D127: Equity First | E127: Switch | F127: =NOT(F126) -> FALSE
C129: Repayment
D130: Loan Tenor | E130: Years | F130: =H130 -> 19 | H130: 19
D131: Repayment end date | E131: Date | F131: =EDATE(F19,F130*12) -> 2040-06-01
D133: Level repayment | E133: Switch | F133: TRUE
D134: Level Debt Service | E134: Switch | F134: =NOT(F133) -> FALSE
C136: Interest And Fees
D137: Base rate (LIBOR) | E137: % | F137: 0.01
F138: 0 | G138: 1 | H138: 5 | I138: 10 | J138: 15
D139: Credit spread | E139: % | F139: 0.015 | G139: =L139/1000 -> 0.022 | H139: =G139 -> 0.022 | I139: =H139 -> 0.022 | J139: =I139 -> 0.022 | L139: 22
D141: Up-Front Fee | E141: % | F141: 0.035
D142: Commitment Fee | E142: % | F142: 0.011
C144: Credit Enhancement
D145: DSRA | E145: months | F145: =H145 -> 6 | H145: 6
D146: Cash Sweep Percent | E146: Percent | F146: =H146/100 -> 0 | H146: 0
A148: Operations Model
B149: Capacity (with Switch) | E149: MW | F149: =F30 -> 300 | J149: =$F$149*J8 -> 0 | K149: 0 | L149: 0 | M149: 0 | N149: 0 | O149: 0 | P149: 0 | Q149: 0 | R149: 0 | S149: 0 | T149: 0 | U149: 0 | V149: 0 | W149: 0 | X149: 0 | Y149: 0 | Z149: 0 | AA149: 0 | AB149: 0 | AC149: 0 | AD149: 0 | AE149: 0 | AF149: 0 | AG149: 0 | AH149: 0 | AI149: 0 | AJ149: 0 | AK149: 0 | AL149: 0 | AM149: 0 | AN149: 0 | AO149: 0 | AP149: =$F$149*AP8 -> 0 | AQ149: 0 | AR149: 0 | AS149: 0 | AT149: 0 | AU149: 0 | AV149: 0 | AW149: 0 | AX149: 0 | AY149: 0 | AZ149: 0 | BA149: 0 | BB149: 0 | BC149: 0 | BD149: 0 | BE149: 0 | BF149: 0 | BG149: 0 | BH149: 0 | BI149: 0 | BJ149: 300 | BK149: 300 | BL149: 300 | BM149: 300 | BN149: 300 | BO149: 300 | BP149: 300 | BQ149: 300 | BR149: 300 | BS149: 300 | BT149: 300 | BU149: 300 | BV149: =$F$149*BV8 -> 300 | BW149: 300 | BX149: 300 | BY149: 300 | BZ149: 300 | CA149: 300 | CB149: 300 | CC149: 300 | CD149: 300 | CE149: 300 | CF149: 300 | CG149: 300 | CH149: 300 | CI149: 300 | CJ149: 300 | CK149: 300 | CL149: 300 | CM149: 300 | CN149: 300 | CO149: 300 | CP149: 300 | CQ149: 300 | CR149: 300 | CS149: 300 | CT149: 300 | CU149: 300 | CV149: 300 | CW149: 300 | CX149: 300 | CY149: 300 | CZ149: 300 | DA149: 300 | DB149: =$F$149*DB8 -> 300 | DC149: 300 | DD149: 300 | DE149: 300 | DF149: 300 | DG149: 300 | DH149: 0 | DI149: 0 | DJ149: 0 | DK149: 0 | DL149: 0 | DM149: 0 | DN149: 0 | DO149: 0 | DP149: 0 | DQ149: 0 | DR149: 0 | DS149: 0 | DT149: 0 | DU149: 0 | DV149: 0 | DW149: 0 | DX149: 0 | DY149: 0 | DZ149: 0 | EA149: 0 | EB149: 0 | EC149: 0 | ED149: 0 | EE149: 0 | EF149: 0 | EG149: 0 | EH149: =$F$149*EH8 -> 0 | EI149: 0 | EJ149: 0 | EK149: 0 | EL149: 0 | EM149: 0 | EN149: 0 | EO149: 0 | EP149: 0 | EQ149: 0 | ER149: 0 | ES149: 0 | ET149: 0 | EU149: 0 | EV149: 0 | EW149: 0 | EX149: 0 | EY149: 0 | EZ149: 0 | FA149: 0 | FB149: 0 | FC149: 0
B150: Age in Periods (Count with TRUE) | E150: Periods | J150: =I150+J8 -> 0 | K150: 0 | L150: 0 | M150: 0 | N150: 0 | O150: 0 | P150: 0 | Q150: 0 | R150: 0 | S150: 0 | T150: 0 | U150: 0 | V150: 0 | W150: 0 | X150: 0 | Y150: 0 | Z150: 0 | AA150: 0 | AB150: 0 | AC150: 0 | AD150: 0 | AE150: 0 | AF150: 0 | AG150: 0 | AH150: 0 | AI150: 0 | AJ150: 0 | AK150: 0 | AL150: 0 | AM150: 0 | AN150: 0 | AO150: 0 | AP150: =AO150+AP8 -> 0 | AQ150: 0 | AR150: 0 | AS150: 0 | AT150: 0 | AU150: 0 | AV150: 0 | AW150: 0 | AX150: 0 | AY150: 0 | AZ150: 0 | BA150: 0 | BB150: 0 | BC150: 0 | BD150: 0 | BE150: 0 | BF150: 0 | BG150: 0 | BH150: 0 | BI150: 0 | BJ150: 1 | BK150: 2 | BL150: 3 | BM150: 4 | BN150: 5 | BO150: 6 | BP150: 7 | BQ150: 8 | BR150: 9 | BS150: 10 | BT150: 11 | BU150: 12 | BV150: =BU150+BV8 -> 13 | BW150: 14 | BX150: 15 | BY150: 16 | BZ150: 17 | CA150: 18 | CB150: 19 | CC150: 20 | CD150: 21 | CE150: 22 | CF150: 23 | CG150: 24 | CH150: 25 | CI150: 26 | CJ150: 27 | CK150: 28 | CL150: 29 | CM150: 30 | CN150: 31 | CO150: 32 | CP150: 33 | CQ150: 34 | CR150: 35 | CS150: 36 | CT150: 37 | CU150: 38 | CV150: 39 | CW150: 40 | CX150: 41 | CY150: 42 | CZ150: 43 | DA150: 44 | DB150: =DA150+DB8 -> 45 | DC150: 46 | DD150: 47 | DE150: 48 | DF150: 49 | DG150: 50 | DH150: 50 | DI150: 50 | DJ150: 50 | DK150: 50 | DL150: 50 | DM150: 50 | DN150: 50 | DO150: 50 | DP150: 50 | DQ150: 50 | DR150: 50 | DS150: 50 | DT150: 50 | DU150: 50 | DV150: 50 | DW150: 50 | DX150: 50 | DY150: 50 | DZ150: 50 | EA150: 50 | EB150: 50 | EC150: 50 | ED150: 50 | EE150: 50 | EF150: 50 | EG150: 50 | EH150: =EG150+EH8 -> 50 | EI150: 50 | EJ150: 50 | EK150: 50 | EL150: 50 | EM150: 50 | EN150: 50 | EO150: 50 | EP150: 50 | EQ150: 50 | ER150: 50 | ES150: 50 | ET150: 50 | EU150: 50 | EV150: 50 | EW150: 50 | EX150: 50 | EY150: 50 | EZ150: 50 | FA150: 50 | FB150: 50 | FC150: 50
B151: Age in Years (ROUNDUP) | J151: =ROUNDUP(J150/2,0) -> 0 | K151: =ROUNDUP(K150/2,0) -> 0 | L151: 0 | M151: 0 | N151: 0 | O151: 0 | P151: 0 | Q151: 0 | R151: 0 | S151: 0 | T151: 0 | U151: 0 | V151: 0 | W151: 0 | X151: 0 | Y151: 0 | Z151: 0 | AA151: 0 | AB151: 0 | AC151: 0 | AD151: 0 | AE151: 0 | AF151: 0 | AG151: 0 | AH151: 0 | AI151: 0 | AJ151: 0 | AK151: 0 | AL151: 0 | AM151: 0 | AN151: 0 | AO151: 0 | AP151: 0 | AQ151: 0 | AR151: 0 | AS151: 0 | AT151: 0 | AU151: 0 | AV151: 0 | AW151: 0 | AX151: 0 | AY151: 0 | AZ151: 0 | BA151: 0 | BB151: 0 | BC151: 0 | BD151: 0 | BE151: 0 | BF151: 0 | BG151: 0 | BH151: 0 | BI151: 0 | BJ151: 1 | BK151: 1 | BL151: 2 | BM151: 2 | BN151: 3 | BO151: 3 | BP151: 4 | BQ151: 4 | BR151: 5 | BS151: 5 | BT151: 6 | BU151: 6 | BV151: 7 | BW151: =ROUNDUP(BW150/2,0) -> 7 | BX151: 8 | BY151: 8 | BZ151: 9 | CA151: 9 | CB151: 10 | CC151: 10 | CD151: 11 | CE151: 11 | CF151: 12 | CG151: 12 | CH151: 13 | CI151: 13 | CJ151: 14 | CK151: 14 | CL151: 15 | CM151: 15 | CN151: 16 | CO151: 16 | CP151: 17 | CQ151: 17 | CR151: 18 | CS151: 18 | CT151: 19 | CU151: 19 | CV151: 20 | CW151: 20 | CX151: 21 | CY151: 21 | CZ151: 22 | DA151: 22 | DB151: 23 | DC151: 23 | DD151: 24 | DE151: 24 | DF151: 25 | DG151: 25 | DH151: 25 | DI151: 25 | DJ151: 25 | DK151: 25 | DL151: 25 | DM151: 25 | DN151: 25 | DO151: 25 | DP151: 25 | DQ151: 25 | DR151: 25 | DS151: 25 | DT151: 25 | DU151: 25 | DV151: 25 | DW151: 25 | DX151: 25 | DY151: 25 | DZ151: 25 | EA151: 25 | EB151: 25 | EC151: 25 | ED151: 25 | EE151: 25 | EF151: 25 | EG151: 25 | EH151: 25 | EI151: =ROUNDUP(EI150/2,0) -> 25 | EJ151: 25 | EK151: 25 | EL151: 25 | EM151: 25 | EN151: 25 | EO151: 25 | EP151: 25 | EQ151: 25 | ER151: 25 | ES151: 25 | ET151: 25 | EU151: 25 | EV151: 25 | EW151: 25 | EX151: 25 | EY151: 25 | EZ151: 25 | FA151: 25 | FB151: 25 | FC151: 25
B152: Capacity Factor (LOOKUP Function) | E152: % | J152: =LOOKUP(J151,31:31,32:32) -> 0 | K152: 0 | L152: 0 | M152: 0 | N152: 0 | O152: 0 | P152: 0 | Q152: 0 | R152: 0 | S152: 0 | T152: 0 | U152: 0 | V152: 0 | W152: 0 | X152: 0 | Y152: 0 | Z152: 0 | AA152: 0 | AB152: 0 | AC152: 0 | AD152: 0 | AE152: 0 | AF152: 0 | AG152: 0 | AH152: 0 | AI152: 0 | AJ152: 0 | AK152: 0 | AL152: 0 | AM152: 0 | AN152: 0 | AO152: 0 | AP152: =LOOKUP(AP151,31:31,32:32) -> 0 | AQ152: 0 | AR152: 0 | AS152: 0 | AT152: 0 | AU152: 0 | AV152: 0 | AW152: 0 | AX152: 0 | AY152: 0 | AZ152: 0 | BA152: 0 | BB152: 0 | BC152: 0 | BD152: 0 | BE152: 0 | BF152: 0 | BG152: 0 | BH152: 0 | BI152: 0 | BJ152: 0.75 | BK152: 0.75 | BL152: 0.75 | BM152: 0.75 | BN152: 0.75 | BO152: 0.75 | BP152: 0.75 | BQ152: 0.75 | BR152: 0.7 | BS152: 0.7 | BT152: 0.7 | BU152: 0.7 | BV152: =LOOKUP(BV151,31:31,32:32) -> 0.7 | BW152: 0.7 | BX152: 0.7 | BY152: 0.7 | BZ152: 0.7 | CA152: 0.7 | CB152: 0.7 | CC152: 0.7 | CD152: 0.7 | CE152: 0.7 | CF152: 0.7 | CG152: 0.7 | CH152: 0.7 | CI152: 0.7 | CJ152: 0.7 | CK152: 0.7 | CL152: 0.7 | CM152: 0.7 | CN152: 0.7 | CO152: 0.7 | CP152: 0.7 | CQ152: 0.7 | CR152: 0.7 | CS152: 0.7 | CT152: 0.7 | CU152: 0.7 | CV152: 0.7 | CW152: 0.7 | CX152: 0.7 | CY152: 0.7 | CZ152: 0.7 | DA152: 0.7 | DB152: =LOOKUP(DB151,31:31,32:32) -> 0.7 | DC152: 0.7 | DD152: 0.7 | DE152: 0.7 | DF152: 0.7 | DG152: 0.7 | DH152: 0.7 | DI152: 0.7 | DJ152: 0.7 | DK152: 0.7 | DL152: 0.7 | DM152: 0.7 | DN152: 0.7 | DO152: 0.7 | DP152: 0.7 | DQ152: 0.7 | DR152: 0.7 | DS152: 0.7 | DT152: 0.7 | DU152: 0.7 | DV152: 0.7 | DW152: 0.7 | DX152: 0.7 | DY152: 0.7 | DZ152: 0.7 | EA152: 0.7 | EB152: 0.7 | EC152: 0.7 | ED152: 0.7 | EE152: 0.7 | EF152: 0.7 | EG152: 0.7 | EH152: =LOOKUP(EH151,31:31,32:32) -> 0.7 | EI152: 0.7 | EJ152: 0.7 | EK152: 0.7 | EL152: 0.7 | EM152: 0.7 | EN152: 0.7 | EO152: 0.7 | EP152: 0.7 | EQ152: 0.7 | ER152: 0.7 | ES152: 0.7 | ET152: 0.7 | EU152: 0.7 | EV152: 0.7 | EW152: 0.7 | EX152: 0.7 | EY152: 0.7 | EZ152: 0.7 | FA152: 0.7 | FB152: 0.7 | FC152: 0.7
B153: Forced Outage Rate (LOOKUP Function) | E153: % | J153: =LOOKUP(J151,31:31,33:33) -> 0.02 | K153: 0.02 | L153: 0.02 | M153: 0.02 | N153: 0.02 | O153: 0.02 | P153: 0.02 | Q153: 0.02 | R153: 0.02 | S153: 0.02 | T153: 0.02 | U153: 0.02 | V153: 0.02 | W153: 0.02 | X153: 0.02 | Y153: 0.02 | Z153: 0.02 | AA153: 0.02 | AB153: 0.02 | AC153: 0.02 | AD153: 0.02 | AE153: 0.02 | AF153: 0.02 | AG153: 0.02 | AH153: 0.02 | AI153: 0.02 | AJ153: 0.02 | AK153: 0.02 | AL153: 0.02 | AM153: 0.02 | AN153: 0.02 | AO153: 0.02 | AP153: =LOOKUP(AP151,31:31,33:33) -> 0.02 | AQ153: 0.02 | AR153: 0.02 | AS153: 0.02 | AT153: 0.02 | AU153: 0.02 | AV153: 0.02 | AW153: 0.02 | AX153: 0.02 | AY153: 0.02 | AZ153: 0.02 | BA153: 0.02 | BB153: 0.02 | BC153: 0.02 | BD153: 0.02 | BE153: 0.02 | BF153: 0.02 | BG153: 0.02 | BH153: 0.02 | BI153: 0.02 | BJ153: 0.021 | BK153: 0.021 | BL153: 0.021 | BM153: 0.021 | BN153: 0.021 | BO153: 0.021 | BP153: 0.021 | BQ153: 0.021 | BR153: 0.025 | BS153: 0.025 | BT153: 0.025 | BU153: 0.025 | BV153: =LOOKUP(BV151,31:31,33:33) -> 0.025 | BW153: 0.025 | BX153: 0.025 | BY153: 0.025 | BZ153: 0.025 | CA153: 0.025 | CB153: 0.025 | CC153: 0.025 | CD153: 0.025 | CE153: 0.025 | CF153: 0.025 | CG153: 0.025 | CH153: 0.025 | CI153: 0.025 | CJ153: 0.025 | CK153: 0.025 | CL153: 0.025 | CM153: 0.025 | CN153: 0.025 | CO153: 0.025 | CP153: 0.025 | CQ153: 0.025 | CR153: 0.025 | CS153: 0.025 | CT153: 0.025 | CU153: 0.025 | CV153: 0.025 | CW153: 0.025 | CX153: 0.025 | CY153: 0.025 | CZ153: 0.025 | DA153: 0.025 | DB153: =LOOKUP(DB151,31:31,33:33) -> 0.025 | DC153: 0.025 | DD153: 0.025 | DE153: 0.025 | DF153: 0.025 | DG153: 0.025 | DH153: 0.025 | DI153: 0.025 | DJ153: 0.025 | DK153: 0.025 | DL153: 0.025 | DM153: 0.025 | DN153: 0.025 | DO153: 0.025 | DP153: 0.025 | DQ153: 0.025 | DR153: 0.025 | DS153: 0.025 | DT153: 0.025 | DU153: 0.025 | DV153: 0.025 | DW153: 0.025 | DX153: 0.025 | DY153: 0.025 | DZ153: 0.025 | EA153: 0.025 | EB153: 0.025 | EC153: 0.025 | ED153: 0.025 | EE153: 0.025 | EF153: 0.025 | EG153: 0.025 | EH153: =LOOKUP(EH151,31:31,33:33) -> 0.025 | EI153: 0.025 | EJ153: 0.025 | EK153: 0.025 | EL153: 0.025 | EM153: 0.025 | EN153: 0.025 | EO153: 0.025 | EP153: 0.025 | EQ153: 0.025 | ER153: 0.025 | ES153: 0.025 | ET153: 0.025 | EU153: 0.025 | EV153: 0.025 | EW153: 0.025 | EX153: 0.025 | EY153: 0.025 | EZ153: 0.025 | FA153: 0.025 | FB153: 0.025 | FC153: 0.025
B155: Generation Before Forced Outage | E155: MWh | J155: =J149*J11*J152 -> 0 | K155: 0 | L155: 0 | M155: 0 | N155: 0 | O155: 0 | P155: 0 | Q155: 0 | R155: 0 | S155: 0 | T155: 0 | U155: 0 | V155: 0 | W155: 0 | X155: 0 | Y155: 0 | Z155: 0 | AA155: 0 | AB155: 0 | AC155: 0 | AD155: 0 | AE155: 0 | AF155: 0 | AG155: 0 | AH155: 0 | AI155: 0 | AJ155: 0 | AK155: 0 | AL155: 0 | AM155: 0 | AN155: 0 | AO155: 0 | AP155: =AP149*AP11*AP152 -> 0 | AQ155: 0 | AR155: 0 | AS155: 0 | AT155: 0 | AU155: 0 | AV155: 0 | AW155: 0 | AX155: 0 | AY155: 0 | AZ155: 0 | BA155: 0 | BB155: 0 | BC155: 0 | BD155: 0 | BE155: 0 | BF155: 0 | BG155: 0 | BH155: 0 | BI155: 0 | BJ155: 988200 | BK155: 982800 | BL155: 988200 | BM155: 982800 | BN155: 988200 | BO155: 988200 | BP155: 988200 | BQ155: 982800 | BR155: 922320 | BS155: 917280 | BT155: 922320 | BU155: 917280 | BV155: =BV149*BV11*BV152 -> 922320 | BW155: 922320 | BX155: 922320 | BY155: 917280 | BZ155: 922320 | CA155: 917280 | CB155: 922320 | CC155: 917280 | CD155: 922320 | CE155: 922320 | CF155: 922320 | CG155: 917280 | CH155: 922320 | CI155: 917280 | CJ155: 922320 | CK155: 917280 | CL155: 922320 | CM155: 922320 | CN155: 922320 | CO155: 917280 | CP155: 922320 | CQ155: 917280 | CR155: 922320 | CS155: 917280 | CT155: 922320 | CU155: 922320 | CV155: 922320 | CW155: 917280 | CX155: 922320 | CY155: 917280 | CZ155: 922320 | DA155: 917280 | DB155: =DB149*DB11*DB152 -> 922320 | DC155: 922320 | DD155: 922320 | DE155: 917280 | DF155: 922320 | DG155: 917280 | DH155: 0 | DI155: 0 | DJ155: 0 | DK155: 0 | DL155: 0 | DM155: 0 | DN155: 0 | DO155: 0 | DP155: 0 | DQ155: 0 | DR155: 0 | DS155: 0 | DT155: 0 | DU155: 0 | DV155: 0 | DW155: 0 | DX155: 0 | DY155: 0 | DZ155: 0 | EA155: 0 | EB155: 0 | EC155: 0 | ED155: 0 | EE155: 0 | EF155: 0 | EG155: 0 | EH155: =EH149*EH11*EH152 -> 0 | EI155: 0 | EJ155: 0 | EK155: 0 | EL155: 0 | EM155: 0 | EN155: 0 | EO155: 0 | EP155: 0 | EQ155: 0 | ER155: 0 | ES155: 0 | ET155: 0 | EU155: 0 | EV155: 0 | EW155: 0 | EX155: 0 | EY155: 0 | EZ155: 0 | FA155: 0 | FB155: 0 | FC155: 0
B156: Forced Outage | E156: MWh | J156: =J153*J11*J149 -> 0 | K156: 0 | L156: 0 | M156: 0 | N156: 0 | O156: 0 | P156: 0 | Q156: 0 | R156: 0 | S156: 0 | T156: 0 | U156: 0 | V156: 0 | W156: 0 | X156: 0 | Y156: 0 | Z156: 0 | AA156: 0 | AB156: 0 | AC156: 0 | AD156: 0 | AE156: 0 | AF156: 0 | AG156: 0 | AH156: 0 | AI156: 0 | AJ156: 0 | AK156: 0 | AL156: 0 | AM156: 0 | AN156: 0 | AO156: 0 | AP156: =AP153*AP11*AP149 -> 0 | AQ156: 0 | AR156: 0 | AS156: 0 | AT156: 0 | AU156: 0 | AV156: 0 | AW156: 0 | AX156: 0 | AY156: 0 | AZ156: 0 | BA156: 0 | BB156: 0 | BC156: 0 | BD156: 0 | BE156: 0 | BF156: 0 | BG156: 0 | BH156: 0 | BI156: 0 | BJ156: 27669.6 | BK156: 27518.4 | BL156: 27669.6 | BM156: 27518.4 | BN156: 27669.6 | BO156: 27669.6 | BP156: 27669.6 | BQ156: 27518.4 | BR156: 32940 | BS156: 32760 | BT156: 32940 | BU156: 32760 | BV156: =BV153*BV11*BV149 -> 32940 | BW156: 32940 | BX156: 32940 | BY156: 32760 | BZ156: 32940 | CA156: 32760 | CB156: 32940 | CC156: 32760 | CD156: 32940 | CE156: 32940 | CF156: 32940 | CG156: 32760 | CH156: 32940 | CI156: 32760 | CJ156: 32940 | CK156: 32760 | CL156: 32940 | CM156: 32940 | CN156: 32940 | CO156: 32760 | CP156: 32940 | CQ156: 32760 | CR156: 32940 | CS156: 32760 | CT156: 32940 | CU156: 32940 | CV156: 32940 | CW156: 32760 | CX156: 32940 | CY156: 32760 | CZ156: 32940 | DA156: 32760 | DB156: =DB153*DB11*DB149 -> 32940 | DC156: 32940 | DD156: 32940 | DE156: 32760 | DF156: 32940 | DG156: 32760 | DH156: 0 | DI156: 0 | DJ156: 0 | DK156: 0 | DL156: 0 | DM156: 0 | DN156: 0 | DO156: 0 | DP156: 0 | DQ156: 0 | DR156: 0 | DS156: 0 | DT156: 0 | DU156: 0 | DV156: 0 | DW156: 0 | DX156: 0 | DY156: 0 | DZ156: 0 | EA156: 0 | EB156: 0 | EC156: 0 | ED156: 0 | EE156: 0 | EF156: 0 | EG156: 0 | EH156: =EH153*EH11*EH149 -> 0 | EI156: 0 | EJ156: 0 | EK156: 0 | EL156: 0 | EM156: 0 | EN156: 0 | EO156: 0 | EP156: 0 | EQ156: 0 | ER156: 0 | ES156: 0 | ET156: 0 | EU156: 0 | EV156: 0 | EW156: 0 | EX156: 0 | EY156: 0 | EZ156: 0 | FA156: 0 | FB156: 0 | FC156: 0
B157: Net Generation Before Sched Maintenance | E157: MWh | J157: =J155-J156 -> 0 | K157: =K155-K156 -> 0 | L157: 0 | M157: 0 | N157: 0 | O157: 0 | P157: 0 | Q157: 0 | R157: 0 | S157: 0 | T157: 0 | U157: 0 | V157: 0 | W157: 0 | X157: 0 | Y157: 0 | Z157: 0 | AA157: 0 | AB157: 0 | AC157: 0 | AD157: 0 | AE157: 0 | AF157: 0 | AG157: 0 | AH157: 0 | AI157: 0 | AJ157: 0 | AK157: 0 | AL157: 0 | AM157: 0 | AN157: 0 | AO157: 0 | AP157: 0 | AQ157: 0 | AR157: 0 | AS157: 0 | AT157: 0 | AU157: 0 | AV157: 0 | AW157: 0 | AX157: 0 | AY157: 0 | AZ157: 0 | BA157: 0 | BB157: 0 | BC157: 0 | BD157: 0 | BE157: 0 | BF157: 0 | BG157: 0 | BH157: 0 | BI157: 0 | BJ157: 960530.4 | BK157: 955281.6 | BL157: 960530.4 | BM157: 955281.6 | BN157: 960530.4 | BO157: 960530.4 | BP157: 960530.4 | BQ157: 955281.6 | BR157: 889380 | BS157: 884520 | BT157: 889380 | BU157: 884520 | BV157: 889380 | BW157: =BW155-BW156 -> 889380 | BX157: 889380 | BY157: 884520 | BZ157: 889380 | CA157: 884520 | CB157: 889380 | CC157: 884520 | CD157: 889380 | CE157: 889380 | CF157: 889380 | CG157: 884520 | CH157: 889380 | CI157: 884520 | CJ157: 889380 | CK157: 884520 | CL157: 889380 | CM157: 889380 | CN157: 889380 | CO157: 884520 | CP157: 889380 | CQ157: 884520 | CR157: 889380 | CS157: 884520 | CT157: 889380 | CU157: 889380 | CV157: 889380 | CW157: 884520 | CX157: 889380 | CY157: 884520 | CZ157: 889380 | DA157: 884520 | DB157: 889380 | DC157: 889380 | DD157: 889380 | DE157: 884520 | DF157: 889380 | DG157: 884520 | DH157: 0 | DI157: 0 | DJ157: 0 | DK157: 0 | DL157: 0 | DM157: 0 | DN157: 0 | DO157: 0 | DP157: 0 | DQ157: 0 | DR157: 0 | DS157: 0 | DT157: 0 | DU157: 0 | DV157: 0 | DW157: 0 | DX157: 0 | DY157: 0 | DZ157: 0 | EA157: 0 | EB157: 0 | EC157: 0 | ED157: 0 | EE157: 0 | EF157: 0 | EG157: 0 | EH157: 0 | EI157: =EI155-EI156 -> 0 | EJ157: 0 | EK157: 0 | EL157: 0 | EM157: 0 | EN157: 0 | EO157: 0 | EP157: 0 | EQ157: 0 | ER157: 0 | ES157: 0 | ET157: 0 | EU157: 0 | EV157: 0 | EW157: 0 | EX157: 0 | EY157: 0 | EZ157: 0 | FA157: 0 | FB157: 0 | FC157: 0
B159: Run hours (before scheduled maintenance) | E159: hours | J159: =IF(J149,J157/J149)*1 -> 0 | K159: =IF(K149,K157/K149)*1 -> 0 | L159: 0 | M159: 0 | N159: 0 | O159: 0 | P159: 0 | Q159: 0 | R159: 0 | S159: 0 | T159: 0 | U159: 0 | V159: 0 | W159: 0 | X159: 0 | Y159: 0 | Z159: 0 | AA159: 0 | AB159: 0 | AC159: 0 | AD159: 0 | AE159: 0 | AF159: 0 | AG159: 0 | AH159: 0 | AI159: 0 | AJ159: 0 | AK159: 0 | AL159: 0 | AM159: 0 | AN159: 0 | AO159: 0 | AP159: 0 | AQ159: 0 | AR159: 0 | AS159: 0 | AT159: 0 | AU159: 0 | AV159: 0 | AW159: 0 | AX159: 0 | AY159: 0 | AZ159: 0 | BA159: 0 | BB159: 0 | BC159: 0 | BD159: 0 | BE159: 0 | BF159: 0 | BG159: 0 | BH159: 0 | BI159: 0 | BJ159: 3201.768 | BK159: 3184.272 | BL159: 3201.768 | BM159: 3184.272 | BN159: 3201.768 | BO159: 3201.768 | BP159: 3201.768 | BQ159: 3184.272 | BR159: 2964.6 | BS159: 2948.4 | BT159: 2964.6 | BU159: 2948.4 | BV159: 2964.6 | BW159: =IF(BW149,BW157/BW149)*1 -> 2964.6 | BX159: 2964.6 | BY159: 2948.4 | BZ159: 2964.6 | CA159: 2948.4 | CB159: 2964.6 | CC159: 2948.4 | CD159: 2964.6 | CE159: 2964.6 | CF159: 2964.6 | CG159: 2948.4 | CH159: 2964.6 | CI159: 2948.4 | CJ159: 2964.6 | CK159: 2948.4 | CL159: 2964.6 | CM159: 2964.6 | CN159: 2964.6 | CO159: 2948.4 | CP159: 2964.6 | CQ159: 2948.4 | CR159: 2964.6 | CS159: 2948.4 | CT159: 2964.6 | CU159: 2964.6 | CV159: 2964.6 | CW159: 2948.4 | CX159: 2964.6 | CY159: 2948.4 | CZ159: 2964.6 | DA159: 2948.4 | DB159: 2964.6 | DC159: 2964.6 | DD159: 2964.6 | DE159: 2948.4 | DF159: 2964.6 | DG159: 2948.4 | DH159: 0 | DI159: 0 | DJ159: 0 | DK159: 0 | DL159: 0 | DM159: 0 | DN159: 0 | DO159: 0 | DP159: 0 | DQ159: 0 | DR159: 0 | DS159: 0 | DT159: 0 | DU159: 0 | DV159: 0 | DW159: 0 | DX159: 0 | DY159: 0 | DZ159: 0 | EA159: 0 | EB159: 0 | EC159: 0 | ED159: 0 | EE159: 0 | EF159: 0 | EG159: 0 | EH159: 0 | EI159: =IF(EI149,EI157/EI149)*1 -> 0 | EJ159: 0 | EK159: 0 | EL159: 0 | EM159: 0 | EN159: 0 | EO159: 0 | EP159: 0 | EQ159: 0 | ER159: 0 | ES159: 0 | ET159: 0 | EU159: 0 | EV159: 0 | EW159: 0 | EX159: 0 | EY159: 0 | EZ159: 0 | FA159: 0 | FB159: 0 | FC159: 0
B160: Less Scheduled Mainteance Carried Forward | E160: hours | J160: =MIN(I182,J159) -> 0 | K160: =MIN(J182,K159) -> 0 | L160: 0 | M160: 0 | N160: 0 | O160: 0 | P160: 0 | Q160: 0 | R160: 0 | S160: 0 | T160: 0 | U160: 0 | V160: 0 | W160: 0 | X160: 0 | Y160: 0 | Z160: 0 | AA160: 0 | AB160: 0 | AC160: 0 | AD160: 0 | AE160: 0 | AF160: 0 | AG160: 0 | AH160: 0 | AI160: 0 | AJ160: 0 | AK160: 0 | AL160: 0 | AM160: 0 | AN160: 0 | AO160: 0 | AP160: 0 | AQ160: 0 | AR160: 0 | AS160: 0 | AT160: 0 | AU160: 0 | AV160: 0 | AW160: 0 | AX160: =MIN(AW182,AX159) -> 0 | AY160: 0 | AZ160: 0 | BA160: 0 | BB160: 0 | BC160: 0 | BD160: 0 | BE160: 0 | BF160: 0 | BG160: 0 | BH160: 0 | BI160: 0 | BJ160: 0 | BK160: 0 | BL160: 0 | BM160: 0 | BN160: 0 | BO160: 0 | BP160: 0 | BQ160: 0 | BR160: 0 | BS160: 0 | BT160: 0 | BU160: 0 | BV160: 0 | BW160: =MIN(BV182,BW159) -> 0 | BX160: 0 | BY160: 0 | BZ160: 0 | CA160: 0 | CB160: 0 | CC160: 0 | CD160: 0 | CE160: 0 | CF160: 0 | CG160: 0 | CH160: 0 | CI160: 0 | CJ160: 0 | CK160: 0 | CL160: 0 | CM160: 0 | CN160: 0 | CO160: 0 | CP160: 0 | CQ160: 0 | CR160: 0 | CS160: 0 | CT160: 0 | CU160: 0 | CV160: 0 | CW160: 0 | CX160: 0 | CY160: 0 | CZ160: 0 | DA160: 0 | DB160: 0 | DC160: 0 | DD160: 0 | DE160: 0 | DF160: 0 | DG160: 0 | DH160: 0 | DI160: 0 | DJ160: 0 | DK160: 0 | DL160: 0 | DM160: 0 | DN160: 0 | DO160: 0 | DP160: 0 | DQ160: 0 | DR160: 0 | DS160: 0 | DT160: 0 | DU160: 0 | DV160: 0 | DW160: 0 | DX160: 0 | DY160: 0 | DZ160: 0 | EA160: 0 | EB160: 0 | EC160: 0 | ED160: 0 | EE160: 0 | EF160: 0 | EG160: 0 | EH160: 0 | EI160: =MIN(EH182,EI159) -> 0 | EJ160: 0 | EK160: 0 | EL160: 0 | EM160: 0 | EN160: 0 | EO160: 0 | EP160: 0 | EQ160: 0 | ER160: 0 | ES160: 0 | ET160: 0 | EU160: 0 | EV160: 0 | EW160: 0 | EX160: 0 | EY160: 0 | EZ160: 0 | FA160: 0 | FB160: 0 | FC160: 0
B161: Hours Run before Maintenance | E161: hours | J161: =J159-J160 -> 0 | K161: =K159-K160 -> 0 | L161: 0 | M161: 0 | N161: 0 | O161: 0 | P161: 0 | Q161: 0 | R161: 0 | S161: 0 | T161: 0 | U161: 0 | V161: 0 | W161: 0 | X161: 0 | Y161: 0 | Z161: 0 | AA161: 0 | AB161: 0 | AC161: 0 | AD161: 0 | AE161: 0 | AF161: 0 | AG161: 0 | AH161: 0 | AI161: 0 | AJ161: 0 | AK161: 0 | AL161: 0 | AM161: 0 | AN161: 0 | AO161: 0 | AP161: 0 | AQ161: 0 | AR161: 0 | AS161: 0 | AT161: 0 | AU161: 0 | AV161: 0 | AW161: 0 | AX161: 0 | AY161: 0 | AZ161: 0 | BA161: 0 | BB161: 0 | BC161: 0 | BD161: 0 | BE161: 0 | BF161: 0 | BG161: 0 | BH161: 0 | BI161: 0 | BJ161: 3201.768 | BK161: 3184.272 | BL161: 3201.768 | BM161: 3184.272 | BN161: 3201.768 | BO161: 3201.768 | BP161: 3201.768 | BQ161: 3184.272 | BR161: 2964.6 | BS161: 2948.4 | BT161: 2964.6 | BU161: 2948.4 | BV161: 2964.6 | BW161: =BW159-BW160 -> 2964.6 | BX161: 2964.6 | BY161: 2948.4 | BZ161: 2964.6 | CA161: 2948.4 | CB161: 2964.6 | CC161: 2948.4 | CD161: 2964.6 | CE161: 2964.6 | CF161: 2964.6 | CG161: 2948.4 | CH161: 2964.6 | CI161: 2948.4 | CJ161: 2964.6 | CK161: 2948.4 | CL161: 2964.6 | CM161: 2964.6 | CN161: 2964.6 | CO161: 2948.4 | CP161: 2964.6 | CQ161: 2948.4 | CR161: 2964.6 | CS161: 2948.4 | CT161: 2964.6 | CU161: 2964.6 | CV161: 2964.6 | CW161: 2948.4 | CX161: 2964.6 | CY161: 2948.4 | CZ161: 2964.6 | DA161: 2948.4 | DB161: 2964.6 | DC161: 2964.6 | DD161: 2964.6 | DE161: 2948.4 | DF161: 2964.6 | DG161: 2948.4 | DH161: 0 | DI161: 0 | DJ161: 0 | DK161: 0 | DL161: 0 | DM161: 0 | DN161: 0 | DO161: 0 | DP161: 0 | DQ161: 0 | DR161: 0 | DS161: 0 | DT161: 0 | DU161: 0 | DV161: 0 | DW161: 0 | DX161: 0 | DY161: 0 | DZ161: 0 | EA161: 0 | EB161: 0 | EC161: 0 | ED161: 0 | EE161: 0 | EF161: 0 | EG161: 0 | EH161: 0 | EI161: =EI159-EI160 -> 0 | EJ161: 0 | EK161: 0 | EL161: 0 | EM161: 0 | EN161: 0 | EO161: 0 | EP161: 0 | EQ161: 0 | ER161: 0 | ES161: 0 | ET161: 0 | EU161: 0 | EV161: 0 | EW161: 0 | EX161: 0 | EY161: 0 | EZ161: 0 | FA161: 0 | FB161: 0 | FC161: 0
B163: Maintenance hours for overhaul
C164: Hours Before Maintenance (Fixed) | E164: Hours | F164: =F44 -> 40000 | J164: =$F$164 -> 40000 | K164: =$F$164 -> 40000 | L164: 40000 | M164: 40000 | N164: 40000 | O164: 40000 | P164: 40000 | Q164: 40000 | R164: 40000 | S164: 40000 | T164: 40000 | U164: 40000 | V164: 40000 | W164: 40000 | X164: 40000 | Y164: 40000 | Z164: 40000 | AA164: 40000 | AB164: 40000 | AC164: 40000 | AD164: 40000 | AE164: 40000 | AF164: 40000 | AG164: 40000 | AH164: 40000 | AI164: 40000 | AJ164: 40000 | AK164: 40000 | AL164: 40000 | AM164: 40000 | AN164: 40000 | AO164: 40000 | AP164: 40000 | AQ164: 40000 | AR164: 40000 | AS164: 40000 | AT164: 40000 | AU164: 40000 | AV164: 40000 | AW164: 40000 | AX164: 40000 | AY164: 40000 | AZ164: 40000 | BA164: 40000 | BB164: 40000 | BC164: 40000 | BD164: 40000 | BE164: 40000 | BF164: 40000 | BG164: 40000 | BH164: 40000 | BI164: 40000 | BJ164: 40000 | BK164: 40000 | BL164: 40000 | BM164: 40000 | BN164: 40000 | BO164: 40000 | BP164: 40000 | BQ164: 40000 | BR164: 40000 | BS164: 40000 | BT164: 40000 | BU164: 40000 | BV164: 40000 | BW164: =$F$164 -> 40000 | BX164: 40000 | BY164: 40000 | BZ164: 40000 | CA164: 40000 | CB164: 40000 | CC164: 40000 | CD164: 40000 | CE164: 40000 | CF164: 40000 | CG164: 40000 | CH164: 40000 | CI164: 40000 | CJ164: 40000 | CK164: 40000 | CL164: 40000 | CM164: 40000 | CN164: 40000 | CO164: 40000 | CP164: 40000 | CQ164: 40000 | CR164: 40000 | CS164: 40000 | CT164: 40000 | CU164: 40000 | CV164: 40000 | CW164: 40000 | CX164: 40000 | CY164: 40000 | CZ164: 40000 | DA164: 40000 | DB164: 40000 | DC164: 40000 | DD164: 40000 | DE164: 40000 | DF164: 40000 | DG164: 40000 | DH164: 40000 | DI164: 40000 | DJ164: 40000 | DK164: 40000 | DL164: 40000 | DM164: 40000 | DN164: 40000 | DO164: 40000 | DP164: 40000 | DQ164: 40000 | DR164: 40000 | DS164: 40000 | DT164: 40000 | DU164: 40000 | DV164: 40000 | DW164: 40000 | DX164: 40000 | DY164: 40000 | DZ164: 40000 | EA164: 40000 | EB164: 40000 | EC164: 40000 | ED164: 40000 | EE164: 40000 | EF164: 40000 | EG164: 40000 | EH164: 40000 | EI164: =$F$164 -> 40000 | EJ164: 40000 | EK164: 40000 | EL164: 40000 | EM164: 40000 | EN164: 40000 | EO164: 40000 | EP164: 40000 | EQ164: 40000 | ER164: 40000 | ES164: 40000 | ET164: 40000 | EU164: 40000 | EV164: 40000 | EW164: 40000 | EX164: 40000 | EY164: 40000 | EZ164: 40000 | FA164: 40000 | FB164: 40000 | FC164: 40000
C165: Opening Cumulative Hours (Open from Below) | E165: Hours | J165: =J184 -> 0 | K165: =K184 -> 0 | L165: 0 | M165: 0 | N165: 0 | O165: 0 | P165: 0 | Q165: 0 | R165: 0 | S165: 0 | T165: 0 | U165: 0 | V165: 0 | W165: 0 | X165: 0 | Y165: 0 | Z165: 0 | AA165: 0 | AB165: 0 | AC165: 0 | AD165: 0 | AE165: 0 | AF165: 0 | AG165: 0 | AH165: 0 | AI165: 0 | AJ165: 0 | AK165: 0 | AL165: 0 | AM165: 0 | AN165: 0 | AO165: 0 | AP165: 0 | AQ165: 0 | AR165: 0 | AS165: 0 | AT165: 0 | AU165: 0 | AV165: 0 | AW165: 0 | AX165: 0 | AY165: 0 | AZ165: 0 | BA165: 0 | BB165: 0 | BC165: 0 | BD165: 0 | BE165: 0 | BF165: 0 | BG165: 0 | BH165: 0 | BI165: 0 | BJ165: 0 | BK165: 3201.768 | BL165: 6386.04 | BM165: 9587.808 | BN165: 12772.08 | BO165: 15973.848 | BP165: 19175.616 | BQ165: 22377.384 | BR165: 25561.656 | BS165: 28526.256 | BT165: 31474.656 | BU165: 34439.256 | BV165: 37387.656 | BW165: =BW184 -> 0 | BX165: 2964.6 | BY165: 5929.2 | BZ165: 8877.6 | CA165: 11842.2 | CB165: 14790.6 | CC165: 17755.2 | CD165: 20703.6 | CE165: 23668.2 | CF165: 26632.8 | CG165: 29597.4 | CH165: 32545.8 | CI165: 35510.4 | CJ165: 38458.8 | CK165: 0 | CL165: 2948.4 | CM165: 5913 | CN165: 8877.6 | CO165: 11842.2 | CP165: 14790.6 | CQ165: 17755.2 | CR165: 20703.6 | CS165: 23668.2 | CT165: 26616.6 | CU165: 29581.2 | CV165: 32545.8 | CW165: 35510.4 | CX165: 38458.8 | CY165: 0 | CZ165: 2948.4 | DA165: 5913 | DB165: 8861.4 | DC165: 11826 | DD165: 14790.6 | DE165: 17755.2 | DF165: 20703.6 | DG165: 23668.2 | DH165: 26616.6 | DI165: 26616.6 | DJ165: 26616.6 | DK165: 26616.6 | DL165: 26616.6 | DM165: 26616.6 | DN165: 26616.6 | DO165: 26616.6 | DP165: 26616.6 | DQ165: 26616.6 | DR165: 26616.6 | DS165: 26616.6 | DT165: 26616.6 | DU165: 26616.6 | DV165: 26616.6 | DW165: 26616.6 | DX165: 26616.6 | DY165: 26616.6 | DZ165: 26616.6 | EA165: 26616.6 | EB165: 26616.6 | EC165: 26616.6 | ED165: 26616.6 | EE165: 26616.6 | EF165: 26616.6 | EG165: 26616.6 | EH165: 26616.6 | EI165: =EI184 -> 26616.6 | EJ165: 26616.6 | EK165: 26616.6 | EL165: 26616.6 | EM165: 26616.6 | EN165: 26616.6 | EO165: 26616.6 | EP165: 26616.6 | EQ165: 26616.6 | ER165: 26616.6 | ES165: 26616.6 | ET165: 26616.6 | EU165: 26616.6 | EV165: 26616.6 | EW165: 26616.6 | EX165: 26616.6 | EY165: 26616.6 | EZ165: 26616.6 | FA165: 26616.6 | FB165: 26616.6 | FC165: 26616.6
C166: Total Remaining Hours Before Outage | E166: Hours | J166: =J164-J165 -> 40000 | K166: =K164-K165 -> 40000 | L166: 40000 | M166: 40000 | N166: 40000 | O166: 40000 | P166: 40000 | Q166: 40000 | R166: 40000 | S166: 40000 | T166: 40000 | U166: 40000 | V166: 40000 | W166: 40000 | X166: 40000 | Y166: 40000 | Z166: 40000 | AA166: 40000 | AB166: 40000 | AC166: 40000 | AD166: 40000 | AE166: 40000 | AF166: 40000 | AG166: 40000 | AH166: 40000 | AI166: 40000 | AJ166: 40000 | AK166: 40000 | AL166: 40000 | AM166: 40000 | AN166: 40000 | AO166: 40000 | AP166: 40000 | AQ166: 40000 | AR166: 40000 | AS166: 40000 | AT166: 40000 | AU166: 40000 | AV166: 40000 | AW166: 40000 | AX166: 40000 | AY166: 40000 | AZ166: 40000 | BA166: 40000 | BB166: 40000 | BC166: 40000 | BD166: 40000 | BE166: 40000 | BF166: 40000 | BG166: 40000 | BH166: 40000 | BI166: 40000 | BJ166: 40000 | BK166: 36798.232 | BL166: 33613.96 | BM166: 30412.192 | BN166: 27227.92 | BO166: 24026.152 | BP166: 20824.384 | BQ166: 17622.616 | BR166: 14438.344 | BS166: 11473.744 | BT166: 8525.344 | BU166: 5560.744 | BV166: 2612.344 | BW166: =BW164-BW165 -> 40000 | BX166: 37035.4 | BY166: 34070.8 | BZ166: 31122.4 | CA166: 28157.8 | CB166: 25209.4 | CC166: 22244.8 | CD166: 19296.4 | CE166: 16331.8 | CF166: 13367.2 | CG166: 10402.6 | CH166: 7454.2 | CI166: 4489.6 | CJ166: 1541.2 | CK166: 40000 | CL166: 37051.6 | CM166: 34087 | CN166: 31122.4 | CO166: 28157.8 | CP166: 25209.4 | CQ166: 22244.8 | CR166: 19296.4 | CS166: 16331.8 | CT166: 13383.4 | CU166: 10418.8 | CV166: 7454.2 | CW166: 4489.6 | CX166: 1541.2 | CY166: 40000 | CZ166: 37051.6 | DA166: 34087 | DB166: 31138.6 | DC166: 28174 | DD166: 25209.4 | DE166: 22244.8 | DF166: 19296.4 | DG166: 16331.8 | DH166: 13383.4 | DI166: 13383.4 | DJ166: 13383.4 | DK166: 13383.4 | DL166: 13383.4 | DM166: 13383.4 | DN166: 13383.4 | DO166: 13383.4 | DP166: 13383.4 | DQ166: 13383.4 | DR166: 13383.4 | DS166: 13383.4 | DT166: 13383.4 | DU166: 13383.4 | DV166: 13383.4 | DW166: 13383.4 | DX166: 13383.4 | DY166: 13383.4 | DZ166: 13383.4 | EA166: 13383.4 | EB166: 13383.4 | EC166: 13383.4 | ED166: 13383.4 | EE166: 13383.4 | EF166: 13383.4 | EG166: 13383.4 | EH166: 13383.4 | EI166: =EI164-EI165 -> 13383.4 | EJ166: 13383.4 | EK166: 13383.4 | EL166: 13383.4 | EM166: 13383.4 | EN166: 13383.4 | EO166: 13383.4 | EP166: 13383.4 | EQ166: 13383.4 | ER166: 13383.4 | ES166: 13383.4 | ET166: 13383.4 | EU166: 13383.4 | EV166: 13383.4 | EW166: 13383.4 | EX166: 13383.4 | EY166: 13383.4 | EZ166: 13383.4 | FA166: 13383.4 | FB166: 13383.4 | FC166: 13383.4
C167: Hours of Run Time with Maintenance Constraint | E167: Hours | F167: =F44 -> 40000 | J167: =MIN(J161,J166) -> 0 | K167: =MIN(K161,K166) -> 0 | L167: 0 | M167: 0 | N167: 0 | O167: 0 | P167: 0 | Q167: 0 | R167: 0 | S167: 0 | T167: 0 | U167: 0 | V167: 0 | W167: 0 | X167: 0 | Y167: 0 | Z167: 0 | AA167: 0 | AB167: 0 | AC167: 0 | AD167: 0 | AE167: 0 | AF167: 0 | AG167: 0 | AH167: 0 | AI167: 0 | AJ167: 0 | AK167: 0 | AL167: 0 | AM167: 0 | AN167: 0 | AO167: 0 | AP167: 0 | AQ167: 0 | AR167: 0 | AS167: 0 | AT167: 0 | AU167: 0 | AV167: 0 | AW167: 0 | AX167: 0 | AY167: 0 | AZ167: 0 | BA167: 0 | BB167: 0 | BC167: 0 | BD167: 0 | BE167: 0 | BF167: 0 | BG167: 0 | BH167: 0 | BI167: 0 | BJ167: 3201.768 | BK167: 3184.272 | BL167: 3201.768 | BM167: 3184.272 | BN167: 3201.768 | BO167: 3201.768 | BP167: 3201.768 | BQ167: 3184.272 | BR167: 2964.6 | BS167: 2948.4 | BT167: 2964.6 | BU167: 2948.4 | BV167: 2612.344 | BW167: =MIN(BW161,BW166) -> 2964.6 | BX167: 2964.6 | BY167: 2948.4 | BZ167: 2964.6 | CA167: 2948.4 | CB167: 2964.6 | CC167: 2948.4 | CD167: 2964.6 | CE167: 2964.6 | CF167: 2964.6 | CG167: 2948.4 | CH167: 2964.6 | CI167: 2948.4 | CJ167: 1541.2 | CK167: 2948.4 | CL167: 2964.6 | CM167: 2964.6 | CN167: 2964.6 | CO167: 2948.4 | CP167: 2964.6 | CQ167: 2948.4 | CR167: 2964.6 | CS167: 2948.4 | CT167: 2964.6 | CU167: 2964.6 | CV167: 2964.6 | CW167: 2948.4 | CX167: 1541.2 | CY167: 2948.4 | CZ167: 2964.6 | DA167: 2948.4 | DB167: 2964.6 | DC167: 2964.6 | DD167: 2964.6 | DE167: 2948.4 | DF167: 2964.6 | DG167: 2948.4 | DH167: 0 | DI167: 0 | DJ167: 0 | DK167: 0 | DL167: 0 | DM167: 0 | DN167: 0 | DO167: 0 | DP167: 0 | DQ167: 0 | DR167: 0 | DS167: 0 | DT167: 0 | DU167: 0 | DV167: 0 | DW167: 0 | DX167: 0 | DY167: 0 | DZ167: 0 | EA167: 0 | EB167: 0 | EC167: 0 | ED167: 0 | EE167: 0 | EF167: 0 | EG167: 0 | EH167: 0 | EI167: =MIN(EI161,EI166) -> 0 | EJ167: 0 | EK167: 0 | EL167: 0 | EM167: 0 | EN167: 0 | EO167: 0 | EP167: 0 | EQ167: 0 | ER167: 0 | ES167: 0 | ET167: 0 | EU167: 0 | EV167: 0 | EW167: 0 | EX167: 0 | EY167: 0 | EZ167: 0 | FA167: 0 | FB167: 0 | FC167: 0
C169: Maintenance Period (Test, Remaining=Run) | E169: Switch | J169: =J166=J167 -> FALSE | K169: =K166=K167 -> FALSE | L169: FALSE | M169: FALSE | N169: FALSE | O169: FALSE | P169: FALSE | Q169: FALSE | R169: FALSE | S169: FALSE | T169: FALSE | U169: FALSE | V169: FALSE | W169: FALSE | X169: FALSE | Y169: FALSE | Z169: FALSE | AA169: FALSE | AB169: FALSE | AC169: FALSE | AD169: FALSE | AE169: FALSE | AF169: FALSE | AG169: FALSE | AH169: FALSE | AI169: FALSE | AJ169: FALSE | AK169: FALSE | AL169: FALSE | AM169: FALSE | AN169: FALSE | AO169: FALSE | AP169: FALSE | AQ169: FALSE | AR169: FALSE | AS169: FALSE | AT169: FALSE | AU169: FALSE | AV169: FALSE | AW169: FALSE | AX169: FALSE | AY169: FALSE | AZ169: FALSE | BA169: FALSE | BB169: FALSE | BC169: FALSE | BD169: FALSE | BE169: FALSE | BF169: FALSE | BG169: FALSE | BH169: FALSE | BI169: FALSE | BJ169: FALSE | BK169: FALSE | BL169: FALSE | BM169: FALSE | BN169: FALSE | BO169: FALSE | BP169: FALSE | BQ169: FALSE | BR169: FALSE | BS169: FALSE | BT169: FALSE | BU169: FALSE | BV169: TRUE | BW169: =BW166=BW167 -> FALSE | BX169: FALSE | BY169: FALSE | BZ169: FALSE | CA169: FALSE | CB169: FALSE | CC169: FALSE | CD169: FALSE | CE169: FALSE | CF169: FALSE | CG169: FALSE | CH169: FALSE | CI169: FALSE | CJ169: TRUE | CK169: FALSE | CL169: FALSE | CM169: FALSE | CN169: FALSE | CO169: FALSE | CP169: FALSE | CQ169: FALSE | CR169: FALSE | CS169: FALSE | CT169: FALSE | CU169: FALSE | CV169: FALSE | CW169: FALSE | CX169: TRUE | CY169: FALSE | CZ169: FALSE | DA169: FALSE | DB169: FALSE | DC169: FALSE | DD169: FALSE | DE169: FALSE | DF169: FALSE | DG169: FALSE | DH169: FALSE | DI169: FALSE | DJ169: FALSE | DK169: FALSE | DL169: FALSE | DM169: FALSE | DN169: FALSE | DO169: FALSE | DP169: FALSE | DQ169: FALSE | DR169: FALSE | DS169: FALSE | DT169: FALSE | DU169: FALSE | DV169: FALSE | DW169: FALSE | DX169: FALSE | DY169: FALSE | DZ169: FALSE | EA169: FALSE | EB169: FALSE | EC169: FALSE | ED169: FALSE | EE169: FALSE | EF169: FALSE | EG169: FALSE | EH169: FALSE | EI169: =EI166=EI167 -> FALSE | EJ169: FALSE | EK169: FALSE | EL169: FALSE | EM169: FALSE | EN169: FALSE | EO169: FALSE | EP169: FALSE | EQ169: FALSE | ER169: FALSE | ES169: FALSE | ET169: FALSE | EU169: FALSE | EV169: FALSE | EW169: FALSE | EX169: FALSE | EY169: FALSE | EZ169: FALSE | FA169: FALSE | FB169: FALSE | FC169: FALSE
C171: Required Maintenance (Fixed from Input) | E171: Hours | F171: =F45 -> 700 | J171: =$F$171 -> 700 | K171: =$F$171 -> 700 | L171: 700 | M171: 700 | N171: 700 | O171: 700 | P171: 700 | Q171: 700 | R171: 700 | S171: 700 | T171: 700 | U171: 700 | V171: 700 | W171: 700 | X171: 700 | Y171: 700 | Z171: 700 | AA171: 700 | AB171: 700 | AC171: 700 | AD171: 700 | AE171: 700 | AF171: 700 | AG171: 700 | AH171: 700 | AI171: 700 | AJ171: 700 | AK171: 700 | AL171: 700 | AM171: 700 | AN171: 700 | AO171: 700 | AP171: 700 | AQ171: 700 | AR171: 700 | AS171: 700 | AT171: 700 | AU171: 700 | AV171: 700 | AW171: 700 | AX171: 700 | AY171: 700 | AZ171: 700 | BA171: 700 | BB171: 700 | BC171: 700 | BD171: 700 | BE171: 700 | BF171: 700 | BG171: 700 | BH171: 700 | BI171: 700 | BJ171: 700 | BK171: 700 | BL171: 700 | BM171: 700 | BN171: 700 | BO171: 700 | BP171: 700 | BQ171: 700 | BR171: 700 | BS171: 700 | BT171: 700 | BU171: 700 | BV171: 700 | BW171: =$F$171 -> 700 | BX171: 700 | BY171: 700 | BZ171: 700 | CA171: 700 | CB171: 700 | CC171: 700 | CD171: 700 | CE171: 700 | CF171: 700 | CG171: 700 | CH171: 700 | CI171: 700 | CJ171: 700 | CK171: 700 | CL171: 700 | CM171: 700 | CN171: 700 | CO171: 700 | CP171: 700 | CQ171: 700 | CR171: 700 | CS171: 700 | CT171: 700 | CU171: 700 | CV171: 700 | CW171: 700 | CX171: 700 | CY171: 700 | CZ171: 700 | DA171: 700 | DB171: 700 | DC171: 700 | DD171: 700 | DE171: 700 | DF171: 700 | DG171: 700 | DH171: 700 | DI171: 700 | DJ171: 700 | DK171: 700 | DL171: 700 | DM171: 700 | DN171: 700 | DO171: 700 | DP171: 700 | DQ171: 700 | DR171: 700 | DS171: 700 | DT171: 700 | DU171: 700 | DV171: 700 | DW171: 700 | DX171: 700 | DY171: 700 | DZ171: 700 | EA171: 700 | EB171: 700 | EC171: 700 | ED171: 700 | EE171: 700 | EF171: 700 | EG171: 700 | EH171: 700 | EI171: =$F$171 -> 700 | EJ171: 700 | EK171: 700 | EL171: 700 | EM171: 700 | EN171: 700 | EO171: 700 | EP171: 700 | EQ171: 700 | ER171: 700 | ES171: 700 | ET171: 700 | EU171: 700 | EV171: 700 | EW171: 700 | EX171: 700 | EY171: 700 | EZ171: 700 | FA171: 700 | FB171: 700 | FC171: 700
C172: Available Hours (Period Hrs-Run Hrs) | E172: Hours | J172: =(J11-J167)*J169 -> 0 | K172: 0 | L172: 0 | M172: 0 | N172: 0 | O172: 0 | P172: 0 | Q172: 0 | R172: 0 | S172: 0 | T172: 0 | U172: 0 | V172: 0 | W172: 0 | X172: 0 | Y172: 0 | Z172: 0 | AA172: 0 | AB172: 0 | AC172: 0 | AD172: 0 | AE172: 0 | AF172: 0 | AG172: 0 | AH172: 0 | AI172: 0 | AJ172: 0 | AK172: 0 | AL172: 0 | AM172: 0 | AN172: 0 | AO172: 0 | AP172: 0 | AQ172: 0 | AR172: 0 | AS172: 0 | AT172: 0 | AU172: 0 | AV172: 0 | AW172: 0 | AX172: 0 | AY172: 0 | AZ172: 0 | BA172: 0 | BB172: 0 | BC172: 0 | BD172: 0 | BE172: 0 | BF172: 0 | BG172: 0 | BH172: 0 | BI172: 0 | BJ172: 0 | BK172: 0 | BL172: 0 | BM172: 0 | BN172: 0 | BO172: 0 | BP172: 0 | BQ172: 0 | BR172: 0 | BS172: 0 | BT172: 0 | BU172: 0 | BV172: =(BV11-BV167)*BV169 -> 1779.656 | BW172: 0 | BX172: 0 | BY172: 0 | BZ172: 0 | CA172: 0 | CB172: 0 | CC172: 0 | CD172: 0 | CE172: 0 | CF172: 0 | CG172: 0 | CH172: 0 | CI172: 0 | CJ172: 2850.8 | CK172: 0 | CL172: 0 | CM172: 0 | CN172: 0 | CO172: 0 | CP172: 0 | CQ172: 0 | CR172: 0 | CS172: 0 | CT172: 0 | CU172: 0 | CV172: 0 | CW172: 0 | CX172: 2850.8 | CY172: 0 | CZ172: 0 | DA172: 0 | DB172: 0 | DC172: 0 | DD172: 0 | DE172: 0 | DF172: 0 | DG172: 0 | DH172: 0 | DI172: 0 | DJ172: 0 | DK172: 0 | DL172: 0 | DM172: 0 | DN172: 0 | DO172: 0 | DP172: 0 | DQ172: 0 | DR172: 0 | DS172: 0 | DT172: 0 | DU172: 0 | DV172: 0 | DW172: 0 | DX172: 0 | DY172: 0 | DZ172: 0 | EA172: 0 | EB172: 0 | EC172: 0 | ED172: 0 | EE172: 0 | EF172: 0 | EG172: 0 | EH172: =(EH11-EH167)*EH169 -> 0 | EI172: 0 | EJ172: 0 | EK172: 0 | EL172: 0 | EM172: 0 | EN172: 0 | EO172: 0 | EP172: 0 | EQ172: 0 | ER172: 0 | ES172: 0 | ET172: 0 | EU172: 0 | EV172: 0 | EW172: 0 | EX172: 0 | EY172: 0 | EZ172: 0 | FA172: 0 | FB172: 0 | FC172: 0
C174: Scheduled Maintenance
D175: Opening Balance of Maintenance Hours | E175: Hours | J175: =I178 -> 0 | K175: =J178 -> 0 | L175: 0 | M175: 0 | N175: 0 | O175: 0 | P175: 0 | Q175: 0 | R175: 0 | S175: 0 | T175: 0 | U175: 0 | V175: 0 | W175: 0 | X175: 0 | Y175: 0 | Z175: 0 | AA175: 0 | AB175: 0 | AC175: 0 | AD175: 0 | AE175: 0 | AF175: 0 | AG175: 0 | AH175: 0 | AI175: 0 | AJ175: 0 | AK175: 0 | AL175: 0 | AM175: 0 | AN175: 0 | AO175: 0 | AP175: 0 | AQ175: 0 | AR175: 0 | AS175: 0 | AT175: 0 | AU175: 0 | AV175: 0 | AW175: 0 | AX175: 0 | AY175: 0 | AZ175: 0 | BA175: 0 | BB175: 0 | BC175: 0 | BD175: 0 | BE175: 0 | BF175: 0 | BG175: 0 | BH175: 0 | BI175: 0 | BJ175: 0 | BK175: 0 | BL175: 0 | BM175: 0 | BN175: 0 | BO175: 0 | BP175: 0 | BQ175: 0 | BR175: 0 | BS175: 0 | BT175: 0 | BU175: 0 | BV175: 0 | BW175: =BV178 -> 0 | BX175: 0 | BY175: 0 | BZ175: 0 | CA175: 0 | CB175: 0 | CC175: 0 | CD175: 0 | CE175: 0 | CF175: 0 | CG175: 0 | CH175: 0 | CI175: 0 | CJ175: 0 | CK175: 0 | CL175: 0 | CM175: 0 | CN175: 0 | CO175: 0 | CP175: 0 | CQ175: 0 | CR175: 0 | CS175: 0 | CT175: 0 | CU175: 0 | CV175: 0 | CW175: 0 | CX175: 0 | CY175: 0 | CZ175: 0 | DA175: 0 | DB175: 0 | DC175: 0 | DD175: 0 | DE175: 0 | DF175: 0 | DG175: 0 | DH175: 0 | DI175: 0 | DJ175: 0 | DK175: 0 | DL175: 0 | DM175: 0 | DN175: 0 | DO175: 0 | DP175: 0 | DQ175: 0 | DR175: 0 | DS175: 0 | DT175: 0 | DU175: 0 | DV175: 0 | DW175: 0 | DX175: 0 | DY175: 0 | DZ175: 0 | EA175: 0 | EB175: 0 | EC175: 0 | ED175: 0 | EE175: 0 | EF175: 0 | EG175: 0 | EH175: 0 | EI175: =EH178 -> 0 | EJ175: 0 | EK175: 0 | EL175: 0 | EM175: 0 | EN175: 0 | EO175: 0 | EP175: 0 | EQ175: 0 | ER175: 0 | ES175: 0 | ET175: 0 | EU175: 0 | EV175: 0 | EW175: 0 | EX175: 0 | EY175: 0 | EZ175: 0 | FA175: 0 | FB175: 0 | FC175: 0
D176: Add: Maintenance this Period | E176: Hours | J176: =MIN(J171,J172)*J169 -> 0 | K176: =MIN(K171,K172)*K169 -> 0 | L176: 0 | M176: 0 | N176: 0 | O176: 0 | P176: 0 | Q176: 0 | R176: 0 | S176: 0 | T176: 0 | U176: 0 | V176: 0 | W176: 0 | X176: 0 | Y176: 0 | Z176: 0 | AA176: 0 | AB176: 0 | AC176: 0 | AD176: 0 | AE176: 0 | AF176: 0 | AG176: 0 | AH176: 0 | AI176: 0 | AJ176: 0 | AK176: 0 | AL176: 0 | AM176: 0 | AN176: 0 | AO176: 0 | AP176: 0 | AQ176: 0 | AR176: 0 | AS176: 0 | AT176: 0 | AU176: 0 | AV176: 0 | AW176: 0 | AX176: 0 | AY176: 0 | AZ176: 0 | BA176: 0 | BB176: 0 | BC176: 0 | BD176: 0 | BE176: 0 | BF176: 0 | BG176: 0 | BH176: 0 | BI176: 0 | BJ176: 0 | BK176: 0 | BL176: 0 | BM176: 0 | BN176: 0 | BO176: 0 | BP176: 0 | BQ176: 0 | BR176: 0 | BS176: 0 | BT176: 0 | BU176: 0 | BV176: 700 | BW176: =MIN(BW171,BW172)*BW169 -> 0 | BX176: =MIN(BX171,BX172)*BX169 -> 0 | BY176: =MIN(BY171-BY175,BY172)*BY169 -> 0 | BZ176: 0 | CA176: 0 | CB176: 0 | CC176: 0 | CD176: 0 | CE176: 0 | CF176: 0 | CG176: 0 | CH176: 0 | CI176: 0 | CJ176: 700 | CK176: 0 | CL176: 0 | CM176: 0 | CN176: 0 | CO176: 0 | CP176: 0 | CQ176: 0 | CR176: 0 | CS176: 0 | CT176: 0 | CU176: 0 | CV176: 0 | CW176: 0 | CX176: 700 | CY176: 0 | CZ176: 0 | DA176: 0 | DB176: 0 | DC176: 0 | DD176: 0 | DE176: 0 | DF176: 0 | DG176: 0 | DH176: 0 | DI176: 0 | DJ176: 0 | DK176: 0 | DL176: 0 | DM176: 0 | DN176: 0 | DO176: 0 | DP176: 0 | DQ176: 0 | DR176: 0 | DS176: 0 | DT176: 0 | DU176: 0 | DV176: 0 | DW176: 0 | DX176: 0 | DY176: 0 | DZ176: 0 | EA176: 0 | EB176: 0 | EC176: 0 | ED176: 0 | EE176: 0 | EF176: 0 | EG176: 0 | EH176: 0 | EI176: =MIN(EI171,EI172)*EI169 -> 0 | EJ176: 0 | EK176: 0 | EL176: 0 | EM176: 0 | EN176: 0 | EO176: 0 | EP176: 0 | EQ176: 0 | ER176: 0 | ES176: 0 | ET176: 0 | EU176: 0 | EV176: 0 | EW176: 0 | EX176: 0 | EY176: 0 | EZ176: 0 | FA176: 0 | FB176: 0 | FC176: 0
D177: Add: Maintenance from Prior Period | E177: Hours | J177: =J160 -> 0 | K177: =K160 -> 0 | L177: 0 | M177: 0 | N177: 0 | O177: 0 | P177: 0 | Q177: 0 | R177: 0 | S177: 0 | T177: 0 | U177: 0 | V177: 0 | W177: 0 | X177: 0 | Y177: 0 | Z177: 0 | AA177: 0 | AB177: 0 | AC177: 0 | AD177: 0 | AE177: 0 | AF177: 0 | AG177: 0 | AH177: 0 | AI177: 0 | AJ177: 0 | AK177: 0 | AL177: 0 | AM177: 0 | AN177: 0 | AO177: 0 | AP177: 0 | AQ177: 0 | AR177: 0 | AS177: 0 | AT177: 0 | AU177: 0 | AV177: 0 | AW177: 0 | AX177: 0 | AY177: 0 | AZ177: 0 | BA177: 0 | BB177: 0 | BC177: 0 | BD177: 0 | BE177: 0 | BF177: 0 | BG177: 0 | BH177: 0 | BI177: 0 | BJ177: 0 | BK177: 0 | BL177: 0 | BM177: 0 | BN177: 0 | BO177: 0 | BP177: 0 | BQ177: 0 | BR177: 0 | BS177: 0 | BT177: 0 | BU177: 0 | BV177: 0 | BW177: =BW160 -> 0 | BX177: 0 | BY177: 0 | BZ177: 0 | CA177: 0 | CB177: 0 | CC177: 0 | CD177: 0 | CE177: 0 | CF177: 0 | CG177: 0 | CH177: 0 | CI177: 0 | CJ177: 0 | CK177: 0 | CL177: 0 | CM177: 0 | CN177: 0 | CO177: 0 | CP177: 0 | CQ177: 0 | CR177: 0 | CS177: 0 | CT177: 0 | CU177: 0 | CV177: 0 | CW177: 0 | CX177: 0 | CY177: 0 | CZ177: 0 | DA177: 0 | DB177: 0 | DC177: 0 | DD177: 0 | DE177: 0 | DF177: 0 | DG177: 0 | DH177: 0 | DI177: 0 | DJ177: 0 | DK177: 0 | DL177: 0 | DM177: 0 | DN177: 0 | DO177: 0 | DP177: 0 | DQ177: 0 | DR177: 0 | DS177: 0 | DT177: 0 | DU177: 0 | DV177: 0 | DW177: 0 | DX177: 0 | DY177: 0 | DZ177: 0 | EA177: 0 | EB177: 0 | EC177: 0 | ED177: 0 | EE177: 0 | EF177: 0 | EG177: 0 | EH177: 0 | EI177: =EI160 -> 0 | EJ177: 0 | EK177: 0 | EL177: 0 | EM177: 0 | EN177: 0 | EO177: 0 | EP177: 0 | EQ177: 0 | ER177: 0 | ES177: 0 | ET177: 0 | EU177: 0 | EV177: 0 | EW177: 0 | EX177: 0 | EY177: 0 | EZ177: 0 | FA177: 0 | FB177: 0 | FC177: 0
D178: Closing Balance (Include Re-set when sum=reqd) | E178: Hours | J178: =IF(SUM(J175:J177)=J171,0,SUM(J175:J177)) -> 0 | K178: 0 | L178: 0 | M178: 0 | N178: 0 | O178: 0 | P178: 0 | Q178: 0 | R178: 0 | S178: 0 | T178: 0 | U178: 0 | V178: 0 | W178: 0 | X178: 0 | Y178: 0 | Z178: 0 | AA178: 0 | AB178: 0 | AC178: 0 | AD178: 0 | AE178: 0 | AF178: 0 | AG178: 0 | AH178: 0 | AI178: 0 | AJ178: 0 | AK178: 0 | AL178: 0 | AM178: 0 | AN178: 0 | AO178: 0 | AP178: =IF(SUM(AP175:AP177)=AP171,0,SUM(AP175:AP177)) -> 0 | AQ178: 0 | AR178: 0 | AS178: 0 | AT178: 0 | AU178: 0 | AV178: 0 | AW178: 0 | AX178: 0 | AY178: 0 | AZ178: 0 | BA178: 0 | BB178: 0 | BC178: 0 | BD178: 0 | BE178: 0 | BF178: 0 | BG178: 0 | BH178: 0 | BI178: 0 | BJ178: 0 | BK178: 0 | BL178: 0 | BM178: 0 | BN178: 0 | BO178: 0 | BP178: 0 | BQ178: 0 | BR178: 0 | BS178: 0 | BT178: 0 | BU178: 0 | BV178: =IF(SUM(BV175:BV177)=BV171,0,SUM(BV175:BV177)) -> 0 | BW178: 0 | BX178: 0 | BY178: 0 | BZ178: 0 | CA178: 0 | CB178: 0 | CC178: 0 | CD178: 0 | CE178: 0 | CF178: 0 | CG178: 0 | CH178: 0 | CI178: 0 | CJ178: 0 | CK178: 0 | CL178: 0 | CM178: 0 | CN178: 0 | CO178: 0 | CP178: 0 | CQ178: 0 | CR178: 0 | CS178: 0 | CT178: 0 | CU178: 0 | CV178: 0 | CW178: 0 | CX178: 0 | CY178: 0 | CZ178: 0 | DA178: 0 | DB178: =IF(SUM(DB175:DB177)=DB171,0,SUM(DB175:DB177)) -> 0 | DC178: 0 | DD178: 0 | DE178: 0 | DF178: 0 | DG178: 0 | DH178: 0 | DI178: 0 | DJ178: 0 | DK178: 0 | DL178: 0 | DM178: 0 | DN178: 0 | DO178: 0 | DP178: 0 | DQ178: 0 | DR178: 0 | DS178: 0 | DT178: 0 | DU178: 0 | DV178: 0 | DW178: 0 | DX178: 0 | DY178: 0 | DZ178: 0 | EA178: 0 | EB178: 0 | EC178: 0 | ED178: 0 | EE178: 0 | EF178: 0 | EG178: 0 | EH178: =IF(SUM(EH175:EH177)=EH171,0,SUM(EH175:EH177)) -> 0 | EI178: 0 | EJ178: 0 | EK178: 0 | EL178: 0 | EM178: 0 | EN178: 0 | EO178: 0 | EP178: 0 | EQ178: 0 | ER178: 0 | ES178: 0 | ET178: 0 | EU178: 0 | EV178: 0 | EW178: 0 | EX178: 0 | EY178: 0 | EZ178: 0 | FA178: 0 | FB178: 0 | FC178: 0
D180: Opening + Current + Prior Period | E180: Hours | J180: =J175+J176+J177 -> 0 | K180: 0 | L180: 0 | M180: 0 | N180: 0 | O180: 0 | P180: 0 | Q180: 0 | R180: 0 | S180: 0 | T180: 0 | U180: 0 | V180: 0 | W180: 0 | X180: 0 | Y180: 0 | Z180: 0 | AA180: 0 | AB180: 0 | AC180: 0 | AD180: 0 | AE180: 0 | AF180: 0 | AG180: 0 | AH180: 0 | AI180: 0 | AJ180: 0 | AK180: 0 | AL180: 0 | AM180: 0 | AN180: 0 | AO180: 0 | AP180: =AP175+AP176+AP177 -> 0 | AQ180: 0 | AR180: 0 | AS180: 0 | AT180: 0 | AU180: 0 | AV180: 0 | AW180: 0 | AX180: 0 | AY180: 0 | AZ180: 0 | BA180: 0 | BB180: 0 | BC180: 0 | BD180: 0 | BE180: 0 | BF180: 0 | BG180: 0 | BH180: 0 | BI180: 0 | BJ180: 0 | BK180: 0 | BL180: 0 | BM180: 0 | BN180: 0 | BO180: 0 | BP180: 0 | BQ180: 0 | BR180: 0 | BS180: 0 | BT180: 0 | BU180: 0 | BV180: =BV175+BV176+BV177 -> 700 | BW180: 0 | BX180: 0 | BY180: 0 | BZ180: 0 | CA180: 0 | CB180: 0 | CC180: 0 | CD180: 0 | CE180: 0 | CF180: 0 | CG180: 0 | CH180: 0 | CI180: 0 | CJ180: 700 | CK180: 0 | CL180: 0 | CM180: 0 | CN180: 0 | CO180: 0 | CP180: 0 | CQ180: 0 | CR180: 0 | CS180: 0 | CT180: 0 | CU180: 0 | CV180: 0 | CW180: 0 | CX180: 700 | CY180: 0 | CZ180: 0 | DA180: 0 | DB180: =DB175+DB176+DB177 -> 0 | DC180: 0 | DD180: 0 | DE180: 0 | DF180: 0 | DG180: 0 | DH180: 0 | DI180: 0 | DJ180: 0 | DK180: 0 | DL180: 0 | DM180: 0 | DN180: 0 | DO180: 0 | DP180: 0 | DQ180: 0 | DR180: 0 | DS180: 0 | DT180: 0 | DU180: 0 | DV180: 0 | DW180: 0 | DX180: 0 | DY180: 0 | DZ180: 0 | EA180: 0 | EB180: 0 | EC180: 0 | ED180: 0 | EE180: 0 | EF180: 0 | EG180: 0 | EH180: =EH175+EH176+EH177 -> 0 | EI180: 0 | EJ180: 0 | EK180: 0 | EL180: 0 | EM180: 0 | EN180: 0 | EO180: 0 | EP180: 0 | EQ180: 0 | ER180: 0 | ES180: 0 | ET180: 0 | EU180: 0 | EV180: 0 | EW180: 0 | EX180: 0 | EY180: 0 | EZ180: 0 | FA180: 0 | FB180: 0 | FC180: 0
D181: Maintenance Pushed to Subsequent Period | E181: Hours | J181: =IF(J180<>0,J171-J180)*1 -> 0 | K181: =IF(K180<>0,K171-K180)*1 -> 0 | L181: 0 | M181: 0 | N181: 0 | O181: 0 | P181: 0 | Q181: 0 | R181: 0 | S181: 0 | T181: 0 | U181: 0 | V181: 0 | W181: 0 | X181: 0 | Y181: 0 | Z181: 0 | AA181: 0 | AB181: 0 | AC181: 0 | AD181: 0 | AE181: 0 | AF181: 0 | AG181: 0 | AH181: 0 | AI181: 0 | AJ181: 0 | AK181: 0 | AL181: 0 | AM181: 0 | AN181: 0 | AO181: 0 | AP181: 0 | AQ181: 0 | AR181: 0 | AS181: 0 | AT181: 0 | AU181: 0 | AV181: 0 | AW181: 0 | AX181: 0 | AY181: 0 | AZ181: 0 | BA181: 0 | BB181: 0 | BC181: 0 | BD181: 0 | BE181: 0 | BF181: 0 | BG181: 0 | BH181: 0 | BI181: 0 | BJ181: 0 | BK181: 0 | BL181: 0 | BM181: 0 | BN181: 0 | BO181: 0 | BP181: 0 | BQ181: 0 | BR181: 0 | BS181: 0 | BT181: 0 | BU181: 0 | BV181: 0 | BW181: =IF(BW180<>0,BW171-BW180)*1 -> 0 | BX181: 0 | BY181: 0 | BZ181: 0 | CA181: 0 | CB181: 0 | CC181: 0 | CD181: 0 | CE181: 0 | CF181: 0 | CG181: 0 | CH181: 0 | CI181: 0 | CJ181: 0 | CK181: 0 | CL181: 0 | CM181: 0 | CN181: 0 | CO181: 0 | CP181: 0 | CQ181: 0 | CR181: 0 | CS181: 0 | CT181: 0 | CU181: 0 | CV181: 0 | CW181: 0 | CX181: 0 | CY181: 0 | CZ181: 0 | DA181: 0 | DB181: 0 | DC181: 0 | DD181: 0 | DE181: 0 | DF181: 0 | DG181: 0 | DH181: 0 | DI181: 0 | DJ181: 0 | DK181: 0 | DL181: 0 | DM181: 0 | DN181: 0 | DO181: 0 | DP181: 0 | DQ181: 0 | DR181: 0 | DS181: 0 | DT181: 0 | DU181: 0 | DV181: 0 | DW181: 0 | DX181: 0 | DY181: 0 | DZ181: 0 | EA181: 0 | EB181: 0 | EC181: 0 | ED181: 0 | EE181: 0 | EF181: 0 | EG181: 0 | EH181: 0 | EI181: =IF(EI180<>0,EI171-EI180)*1 -> 0 | EJ181: 0 | EK181: 0 | EL181: 0 | EM181: 0 | EN181: 0 | EO181: 0 | EP181: 0 | EQ181: 0 | ER181: 0 | ES181: 0 | ET181: 0 | EU181: 0 | EV181: 0 | EW181: 0 | EX181: 0 | EY181: 0 | EZ181: 0 | FA181: 0 | FB181: 0 | FC181: 0
J182: =IF(SUM(J175:J177)<>0,J171-J175-J176)*1 -> 0 | K182: 0 | L182: 0 | M182: 0 | N182: 0 | O182: 0 | P182: 0 | Q182: 0 | R182: 0 | S182: 0 | T182: 0 | U182: 0 | V182: 0 | W182: 0 | X182: 0 | Y182: 0 | Z182: 0 | AA182: 0 | AB182: 0 | AC182: 0 | AD182: 0 | AE182: 0 | AF182: 0 | AG182: 0 | AH182: 0 | AI182: 0 | AJ182: 0 | AK182: 0 | AL182: 0 | AM182: 0 | AN182: 0 | AO182: 0 | AP182: =IF(SUM(AP175:AP177)<>0,AP171-AP175-AP176)*1 -> 0 | AQ182: 0 | AR182: 0 | AS182: 0 | AT182: 0 | AU182: 0 | AV182: 0 | AW182: 0 | AX182: 0 | AY182: 0 | AZ182: 0 | BA182: 0 | BB182: 0 | BC182: 0 | BD182: 0 | BE182: 0 | BF182: 0 | BG182: 0 | BH182: 0 | BI182: 0 | BJ182: 0 | BK182: 0 | BL182: 0 | BM182: 0 | BN182: 0 | BO182: 0 | BP182: 0 | BQ182: 0 | BR182: 0 | BS182: 0 | BT182: 0 | BU182: 0 | BV182: =IF(SUM(BV175:BV177)<>0,BV171-BV175-BV176)*1 -> 0 | BW182: 0 | BX182: 0 | BY182: 0 | BZ182: 0 | CA182: 0 | CB182: 0 | CC182: 0 | CD182: 0 | CE182: 0 | CF182: 0 | CG182: 0 | CH182: 0 | CI182: 0 | CJ182: 0 | CK182: 0 | CL182: 0 | CM182: 0 | CN182: 0 | CO182: 0 | CP182: 0 | CQ182: 0 | CR182: 0 | CS182: 0 | CT182: 0 | CU182: 0 | CV182: 0 | CW182: 0 | CX182: 0 | CY182: 0 | CZ182: 0 | DA182: 0 | DB182: =IF(SUM(DB175:DB177)<>0,DB171-DB175-DB176)*1 -> 0 | DC182: 0 | DD182: 0 | DE182: 0 | DF182: 0 | DG182: 0 | DH182: 0 | DI182: 0 | DJ182: 0 | DK182: 0 | DL182: 0 | DM182: 0 | DN182: 0 | DO182: 0 | DP182: 0 | DQ182: 0 | DR182: 0 | DS182: 0 | DT182: 0 | DU182: 0 | DV182: 0 | DW182: 0 | DX182: 0 | DY182: 0 | DZ182: 0 | EA182: 0 | EB182: 0 | EC182: 0 | ED182: 0 | EE182: 0 | EF182: 0 | EG182: 0 | EH182: =IF(SUM(EH175:EH177)<>0,EH171-EH175-EH176)*1 -> 0 | EI182: 0 | EJ182: 0 | EK182: 0 | EL182: 0 | EM182: 0 | EN182: 0 | EO182: 0 | EP182: 0 | EQ182: 0 | ER182: 0 | ES182: 0 | ET182: 0 | EU182: 0 | EV182: 0 | EW182: 0 | EX182: 0 | EY182: 0 | EZ182: 0 | FA182: 0 | FB182: 0 | FC182: 0
C183: Balance of Total Hours including Maintenance
D184: Opening Balance | E184: Hours | J184: =I186 -> 0 | K184: =J186 -> 0 | L184: 0 | M184: 0 | N184: 0 | O184: 0 | P184: 0 | Q184: 0 | R184: 0 | S184: 0 | T184: 0 | U184: 0 | V184: 0 | W184: 0 | X184: 0 | Y184: 0 | Z184: 0 | AA184: 0 | AB184: 0 | AC184: 0 | AD184: 0 | AE184: 0 | AF184: 0 | AG184: 0 | AH184: 0 | AI184: 0 | AJ184: 0 | AK184: 0 | AL184: 0 | AM184: 0 | AN184: 0 | AO184: 0 | AP184: 0 | AQ184: 0 | AR184: 0 | AS184: 0 | AT184: 0 | AU184: 0 | AV184: 0 | AW184: 0 | AX184: 0 | AY184: 0 | AZ184: 0 | BA184: 0 | BB184: 0 | BC184: 0 | BD184: 0 | BE184: 0 | BF184: 0 | BG184: 0 | BH184: 0 | BI184: 0 | BJ184: 0 | BK184: 3201.768 | BL184: 6386.04 | BM184: 9587.808 | BN184: 12772.08 | BO184: 15973.848 | BP184: 19175.616 | BQ184: 22377.384 | BR184: 25561.656 | BS184: 28526.256 | BT184: 31474.656 | BU184: 34439.256 | BV184: 37387.656 | BW184: =BV186 -> 0 | BX184: 2964.6 | BY184: 5929.2 | BZ184: 8877.6 | CA184: 11842.2 | CB184: 14790.6 | CC184: 17755.2 | CD184: 20703.6 | CE184: 23668.2 | CF184: 26632.8 | CG184: 29597.4 | CH184: 32545.8 | CI184: 35510.4 | CJ184: 38458.8 | CK184: 0 | CL184: 2948.4 | CM184: 5913 | CN184: 8877.6 | CO184: 11842.2 | CP184: 14790.6 | CQ184: 17755.2 | CR184: 20703.6 | CS184: 23668.2 | CT184: 26616.6 | CU184: 29581.2 | CV184: 32545.8 | CW184: 35510.4 | CX184: 38458.8 | CY184: 0 | CZ184: 2948.4 | DA184: 5913 | DB184: 8861.4 | DC184: 11826 | DD184: 14790.6 | DE184: 17755.2 | DF184: 20703.6 | DG184: 23668.2 | DH184: 26616.6 | DI184: 26616.6 | DJ184: 26616.6 | DK184: 26616.6 | DL184: 26616.6 | DM184: 26616.6 | DN184: 26616.6 | DO184: 26616.6 | DP184: 26616.6 | DQ184: 26616.6 | DR184: 26616.6 | DS184: 26616.6 | DT184: 26616.6 | DU184: 26616.6 | DV184: 26616.6 | DW184: 26616.6 | DX184: 26616.6 | DY184: 26616.6 | DZ184: 26616.6 | EA184: 26616.6 | EB184: 26616.6 | EC184: 26616.6 | ED184: 26616.6 | EE184: 26616.6 | EF184: 26616.6 | EG184: 26616.6 | EH184: 26616.6 | EI184: =EH186 -> 26616.6 | EJ184: 26616.6 | EK184: 26616.6 | EL184: 26616.6 | EM184: 26616.6 | EN184: 26616.6 | EO184: 26616.6 | EP184: 26616.6 | EQ184: 26616.6 | ER184: 26616.6 | ES184: 26616.6 | ET184: 26616.6 | EU184: 26616.6 | EV184: 26616.6 | EW184: 26616.6 | EX184: 26616.6 | EY184: 26616.6 | EZ184: 26616.6 | FA184: 26616.6 | FB184: 26616.6 | FC184: 26616.6
D185: Add: Hours of Run Time Adjusted for Maintenance | E185: Hours | J185: =J176+J167 -> 0 | K185: 0 | L185: 0 | M185: 0 | N185: 0 | O185: 0 | P185: 0 | Q185: 0 | R185: 0 | S185: 0 | T185: 0 | U185: 0 | V185: 0 | W185: 0 | X185: 0 | Y185: 0 | Z185: 0 | AA185: 0 | AB185: 0 | AC185: 0 | AD185: 0 | AE185: 0 | AF185: 0 | AG185: 0 | AH185: 0 | AI185: 0 | AJ185: 0 | AK185: 0 | AL185: 0 | AM185: 0 | AN185: 0 | AO185: 0 | AP185: =AP176+AP167 -> 0 | AQ185: 0 | AR185: 0 | AS185: 0 | AT185: 0 | AU185: 0 | AV185: 0 | AW185: 0 | AX185: 0 | AY185: 0 | AZ185: 0 | BA185: 0 | BB185: 0 | BC185: 0 | BD185: 0 | BE185: 0 | BF185: 0 | BG185: 0 | BH185: 0 | BI185: 0 | BJ185: 3201.768 | BK185: 3184.272 | BL185: 3201.768 | BM185: 3184.272 | BN185: 3201.768 | BO185: 3201.768 | BP185: 3201.768 | BQ185: 3184.272 | BR185: 2964.6 | BS185: 2948.4 | BT185: 2964.6 | BU185: 2948.4 | BV185: =BV176+BV167 -> 3312.344 | BW185: 2964.6 | BX185: 2964.6 | BY185: 2948.4 | BZ185: 2964.6 | CA185: 2948.4 | CB185: 2964.6 | CC185: 2948.4 | CD185: 2964.6 | CE185: 2964.6 | CF185: 2964.6 | CG185: 2948.4 | CH185: 2964.6 | CI185: 2948.4 | CJ185: 2241.2 | CK185: 2948.4 | CL185: 2964.6 | CM185: 2964.6 | CN185: 2964.6 | CO185: 2948.4 | CP185: 2964.6 | CQ185: 2948.4 | CR185: 2964.6 | CS185: 2948.4 | CT185: 2964.6 | CU185: 2964.6 | CV185: 2964.6 | CW185: 2948.4 | CX185: 2241.2 | CY185: 2948.4 | CZ185: 2964.6 | DA185: 2948.4 | DB185: =DB176+DB167 -> 2964.6 | DC185: 2964.6 | DD185: 2964.6 | DE185: 2948.4 | DF185: 2964.6 | DG185: 2948.4 | DH185: 0 | DI185: 0 | DJ185: 0 | DK185: 0 | DL185: 0 | DM185: 0 | DN185: 0 | DO185: 0 | DP185: 0 | DQ185: 0 | DR185: 0 | DS185: 0 | DT185: 0 | DU185: 0 | DV185: 0 | DW185: 0 | DX185: 0 | DY185: 0 | DZ185: 0 | EA185: 0 | EB185: 0 | EC185: 0 | ED185: 0 | EE185: 0 | EF185: 0 | EG185: 0 | EH185: =EH176+EH167 -> 0 | EI185: 0 | EJ185: 0 | EK185: 0 | EL185: 0 | EM185: 0 | EN185: 0 | EO185: 0 | EP185: 0 | EQ185: 0 | ER185: 0 | ES185: 0 | ET185: 0 | EU185: 0 | EV185: 0 | EW185: 0 | EX185: 0 | EY185: 0 | EZ185: 0 | FA185: 0 | FB185: 0 | FC185: 0
D186: Closing Balance of Accumulated Hours | E186: Hours | J186: =IF(J169,0,J184+J185) -> 0 | K186: 0 | L186: 0 | M186: 0 | N186: 0 | O186: 0 | P186: 0 | Q186: 0 | R186: 0 | S186: 0 | T186: 0 | U186: 0 | V186: 0 | W186: 0 | X186: 0 | Y186: 0 | Z186: 0 | AA186: 0 | AB186: 0 | AC186: 0 | AD186: 0 | AE186: 0 | AF186: 0 | AG186: 0 | AH186: 0 | AI186: 0 | AJ186: 0 | AK186: 0 | AL186: 0 | AM186: 0 | AN186: 0 | AO186: 0 | AP186: =IF(AP169,0,AP184+AP185) -> 0 | AQ186: 0 | AR186: 0 | AS186: 0 | AT186: 0 | AU186: 0 | AV186: 0 | AW186: 0 | AX186: 0 | AY186: 0 | AZ186: 0 | BA186: 0 | BB186: 0 | BC186: 0 | BD186: 0 | BE186: 0 | BF186: 0 | BG186: 0 | BH186: 0 | BI186: 0 | BJ186: 3201.768 | BK186: 6386.04 | BL186: 9587.808 | BM186: 12772.08 | BN186: 15973.848 | BO186: 19175.616 | BP186: 22377.384 | BQ186: 25561.656 | BR186: 28526.256 | BS186: 31474.656 | BT186: 34439.256 | BU186: 37387.656 | BV186: =IF(BV169,0,BV184+BV185) -> 0 | BW186: 2964.6 | BX186: 5929.2 | BY186: 8877.6 | BZ186: 11842.2 | CA186: 14790.6 | CB186: 17755.2 | CC186: 20703.6 | CD186: 23668.2 | CE186: 26632.8 | CF186: 29597.4 | CG186: 32545.8 | CH186: 35510.4 | CI186: 38458.8 | CJ186: 0 | CK186: 2948.4 | CL186: 5913 | CM186: 8877.6 | CN186: 11842.2 | CO186: 14790.6 | CP186: 17755.2 | CQ186: 20703.6 | CR186: 23668.2 | CS186: 26616.6 | CT186: 29581.2 | CU186: 32545.8 | CV186: 35510.4 | CW186: 38458.8 | CX186: 0 | CY186: 2948.4 | CZ186: 5913 | DA186: 8861.4 | DB186: =IF(DB169,0,DB184+DB185) -> 11826 | DC186: 14790.6 | DD186: 17755.2 | DE186: 20703.6 | DF186: 23668.2 | DG186: 26616.6 | DH186: 26616.6 | DI186: 26616.6 | DJ186: 26616.6 | DK186: 26616.6 | DL186: 26616.6 | DM186: 26616.6 | DN186: 26616.6 | DO186: 26616.6 | DP186: 26616.6 | DQ186: 26616.6 | DR186: 26616.6 | DS186: 26616.6 | DT186: 26616.6 | DU186: 26616.6 | DV186: 26616.6 | DW186: 26616.6 | DX186: 26616.6 | DY186: 26616.6 | DZ186: 26616.6 | EA186: 26616.6 | EB186: 26616.6 | EC186: 26616.6 | ED186: 26616.6 | EE186: 26616.6 | EF186: 26616.6 | EG186: 26616.6 | EH186: =IF(EH169,0,EH184+EH185) -> 26616.6 | EI186: 26616.6 | EJ186: 26616.6 | EK186: 26616.6 | EL186: 26616.6 | EM186: 26616.6 | EN186: 26616.6 | EO186: 26616.6 | EP186: 26616.6 | EQ186: 26616.6 | ER186: 26616.6 | ES186: 26616.6 | ET186: 26616.6 | EU186: 26616.6 | EV186: 26616.6 | EW186: 26616.6 | EX186: 26616.6 | EY186: 26616.6 | EZ186: 26616.6 | FA186: 26616.6 | FB186: 26616.6 | FC186: 26616.6
C188: Adjusted run hours | E188: Hours | J188: =J161-J176 -> 0 | K188: =K161-K176 -> 0 | L188: 0 | M188: 0 | N188: 0 | O188: 0 | P188: 0 | Q188: 0 | R188: 0 | S188: 0 | T188: 0 | U188: 0 | V188: 0 | W188: 0 | X188: 0 | Y188: 0 | Z188: 0 | AA188: 0 | AB188: 0 | AC188: 0 | AD188: 0 | AE188: 0 | AF188: 0 | AG188: 0 | AH188: 0 | AI188: 0 | AJ188: 0 | AK188: 0 | AL188: 0 | AM188: 0 | AN188: 0 | AO188: 0 | AP188: 0 | AQ188: 0 | AR188: 0 | AS188: 0 | AT188: 0 | AU188: 0 | AV188: 0 | AW188: 0 | AX188: 0 | AY188: 0 | AZ188: 0 | BA188: 0 | BB188: 0 | BC188: 0 | BD188: 0 | BE188: 0 | BF188: 0 | BG188: 0 | BH188: 0 | BI188: 0 | BJ188: 3201.768 | BK188: 3184.272 | BL188: 3201.768 | BM188: 3184.272 | BN188: 3201.768 | BO188: 3201.768 | BP188: 3201.768 | BQ188: 3184.272 | BR188: 2964.6 | BS188: 2948.4 | BT188: 2964.6 | BU188: 2948.4 | BV188: 2264.6 | BW188: =BW161-BW176 -> 2964.6 | BX188: 2964.6 | BY188: 2948.4 | BZ188: 2964.6 | CA188: 2948.4 | CB188: 2964.6 | CC188: 2948.4 | CD188: 2964.6 | CE188: 2964.6 | CF188: 2964.6 | CG188: 2948.4 | CH188: 2964.6 | CI188: 2948.4 | CJ188: 2264.6 | CK188: 2948.4 | CL188: 2964.6 | CM188: 2964.6 | CN188: 2964.6 | CO188: 2948.4 | CP188: 2964.6 | CQ188: 2948.4 | CR188: 2964.6 | CS188: 2948.4 | CT188: 2964.6 | CU188: 2964.6 | CV188: 2964.6 | CW188: 2948.4 | CX188: 2264.6 | CY188: 2948.4 | CZ188: 2964.6 | DA188: 2948.4 | DB188: 2964.6 | DC188: 2964.6 | DD188: 2964.6 | DE188: 2948.4 | DF188: 2964.6 | DG188: 2948.4 | DH188: 0 | DI188: 0 | DJ188: 0 | DK188: 0 | DL188: 0 | DM188: 0 | DN188: 0 | DO188: 0 | DP188: 0 | DQ188: 0 | DR188: 0 | DS188: 0 | DT188: 0 | DU188: 0 | DV188: 0 | DW188: 0 | DX188: 0 | DY188: 0 | DZ188: 0 | EA188: 0 | EB188: 0 | EC188: 0 | ED188: 0 | EE188: 0 | EF188: 0 | EG188: 0 | EH188: 0 | EI188: =EI161-EI176 -> 0 | EJ188: 0 | EK188: 0 | EL188: 0 | EM188: 0 | EN188: 0 | EO188: 0 | EP188: 0 | EQ188: 0 | ER188: 0 | ES188: 0 | ET188: 0 | EU188: 0 | EV188: 0 | EW188: 0 | EX188: 0 | EY188: 0 | EZ188: 0 | FA188: 0 | FB188: 0 | FC188: 0
C189: Generation adjusted for maintenance | E189: MWh | J189: =J188*J149 -> 0 | K189: 0 | L189: 0 | M189: 0 | N189: 0 | O189: 0 | P189: 0 | Q189: 0 | R189: 0 | S189: 0 | T189: 0 | U189: 0 | V189: 0 | W189: 0 | X189: 0 | Y189: 0 | Z189: 0 | AA189: 0 | AB189: 0 | AC189: 0 | AD189: 0 | AE189: 0 | AF189: 0 | AG189: 0 | AH189: 0 | AI189: 0 | AJ189: 0 | AK189: 0 | AL189: 0 | AM189: 0 | AN189: 0 | AO189: 0 | AP189: =AP188*AP149 -> 0 | AQ189: 0 | AR189: 0 | AS189: 0 | AT189: 0 | AU189: 0 | AV189: 0 | AW189: 0 | AX189: 0 | AY189: 0 | AZ189: 0 | BA189: 0 | BB189: 0 | BC189: 0 | BD189: 0 | BE189: 0 | BF189: 0 | BG189: 0 | BH189: 0 | BI189: 0 | BJ189: 960530.4 | BK189: 955281.6 | BL189: 960530.4 | BM189: 955281.6 | BN189: 960530.4 | BO189: 960530.4 | BP189: 960530.4 | BQ189: 955281.6 | BR189: 889380 | BS189: 884520 | BT189: 889380 | BU189: 884520 | BV189: =BV188*BV149 -> 679380 | BW189: 889380 | BX189: 889380 | BY189: 884520 | BZ189: 889380 | CA189: 884520 | CB189: 889380 | CC189: 884520 | CD189: 889380 | CE189: 889380 | CF189: 889380 | CG189: 884520 | CH189: 889380 | CI189: 884520 | CJ189: 679380 | CK189: 884520 | CL189: 889380 | CM189: 889380 | CN189: 889380 | CO189: 884520 | CP189: 889380 | CQ189: 884520 | CR189: 889380 | CS189: 884520 | CT189: 889380 | CU189: 889380 | CV189: 889380 | CW189: 884520 | CX189: 679380 | CY189: 884520 | CZ189: 889380 | DA189: 884520 | DB189: =DB188*DB149 -> 889380 | DC189: 889380 | DD189: 889380 | DE189: 884520 | DF189: 889380 | DG189: 884520 | DH189: 0 | DI189: 0 | DJ189: 0 | DK189: 0 | DL189: 0 | DM189: 0 | DN189: 0 | DO189: 0 | DP189: 0 | DQ189: 0 | DR189: 0 | DS189: 0 | DT189: 0 | DU189: 0 | DV189: 0 | DW189: 0 | DX189: 0 | DY189: 0 | DZ189: 0 | EA189: 0 | EB189: 0 | EC189: 0 | ED189: 0 | EE189: 0 | EF189: 0 | EG189: 0 | EH189: =EH188*EH149 -> 0 | EI189: 0 | EJ189: 0 | EK189: 0 | EL189: 0 | EM189: 0 | EN189: 0 | EO189: 0 | EP189: 0 | EQ189: 0 | ER189: 0 | ES189: 0 | ET189: 0 | EU189: 0 | EV189: 0 | EW189: 0 | EX189: 0 | EY189: 0 | EZ189: 0 | FA189: 0 | FB189: 0 | FC189: 0
B191: Base Heat Rate | E191: MMBtu/MWh | F191: =F38 -> 6.45 | J191: =F191 -> 6.45 | K191: =IF(J169,J193+J194,J191) -> 6.45 | L191: 6.45 | M191: 6.45 | N191: 6.45 | O191: 6.45 | P191: 6.45 | Q191: 6.45 | R191: 6.45 | S191: 6.45 | T191: 6.45 | U191: 6.45 | V191: 6.45 | W191: 6.45 | X191: 6.45 | Y191: 6.45 | Z191: 6.45 | AA191: 6.45 | AB191: 6.45 | AC191: 6.45 | AD191: 6.45 | AE191: 6.45 | AF191: 6.45 | AG191: 6.45 | AH191: 6.45 | AI191: 6.45 | AJ191: 6.45 | AK191: 6.45 | AL191: 6.45 | AM191: 6.45 | AN191: 6.45 | AO191: 6.45 | AP191: 6.45 | AQ191: =IF(AP169,AP193+AP194,AP191) -> 6.45 | AR191: 6.45 | AS191: 6.45 | AT191: 6.45 | AU191: 6.45 | AV191: 6.45 | AW191: 6.45 | AX191: 6.45 | AY191: 6.45 | AZ191: 6.45 | BA191: 6.45 | BB191: 6.45 | BC191: 6.45 | BD191: 6.45 | BE191: 6.45 | BF191: 6.45 | BG191: 6.45 | BH191: 6.45 | BI191: 6.45 | BJ191: 6.45 | BK191: 6.45 | BL191: 6.45 | BM191: 6.45 | BN191: 6.45 | BO191: 6.45 | BP191: 6.45 | BQ191: 6.45 | BR191: 6.45 | BS191: 6.45 | BT191: 6.45 | BU191: 6.45 | BV191: 6.45 | BW191: =IF(BV169,BV193+BV194,BV191) -> 6.456375872 | BX191: 6.456375872 | BY191: 6.456375872 | BZ191: 6.456375872 | CA191: 6.456375872 | CB191: 6.456375872 | CC191: 6.456375872 | CD191: 6.456375872 | CE191: 6.456375872 | CF191: 6.456375872 | CG191: 6.456375872 | CH191: 6.456375872 | CI191: 6.456375872 | CJ191: 6.456375872 | CK191: 6.462758046 | CL191: 6.462758046 | CM191: 6.462758046 | CN191: 6.462758046 | CO191: 6.462758046 | CP191: 6.462758046 | CQ191: 6.462758046 | CR191: 6.462758046 | CS191: 6.462758046 | CT191: 6.462758046 | CU191: 6.462758046 | CV191: 6.462758046 | CW191: 6.462758046 | CX191: 6.462758046 | CY191: 6.469146529 | CZ191: 6.469146529 | DA191: 6.469146529 | DB191: 6.469146529 | DC191: =IF(DB169,DB193+DB194,DB191) -> 6.469146529 | DD191: 6.469146529 | DE191: 6.469146529 | DF191: 6.469146529 | DG191: 6.469146529 | DH191: 6.469146529 | DI191: 6.469146529 | DJ191: 6.469146529 | DK191: 6.469146529 | DL191: 6.469146529 | DM191: 6.469146529 | DN191: 6.469146529 | DO191: 6.469146529 | DP191: 6.469146529 | DQ191: 6.469146529 | DR191: 6.469146529 | DS191: 6.469146529 | DT191: 6.469146529 | DU191: 6.469146529 | DV191: 6.469146529 | DW191: 6.469146529 | DX191: 6.469146529 | DY191: 6.469146529 | DZ191: 6.469146529 | EA191: 6.469146529 | EB191: 6.469146529 | EC191: 6.469146529 | ED191: 6.469146529 | EE191: 6.469146529 | EF191: 6.469146529 | EG191: 6.469146529 | EH191: 6.469146529 | EI191: =IF(EH169,EH193+EH194,EH191) -> 6.469146529 | EJ191: 6.469146529 | EK191: 6.469146529 | EL191: 6.469146529 | EM191: 6.469146529 | EN191: 6.469146529 | EO191: 6.469146529 | EP191: 6.469146529 | EQ191: 6.469146529 | ER191: 6.469146529 | ES191: 6.469146529 | ET191: 6.469146529 | EU191: 6.469146529 | EV191: 6.469146529 | EW191: 6.469146529 | EX191: 6.469146529 | EY191: 6.469146529 | EZ191: 6.469146529 | FA191: 6.469146529 | FB191: 6.469146529 | FC191: 6.469146529
B192: Periodic Degradation | E192: % | F192: =(1+F41)^(1/2)-1 -> 0.002496882788 | I192: 1 | J192: =IF(I169,1,I192*(1+$F$192*J8)) -> 1 | K192: 1 | L192: 1 | M192: 1 | N192: 1 | O192: 1 | P192: 1 | Q192: 1 | R192: 1 | S192: 1 | T192: 1 | U192: 1 | V192: 1 | W192: 1 | X192: 1 | Y192: 1 | Z192: 1 | AA192: 1 | AB192: 1 | AC192: 1 | AD192: 1 | AE192: 1 | AF192: 1 | AG192: 1 | AH192: 1 | AI192: 1 | AJ192: 1 | AK192: 1 | AL192: 1 | AM192: 1 | AN192: 1 | AO192: 1 | AP192: =IF(AO169,1,AO192*(1+$F$192*AP8)) -> 1 | AQ192: 1 | AR192: 1 | AS192: 1 | AT192: 1 | AU192: 1 | AV192: 1 | AW192: 1 | AX192: 1 | AY192: 1 | AZ192: 1 | BA192: 1 | BB192: 1 | BC192: 1 | BD192: 1 | BE192: 1 | BF192: 1 | BG192: 1 | BH192: 1 | BI192: 1 | BJ192: 1.002496883 | BK192: 1.005 | BL192: 1.007509367 | BM192: 1.010025 | BN192: 1.012546914 | BO192: 1.015075125 | BP192: 1.017609649 | BQ192: 1.020150501 | BR192: 1.022697697 | BS192: 1.025251253 | BT192: 1.027811185 | BU192: 1.030377509 | BV192: =IF(BU169,1,BU192*(1+$F$192*BV8)) -> 1.032950241 | BW192: 1 | BX192: 1.002496883 | BY192: 1.005 | BZ192: 1.007509367 | CA192: 1.010025 | CB192: 1.012546914 | CC192: 1.015075125 | CD192: 1.017609649 | CE192: 1.020150501 | CF192: 1.022697697 | CG192: 1.025251253 | CH192: 1.027811185 | CI192: 1.030377509 | CJ192: 1.032950241 | CK192: 1 | CL192: 1.002496883 | CM192: 1.005 | CN192: 1.007509367 | CO192: 1.010025 | CP192: 1.012546914 | CQ192: 1.015075125 | CR192: 1.017609649 | CS192: 1.020150501 | CT192: 1.022697697 | CU192: 1.025251253 | CV192: 1.027811185 | CW192: 1.030377509 | CX192: 1.032950241 | CY192: 1 | CZ192: 1.002496883 | DA192: 1.005 | DB192: =IF(DA169,1,DA192*(1+$F$192*DB8)) -> 1.007509367 | DC192: 1.010025 | DD192: 1.012546914 | DE192: 1.015075125 | DF192: 1.017609649 | DG192: 1.020150501 | DH192: 1.020150501 | DI192: 1.020150501 | DJ192: 1.020150501 | DK192: 1.020150501 | DL192: 1.020150501 | DM192: 1.020150501 | DN192: 1.020150501 | DO192: 1.020150501 | DP192: 1.020150501 | DQ192: 1.020150501 | DR192: 1.020150501 | DS192: 1.020150501 | DT192: 1.020150501 | DU192: 1.020150501 | DV192: 1.020150501 | DW192: 1.020150501 | DX192: 1.020150501 | DY192: 1.020150501 | DZ192: 1.020150501 | EA192: 1.020150501 | EB192: 1.020150501 | EC192: 1.020150501 | ED192: 1.020150501 | EE192: 1.020150501 | EF192: 1.020150501 | EG192: 1.020150501 | EH192: =IF(EG169,1,EG192*(1+$F$192*EH8)) -> 1.020150501 | EI192: 1.020150501 | EJ192: 1.020150501 | EK192: 1.020150501 | EL192: 1.020150501 | EM192: 1.020150501 | EN192: 1.020150501 | EO192: 1.020150501 | EP192: 1.020150501 | EQ192: 1.020150501 | ER192: 1.020150501 | ES192: 1.020150501 | ET192: 1.020150501 | EU192: 1.020150501 | EV192: 1.020150501 | EW192: 1.020150501 | EX192: 1.020150501 | EY192: 1.020150501 | EZ192: 1.020150501 | FA192: 1.020150501 | FB192: 1.020150501 | FC192: 1.020150501
B193: Heat Rate after degradation | E193: MMBtu/MWh | J193: =J191*J192 -> 6.45 | K193: =K191*K192 -> 6.45 | L193: 6.45 | M193: 6.45 | N193: 6.45 | O193: 6.45 | P193: 6.45 | Q193: 6.45 | R193: 6.45 | S193: 6.45 | T193: 6.45 | U193: 6.45 | V193: 6.45 | W193: 6.45 | X193: 6.45 | Y193: 6.45 | Z193: 6.45 | AA193: 6.45 | AB193: 6.45 | AC193: 6.45 | AD193: 6.45 | AE193: 6.45 | AF193: 6.45 | AG193: 6.45 | AH193: 6.45 | AI193: 6.45 | AJ193: 6.45 | AK193: 6.45 | AL193: 6.45 | AM193: 6.45 | AN193: 6.45 | AO193: 6.45 | AP193: 6.45 | AQ193: 6.45 | AR193: 6.45 | AS193: 6.45 | AT193: 6.45 | AU193: 6.45 | AV193: 6.45 | AW193: 6.45 | AX193: 6.45 | AY193: 6.45 | AZ193: 6.45 | BA193: 6.45 | BB193: 6.45 | BC193: 6.45 | BD193: 6.45 | BE193: 6.45 | BF193: 6.45 | BG193: 6.45 | BH193: 6.45 | BI193: 6.45 | BJ193: 6.466104894 | BK193: 6.48225 | BL193: 6.498435418 | BM193: 6.51466125 | BN193: 6.530927596 | BO193: 6.547234556 | BP193: 6.563582234 | BQ193: 6.579970729 | BR193: 6.596400145 | BS193: 6.612870583 | BT193: 6.629382145 | BU193: 6.645934936 | BV193: 6.662529056 | BW193: =BW191*BW192 -> 6.456375872 | BX193: 6.472496685 | BY193: 6.488657751 | BZ193: 6.504859169 | CA193: 6.52110104 | CB193: 6.537383465 | CC193: 6.553706545 | CD193: 6.570070382 | CE193: 6.586475078 | CF193: 6.602920734 | CG193: 6.619407453 | CH193: 6.635935338 | CI193: 6.65250449 | CJ193: 6.669115014 | CK193: 6.462758046 | CL193: 6.478894795 | CM193: 6.495071836 | CN193: 6.511289269 | CO193: 6.527547195 | CP193: 6.543845716 | CQ193: 6.560184931 | CR193: 6.576564944 | CS193: 6.592985856 | CT193: 6.609447769 | CU193: 6.625950785 | CV193: 6.642495008 | CW193: 6.659080539 | CX193: 6.675707483 | CY193: 6.469146529 | CZ193: 6.48529923 | DA193: 6.501492262 | DB193: 6.517725726 | DC193: 6.533999723 | DD193: 6.550314354 | DE193: 6.566669722 | DF193: 6.583065926 | DG193: 6.59950307 | DH193: 6.59950307 | DI193: 6.59950307 | DJ193: 6.59950307 | DK193: 6.59950307 | DL193: 6.59950307 | DM193: 6.59950307 | DN193: 6.59950307 | DO193: 6.59950307 | DP193: 6.59950307 | DQ193: 6.59950307 | DR193: 6.59950307 | DS193: 6.59950307 | DT193: 6.59950307 | DU193: 6.59950307 | DV193: 6.59950307 | DW193: 6.59950307 | DX193: 6.59950307 | DY193: 6.59950307 | DZ193: 6.59950307 | EA193: 6.59950307 | EB193: 6.59950307 | EC193: 6.59950307 | ED193: 6.59950307 | EE193: 6.59950307 | EF193: 6.59950307 | EG193: 6.59950307 | EH193: 6.59950307 | EI193: =EI191*EI192 -> 6.59950307 | EJ193: 6.59950307 | EK193: 6.59950307 | EL193: 6.59950307 | EM193: 6.59950307 | EN193: 6.59950307 | EO193: 6.59950307 | EP193: 6.59950307 | EQ193: 6.59950307 | ER193: 6.59950307 | ES193: 6.59950307 | ET193: 6.59950307 | EU193: 6.59950307 | EV193: 6.59950307 | EW193: 6.59950307 | EX193: 6.59950307 | EY193: 6.59950307 | EZ193: 6.59950307 | FA193: 6.59950307 | FB193: 6.59950307 | FC193: 6.59950307
B194: Heat Rate Recovery | E194: % | F194: =F42 -> 0.97 | J194: =$F$194*(J191-J193)*J169 -> 0 | K194: 0 | L194: 0 | M194: 0 | N194: 0 | O194: 0 | P194: 0 | Q194: 0 | R194: 0 | S194: 0 | T194: 0 | U194: 0 | V194: 0 | W194: 0 | X194: 0 | Y194: 0 | Z194: 0 | AA194: 0 | AB194: 0 | AC194: 0 | AD194: 0 | AE194: 0 | AF194: 0 | AG194: 0 | AH194: 0 | AI194: 0 | AJ194: 0 | AK194: 0 | AL194: 0 | AM194: 0 | AN194: 0 | AO194: 0 | AP194: =$F$194*(AP191-AP193)*AP169 -> 0 | AQ194: 0 | AR194: 0 | AS194: 0 | AT194: 0 | AU194: 0 | AV194: 0 | AW194: 0 | AX194: 0 | AY194: 0 | AZ194: 0 | BA194: 0 | BB194: 0 | BC194: 0 | BD194: 0 | BE194: 0 | BF194: 0 | BG194: 0 | BH194: 0 | BI194: 0 | BJ194: 0 | BK194: 0 | BL194: 0 | BM194: 0 | BN194: 0 | BO194: 0 | BP194: 0 | BQ194: 0 | BR194: 0 | BS194: 0 | BT194: 0 | BU194: 0 | BV194: =$F$194*(BV191-BV193)*BV169 -> -0.2061531845 | BW194: 0 | BX194: 0 | BY194: 0 | BZ194: 0 | CA194: 0 | CB194: 0 | CC194: 0 | CD194: 0 | CE194: 0 | CF194: 0 | CG194: 0 | CH194: 0 | CI194: 0 | CJ194: -0.2063569684 | CK194: 0 | CL194: 0 | CM194: 0 | CN194: 0 | CO194: 0 | CP194: 0 | CQ194: 0 | CR194: 0 | CS194: 0 | CT194: 0 | CU194: 0 | CV194: 0 | CW194: 0 | CX194: -0.2065609537 | CY194: 0 | CZ194: 0 | DA194: 0 | DB194: =$F$194*(DB191-DB193)*DB169 -> 0 | DC194: 0 | DD194: 0 | DE194: 0 | DF194: 0 | DG194: 0 | DH194: 0 | DI194: 0 | DJ194: 0 | DK194: 0 | DL194: 0 | DM194: 0 | DN194: 0 | DO194: 0 | DP194: 0 | DQ194: 0 | DR194: 0 | DS194: 0 | DT194: 0 | DU194: 0 | DV194: 0 | DW194: 0 | DX194: 0 | DY194: 0 | DZ194: 0 | EA194: 0 | EB194: 0 | EC194: 0 | ED194: 0 | EE194: 0 | EF194: 0 | EG194: 0 | EH194: =$F$194*(EH191-EH193)*EH169 -> 0 | EI194: 0 | EJ194: 0 | EK194: 0 | EL194: 0 | EM194: 0 | EN194: 0 | EO194: 0 | EP194: 0 | EQ194: 0 | ER194: 0 | ES194: 0 | ET194: 0 | EU194: 0 | EV194: 0 | EW194: 0 | EX194: 0 | EY194: 0 | EZ194: 0 | FA194: 0 | FB194: 0 | FC194: 0
B196: Fuel Use | E196: MMBtu | J196: =J189*J193 -> 0 | K196: 0 | L196: 0 | M196: 0 | N196: 0 | O196: 0 | P196: 0 | Q196: 0 | R196: 0 | S196: 0 | T196: 0 | U196: 0 | V196: 0 | W196: 0 | X196: 0 | Y196: 0 | Z196: 0 | AA196: 0 | AB196: 0 | AC196: 0 | AD196: 0 | AE196: 0 | AF196: 0 | AG196: 0 | AH196: 0 | AI196: 0 | AJ196: 0 | AK196: 0 | AL196: 0 | AM196: 0 | AN196: 0 | AO196: 0 | AP196: =AP189*AP193 -> 0 | AQ196: 0 | AR196: 0 | AS196: 0 | AT196: 0 | AU196: 0 | AV196: 0 | AW196: 0 | AX196: 0 | AY196: 0 | AZ196: 0 | BA196: 0 | BB196: 0 | BC196: 0 | BD196: 0 | BE196: 0 | BF196: 0 | BG196: 0 | BH196: 0 | BI196: 0 | BJ196: 6210890.32 | BK196: 6192374.152 | BL196: 6241944.772 | BM196: 6223336.022 | BN196: 6273154.496 | BO196: 6288817.827 | BP196: 6304520.268 | BQ196: 6285724.966 | BR196: 5866706.361 | BS196: 5849216.288 | BT196: 5896039.892 | BU196: 5878462.369 | BV196: =BV189*BV193 -> 4526388.99 | BW196: 5742171.573 | BX196: 5756509.102 | BY196: 5739347.554 | BZ196: 5785291.648 | CA196: 5768044.292 | CB196: 5814218.106 | CC196: 5796884.513 | CD196: 5843289.196 | CE196: 5857879.205 | CF196: 5872505.642 | CG196: 5854998.28 | CH196: 5901868.171 | CI196: 5884273.272 | CJ196: 4530863.358 | CK196: 5716438.747 | CL196: 5762199.453 | CM196: 5776586.99 | CN196: 5791010.45 | CO196: 5773746.045 | CP196: 5819965.503 | CQ196: 5802614.775 | CR196: 5849065.33 | CS196: 5831627.849 | CT196: 5878310.657 | CU196: 5892988.109 | CV196: 5907702.21 | CW196: 5890089.919 | CX196: 4535342.15 | CY196: 5722089.488 | CZ196: 5767895.429 | DA196: 5750699.935 | DB196: =DB189*DB193 -> 5796734.906 | DC196: 5811208.674 | DD196: 5825718.581 | DE196: 5808350.702 | DF196: 5854847.173 | DG196: 5837392.456 | DH196: 0 | DI196: 0 | DJ196: 0 | DK196: 0 | DL196: 0 | DM196: 0 | DN196: 0 | DO196: 0 | DP196: 0 | DQ196: 0 | DR196: 0 | DS196: 0 | DT196: 0 | DU196: 0 | DV196: 0 | DW196: 0 | DX196: 0 | DY196: 0 | DZ196: 0 | EA196: 0 | EB196: 0 | EC196: 0 | ED196: 0 | EE196: 0 | EF196: 0 | EG196: 0 | EH196: =EH189*EH193 -> 0 | EI196: 0 | EJ196: 0 | EK196: 0 | EL196: 0 | EM196: 0 | EN196: 0 | EO196: 0 | EP196: 0 | EQ196: 0 | ER196: 0 | ES196: 0 | ET196: 0 | EU196: 0 | EV196: 0 | EW196: 0 | EX196: 0 | EY196: 0 | EZ196: 0 | FA196: 0 | FB196: 0 | FC196: 0
A198: Capital Expenditures
B199: Development Expenditure | E199: $'000 | F199: =F48*F30 -> 15000 | G199: =F16 -> 22 | H199: =SUM(J199:FC199)=F199 -> TRUE | J199: =$F$199/$G$199*J6 -> 681.8181818 | K199: 681.8181818 | L199: 681.8181818 | M199: 681.8181818 | N199: 681.8181818 | O199: 681.8181818 | P199: 681.8181818 | Q199: 681.8181818 | R199: 681.8181818 | S199: 681.8181818 | T199: 681.8181818 | U199: 681.8181818 | V199: 681.8181818 | W199: 681.8181818 | X199: 681.8181818 | Y199: 681.8181818 | Z199: 681.8181818 | AA199: 681.8181818 | AB199: 681.8181818 | AC199: 681.8181818 | AD199: 681.8181818 | AE199: 681.8181818 | AF199: 0 | AG199: 0 | AH199: 0 | AI199: 0 | AJ199: 0 | AK199: 0 | AL199: 0 | AM199: 0 | AN199: 0 | AO199: 0 | AP199: =$F$199/$G$199*AP6 -> 0 | AQ199: 0 | AR199: 0 | AS199: 0 | AT199: 0 | AU199: 0 | AV199: 0 | AW199: 0 | AX199: 0 | AY199: 0 | AZ199: 0 | BA199: 0 | BB199: 0 | BC199: 0 | BD199: 0 | BE199: 0 | BF199: 0 | BG199: 0 | BH199: 0 | BI199: 0 | BJ199: 0 | BK199: 0 | BL199: 0 | BM199: 0 | BN199: 0 | BO199: 0 | BP199: 0 | BQ199: 0 | BR199: 0 | BS199: 0 | BT199: 0 | BU199: 0 | BV199: =$F$199/$G$199*BV6 -> 0 | BW199: 0 | BX199: 0 | BY199: 0 | BZ199: 0 | CA199: 0 | CB199: 0 | CC199: 0 | CD199: 0 | CE199: 0 | CF199: 0 | CG199: 0 | CH199: 0 | CI199: 0 | CJ199: 0 | CK199: 0 | CL199: 0 | CM199: 0 | CN199: 0 | CO199: 0 | CP199: 0 | CQ199: 0 | CR199: 0 | CS199: 0 | CT199: 0 | CU199: 0 | CV199: 0 | CW199: 0 | CX199: 0 | CY199: 0 | CZ199: 0 | DA199: 0 | DB199: =$F$199/$G$199*DB6 -> 0 | DC199: 0 | DD199: 0 | DE199: 0 | DF199: 0 | DG199: 0 | DH199: 0 | DI199: 0 | DJ199: 0 | DK199: 0 | DL199: 0 | DM199: 0 | DN199: 0 | DO199: 0 | DP199: 0 | DQ199: 0 | DR199: 0 | DS199: 0 | DT199: 0 | DU199: 0 | DV199: 0 | DW199: 0 | DX199: 0 | DY199: 0 | DZ199: 0 | EA199: 0 | EB199: 0 | EC199: 0 | ED199: 0 | EE199: 0 | EF199: 0 | EG199: 0 | EH199: =$F$199/$G$199*EH6 -> 0 | EI199: 0 | EJ199: 0 | EK199: 0 | EL199: 0 | EM199: 0 | EN199: 0 | EO199: 0 | EP199: 0 | EQ199: 0 | ER199: 0 | ES199: 0 | ET199: 0 | EU199: 0 | EV199: 0 | EW199: 0 | EX199: 0 | EY199: 0 | EZ199: 0 | FA199: 0 | FB199: 0 | FC199: 0
B200: Construction Period (Use switch and count TRUE) | E200: Period | J200: =(I200+J7)*J7 -> 0 | K200: 0 | L200: 0 | M200: 0 | N200: 0 | O200: 0 | P200: 0 | Q200: 0 | R200: 0 | S200: 0 | T200: 0 | U200: 0 | V200: 0 | W200: 0 | X200: 0 | Y200: 0 | Z200: 0 | AA200: 0 | AB200: 0 | AC200: 0 | AD200: 0 | AE200: 0 | AF200: 1 | AG200: 2 | AH200: 3 | AI200: 4 | AJ200: 5 | AK200: 6 | AL200: 7 | AM200: 8 | AN200: 9 | AO200: 10 | AP200: =(AO200+AP7)*AP7 -> 11 | AQ200: 12 | AR200: 13 | AS200: 14 | AT200: 15 | AU200: 16 | AV200: 17 | AW200: 18 | AX200: 19 | AY200: 20 | AZ200: 21 | BA200: 22 | BB200: 23 | BC200: 24 | BD200: 25 | BE200: 26 | BF200: 27 | BG200: 28 | BH200: 29 | BI200: 30 | BJ200: 0 | BK200: 0 | BL200: 0 | BM200: 0 | BN200: 0 | BO200: 0 | BP200: 0 | BQ200: 0 | BR200: 0 | BS200: 0 | BT200: 0 | BU200: 0 | BV200: =(BU200+BV7)*BV7 -> 0 | BW200: 0 | BX200: 0 | BY200: 0 | BZ200: 0 | CA200: 0 | CB200: 0 | CC200: 0 | CD200: 0 | CE200: 0 | CF200: 0 | CG200: 0 | CH200: 0 | CI200: 0 | CJ200: 0 | CK200: 0 | CL200: 0 | CM200: 0 | CN200: 0 | CO200: 0 | CP200: 0 | CQ200: 0 | CR200: 0 | CS200: 0 | CT200: 0 | CU200: 0 | CV200: 0 | CW200: 0 | CX200: 0 | CY200: 0 | CZ200: 0 | DA200: 0 | DB200: =(DA200+DB7)*DB7 -> 0 | DC200: 0 | DD200: 0 | DE200: 0 | DF200: 0 | DG200: 0 | DH200: 0 | DI200: 0 | DJ200: 0 | DK200: 0 | DL200: 0 | DM200: 0 | DN200: 0 | DO200: 0 | DP200: 0 | DQ200: 0 | DR200: 0 | DS200: 0 | DT200: 0 | DU200: 0 | DV200: 0 | DW200: 0 | DX200: 0 | DY200: 0 | DZ200: 0 | EA200: 0 | EB200: 0 | EC200: 0 | ED200: 0 | EE200: 0 | EF200: 0 | EG200: 0 | EH200: =(EG200+EH7)*EH7 -> 0 | EI200: 0 | EJ200: 0 | EK200: 0 | EL200: 0 | EM200: 0 | EN200: 0 | EO200: 0 | EP200: 0 | EQ200: 0 | ER200: 0 | ES200: 0 | ET200: 0 | EU200: 0 | EV200: 0 | EW200: 0 | EX200: 0 | EY200: 0 | EZ200: 0 | FA200: 0 | FB200: 0 | FC200: 0
B201: Final Construction Period | E201: Switch | F201: =F18 -> 30 | G201: Months | J201: =J200=$F$201 -> FALSE | K201: =K200=$F$201 -> FALSE | L201: FALSE | M201: FALSE | N201: FALSE | O201: FALSE | P201: FALSE | Q201: FALSE | R201: FALSE | S201: FALSE | T201: FALSE | U201: FALSE | V201: FALSE | W201: FALSE | X201: FALSE | Y201: FALSE | Z201: FALSE | AA201: FALSE | AB201: FALSE | AC201: FALSE | AD201: FALSE | AE201: FALSE | AF201: FALSE | AG201: FALSE | AH201: FALSE | AI201: FALSE | AJ201: FALSE | AK201: FALSE | AL201: FALSE | AM201: FALSE | AN201: FALSE | AO201: FALSE | AP201: FALSE | AQ201: FALSE | AR201: FALSE | AS201: FALSE | AT201: FALSE | AU201: FALSE | AV201: FALSE | AW201: FALSE | AX201: FALSE | AY201: FALSE | AZ201: FALSE | BA201: FALSE | BB201: FALSE | BC201: FALSE | BD201: FALSE | BE201: FALSE | BF201: FALSE | BG201: FALSE | BH201: FALSE | BI201: TRUE | BJ201: FALSE | BK201: FALSE | BL201: FALSE | BM201: FALSE | BN201: FALSE | BO201: FALSE | BP201: FALSE | BQ201: FALSE | BR201: FALSE | BS201: FALSE | BT201: FALSE | BU201: FALSE | BV201: FALSE | BW201: =BW200=$F$201 -> FALSE | BX201: FALSE | BY201: FALSE | BZ201: FALSE | CA201: FALSE | CB201: FALSE | CC201: FALSE | CD201: FALSE | CE201: FALSE | CF201: FALSE | CG201: FALSE | CH201: FALSE | CI201: FALSE | CJ201: FALSE | CK201: FALSE | CL201: FALSE | CM201: FALSE | CN201: FALSE | CO201: FALSE | CP201: FALSE | CQ201: FALSE | CR201: FALSE | CS201: FALSE | CT201: FALSE | CU201: FALSE | CV201: FALSE | CW201: FALSE | CX201: FALSE | CY201: FALSE | CZ201: FALSE | DA201: FALSE | DB201: FALSE | DC201: FALSE | DD201: FALSE | DE201: FALSE | DF201: FALSE | DG201: FALSE | DH201: FALSE | DI201: FALSE | DJ201: FALSE | DK201: FALSE | DL201: FALSE | DM201: FALSE | DN201: FALSE | DO201: FALSE | DP201: FALSE | DQ201: FALSE | DR201: FALSE | DS201: FALSE | DT201: FALSE | DU201: FALSE | DV201: FALSE | DW201: FALSE | DX201: FALSE | DY201: FALSE | DZ201: FALSE | EA201: FALSE | EB201: FALSE | EC201: FALSE | ED201: FALSE | EE201: FALSE | EF201: FALSE | EG201: FALSE | EH201: FALSE | EI201: =EI200=$F$201 -> FALSE | EJ201: FALSE | EK201: FALSE | EL201: FALSE | EM201: FALSE | EN201: FALSE | EO201: FALSE | EP201: FALSE | EQ201: FALSE | ER201: FALSE | ES201: FALSE | ET201: FALSE | EU201: FALSE | EV201: FALSE | EW201: FALSE | EX201: FALSE | EY201: FALSE | EZ201: FALSE | FA201: FALSE | FB201: FALSE | FC201: FALSE
B202: Unadjusted S-Curve | E202: % | J202: =LOOKUP(J200,51:51,57:57) -> 0 | K202: 0 | L202: 0 | M202: 0 | N202: 0 | O202: 0 | P202: 0 | Q202: 0 | R202: 0 | S202: 0 | T202: 0 | U202: 0 | V202: 0 | W202: 0 | X202: 0 | Y202: 0 | Z202: 0 | AA202: 0 | AB202: 0 | AC202: 0 | AD202: 0 | AE202: 0 | AF202: 0.03 | AG202: 0.03 | AH202: 0.03 | AI202: 0.05 | AJ202: 0 | AK202: 0.05 | AL202: 0.08 | AM202: 0.08 | AN202: 0.08 | AO202: 0 | AP202: =LOOKUP(AP200,51:51,57:57) -> 0.12 | AQ202: 0.12 | AR202: 0.03 | AS202: 0.03 | AT202: 0.03 | AU202: 0.03 | AV202: 0.03 | AW202: 0.03 | AX202: 0.03 | AY202: 0.03 | AZ202: 0.03 | BA202: 0.03 | BB202: 0.03 | BC202: 0 | BD202: 0 | BE202: 0 | BF202: 0 | BG202: 0 | BH202: 0 | BI202: 0 | BJ202: 0 | BK202: 0 | BL202: 0 | BM202: 0 | BN202: 0 | BO202: 0 | BP202: 0 | BQ202: 0 | BR202: 0 | BS202: 0 | BT202: 0 | BU202: 0 | BV202: =LOOKUP(BV200,51:51,57:57) -> 0 | BW202: 0 | BX202: 0 | BY202: 0 | BZ202: 0 | CA202: 0 | CB202: 0 | CC202: 0 | CD202: 0 | CE202: 0 | CF202: 0 | CG202: 0 | CH202: 0 | CI202: 0 | CJ202: 0 | CK202: 0 | CL202: 0 | CM202: 0 | CN202: 0 | CO202: 0 | CP202: 0 | CQ202: 0 | CR202: 0 | CS202: 0 | CT202: 0 | CU202: 0 | CV202: 0 | CW202: 0 | CX202: 0 | CY202: 0 | CZ202: 0 | DA202: 0 | DB202: =LOOKUP(DB200,51:51,57:57) -> 0 | DC202: 0 | DD202: 0 | DE202: 0 | DF202: 0 | DG202: 0 | DH202: 0 | DI202: 0 | DJ202: 0 | DK202: 0 | DL202: 0 | DM202: 0 | DN202: 0 | DO202: 0 | DP202: 0 | DQ202: 0 | DR202: 0 | DS202: 0 | DT202: 0 | DU202: 0 | DV202: 0 | DW202: 0 | DX202: 0 | DY202: 0 | DZ202: 0 | EA202: 0 | EB202: 0 | EC202: 0 | ED202: 0 | EE202: 0 | EF202: 0 | EG202: 0 | EH202: =LOOKUP(EH200,51:51,57:57) -> 0 | EI202: 0 | EJ202: 0 | EK202: 0 | EL202: 0 | EM202: 0 | EN202: 0 | EO202: 0 | EP202: 0 | EQ202: 0 | ER202: 0 | ES202: 0 | ET202: 0 | EU202: 0 | EV202: 0 | EW202: 0 | EX202: 0 | EY202: 0 | EZ202: 0 | FA202: 0 | FB202: 0 | FC202: 0
B203: Adjustment Formula with Switch and Prior Accum | E203: % | J203: =J201*(1-J202-I205) -> 0 | K203: =K201*(1-K202-J205) -> 0 | L203: 0 | M203: 0 | N203: 0 | O203: 0 | P203: 0 | Q203: 0 | R203: 0 | S203: 0 | T203: 0 | U203: 0 | V203: 0 | W203: 0 | X203: 0 | Y203: 0 | Z203: 0 | AA203: 0 | AB203: 0 | AC203: 0 | AD203: 0 | AE203: 0 | AF203: 0 | AG203: 0 | AH203: 0 | AI203: 0 | AJ203: 0 | AK203: 0 | AL203: 0 | AM203: 0 | AN203: 0 | AO203: 0 | AP203: 0 | AQ203: 0 | AR203: 0 | AS203: 0 | AT203: 0 | AU203: 0 | AV203: 0 | AW203: 0 | AX203: 0 | AY203: 0 | AZ203: 0 | BA203: 0 | BB203: 0 | BC203: 0 | BD203: 0 | BE203: 0 | BF203: 0 | BG203: 0 | BH203: 0 | BI203: -2.220446049e-16 | BJ203: 0 | BK203: 0 | BL203: 0 | BM203: 0 | BN203: 0 | BO203: 0 | BP203: 0 | BQ203: 0 | BR203: 0 | BS203: 0 | BT203: 0 | BU203: 0 | BV203: 0 | BW203: =BW201*(1-BW202-BV205) -> 0 | BX203: 0 | BY203: 0 | BZ203: 0 | CA203: 0 | CB203: 0 | CC203: 0 | CD203: 0 | CE203: 0 | CF203: 0 | CG203: 0 | CH203: 0 | CI203: 0 | CJ203: 0 | CK203: 0 | CL203: 0 | CM203: 0 | CN203: 0 | CO203: 0 | CP203: 0 | CQ203: 0 | CR203: 0 | CS203: 0 | CT203: 0 | CU203: 0 | CV203: 0 | CW203: 0 | CX203: 0 | CY203: 0 | CZ203: 0 | DA203: 0 | DB203: 0 | DC203: 0 | DD203: 0 | DE203: 0 | DF203: 0 | DG203: 0 | DH203: 0 | DI203: 0 | DJ203: 0 | DK203: 0 | DL203: 0 | DM203: 0 | DN203: 0 | DO203: 0 | DP203: 0 | DQ203: 0 | DR203: 0 | DS203: 0 | DT203: 0 | DU203: 0 | DV203: 0 | DW203: 0 | DX203: 0 | DY203: 0 | DZ203: 0 | EA203: 0 | EB203: 0 | EC203: 0 | ED203: 0 | EE203: 0 | EF203: 0 | EG203: 0 | EH203: 0 | EI203: =EI201*(1-EI202-EH205) -> 0 | EJ203: 0 | EK203: 0 | EL203: 0 | EM203: 0 | EN203: 0 | EO203: 0 | EP203: 0 | EQ203: 0 | ER203: 0 | ES203: 0 | ET203: 0 | EU203: 0 | EV203: 0 | EW203: 0 | EX203: 0 | EY203: 0 | EZ203: 0 | FA203: 0 | FB203: 0 | FC203: 0
B204: Adjusted S-Curve | E204: % | H204: =SUM(J204:FC204)=1 -> TRUE | J204: =J202+J203 -> 0 | K204: 0 | L204: 0 | M204: 0 | N204: 0 | O204: 0 | P204: 0 | Q204: 0 | R204: 0 | S204: 0 | T204: 0 | U204: 0 | V204: 0 | W204: 0 | X204: 0 | Y204: 0 | Z204: 0 | AA204: 0 | AB204: 0 | AC204: 0 | AD204: 0 | AE204: 0 | AF204: 0.03 | AG204: 0.03 | AH204: 0.03 | AI204: 0.05 | AJ204: 0 | AK204: 0.05 | AL204: 0.08 | AM204: 0.08 | AN204: 0.08 | AO204: 0 | AP204: =AP202+AP203 -> 0.12 | AQ204: 0.12 | AR204: 0.03 | AS204: 0.03 | AT204: 0.03 | AU204: 0.03 | AV204: 0.03 | AW204: 0.03 | AX204: 0.03 | AY204: 0.03 | AZ204: 0.03 | BA204: 0.03 | BB204: 0.03 | BC204: 0 | BD204: 0 | BE204: 0 | BF204: 0 | BG204: 0 | BH204: 0 | BI204: -2.220446049e-16 | BJ204: 0 | BK204: 0 | BL204: 0 | BM204: 0 | BN204: 0 | BO204: 0 | BP204: 0 | BQ204: 0 | BR204: 0 | BS204: 0 | BT204: 0 | BU204: 0 | BV204: =BV202+BV203 -> 0 | BW204: 0 | BX204: 0 | BY204: 0 | BZ204: 0 | CA204: 0 | CB204: 0 | CC204: 0 | CD204: 0 | CE204: 0 | CF204: 0 | CG204: 0 | CH204: 0 | CI204: 0 | CJ204: 0 | CK204: 0 | CL204: 0 | CM204: 0 | CN204: 0 | CO204: 0 | CP204: 0 | CQ204: 0 | CR204: 0 | CS204: 0 | CT204: 0 | CU204: 0 | CV204: 0 | CW204: 0 | CX204: 0 | CY204: 0 | CZ204: 0 | DA204: 0 | DB204: =DB202+DB203 -> 0 | DC204: 0 | DD204: 0 | DE204: 0 | DF204: 0 | DG204: 0 | DH204: 0 | DI204: 0 | DJ204: 0 | DK204: 0 | DL204: 0 | DM204: 0 | DN204: 0 | DO204: 0 | DP204: 0 | DQ204: 0 | DR204: 0 | DS204: 0 | DT204: 0 | DU204: 0 | DV204: 0 | DW204: 0 | DX204: 0 | DY204: 0 | DZ204: 0 | EA204: 0 | EB204: 0 | EC204: 0 | ED204: 0 | EE204: 0 | EF204: 0 | EG204: 0 | EH204: =EH202+EH203 -> 0 | EI204: 0 | EJ204: 0 | EK204: 0 | EL204: 0 | EM204: 0 | EN204: 0 | EO204: 0 | EP204: 0 | EQ204: 0 | ER204: 0 | ES204: 0 | ET204: 0 | EU204: 0 | EV204: 0 | EW204: 0 | EX204: 0 | EY204: 0 | EZ204: 0 | FA204: 0 | FB204: 0 | FC204: 0
B205: Accumulated S-Curve | E205: % | J205: =I205+J204 -> 0 | K205: =J205+K204 -> 0 | L205: 0 | M205: 0 | N205: 0 | O205: 0 | P205: 0 | Q205: 0 | R205: 0 | S205: 0 | T205: 0 | U205: 0 | V205: 0 | W205: 0 | X205: 0 | Y205: 0 | Z205: 0 | AA205: 0 | AB205: 0 | AC205: 0 | AD205: 0 | AE205: 0 | AF205: 0.03 | AG205: 0.06 | AH205: 0.09 | AI205: 0.14 | AJ205: 0.14 | AK205: 0.19 | AL205: 0.27 | AM205: 0.35 | AN205: 0.43 | AO205: 0.43 | AP205: 0.55 | AQ205: 0.67 | AR205: 0.7 | AS205: 0.73 | AT205: 0.76 | AU205: 0.79 | AV205: 0.82 | AW205: 0.85 | AX205: 0.88 | AY205: 0.91 | AZ205: 0.94 | BA205: 0.97 | BB205: 1 | BC205: 1 | BD205: 1 | BE205: 1 | BF205: 1 | BG205: 1 | BH205: 1 | BI205: 1 | BJ205: 1 | BK205: 1 | BL205: 1 | BM205: 1 | BN205: 1 | BO205: 1 | BP205: 1 | BQ205: 1 | BR205: 1 | BS205: 1 | BT205: 1 | BU205: 1 | BV205: 1 | BW205: =BV205+BW204 -> 1 | BX205: 1 | BY205: 1 | BZ205: 1 | CA205: 1 | CB205: 1 | CC205: 1 | CD205: 1 | CE205: 1 | CF205: 1 | CG205: 1 | CH205: 1 | CI205: 1 | CJ205: 1 | CK205: 1 | CL205: 1 | CM205: 1 | CN205: 1 | CO205: 1 | CP205: 1 | CQ205: 1 | CR205: 1 | CS205: 1 | CT205: 1 | CU205: 1 | CV205: 1 | CW205: 1 | CX205: 1 | CY205: 1 | CZ205: 1 | DA205: 1 | DB205: 1 | DC205: 1 | DD205: 1 | DE205: 1 | DF205: 1 | DG205: 1 | DH205: 1 | DI205: 1 | DJ205: 1 | DK205: 1 | DL205: 1 | DM205: 1 | DN205: 1 | DO205: 1 | DP205: 1 | DQ205: 1 | DR205: 1 | DS205: 1 | DT205: 1 | DU205: 1 | DV205: 1 | DW205: 1 | DX205: 1 | DY205: 1 | DZ205: 1 | EA205: 1 | EB205: 1 | EC205: 1 | ED205: 1 | EE205: 1 | EF205: 1 | EG205: 1 | EH205: 1 | EI205: =EH205+EI204 -> 1 | EJ205: 1 | EK205: 1 | EL205: 1 | EM205: 1 | EN205: 1 | EO205: 1 | EP205: 1 | EQ205: 1 | ER205: 1 | ES205: 1 | ET205: 1 | EU205: 1 | EV205: 1 | EW205: 1 | EX205: 1 | EY205: 1 | EZ205: 1 | FA205: 1 | FB205: 1 | FC205: 1
B206: Construction Expeniture | E206: $'000 | F206: =F49*F30 -> 295500 | H206: =SUM(J206:FC206)=F206 -> TRUE | J206: =$F$206*J204 -> 0 | K206: =$F$206*K204 -> 0 | L206: 0 | M206: 0 | N206: 0 | O206: 0 | P206: 0 | Q206: 0 | R206: 0 | S206: 0 | T206: 0 | U206: 0 | V206: 0 | W206: 0 | X206: 0 | Y206: 0 | Z206: 0 | AA206: 0 | AB206: 0 | AC206: 0 | AD206: 0 | AE206: 0 | AF206: 8865 | AG206: 8865 | AH206: 8865 | AI206: 14775 | AJ206: 0 | AK206: 14775 | AL206: 23640 | AM206: 23640 | AN206: 23640 | AO206: 0 | AP206: 35460 | AQ206: 35460 | AR206: 8865 | AS206: 8865 | AT206: 8865 | AU206: 8865 | AV206: 8865 | AW206: 8865 | AX206: 8865 | AY206: 8865 | AZ206: 8865 | BA206: 8865 | BB206: 8865 | BC206: 0 | BD206: 0 | BE206: 0 | BF206: 0 | BG206: 0 | BH206: 0 | BI206: -6.561418076e-11 | BJ206: 0 | BK206: 0 | BL206: 0 | BM206: 0 | BN206: 0 | BO206: 0 | BP206: 0 | BQ206: 0 | BR206: 0 | BS206: 0 | BT206: 0 | BU206: 0 | BV206: 0 | BW206: =$F$206*BW204 -> 0 | BX206: 0 | BY206: 0 | BZ206: 0 | CA206: 0 | CB206: 0 | CC206: 0 | CD206: 0 | CE206: 0 | CF206: 0 | CG206: 0 | CH206: 0 | CI206: 0 | CJ206: 0 | CK206: 0 | CL206: 0 | CM206: 0 | CN206: 0 | CO206: 0 | CP206: 0 | CQ206: 0 | CR206: 0 | CS206: 0 | CT206: 0 | CU206: 0 | CV206: 0 | CW206: 0 | CX206: 0 | CY206: 0 | CZ206: 0 | DA206: 0 | DB206: 0 | DC206: 0 | DD206: 0 | DE206: 0 | DF206: 0 | DG206: 0 | DH206: 0 | DI206: 0 | DJ206: 0 | DK206: 0 | DL206: 0 | DM206: 0 | DN206: 0 | DO206: 0 | DP206: 0 | DQ206: 0 | DR206: 0 | DS206: 0 | DT206: 0 | DU206: 0 | DV206: 0 | DW206: 0 | DX206: 0 | DY206: 0 | DZ206: 0 | EA206: 0 | EB206: 0 | EC206: 0 | ED206: 0 | EE206: 0 | EF206: 0 | EG206: 0 | EH206: 0 | EI206: =$F$206*EI204 -> 0 | EJ206: 0 | EK206: 0 | EL206: 0 | EM206: 0 | EN206: 0 | EO206: 0 | EP206: 0 | EQ206: 0 | ER206: 0 | ES206: 0 | ET206: 0 | EU206: 0 | EV206: 0 | EW206: 0 | EX206: 0 | EY206: 0 | EZ206: 0 | FA206: 0 | FB206: 0 | FC206: 0
B207: Total Capital Expenditure | E207: $'000 | J207: =J206+J199 -> 681.8181818 | K207: 681.8181818 | L207: 681.8181818 | M207: 681.8181818 | N207: 681.8181818 | O207: 681.8181818 | P207: 681.8181818 | Q207: 681.8181818 | R207: 681.8181818 | S207: 681.8181818 | T207: 681.8181818 | U207: 681.8181818 | V207: 681.8181818 | W207: 681.8181818 | X207: 681.8181818 | Y207: 681.8181818 | Z207: 681.8181818 | AA207: 681.8181818 | AB207: 681.8181818 | AC207: 681.8181818 | AD207: 681.8181818 | AE207: 681.8181818 | AF207: 8865 | AG207: 8865 | AH207: 8865 | AI207: 14775 | AJ207: 0 | AK207: 14775 | AL207: 23640 | AM207: 23640 | AN207: 23640 | AO207: 0 | AP207: =AP206+AP199 -> 35460 | AQ207: 35460 | AR207: 8865 | AS207: 8865 | AT207: 8865 | AU207: 8865 | AV207: 8865 | AW207: 8865 | AX207: 8865 | AY207: 8865 | AZ207: 8865 | BA207: 8865 | BB207: 8865 | BC207: 0 | BD207: 0 | BE207: 0 | BF207: 0 | BG207: 0 | BH207: 0 | BI207: -6.561418076e-11 | BJ207: 0 | BK207: 0 | BL207: 0 | BM207: 0 | BN207: 0 | BO207: 0 | BP207: 0 | BQ207: 0 | BR207: 0 | BS207: 0 | BT207: 0 | BU207: 0 | BV207: =BV206+BV199 -> 0 | BW207: 0 | BX207: 0 | BY207: 0 | BZ207: 0 | CA207: 0 | CB207: 0 | CC207: 0 | CD207: 0 | CE207: 0 | CF207: 0 | CG207: 0 | CH207: 0 | CI207: 0 | CJ207: 0 | CK207: 0 | CL207: 0 | CM207: 0 | CN207: 0 | CO207: 0 | CP207: 0 | CQ207: 0 | CR207: 0 | CS207: 0 | CT207: 0 | CU207: 0 | CV207: 0 | CW207: 0 | CX207: 0 | CY207: 0 | CZ207: 0 | DA207: 0 | DB207: =DB206+DB199 -> 0 | DC207: 0 | DD207: 0 | DE207: 0 | DF207: 0 | DG207: 0 | DH207: 0 | DI207: 0 | DJ207: 0 | DK207: 0 | DL207: 0 | DM207: 0 | DN207: 0 | DO207: 0 | DP207: 0 | DQ207: 0 | DR207: 0 | DS207: 0 | DT207: 0 | DU207: 0 | DV207: 0 | DW207: 0 | DX207: 0 | DY207: 0 | DZ207: 0 | EA207: 0 | EB207: 0 | EC207: 0 | ED207: 0 | EE207: 0 | EF207: 0 | EG207: 0 | EH207: =EH206+EH199 -> 0 | EI207: 0 | EJ207: 0 | EK207: 0 | EL207: 0 | EM207: 0 | EN207: 0 | EO207: 0 | EP207: 0 | EQ207: 0 | ER207: 0 | ES207: 0 | ET207: 0 | EU207: 0 | EV207: 0 | EW207: 0 | EX207: 0 | EY207: 0 | EZ207: 0 | FA207: 0 | FB207: 0 | FC207: 0
A209: Operating Expenses
B210: Inflation Rate annual (using Lookup fx) | J210: =LOOKUP(J9,64:64,70:70) -> 0.01 | K210: 0.01 | L210: 0.01 | M210: 0.01 | N210: 0.01 | O210: 0.01 | P210: 0.01 | Q210: 0.01 | R210: 0.01 | S210: 0.01 | T210: 0.01 | U210: 0.01 | V210: 0.01 | W210: 0.01 | X210: 0.01 | Y210: 0.01 | Z210: 0.01 | AA210: 0.01 | AB210: 0.01 | AC210: 0.01 | AD210: 0.01 | AE210: 0.01 | AF210: 0.01 | AG210: 0.01 | AH210: 0.01 | AI210: 0.01 | AJ210: 0.01 | AK210: 0.01 | AL210: 0.01 | AM210: 0.01 | AN210: 0.01 | AO210: 0.01 | AP210: =LOOKUP(AP9,64:64,70:70) -> 0.01 | AQ210: 0.01 | AR210: 0.01 | AS210: 0.01 | AT210: 0.01 | AU210: 0.01 | AV210: 0.01 | AW210: 0.01 | AX210: 0.01 | AY210: 0.01 | AZ210: 0.01 | BA210: 0.01 | BB210: 0.01 | BC210: 0.01 | BD210: 0.01 | BE210: 0.01 | BF210: 0.01 | BG210: 0.01 | BH210: 0.01 | BI210: 0.01 | BJ210: 0.01 | BK210: 0.01 | BL210: 0.01 | BM210: 0.01 | BN210: 0.01 | BO210: 0.01 | BP210: 0.01 | BQ210: 0.01 | BR210: 0.01 | BS210: 0.01 | BT210: 0.01 | BU210: 0.01 | BV210: =LOOKUP(BV9,64:64,70:70) -> 0.01 | BW210: 0.01 | BX210: 0.01 | BY210: 0.01 | BZ210: 0.01 | CA210: 0.01 | CB210: 0.01 | CC210: 0.01 | CD210: 0.01 | CE210: 0.01 | CF210: 0.01 | CG210: 0.01 | CH210: 0.01 | CI210: 0.01 | CJ210: 0.01 | CK210: 0.01 | CL210: 0.01 | CM210: 0.01 | CN210: 0.01 | CO210: 0.01 | CP210: 0.01 | CQ210: 0.01 | CR210: 0.01 | CS210: 0.01 | CT210: 0.01 | CU210: 0.01 | CV210: 0.01 | CW210: 0.01 | CX210: 0.01 | CY210: 0.01 | CZ210: 0.01 | DA210: 0.01 | DB210: =LOOKUP(DB9,64:64,70:70) -> 0.01 | DC210: 0.01 | DD210: 0.01 | DE210: 0.01 | DF210: 0.01 | DG210: 0.01 | DH210: 0.01 | DI210: 0.01 | DJ210: 0.01 | DK210: 0.01 | DL210: 0.01 | DM210: 0.01 | DN210: 0.01 | DO210: 0.01 | DP210: 0.01 | DQ210: 0.01 | DR210: 0.01 | DS210: 0.01 | DT210: 0.01 | DU210: 0.01 | DV210: 0.01 | DW210: 0.01 | DX210: 0.01 | DY210: 0.01 | DZ210: 0.01 | EA210: 0.01 | EB210: 0.01 | EC210: 0.01 | ED210: 0.01 | EE210: 0.01 | EF210: 0.01 | EG210: 0.01 | EH210: =LOOKUP(EH9,64:64,70:70) -> 0.01 | EI210: 0.01 | EJ210: 0.01 | EK210: 0.01 | EL210: 0.01 | EM210: 0.01 | EN210: 0.01 | EO210: 0.01 | EP210: 0.01 | EQ210: 0.01 | ER210: 0.01 | ES210: 0.01 | ET210: 0.01 | EU210: 0.01 | EV210: 0.01 | EW210: 0.01 | EX210: 0.01 | EY210: 0.01 | EZ210: 0.01 | FA210: 0.01 | FB210: 0.01 | FC210: 0.01
B211: Inflation Rate periodic | J211: =(1+J210)^(J3/12)-1 -> 0.0008295381143 | K211: 0.0008295381143 | L211: 0.0008295381143 | M211: 0.0008295381143 | N211: 0.0008295381143 | O211: 0.0008295381143 | P211: 0.0008295381143 | Q211: 0.0008295381143 | R211: 0.0008295381143 | S211: 0.0008295381143 | T211: 0.0008295381143 | U211: 0.0008295381143 | V211: 0.0008295381143 | W211: 0.0008295381143 | X211: 0.0008295381143 | Y211: 0.0008295381143 | Z211: 0.0008295381143 | AA211: 0.0008295381143 | AB211: 0.0008295381143 | AC211: 0.0008295381143 | AD211: 0.0008295381143 | AE211: 0.0008295381143 | AF211: 0.0008295381143 | AG211: 0.0008295381143 | AH211: 0.0008295381143 | AI211: 0.0008295381143 | AJ211: 0.0008295381143 | AK211: 0.0008295381143 | AL211: 0.0008295381143 | AM211: 0.0008295381143 | AN211: 0.0008295381143 | AO211: 0.0008295381143 | AP211: =(1+AP210)^(AP3/12)-1 -> 0.0008295381143 | AQ211: 0.0008295381143 | AR211: 0.0008295381143 | AS211: 0.0008295381143 | AT211: 0.0008295381143 | AU211: 0.0008295381143 | AV211: 0.0008295381143 | AW211: 0.0008295381143 | AX211: 0.0008295381143 | AY211: 0.0008295381143 | AZ211: 0.0008295381143 | BA211: 0.0008295381143 | BB211: 0.0008295381143 | BC211: 0.0008295381143 | BD211: 0.0008295381143 | BE211: 0.0008295381143 | BF211: 0.0008295381143 | BG211: 0.0008295381143 | BH211: 0.0008295381143 | BI211: 0.0008295381143 | BJ211: 0.004987562112 | BK211: 0.004987562112 | BL211: 0.004987562112 | BM211: 0.004987562112 | BN211: 0.004987562112 | BO211: 0.004987562112 | BP211: 0.004987562112 | BQ211: 0.004987562112 | BR211: 0.004987562112 | BS211: 0.004987562112 | BT211: 0.004987562112 | BU211: 0.004987562112 | BV211: =(1+BV210)^(BV3/12)-1 -> 0.004987562112 | BW211: 0.004987562112 | BX211: 0.004987562112 | BY211: 0.004987562112 | BZ211: 0.004987562112 | CA211: 0.004987562112 | CB211: 0.004987562112 | CC211: 0.004987562112 | CD211: 0.004987562112 | CE211: 0.004987562112 | CF211: 0.004987562112 | CG211: 0.004987562112 | CH211: 0.004987562112 | CI211: 0.004987562112 | CJ211: 0.004987562112 | CK211: 0.004987562112 | CL211: 0.004987562112 | CM211: 0.004987562112 | CN211: 0.004987562112 | CO211: 0.004987562112 | CP211: 0.004987562112 | CQ211: 0.004987562112 | CR211: 0.004987562112 | CS211: 0.004987562112 | CT211: 0.004987562112 | CU211: 0.004987562112 | CV211: 0.004987562112 | CW211: 0.004987562112 | CX211: 0.004987562112 | CY211: 0.004987562112 | CZ211: 0.004987562112 | DA211: 0.004987562112 | DB211: =(1+DB210)^(DB3/12)-1 -> 0.004987562112 | DC211: 0.004987562112 | DD211: 0.004987562112 | DE211: 0.004987562112 | DF211: 0.004987562112 | DG211: 0.004987562112 | DH211: 0.004987562112 | DI211: 0.004987562112 | DJ211: 0.004987562112 | DK211: 0.004987562112 | DL211: 0.004987562112 | DM211: 0.004987562112 | DN211: 0.004987562112 | DO211: 0.004987562112 | DP211: 0.004987562112 | DQ211: 0.004987562112 | DR211: 0.004987562112 | DS211: 0.004987562112 | DT211: 0.004987562112 | DU211: 0.004987562112 | DV211: 0.004987562112 | DW211: 0.004987562112 | DX211: 0.004987562112 | DY211: 0.004987562112 | DZ211: 0.004987562112 | EA211: 0.004987562112 | EB211: 0.004987562112 | EC211: 0.004987562112 | ED211: 0.004987562112 | EE211: 0.004987562112 | EF211: 0.004987562112 | EG211: 0.004987562112 | EH211: =(1+EH210)^(EH3/12)-1 -> 0.004987562112 | EI211: 0.004987562112 | EJ211: 0.004987562112 | EK211: 0.004987562112 | EL211: 0.004987562112 | EM211: 0.004987562112 | EN211: 0.004987562112 | EO211: 0.004987562112 | EP211: 0.004987562112 | EQ211: 0.004987562112 | ER211: 0.004987562112 | ES211: 0.004987562112 | ET211: 0.004987562112 | EU211: 0.004987562112 | EV211: 0.004987562112 | EW211: 0.004987562112 | EX211: 0.004987562112 | EY211: 0.004987562112 | EZ211: 0.004987562112 | FA211: 0.004987562112 | FB211: 0.004987562112 | FC211: 0.004987562112
B212: Inflation index | I212: 1 | J212: =I212*(1+J211) -> 1.000829538 | K212: =J212*(1+K211) -> 1.001659764 | L212: 1.002490679 | M212: 1.003322284 | N212: 1.004154578 | O212: 1.004987562 | P212: 1.005821238 | Q212: 1.006655605 | R212: 1.007490664 | S212: 1.008326416 | T212: 1.009162861 | U212: 1.01 | V212: 1.010837833 | W212: 1.011676362 | X212: 1.012515586 | Y212: 1.013355506 | Z212: 1.014196123 | AA212: 1.015037438 | AB212: 1.01587945 | AC212: 1.016722161 | AD212: 1.01756557 | AE212: 1.01840968 | AF212: 1.01925449 | AG212: 1.0201 | AH212: 1.020946212 | AI212: 1.021793126 | AJ212: 1.022640742 | AK212: 1.023489061 | AL212: 1.024338085 | AM212: 1.025187812 | AN212: 1.026038244 | AO212: 1.026889382 | AP212: 1.027741226 | AQ212: 1.028593777 | AR212: 1.029447034 | AS212: 1.030301 | AT212: 1.031155674 | AU212: 1.032011057 | AV212: 1.032867149 | AW212: 1.033723952 | AX212: 1.034581465 | AY212: 1.03543969 | AZ212: 1.036298627 | BA212: 1.037158276 | BB212: 1.038018638 | BC212: 1.038879714 | BD212: 1.039741505 | BE212: 1.04060401 | BF212: 1.041467231 | BG212: 1.042331167 | BH212: 1.043195821 | BI212: 1.044061192 | BJ212: 1.049268512 | BK212: 1.054501803 | BL212: 1.059761197 | BM212: 1.065046822 | BN212: 1.070358809 | BO212: 1.07569729 | BP212: 1.081062397 | BQ212: 1.086454263 | BR212: 1.091873021 | BS212: 1.097318805 | BT212: 1.102791751 | BU212: 1.108291993 | BV212: 1.113819668 | BW212: =BV212*(1+BW211) -> 1.119374913 | BX212: 1.124957865 | BY212: 1.130568662 | BZ212: 1.136207444 | CA212: 1.141874349 | CB212: 1.147569518 | CC212: 1.153293092 | CD212: 1.159045213 | CE212: 1.164826023 | CF212: 1.170635666 | CG212: 1.176474284 | CH212: 1.182342022 | CI212: 1.188239026 | CJ212: 1.194165442 | CK212: 1.200121417 | CL212: 1.206107097 | CM212: 1.212122631 | CN212: 1.218168168 | CO212: 1.224243857 | CP212: 1.23034985 | CQ212: 1.236486296 | CR212: 1.242653348 | CS212: 1.248851159 | CT212: 1.255079881 | CU212: 1.26133967 | CV212: 1.26763068 | CW212: 1.273953067 | CX212: 1.280306987 | CY212: 1.286692598 | CZ212: 1.293110057 | DA212: 1.299559524 | DB212: 1.306041158 | DC212: 1.312555119 | DD212: 1.319101569 | DE212: 1.32568067 | DF212: 1.332292585 | DG212: 1.338937477 | DH212: 1.345615511 | DI212: 1.352326852 | DJ212: 1.359071666 | DK212: 1.36585012 | DL212: 1.372662382 | DM212: 1.379508621 | DN212: 1.386389006 | DO212: 1.393303708 | DP212: 1.400252896 | DQ212: 1.407236745 | DR212: 1.414255425 | DS212: 1.421309112 | DT212: 1.42839798 | DU212: 1.435522203 | DV212: 1.442681959 | DW212: 1.449877425 | DX212: 1.457108779 | DY212: 1.464376199 | DZ212: 1.471679867 | EA212: 1.479019961 | EB212: 1.486396665 | EC212: 1.493810161 | ED212: 1.501260632 | EE212: 1.508748263 | EF212: 1.516273238 | EG212: 1.523835745 | EH212: 1.531435971 | EI212: =EH212*(1+EI211) -> 1.539074103 | EJ212: 1.54675033 | EK212: 1.554464844 | EL212: 1.562217834 | EM212: 1.570009492 | EN212: 1.577840012 | EO212: 1.585709587 | EP212: 1.593618412 | EQ212: 1.601566683 | ER212: 1.609554596 | ES212: 1.61758235 | ET212: 1.625650142 | EU212: 1.633758173 | EV212: 1.641906644 | EW212: 1.650095755 | EX212: 1.65832571 | EY212: 1.666596713 | EZ212: 1.674908967 | FA212: 1.68326268 | FB212: 1.691658057 | FC212: 1.700095307
B214: Fuel price | E214: USD/MMBtu | G214: =F62 -> TRUE | J214: =LOOKUP(J9,60:60,61:61) -> 1.7 | K214: 1.7 | L214: 1.7 | M214: 1.7 | N214: 1.7 | O214: 1.7 | P214: 1.7 | Q214: 1.7 | R214: 1.7 | S214: 1.7 | T214: 1.7 | U214: 1.7 | V214: 1.7 | W214: 1.7 | X214: 1.7 | Y214: 1.7 | Z214: 1.7 | AA214: 1.7 | AB214: 1.7 | AC214: 1.7 | AD214: 1.7 | AE214: 1.7 | AF214: 1.7 | AG214: 1.7 | AH214: 1.7 | AI214: 1.7 | AJ214: 1.7 | AK214: 1.7 | AL214: 1.7 | AM214: 1.7 | AN214: 1.7 | AO214: 1.7 | AP214: =LOOKUP(AP9,60:60,61:61) -> 1.7 | AQ214: 1.7 | AR214: 1.7 | AS214: 1.7 | AT214: 1.7 | AU214: 1.7 | AV214: 1.7 | AW214: 1.7 | AX214: 1.7 | AY214: 1.7 | AZ214: 1.7 | BA214: 1.7 | BB214: 1.7 | BC214: 1.7 | BD214: 1.7 | BE214: 1.7 | BF214: 1.7 | BG214: 1.7 | BH214: 1.7 | BI214: 1.7 | BJ214: 1.7 | BK214: 1.7 | BL214: 1.7 | BM214: 1.7 | BN214: 1.7 | BO214: 1.7 | BP214: 1.7 | BQ214: 1.7 | BR214: 1.7 | BS214: 1.7 | BT214: 1.7 | BU214: 1.7 | BV214: =LOOKUP(BV9,60:60,61:61) -> 1.7 | BW214: 1.7 | BX214: 1.7 | BY214: 1.7 | BZ214: 1.7 | CA214: 1.7 | CB214: 1.7 | CC214: 1.7 | CD214: 1.7 | CE214: 1.7 | CF214: 1.7 | CG214: 1.7 | CH214: 1.7 | CI214: 1.7 | CJ214: 1.7 | CK214: 1.7 | CL214: 1.7 | CM214: 1.7 | CN214: 1.7 | CO214: 1.7 | CP214: 1.7 | CQ214: 1.7 | CR214: 1.7 | CS214: 1.7 | CT214: 1.7 | CU214: 1.7 | CV214: 1.7 | CW214: 1.7 | CX214: 1.7 | CY214: 1.7 | CZ214: 1.7 | DA214: 1.7 | DB214: =LOOKUP(DB9,60:60,61:61) -> 1.7 | DC214: 1.7 | DD214: 1.7 | DE214: 1.7 | DF214: 1.7 | DG214: 1.7 | DH214: 1.7 | DI214: 1.7 | DJ214: 1.7 | DK214: 1.7 | DL214: 1.7 | DM214: 1.7 | DN214: 1.7 | DO214: 1.7 | DP214: 1.7 | DQ214: 1.7 | DR214: 1.7 | DS214: 1.7 | DT214: 1.7 | DU214: 1.7 | DV214: 1.7 | DW214: 1.7 | DX214: 1.7 | DY214: 1.7 | DZ214: 1.7 | EA214: 1.7 | EB214: 1.7 | EC214: 1.7 | ED214: 1.7 | EE214: 1.7 | EF214: 1.7 | EG214: 1.7 | EH214: =LOOKUP(EH9,60:60,61:61) -> 1.7 | EI214: 1.7 | EJ214: 1.7 | EK214: 1.7 | EL214: 1.7 | EM214: 1.7 | EN214: 1.7 | EO214: 1.7 | EP214: 1.7 | EQ214: 1.7 | ER214: 1.7 | ES214: 1.7 | ET214: 1.7 | EU214: 1.7 | EV214: 1.7 | EW214: 1.7 | EX214: 1.7 | EY214: 1.7 | EZ214: 1.7 | FA214: 1.7 | FB214: 1.7 | FC214: 1.7
B215: Fuel Use | E215: MMBtu | J215: =J196 -> 0 | K215: 0 | L215: 0 | M215: 0 | N215: 0 | O215: 0 | P215: 0 | Q215: 0 | R215: 0 | S215: 0 | T215: 0 | U215: 0 | V215: 0 | W215: 0 | X215: 0 | Y215: 0 | Z215: 0 | AA215: 0 | AB215: 0 | AC215: 0 | AD215: 0 | AE215: 0 | AF215: 0 | AG215: 0 | AH215: 0 | AI215: 0 | AJ215: 0 | AK215: 0 | AL215: 0 | AM215: 0 | AN215: 0 | AO215: 0 | AP215: =AP196 -> 0 | AQ215: 0 | AR215: 0 | AS215: 0 | AT215: 0 | AU215: 0 | AV215: 0 | AW215: 0 | AX215: 0 | AY215: 0 | AZ215: 0 | BA215: 0 | BB215: 0 | BC215: 0 | BD215: 0 | BE215: 0 | BF215: 0 | BG215: 0 | BH215: 0 | BI215: 0 | BJ215: 6210890.32 | BK215: 6192374.152 | BL215: 6241944.772 | BM215: 6223336.022 | BN215: 6273154.496 | BO215: 6288817.827 | BP215: 6304520.268 | BQ215: 6285724.966 | BR215: 5866706.361 | BS215: 5849216.288 | BT215: 5896039.892 | BU215: 5878462.369 | BV215: =BV196 -> 4526388.99 | BW215: 5742171.573 | BX215: 5756509.102 | BY215: 5739347.554 | BZ215: 5785291.648 | CA215: 5768044.292 | CB215: 5814218.106 | CC215: 5796884.513 | CD215: 5843289.196 | CE215: 5857879.205 | CF215: 5872505.642 | CG215: 5854998.28 | CH215: 5901868.171 | CI215: 5884273.272 | CJ215: 4530863.358 | CK215: 5716438.747 | CL215: 5762199.453 | CM215: 5776586.99 | CN215: 5791010.45 | CO215: 5773746.045 | CP215: 5819965.503 | CQ215: 5802614.775 | CR215: 5849065.33 | CS215: 5831627.849 | CT215: 5878310.657 | CU215: 5892988.109 | CV215: 5907702.21 | CW215: 5890089.919 | CX215: 4535342.15 | CY215: 5722089.488 | CZ215: 5767895.429 | DA215: 5750699.935 | DB215: =DB196 -> 5796734.906 | DC215: 5811208.674 | DD215: 5825718.581 | DE215: 5808350.702 | DF215: 5854847.173 | DG215: 5837392.456 | DH215: 0 | DI215: 0 | DJ215: 0 | DK215: 0 | DL215: 0 | DM215: 0 | DN215: 0 | DO215: 0 | DP215: 0 | DQ215: 0 | DR215: 0 | DS215: 0 | DT215: 0 | DU215: 0 | DV215: 0 | DW215: 0 | DX215: 0 | DY215: 0 | DZ215: 0 | EA215: 0 | EB215: 0 | EC215: 0 | ED215: 0 | EE215: 0 | EF215: 0 | EG215: 0 | EH215: =EH196 -> 0 | EI215: 0 | EJ215: 0 | EK215: 0 | EL215: 0 | EM215: 0 | EN215: 0 | EO215: 0 | EP215: 0 | EQ215: 0 | ER215: 0 | ES215: 0 | ET215: 0 | EU215: 0 | EV215: 0 | EW215: 0 | EX215: 0 | EY215: 0 | EZ215: 0 | FA215: 0 | FB215: 0 | FC215: 0
B216: Fuel expense | E216: $'000 | J216: =J214*J215/1000 -> 0 | K216: =K214*K215/1000 -> 0 | L216: 0 | M216: 0 | N216: 0 | O216: 0 | P216: 0 | Q216: 0 | R216: 0 | S216: 0 | T216: 0 | U216: 0 | V216: 0 | W216: 0 | X216: 0 | Y216: 0 | Z216: 0 | AA216: 0 | AB216: 0 | AC216: 0 | AD216: 0 | AE216: 0 | AF216: 0 | AG216: 0 | AH216: 0 | AI216: 0 | AJ216: 0 | AK216: 0 | AL216: 0 | AM216: 0 | AN216: 0 | AO216: 0 | AP216: 0 | AQ216: 0 | AR216: 0 | AS216: 0 | AT216: 0 | AU216: 0 | AV216: 0 | AW216: 0 | AX216: 0 | AY216: 0 | AZ216: 0 | BA216: 0 | BB216: 0 | BC216: 0 | BD216: 0 | BE216: 0 | BF216: 0 | BG216: 0 | BH216: 0 | BI216: 0 | BJ216: 10558.51354 | BK216: 10527.03606 | BL216: 10611.30611 | BM216: 10579.67124 | BN216: 10664.36264 | BO216: 10690.99031 | BP216: 10717.68446 | BQ216: 10685.73244 | BR216: 9973.400813 | BS216: 9943.667689 | BT216: 10023.26782 | BU216: 9993.386028 | BV216: 7694.861283 | BW216: =BW214*BW215/1000 -> 9761.691674 | BX216: 9786.065474 | BY216: 9756.890842 | BZ216: 9834.995801 | CA216: 9805.675296 | CB216: 9884.17078 | CC216: 9854.703672 | CD216: 9933.591634 | CE216: 9958.394648 | CF216: 9983.259592 | CG216: 9953.497077 | CH216: 10033.17589 | CI216: 10003.26456 | CJ216: 7702.467709 | CK216: 9717.94587 | CL216: 9795.73907 | CM216: 9820.197882 | CN216: 9844.717766 | CO216: 9815.368277 | CP216: 9893.941354 | CQ216: 9864.445118 | CR216: 9943.411061 | CS216: 9913.767344 | CT216: 9993.128116 | CU216: 10018.07979 | CV216: 10043.09376 | CW216: 10013.15286 | CX216: 7710.081654 | CY216: 9727.552129 | CZ216: 9805.422229 | DA216: 9776.18989 | DB216: 9854.44934 | DC216: 9879.054745 | DD216: 9903.721587 | DE216: 9874.196194 | DF216: 9953.240195 | DG216: 9923.567175 | DH216: 0 | DI216: 0 | DJ216: 0 | DK216: 0 | DL216: 0 | DM216: 0 | DN216: 0 | DO216: 0 | DP216: 0 | DQ216: 0 | DR216: 0 | DS216: 0 | DT216: 0 | DU216: 0 | DV216: 0 | DW216: 0 | DX216: 0 | DY216: 0 | DZ216: 0 | EA216: 0 | EB216: 0 | EC216: 0 | ED216: 0 | EE216: 0 | EF216: 0 | EG216: 0 | EH216: 0 | EI216: =EI214*EI215/1000 -> 0 | EJ216: 0 | EK216: 0 | EL216: 0 | EM216: 0 | EN216: 0 | EO216: 0 | EP216: 0 | EQ216: 0 | ER216: 0 | ES216: 0 | ET216: 0 | EU216: 0 | EV216: 0 | EW216: 0 | EX216: 0 | EY216: 0 | EZ216: 0 | FA216: 0 | FB216: 0 | FC216: 0
B218: Fixed O&M expenses | E218: $'000 | F218: =F72 -> 16 | J218: =$F$218*J149/12*J3*J212 -> 0 | K218: 0 | L218: 0 | M218: 0 | N218: 0 | O218: 0 | P218: 0 | Q218: 0 | R218: 0 | S218: 0 | T218: 0 | U218: 0 | V218: 0 | W218: 0 | X218: 0 | Y218: 0 | Z218: 0 | AA218: 0 | AB218: 0 | AC218: 0 | AD218: 0 | AE218: 0 | AF218: 0 | AG218: 0 | AH218: 0 | AI218: 0 | AJ218: 0 | AK218: 0 | AL218: 0 | AM218: 0 | AN218: 0 | AO218: 0 | AP218: =$F$218*AP149/12*AP3*AP212 -> 0 | AQ218: 0 | AR218: 0 | AS218: 0 | AT218: 0 | AU218: 0 | AV218: 0 | AW218: 0 | AX218: 0 | AY218: 0 | AZ218: 0 | BA218: 0 | BB218: 0 | BC218: 0 | BD218: 0 | BE218: 0 | BF218: 0 | BG218: 0 | BH218: 0 | BI218: 0 | BJ218: 2518.244428 | BK218: 2530.804328 | BL218: 2543.426872 | BM218: 2556.112372 | BN218: 2568.861141 | BO218: 2581.673495 | BP218: 2594.549752 | BQ218: 2607.49023 | BR218: 2620.49525 | BS218: 2633.565133 | BT218: 2646.700202 | BU218: 2659.900784 | BV218: =$F$218*BV149/12*BV3*BV212 -> 2673.167204 | BW218: 2686.499792 | BX218: 2699.898876 | BY218: 2713.36479 | BZ218: 2726.897865 | CA218: 2740.498438 | CB218: 2754.166844 | CC218: 2767.903422 | CD218: 2781.708512 | CE218: 2795.582456 | CF218: 2809.525597 | CG218: 2823.538281 | CH218: 2837.620853 | CI218: 2851.773664 | CJ218: 2865.997062 | CK218: 2880.2914 | CL218: 2894.657032 | CM218: 2909.094314 | CN218: 2923.603603 | CO218: 2938.185257 | CP218: 2952.839639 | CQ218: 2967.56711 | CR218: 2982.368035 | CS218: 2997.242781 | CT218: 3012.191716 | CU218: 3027.215209 | CV218: 3042.313633 | CW218: 3057.487361 | CX218: 3072.736769 | CY218: 3088.062235 | CZ218: 3103.464137 | DA218: 3118.942857 | DB218: =$F$218*DB149/12*DB3*DB212 -> 3134.498778 | DC218: 3150.132285 | DD218: 3165.843766 | DE218: 3181.633608 | DF218: 3197.502204 | DG218: 3213.449944 | DH218: 0 | DI218: 0 | DJ218: 0 | DK218: 0 | DL218: 0 | DM218: 0 | DN218: 0 | DO218: 0 | DP218: 0 | DQ218: 0 | DR218: 0 | DS218: 0 | DT218: 0 | DU218: 0 | DV218: 0 | DW218: 0 | DX218: 0 | DY218: 0 | DZ218: 0 | EA218: 0 | EB218: 0 | EC218: 0 | ED218: 0 | EE218: 0 | EF218: 0 | EG218: 0 | EH218: =$F$218*EH149/12*EH3*EH212 -> 0 | EI218: 0 | EJ218: 0 | EK218: 0 | EL218: 0 | EM218: 0 | EN218: 0 | EO218: 0 | EP218: 0 | EQ218: 0 | ER218: 0 | ES218: 0 | ET218: 0 | EU218: 0 | EV218: 0 | EW218: 0 | EX218: 0 | EY218: 0 | EZ218: 0 | FA218: 0 | FB218: 0 | FC218: 0
B219: Variable O&M cost | E219: $'000 | F219: =F73 -> 3.6 | J219: =$F$219*J189*J212/1000 -> 0 | K219: 0 | L219: 0 | M219: 0 | N219: 0 | O219: 0 | P219: 0 | Q219: 0 | R219: 0 | S219: 0 | T219: 0 | U219: 0 | V219: 0 | W219: 0 | X219: 0 | Y219: 0 | Z219: 0 | AA219: 0 | AB219: 0 | AC219: 0 | AD219: 0 | AE219: 0 | AF219: 0 | AG219: 0 | AH219: 0 | AI219: 0 | AJ219: 0 | AK219: 0 | AL219: 0 | AM219: 0 | AN219: 0 | AO219: 0 | AP219: =$F$219*AP189*AP212/1000 -> 0 | AQ219: 0 | AR219: 0 | AS219: 0 | AT219: 0 | AU219: 0 | AV219: 0 | AW219: 0 | AX219: 0 | AY219: 0 | AZ219: 0 | BA219: 0 | BB219: 0 | BC219: 0 | BD219: 0 | BE219: 0 | BF219: 0 | BG219: 0 | BH219: 0 | BI219: 0 | BJ219: 3628.275491 | BK219: 3626.446212 | BL219: 3664.558246 | BM219: 3662.710674 | BN219: 3701.203829 | BO219: 3719.663813 | BP219: 3738.215867 | BQ219: 3736.331159 | BR219: 3495.924098 | BS219: 3494.161547 | BT219: 3530.883339 | BU219: 3529.103162 | BV219: =$F$219*BV189*BV212/1000 -> 2724.144503 | BW219: 3583.978777 | BX219: 3601.854094 | BY219: 3600.038136 | BZ219: 3637.872635 | CA219: 3636.038517 | CB219: 3674.251361 | CC219: 3672.398902 | CD219: 3710.993875 | CE219: 3729.502687 | CF219: 3748.103814 | CG219: 3746.21412 | CH219: 3785.584852 | CI219: 3783.676261 | CJ219: 2920.651626 | CK219: 3821.513024 | CL219: 3861.675107 | CM219: 3880.935452 | CN219: 3900.291858 | CO219: 3898.325436 | CP219: 3939.294777 | CQ219: 3937.30869 | CR219: 3978.687725 | CS219: 3976.681777 | CT219: 4018.474602 | CU219: 4038.516994 | CV219: 4058.659348 | CW219: 4056.613081 | CX219: 3131.333859 | CY219: 4097.179212 | CZ219: 4140.238401 | DA219: 4138.151004 | DB219: =$F$219*DB189*DB212/1000 -> 4181.640785 | DC219: 4202.496978 | DD219: 4223.457193 | DE219: 4221.327839 | DF219: 4265.691765 | DG219: 4263.541117 | DH219: 0 | DI219: 0 | DJ219: 0 | DK219: 0 | DL219: 0 | DM219: 0 | DN219: 0 | DO219: 0 | DP219: 0 | DQ219: 0 | DR219: 0 | DS219: 0 | DT219: 0 | DU219: 0 | DV219: 0 | DW219: 0 | DX219: 0 | DY219: 0 | DZ219: 0 | EA219: 0 | EB219: 0 | EC219: 0 | ED219: 0 | EE219: 0 | EF219: 0 | EG219: 0 | EH219: =$F$219*EH189*EH212/1000 -> 0 | EI219: 0 | EJ219: 0 | EK219: 0 | EL219: 0 | EM219: 0 | EN219: 0 | EO219: 0 | EP219: 0 | EQ219: 0 | ER219: 0 | ES219: 0 | ET219: 0 | EU219: 0 | EV219: 0 | EW219: 0 | EX219: 0 | EY219: 0 | EZ219: 0 | FA219: 0 | FB219: 0 | FC219: 0
B221: Total Operating Expenses | J221: =J219+J218+J216 -> 0 | K221: =K219+K218+K216 -> 0 | L221: 0 | M221: 0 | N221: 0 | O221: 0 | P221: 0 | Q221: 0 | R221: 0 | S221: 0 | T221: 0 | U221: 0 | V221: 0 | W221: 0 | X221: 0 | Y221: 0 | Z221: 0 | AA221: 0 | AB221: 0 | AC221: 0 | AD221: 0 | AE221: 0 | AF221: 0 | AG221: 0 | AH221: 0 | AI221: 0 | AJ221: 0 | AK221: 0 | AL221: 0 | AM221: 0 | AN221: 0 | AO221: 0 | AP221: 0 | AQ221: 0 | AR221: 0 | AS221: 0 | AT221: 0 | AU221: 0 | AV221: 0 | AW221: 0 | AX221: 0 | AY221: 0 | AZ221: 0 | BA221: 0 | BB221: 0 | BC221: 0 | BD221: 0 | BE221: 0 | BF221: 0 | BG221: 0 | BH221: 0 | BI221: 0 | BJ221: 16705.03346 | BK221: 16684.2866 | BL221: 16819.29123 | BM221: 16798.49428 | BN221: 16934.42761 | BO221: 16992.32761 | BP221: 17050.45008 | BQ221: 17029.55383 | BR221: 16089.82016 | BS221: 16071.39437 | BT221: 16200.85136 | BU221: 16182.38997 | BV221: 13092.17299 | BW221: =BW219+BW218+BW216 -> 16032.17024 | BX221: 16087.81844 | BY221: 16070.29377 | BZ221: 16199.7663 | CA221: 16182.21225 | CB221: 16312.58899 | CC221: 16295.006 | CD221: 16426.29402 | CE221: 16483.47979 | CF221: 16540.889 | CG221: 16523.24948 | CH221: 16656.3816 | CI221: 16638.71449 | CJ221: 13489.1164 | CK221: 16419.75029 | CL221: 16552.07121 | CM221: 16610.22765 | CN221: 16668.61323 | CO221: 16651.87897 | CP221: 16786.07577 | CQ221: 16769.32092 | CR221: 16904.46682 | CS221: 16887.6919 | CT221: 17023.79443 | CU221: 17083.81199 | CV221: 17144.06674 | CW221: 17127.2533 | CX221: 13914.15228 | CY221: 16912.79358 | CZ221: 17049.12477 | DA221: 17033.28375 | DB221: 17170.5889 | DC221: 17231.68401 | DD221: 17293.02255 | DE221: 17277.15764 | DF221: 17416.43416 | DG221: 17400.55824 | DH221: 0 | DI221: 0 | DJ221: 0 | DK221: 0 | DL221: 0 | DM221: 0 | DN221: 0 | DO221: 0 | DP221: 0 | DQ221: 0 | DR221: 0 | DS221: 0 | DT221: 0 | DU221: 0 | DV221: 0 | DW221: 0 | DX221: 0 | DY221: 0 | DZ221: 0 | EA221: 0 | EB221: 0 | EC221: 0 | ED221: 0 | EE221: 0 | EF221: 0 | EG221: 0 | EH221: 0 | EI221: =EI219+EI218+EI216 -> 0 | EJ221: 0 | EK221: 0 | EL221: 0 | EM221: 0 | EN221: 0 | EO221: 0 | EP221: 0 | EQ221: 0 | ER221: 0 | ES221: 0 | ET221: 0 | EU221: 0 | EV221: 0 | EW221: 0 | EX221: 0 | EY221: 0 | EZ221: 0 | FA221: 0 | FB221: 0 | FC221: 0
A223: Revenues
B224: PPA Term | F224: =F19 -> 2021-06-01 | G224: =F77 -> 2021-06-01 | H224: =F76 -> 0 | J224: =AND(J$4>=$F224,J$4<$G224) -> FALSE | K224: =AND(K$4>=$F224,K$4<$G224) -> FALSE | L224: FALSE | M224: FALSE | N224: FALSE | O224: FALSE | P224: FALSE | Q224: FALSE | R224: FALSE | S224: FALSE | T224: FALSE | U224: FALSE | V224: FALSE | W224: FALSE | X224: FALSE | Y224: FALSE | Z224: FALSE | AA224: FALSE | AB224: FALSE | AC224: FALSE | AD224: FALSE | AE224: FALSE | AF224: FALSE | AG224: FALSE | AH224: FALSE | AI224: FALSE | AJ224: FALSE | AK224: FALSE | AL224: FALSE | AM224: FALSE | AN224: FALSE | AO224: FALSE | AP224: FALSE | AQ224: FALSE | AR224: FALSE | AS224: FALSE | AT224: FALSE | AU224: FALSE | AV224: FALSE | AW224: FALSE | AX224: FALSE | AY224: FALSE | AZ224: FALSE | BA224: FALSE | BB224: FALSE | BC224: FALSE | BD224: FALSE | BE224: FALSE | BF224: FALSE | BG224: FALSE | BH224: FALSE | BI224: FALSE | BJ224: FALSE | BK224: FALSE | BL224: FALSE | BM224: FALSE | BN224: FALSE | BO224: FALSE | BP224: FALSE | BQ224: FALSE | BR224: FALSE | BS224: FALSE | BT224: FALSE | BU224: FALSE | BV224: FALSE | BW224: =AND(BW$4>=$F224,BW$4<$G224) -> FALSE | BX224: FALSE | BY224: FALSE | BZ224: FALSE | CA224: FALSE | CB224: FALSE | CC224: FALSE | CD224: FALSE | CE224: FALSE | CF224: FALSE | CG224: FALSE | CH224: FALSE | CI224: FALSE | CJ224: FALSE | CK224: FALSE | CL224: FALSE | CM224: FALSE | CN224: FALSE | CO224: FALSE | CP224: FALSE | CQ224: FALSE | CR224: FALSE | CS224: FALSE | CT224: FALSE | CU224: FALSE | CV224: FALSE | CW224: FALSE | CX224: FALSE | CY224: FALSE | CZ224: FALSE | DA224: FALSE | DB224: FALSE | DC224: FALSE | DD224: FALSE | DE224: FALSE | DF224: FALSE | DG224: FALSE | DH224: FALSE | DI224: FALSE | DJ224: FALSE | DK224: FALSE | DL224: FALSE | DM224: FALSE | DN224: FALSE | DO224: FALSE | DP224: FALSE | DQ224: FALSE | DR224: FALSE | DS224: FALSE | DT224: FALSE | DU224: FALSE | DV224: FALSE | DW224: FALSE | DX224: FALSE | DY224: FALSE | DZ224: FALSE | EA224: FALSE | EB224: FALSE | EC224: FALSE | ED224: FALSE | EE224: FALSE | EF224: FALSE | EG224: FALSE | EH224: FALSE | EI224: =AND(EI$4>=$F224,EI$4<$G224) -> FALSE | EJ224: FALSE | EK224: FALSE | EL224: FALSE | EM224: FALSE | EN224: FALSE | EO224: FALSE | EP224: FALSE | EQ224: FALSE | ER224: FALSE | ES224: FALSE | ET224: FALSE | EU224: FALSE | EV224: FALSE | EW224: FALSE | EX224: FALSE | EY224: FALSE | EZ224: FALSE | FA224: FALSE | FB224: FALSE | FC224: FALSE
B226: Capacity revenue | E226: $'000 | F226: =F80 -> 7.5 | G226: USD/KW-mo | J226: =$F$226*J3*J149*J224 -> 0 | K226: 0 | L226: 0 | M226: 0 | N226: 0 | O226: 0 | P226: 0 | Q226: 0 | R226: 0 | S226: 0 | T226: 0 | U226: 0 | V226: 0 | W226: 0 | X226: 0 | Y226: 0 | Z226: 0 | AA226: 0 | AB226: 0 | AC226: 0 | AD226: 0 | AE226: 0 | AF226: 0 | AG226: 0 | AH226: 0 | AI226: 0 | AJ226: 0 | AK226: 0 | AL226: 0 | AM226: 0 | AN226: 0 | AO226: 0 | AP226: =$F$226*AP3*AP149*AP224 -> 0 | AQ226: 0 | AR226: 0 | AS226: 0 | AT226: 0 | AU226: 0 | AV226: 0 | AW226: 0 | AX226: 0 | AY226: 0 | AZ226: 0 | BA226: 0 | BB226: 0 | BC226: 0 | BD226: 0 | BE226: 0 | BF226: 0 | BG226: 0 | BH226: 0 | BI226: 0 | BJ226: 0 | BK226: 0 | BL226: 0 | BM226: 0 | BN226: 0 | BO226: 0 | BP226: 0 | BQ226: 0 | BR226: 0 | BS226: 0 | BT226: 0 | BU226: 0 | BV226: =$F$226*BV3*BV149*BV224 -> 0 | BW226: 0 | BX226: 0 | BY226: 0 | BZ226: 0 | CA226: 0 | CB226: 0 | CC226: 0 | CD226: 0 | CE226: 0 | CF226: 0 | CG226: 0 | CH226: 0 | CI226: 0 | CJ226: 0 | CK226: 0 | CL226: 0 | CM226: 0 | CN226: 0 | CO226: 0 | CP226: 0 | CQ226: 0 | CR226: 0 | CS226: 0 | CT226: 0 | CU226: 0 | CV226: 0 | CW226: 0 | CX226: 0 | CY226: 0 | CZ226: 0 | DA226: 0 | DB226: =$F$226*DB3*DB149*DB224 -> 0 | DC226: 0 | DD226: 0 | DE226: 0 | DF226: 0 | DG226: 0 | DH226: 0 | DI226: 0 | DJ226: 0 | DK226: 0 | DL226: 0 | DM226: 0 | DN226: 0 | DO226: 0 | DP226: 0 | DQ226: 0 | DR226: 0 | DS226: 0 | DT226: 0 | DU226: 0 | DV226: 0 | DW226: 0 | DX226: 0 | DY226: 0 | DZ226: 0 | EA226: 0 | EB226: 0 | EC226: 0 | ED226: 0 | EE226: 0 | EF226: 0 | EG226: 0 | EH226: =$F$226*EH3*EH149*EH224 -> 0 | EI226: 0 | EJ226: 0 | EK226: 0 | EL226: 0 | EM226: 0 | EN226: 0 | EO226: 0 | EP226: 0 | EQ226: 0 | ER226: 0 | ES226: 0 | ET226: 0 | EU226: 0 | EV226: 0 | EW226: 0 | EX226: 0 | EY226: 0 | EZ226: 0 | FA226: 0 | FB226: 0 | FC226: 0
B228: Actual generation | E228: MWh | J228: =J189 -> 0 | K228: 0 | L228: 0 | M228: 0 | N228: 0 | O228: 0 | P228: 0 | Q228: 0 | R228: 0 | S228: 0 | T228: 0 | U228: 0 | V228: 0 | W228: 0 | X228: 0 | Y228: 0 | Z228: 0 | AA228: 0 | AB228: 0 | AC228: 0 | AD228: 0 | AE228: 0 | AF228: 0 | AG228: 0 | AH228: 0 | AI228: 0 | AJ228: 0 | AK228: 0 | AL228: 0 | AM228: 0 | AN228: 0 | AO228: 0 | AP228: =AP189 -> 0 | AQ228: 0 | AR228: 0 | AS228: 0 | AT228: 0 | AU228: 0 | AV228: 0 | AW228: 0 | AX228: 0 | AY228: 0 | AZ228: 0 | BA228: 0 | BB228: 0 | BC228: 0 | BD228: 0 | BE228: 0 | BF228: 0 | BG228: 0 | BH228: 0 | BI228: 0 | BJ228: 960530.4 | BK228: 955281.6 | BL228: 960530.4 | BM228: 955281.6 | BN228: 960530.4 | BO228: 960530.4 | BP228: 960530.4 | BQ228: 955281.6 | BR228: 889380 | BS228: 884520 | BT228: 889380 | BU228: 884520 | BV228: =BV189 -> 679380 | BW228: 889380 | BX228: 889380 | BY228: 884520 | BZ228: 889380 | CA228: 884520 | CB228: 889380 | CC228: 884520 | CD228: 889380 | CE228: 889380 | CF228: 889380 | CG228: 884520 | CH228: 889380 | CI228: 884520 | CJ228: 679380 | CK228: 884520 | CL228: 889380 | CM228: 889380 | CN228: 889380 | CO228: 884520 | CP228: 889380 | CQ228: 884520 | CR228: 889380 | CS228: 884520 | CT228: 889380 | CU228: 889380 | CV228: 889380 | CW228: 884520 | CX228: 679380 | CY228: 884520 | CZ228: 889380 | DA228: 884520 | DB228: =DB189 -> 889380 | DC228: 889380 | DD228: 889380 | DE228: 884520 | DF228: 889380 | DG228: 884520 | DH228: 0 | DI228: 0 | DJ228: 0 | DK228: 0 | DL228: 0 | DM228: 0 | DN228: 0 | DO228: 0 | DP228: 0 | DQ228: 0 | DR228: 0 | DS228: 0 | DT228: 0 | DU228: 0 | DV228: 0 | DW228: 0 | DX228: 0 | DY228: 0 | DZ228: 0 | EA228: 0 | EB228: 0 | EC228: 0 | ED228: 0 | EE228: 0 | EF228: 0 | EG228: 0 | EH228: =EH189 -> 0 | EI228: 0 | EJ228: 0 | EK228: 0 | EL228: 0 | EM228: 0 | EN228: 0 | EO228: 0 | EP228: 0 | EQ228: 0 | ER228: 0 | ES228: 0 | ET228: 0 | EU228: 0 | EV228: 0 | EW228: 0 | EX228: 0 | EY228: 0 | EZ228: 0 | FA228: 0 | FB228: 0 | FC228: 0
B229: Contract Heat rate | E229: MMBtu/MWh | F229: =F91 -> 6.9 | J229: =$F$229 -> 6.9 | K229: =$F$229 -> 6.9 | L229: 6.9 | M229: 6.9 | N229: 6.9 | O229: 6.9 | P229: 6.9 | Q229: 6.9 | R229: 6.9 | S229: 6.9 | T229: 6.9 | U229: 6.9 | V229: 6.9 | W229: 6.9 | X229: 6.9 | Y229: 6.9 | Z229: 6.9 | AA229: 6.9 | AB229: 6.9 | AC229: 6.9 | AD229: 6.9 | AE229: 6.9 | AF229: 6.9 | AG229: 6.9 | AH229: 6.9 | AI229: 6.9 | AJ229: 6.9 | AK229: 6.9 | AL229: 6.9 | AM229: 6.9 | AN229: 6.9 | AO229: 6.9 | AP229: 6.9 | AQ229: 6.9 | AR229: 6.9 | AS229: 6.9 | AT229: 6.9 | AU229: 6.9 | AV229: 6.9 | AW229: 6.9 | AX229: 6.9 | AY229: 6.9 | AZ229: 6.9 | BA229: 6.9 | BB229: 6.9 | BC229: 6.9 | BD229: 6.9 | BE229: 6.9 | BF229: 6.9 | BG229: 6.9 | BH229: 6.9 | BI229: 6.9 | BJ229: 6.9 | BK229: 6.9 | BL229: 6.9 | BM229: 6.9 | BN229: 6.9 | BO229: 6.9 | BP229: 6.9 | BQ229: 6.9 | BR229: 6.9 | BS229: 6.9 | BT229: 6.9 | BU229: 6.9 | BV229: 6.9 | BW229: =$F$229 -> 6.9 | BX229: 6.9 | BY229: 6.9 | BZ229: 6.9 | CA229: 6.9 | CB229: 6.9 | CC229: 6.9 | CD229: 6.9 | CE229: 6.9 | CF229: 6.9 | CG229: 6.9 | CH229: 6.9 | CI229: 6.9 | CJ229: 6.9 | CK229: 6.9 | CL229: 6.9 | CM229: 6.9 | CN229: 6.9 | CO229: 6.9 | CP229: 6.9 | CQ229: 6.9 | CR229: 6.9 | CS229: 6.9 | CT229: 6.9 | CU229: 6.9 | CV229: 6.9 | CW229: 6.9 | CX229: 6.9 | CY229: 6.9 | CZ229: 6.9 | DA229: 6.9 | DB229: 6.9 | DC229: 6.9 | DD229: 6.9 | DE229: 6.9 | DF229: 6.9 | DG229: 6.9 | DH229: 6.9 | DI229: 6.9 | DJ229: 6.9 | DK229: 6.9 | DL229: 6.9 | DM229: 6.9 | DN229: 6.9 | DO229: 6.9 | DP229: 6.9 | DQ229: 6.9 | DR229: 6.9 | DS229: 6.9 | DT229: 6.9 | DU229: 6.9 | DV229: 6.9 | DW229: 6.9 | DX229: 6.9 | DY229: 6.9 | DZ229: 6.9 | EA229: 6.9 | EB229: 6.9 | EC229: 6.9 | ED229: 6.9 | EE229: 6.9 | EF229: 6.9 | EG229: 6.9 | EH229: 6.9 | EI229: =$F$229 -> 6.9 | EJ229: 6.9 | EK229: 6.9 | EL229: 6.9 | EM229: 6.9 | EN229: 6.9 | EO229: 6.9 | EP229: 6.9 | EQ229: 6.9 | ER229: 6.9 | ES229: 6.9 | ET229: 6.9 | EU229: 6.9 | EV229: 6.9 | EW229: 6.9 | EX229: 6.9 | EY229: 6.9 | EZ229: 6.9 | FA229: 6.9 | FB229: 6.9 | FC229: 6.9
B230: Actual fuel cost | E230: USD/MMBtu | J230: =J214 -> 1.7 | K230: =K214 -> 1.7 | L230: 1.7 | M230: 1.7 | N230: 1.7 | O230: 1.7 | P230: 1.7 | Q230: 1.7 | R230: 1.7 | S230: 1.7 | T230: 1.7 | U230: 1.7 | V230: 1.7 | W230: 1.7 | X230: 1.7 | Y230: 1.7 | Z230: 1.7 | AA230: 1.7 | AB230: 1.7 | AC230: 1.7 | AD230: 1.7 | AE230: 1.7 | AF230: 1.7 | AG230: 1.7 | AH230: 1.7 | AI230: 1.7 | AJ230: 1.7 | AK230: 1.7 | AL230: 1.7 | AM230: 1.7 | AN230: 1.7 | AO230: 1.7 | AP230: 1.7 | AQ230: 1.7 | AR230: 1.7 | AS230: 1.7 | AT230: 1.7 | AU230: 1.7 | AV230: 1.7 | AW230: 1.7 | AX230: 1.7 | AY230: 1.7 | AZ230: 1.7 | BA230: 1.7 | BB230: 1.7 | BC230: 1.7 | BD230: 1.7 | BE230: 1.7 | BF230: 1.7 | BG230: 1.7 | BH230: 1.7 | BI230: 1.7 | BJ230: 1.7 | BK230: 1.7 | BL230: 1.7 | BM230: 1.7 | BN230: 1.7 | BO230: 1.7 | BP230: 1.7 | BQ230: 1.7 | BR230: 1.7 | BS230: 1.7 | BT230: 1.7 | BU230: 1.7 | BV230: 1.7 | BW230: =BW214 -> 1.7 | BX230: 1.7 | BY230: 1.7 | BZ230: 1.7 | CA230: 1.7 | CB230: 1.7 | CC230: 1.7 | CD230: 1.7 | CE230: 1.7 | CF230: 1.7 | CG230: 1.7 | CH230: 1.7 | CI230: 1.7 | CJ230: 1.7 | CK230: 1.7 | CL230: 1.7 | CM230: 1.7 | CN230: 1.7 | CO230: 1.7 | CP230: 1.7 | CQ230: 1.7 | CR230: 1.7 | CS230: 1.7 | CT230: 1.7 | CU230: 1.7 | CV230: 1.7 | CW230: 1.7 | CX230: 1.7 | CY230: 1.7 | CZ230: 1.7 | DA230: 1.7 | DB230: 1.7 | DC230: 1.7 | DD230: 1.7 | DE230: 1.7 | DF230: 1.7 | DG230: 1.7 | DH230: 1.7 | DI230: 1.7 | DJ230: 1.7 | DK230: 1.7 | DL230: 1.7 | DM230: 1.7 | DN230: 1.7 | DO230: 1.7 | DP230: 1.7 | DQ230: 1.7 | DR230: 1.7 | DS230: 1.7 | DT230: 1.7 | DU230: 1.7 | DV230: 1.7 | DW230: 1.7 | DX230: 1.7 | DY230: 1.7 | DZ230: 1.7 | EA230: 1.7 | EB230: 1.7 | EC230: 1.7 | ED230: 1.7 | EE230: 1.7 | EF230: 1.7 | EG230: 1.7 | EH230: 1.7 | EI230: =EI214 -> 1.7 | EJ230: 1.7 | EK230: 1.7 | EL230: 1.7 | EM230: 1.7 | EN230: 1.7 | EO230: 1.7 | EP230: 1.7 | EQ230: 1.7 | ER230: 1.7 | ES230: 1.7 | ET230: 1.7 | EU230: 1.7 | EV230: 1.7 | EW230: 1.7 | EX230: 1.7 | EY230: 1.7 | EZ230: 1.7 | FA230: 1.7 | FB230: 1.7 | FC230: 1.7
B231: Fuel charge | E231: USD/MWh | J231: =J229*J230 -> 11.73 | K231: =K229*K230 -> 11.73 | L231: 11.73 | M231: 11.73 | N231: 11.73 | O231: 11.73 | P231: 11.73 | Q231: 11.73 | R231: 11.73 | S231: 11.73 | T231: 11.73 | U231: 11.73 | V231: 11.73 | W231: 11.73 | X231: 11.73 | Y231: 11.73 | Z231: 11.73 | AA231: 11.73 | AB231: 11.73 | AC231: 11.73 | AD231: 11.73 | AE231: 11.73 | AF231: 11.73 | AG231: 11.73 | AH231: 11.73 | AI231: 11.73 | AJ231: 11.73 | AK231: 11.73 | AL231: 11.73 | AM231: 11.73 | AN231: 11.73 | AO231: 11.73 | AP231: 11.73 | AQ231: 11.73 | AR231: 11.73 | AS231: 11.73 | AT231: 11.73 | AU231: 11.73 | AV231: 11.73 | AW231: 11.73 | AX231: 11.73 | AY231: 11.73 | AZ231: 11.73 | BA231: 11.73 | BB231: 11.73 | BC231: 11.73 | BD231: 11.73 | BE231: 11.73 | BF231: 11.73 | BG231: 11.73 | BH231: 11.73 | BI231: 11.73 | BJ231: 11.73 | BK231: 11.73 | BL231: 11.73 | BM231: 11.73 | BN231: 11.73 | BO231: 11.73 | BP231: 11.73 | BQ231: 11.73 | BR231: 11.73 | BS231: 11.73 | BT231: 11.73 | BU231: 11.73 | BV231: 11.73 | BW231: =BW229*BW230 -> 11.73 | BX231: 11.73 | BY231: 11.73 | BZ231: 11.73 | CA231: 11.73 | CB231: 11.73 | CC231: 11.73 | CD231: 11.73 | CE231: 11.73 | CF231: 11.73 | CG231: 11.73 | CH231: 11.73 | CI231: 11.73 | CJ231: 11.73 | CK231: 11.73 | CL231: 11.73 | CM231: 11.73 | CN231: 11.73 | CO231: 11.73 | CP231: 11.73 | CQ231: 11.73 | CR231: 11.73 | CS231: 11.73 | CT231: 11.73 | CU231: 11.73 | CV231: 11.73 | CW231: 11.73 | CX231: 11.73 | CY231: 11.73 | CZ231: 11.73 | DA231: 11.73 | DB231: 11.73 | DC231: 11.73 | DD231: 11.73 | DE231: 11.73 | DF231: 11.73 | DG231: 11.73 | DH231: 11.73 | DI231: 11.73 | DJ231: 11.73 | DK231: 11.73 | DL231: 11.73 | DM231: 11.73 | DN231: 11.73 | DO231: 11.73 | DP231: 11.73 | DQ231: 11.73 | DR231: 11.73 | DS231: 11.73 | DT231: 11.73 | DU231: 11.73 | DV231: 11.73 | DW231: 11.73 | DX231: 11.73 | DY231: 11.73 | DZ231: 11.73 | EA231: 11.73 | EB231: 11.73 | EC231: 11.73 | ED231: 11.73 | EE231: 11.73 | EF231: 11.73 | EG231: 11.73 | EH231: 11.73 | EI231: =EI229*EI230 -> 11.73 | EJ231: 11.73 | EK231: 11.73 | EL231: 11.73 | EM231: 11.73 | EN231: 11.73 | EO231: 11.73 | EP231: 11.73 | EQ231: 11.73 | ER231: 11.73 | ES231: 11.73 | ET231: 11.73 | EU231: 11.73 | EV231: 11.73 | EW231: 11.73 | EX231: 11.73 | EY231: 11.73 | EZ231: 11.73 | FA231: 11.73 | FB231: 11.73 | FC231: 11.73
B233: Energy Revenue | E233: $'000 | J233: =J231*J228/1000*J224 -> 0 | K233: =K231*K228/1000*K224 -> 0 | L233: 0 | M233: 0 | N233: 0 | O233: 0 | P233: 0 | Q233: 0 | R233: 0 | S233: 0 | T233: 0 | U233: 0 | V233: 0 | W233: 0 | X233: 0 | Y233: 0 | Z233: 0 | AA233: 0 | AB233: 0 | AC233: 0 | AD233: 0 | AE233: 0 | AF233: 0 | AG233: 0 | AH233: 0 | AI233: 0 | AJ233: 0 | AK233: 0 | AL233: 0 | AM233: 0 | AN233: 0 | AO233: 0 | AP233: 0 | AQ233: 0 | AR233: 0 | AS233: 0 | AT233: 0 | AU233: 0 | AV233: 0 | AW233: 0 | AX233: 0 | AY233: 0 | AZ233: 0 | BA233: 0 | BB233: 0 | BC233: 0 | BD233: 0 | BE233: 0 | BF233: 0 | BG233: 0 | BH233: 0 | BI233: 0 | BJ233: 0 | BK233: 0 | BL233: 0 | BM233: 0 | BN233: 0 | BO233: 0 | BP233: 0 | BQ233: 0 | BR233: 0 | BS233: 0 | BT233: 0 | BU233: 0 | BV233: 0 | BW233: =BW231*BW228/1000*BW224 -> 0 | BX233: 0 | BY233: 0 | BZ233: 0 | CA233: 0 | CB233: 0 | CC233: 0 | CD233: 0 | CE233: 0 | CF233: 0 | CG233: 0 | CH233: 0 | CI233: 0 | CJ233: 0 | CK233: 0 | CL233: 0 | CM233: 0 | CN233: 0 | CO233: 0 | CP233: 0 | CQ233: 0 | CR233: 0 | CS233: 0 | CT233: 0 | CU233: 0 | CV233: 0 | CW233: 0 | CX233: 0 | CY233: 0 | CZ233: 0 | DA233: 0 | DB233: 0 | DC233: 0 | DD233: 0 | DE233: 0 | DF233: 0 | DG233: 0 | DH233: 0 | DI233: 0 | DJ233: 0 | DK233: 0 | DL233: 0 | DM233: 0 | DN233: 0 | DO233: 0 | DP233: 0 | DQ233: 0 | DR233: 0 | DS233: 0 | DT233: 0 | DU233: 0 | DV233: 0 | DW233: 0 | DX233: 0 | DY233: 0 | DZ233: 0 | EA233: 0 | EB233: 0 | EC233: 0 | ED233: 0 | EE233: 0 | EF233: 0 | EG233: 0 | EH233: 0 | EI233: =EI231*EI228/1000*EI224 -> 0 | EJ233: 0 | EK233: 0 | EL233: 0 | EM233: 0 | EN233: 0 | EO233: 0 | EP233: 0 | EQ233: 0 | ER233: 0 | ES233: 0 | ET233: 0 | EU233: 0 | EV233: 0 | EW233: 0 | EX233: 0 | EY233: 0 | EZ233: 0 | FA233: 0 | FB233: 0 | FC233: 0
B235: Fixed O&M charge | E235: USD/kW-period | F235: =F92 -> 16 | G235: USD/kW-yr | J235: =$F$235/12*J3*J212 -> 1.334439384 | K235: 1.335546352 | L235: 1.336654239 | M235: 1.337763045 | N235: 1.33887277 | O235: 1.339983416 | P235: 1.341094983 | Q235: 1.342207473 | R235: 1.343320885 | S235: 1.344435221 | T235: 1.345550481 | U235: 1.346666667 | V235: 1.347783778 | W235: 1.348901816 | X235: 1.350020781 | Y235: 1.351140675 | Z235: 1.352261498 | AA235: 1.35338325 | AB235: 1.354505933 | AC235: 1.355629548 | AD235: 1.356754094 | AE235: 1.357879573 | AF235: 1.359005986 | AG235: 1.360133333 | AH235: 1.361261616 | AI235: 1.362390834 | AJ235: 1.363520989 | AK235: 1.364652082 | AL235: 1.365784113 | AM235: 1.366917083 | AN235: 1.368050993 | AO235: 1.369185843 | AP235: =$F$235/12*AP3*AP212 -> 1.370321635 | AQ235: 1.371458369 | AR235: 1.372596046 | AS235: 1.373734667 | AT235: 1.374874232 | AU235: 1.376014743 | AV235: 1.377156199 | AW235: 1.378298603 | AX235: 1.379441954 | AY235: 1.380586254 | AZ235: 1.381731503 | BA235: 1.382877702 | BB235: 1.384024851 | BC235: 1.385172953 | BD235: 1.386322006 | BE235: 1.387472013 | BF235: 1.388622974 | BG235: 1.38977489 | BH235: 1.390927761 | BI235: 1.392081589 | BJ235: 8.394148093 | BK235: 8.436014428 | BL235: 8.478089574 | BM235: 8.520374572 | BN235: 8.56287047 | BO235: 8.605578318 | BP235: 8.648499174 | BQ235: 8.691634101 | BR235: 8.734984166 | BS235: 8.778550442 | BT235: 8.822334008 | BU235: 8.866335947 | BV235: =$F$235/12*BV3*BV212 -> 8.910557348 | BW235: 8.954999306 | BX235: 8.999662921 | BY235: 9.044549299 | BZ235: 9.08965955 | CA235: 9.134994792 | CB235: 9.180556146 | CC235: 9.22634474 | CD235: 9.272361707 | CE235: 9.318608187 | CF235: 9.365085325 | CG235: 9.411794269 | CH235: 9.458736178 | CI235: 9.505912212 | CJ235: 9.55332354 | CK235: 9.600971334 | CL235: 9.648856775 | CM235: 9.696981047 | CN235: 9.745345343 | CO235: 9.793950858 | CP235: 9.842798796 | CQ235: 9.891890366 | CR235: 9.941226784 | CS235: 9.99080927 | CT235: 10.04063905 | CU235: 10.09071736 | CV235: 10.14104544 | CW235: 10.19162454 | CX235: 10.2424559 | CY235: 10.29354078 | CZ235: 10.34488046 | DA235: 10.39647619 | DB235: =$F$235/12*DB3*DB212 -> 10.44832926 | DC235: 10.50044095 | DD235: 10.55281255 | DE235: 10.60544536 | DF235: 10.65834068 | DG235: 10.71149981 | DH235: 10.76492409 | DI235: 10.81861481 | DJ235: 10.87257333 | DK235: 10.92680096 | DL235: 10.98129906 | DM235: 11.03606897 | DN235: 11.09111205 | DO235: 11.14642966 | DP235: 11.20202317 | DQ235: 11.25789396 | DR235: 11.3140434 | DS235: 11.3704729 | DT235: 11.42718384 | DU235: 11.48417763 | DV235: 11.54145567 | DW235: 11.5990194 | DX235: 11.65687023 | DY235: 11.7150096 | DZ235: 11.77343893 | EA235: 11.83215969 | EB235: 11.89117332 | EC235: 11.95048129 | ED235: 12.01008506 | EE235: 12.0699861 | EF235: 12.13018591 | EG235: 12.19068596 | EH235: =$F$235/12*EH3*EH212 -> 12.25148777 | EI235: 12.31259282 | EJ235: 12.37400264 | EK235: 12.43571875 | EL235: 12.49774267 | EM235: 12.56007594 | EN235: 12.6227201 | EO235: 12.6856767 | EP235: 12.7489473 | EQ235: 12.81253346 | ER235: 12.87643677 | ES235: 12.9406588 | ET235: 13.00520114 | EU235: 13.07006539 | EV235: 13.13525315 | EW235: 13.20076604 | EX235: 13.26660568 | EY235: 13.3327737 | EZ235: 13.39927174 | FA235: 13.46610144 | FB235: 13.53326446 | FC235: 13.60076245
B236: Capacity | E236: MW | J236: =J149 -> 0 | K236: 0 | L236: 0 | M236: 0 | N236: 0 | O236: 0 | P236: 0 | Q236: 0 | R236: 0 | S236: 0 | T236: 0 | U236: 0 | V236: 0 | W236: 0 | X236: 0 | Y236: 0 | Z236: 0 | AA236: 0 | AB236: 0 | AC236: 0 | AD236: 0 | AE236: 0 | AF236: 0 | AG236: 0 | AH236: 0 | AI236: 0 | AJ236: 0 | AK236: 0 | AL236: 0 | AM236: 0 | AN236: 0 | AO236: 0 | AP236: =AP149 -> 0 | AQ236: 0 | AR236: 0 | AS236: 0 | AT236: 0 | AU236: 0 | AV236: 0 | AW236: 0 | AX236: 0 | AY236: 0 | AZ236: 0 | BA236: 0 | BB236: 0 | BC236: 0 | BD236: 0 | BE236: 0 | BF236: 0 | BG236: 0 | BH236: 0 | BI236: 0 | BJ236: 300 | BK236: 300 | BL236: 300 | BM236: 300 | BN236: 300 | BO236: 300 | BP236: 300 | BQ236: 300 | BR236: 300 | BS236: 300 | BT236: 300 | BU236: 300 | BV236: =BV149 -> 300 | BW236: 300 | BX236: 300 | BY236: 300 | BZ236: 300 | CA236: 300 | CB236: 300 | CC236: 300 | CD236: 300 | CE236: 300 | CF236: 300 | CG236: 300 | CH236: 300 | CI236: 300 | CJ236: 300 | CK236: 300 | CL236: 300 | CM236: 300 | CN236: 300 | CO236: 300 | CP236: 300 | CQ236: 300 | CR236: 300 | CS236: 300 | CT236: 300 | CU236: 300 | CV236: 300 | CW236: 300 | CX236: 300 | CY236: 300 | CZ236: 300 | DA236: 300 | DB236: =DB149 -> 300 | DC236: 300 | DD236: 300 | DE236: 300 | DF236: 300 | DG236: 300 | DH236: 0 | DI236: 0 | DJ236: 0 | DK236: 0 | DL236: 0 | DM236: 0 | DN236: 0 | DO236: 0 | DP236: 0 | DQ236: 0 | DR236: 0 | DS236: 0 | DT236: 0 | DU236: 0 | DV236: 0 | DW236: 0 | DX236: 0 | DY236: 0 | DZ236: 0 | EA236: 0 | EB236: 0 | EC236: 0 | ED236: 0 | EE236: 0 | EF236: 0 | EG236: 0 | EH236: =EH149 -> 0 | EI236: 0 | EJ236: 0 | EK236: 0 | EL236: 0 | EM236: 0 | EN236: 0 | EO236: 0 | EP236: 0 | EQ236: 0 | ER236: 0 | ES236: 0 | ET236: 0 | EU236: 0 | EV236: 0 | EW236: 0 | EX236: 0 | EY236: 0 | EZ236: 0 | FA236: 0 | FB236: 0 | FC236: 0
B237: Fixed O&M revenues | E237: $'000 | J237: =J235*J236*J224 -> 0 | K237: =K235*K236*K224 -> 0 | L237: 0 | M237: 0 | N237: 0 | O237: 0 | P237: 0 | Q237: 0 | R237: 0 | S237: 0 | T237: 0 | U237: 0 | V237: 0 | W237: 0 | X237: 0 | Y237: 0 | Z237: 0 | AA237: 0 | AB237: 0 | AC237: 0 | AD237: 0 | AE237: 0 | AF237: 0 | AG237: 0 | AH237: 0 | AI237: 0 | AJ237: 0 | AK237: 0 | AL237: 0 | AM237: 0 | AN237: 0 | AO237: 0 | AP237: 0 | AQ237: 0 | AR237: 0 | AS237: 0 | AT237: 0 | AU237: 0 | AV237: 0 | AW237: 0 | AX237: 0 | AY237: 0 | AZ237: 0 | BA237: 0 | BB237: 0 | BC237: 0 | BD237: 0 | BE237: 0 | BF237: 0 | BG237: 0 | BH237: 0 | BI237: 0 | BJ237: 0 | BK237: 0 | BL237: 0 | BM237: 0 | BN237: 0 | BO237: 0 | BP237: 0 | BQ237: 0 | BR237: 0 | BS237: 0 | BT237: 0 | BU237: 0 | BV237: 0 | BW237: =BW235*BW236*BW224 -> 0 | BX237: 0 | BY237: 0 | BZ237: 0 | CA237: 0 | CB237: 0 | CC237: 0 | CD237: 0 | CE237: 0 | CF237: 0 | CG237: 0 | CH237: 0 | CI237: 0 | CJ237: 0 | CK237: 0 | CL237: 0 | CM237: 0 | CN237: 0 | CO237: 0 | CP237: 0 | CQ237: 0 | CR237: 0 | CS237: 0 | CT237: 0 | CU237: 0 | CV237: 0 | CW237: 0 | CX237: 0 | CY237: 0 | CZ237: 0 | DA237: 0 | DB237: 0 | DC237: 0 | DD237: 0 | DE237: 0 | DF237: 0 | DG237: 0 | DH237: 0 | DI237: 0 | DJ237: 0 | DK237: 0 | DL237: 0 | DM237: 0 | DN237: 0 | DO237: 0 | DP237: 0 | DQ237: 0 | DR237: 0 | DS237: 0 | DT237: 0 | DU237: 0 | DV237: 0 | DW237: 0 | DX237: 0 | DY237: 0 | DZ237: 0 | EA237: 0 | EB237: 0 | EC237: 0 | ED237: 0 | EE237: 0 | EF237: 0 | EG237: 0 | EH237: 0 | EI237: =EI235*EI236*EI224 -> 0 | EJ237: 0 | EK237: 0 | EL237: 0 | EM237: 0 | EN237: 0 | EO237: 0 | EP237: 0 | EQ237: 0 | ER237: 0 | ES237: 0 | ET237: 0 | EU237: 0 | EV237: 0 | EW237: 0 | EX237: 0 | EY237: 0 | EZ237: 0 | FA237: 0 | FB237: 0 | FC237: 0
B239: Variable O&M charge | E239: USD/MWh | F239: =F93 -> 3 | J239: =$F$239*J212 -> 3.002488614 | K239: =$F$239*K212 -> 3.004979293 | L239: 3.007472038 | M239: 3.009966851 | N239: 3.012463733 | O239: 3.014962686 | P239: 3.017463713 | Q239: 3.019966814 | R239: 3.022471992 | S239: 3.024979247 | T239: 3.027488583 | U239: 3.03 | V239: 3.0325135 | W239: 3.035029086 | X239: 3.037546758 | Y239: 3.040066519 | Z239: 3.04258837 | AA239: 3.045112313 | AB239: 3.04763835 | AC239: 3.050166482 | AD239: 3.052696711 | AE239: 3.05522904 | AF239: 3.057763469 | AG239: 3.0603 | AH239: 3.062838635 | AI239: 3.065379377 | AJ239: 3.067922226 | AK239: 3.070467184 | AL239: 3.073014254 | AM239: 3.075563436 | AN239: 3.078114733 | AO239: 3.080668147 | AP239: 3.083223679 | AQ239: 3.08578133 | AR239: 3.088341103 | AS239: 3.090903 | AT239: 3.093467022 | AU239: 3.096033171 | AV239: 3.098601448 | AW239: 3.101171856 | AX239: 3.103744396 | AY239: 3.106319071 | AZ239: 3.108895881 | BA239: 3.111474828 | BB239: 3.114055915 | BC239: 3.116639143 | BD239: 3.119224514 | BE239: 3.12181203 | BF239: 3.124401692 | BG239: 3.126993502 | BH239: 3.129587463 | BI239: 3.132183575 | BJ239: 3.147805535 | BK239: 3.16350541 | BL239: 3.17928359 | BM239: 3.195140465 | BN239: 3.211076426 | BO239: 3.227091869 | BP239: 3.24318719 | BQ239: 3.259362788 | BR239: 3.275619062 | BS239: 3.291956416 | BT239: 3.308375253 | BU239: 3.32487598 | BV239: 3.341459005 | BW239: =$F$239*BW212 -> 3.35812474 | BX239: 3.374873595 | BY239: 3.391705987 | BZ239: 3.408622331 | CA239: 3.425623047 | CB239: 3.442708555 | CC239: 3.459879277 | CD239: 3.47713564 | CE239: 3.49447807 | CF239: 3.511906997 | CG239: 3.529422851 | CH239: 3.547026067 | CI239: 3.564717079 | CJ239: 3.582496327 | CK239: 3.60036425 | CL239: 3.618321291 | CM239: 3.636367893 | CN239: 3.654504504 | CO239: 3.672731572 | CP239: 3.691049549 | CQ239: 3.709458887 | CR239: 3.727960044 | CS239: 3.746553476 | CT239: 3.765239644 | CU239: 3.784019011 | CV239: 3.802892041 | CW239: 3.821859201 | CX239: 3.840920961 | CY239: 3.860077793 | CZ239: 3.879330171 | DA239: 3.898678571 | DB239: 3.918123473 | DC239: 3.937665357 | DD239: 3.957304707 | DE239: 3.97704201 | DF239: 3.996877754 | DG239: 4.01681243 | DH239: 4.036846532 | DI239: 4.056980555 | DJ239: 4.077214997 | DK239: 4.09755036 | DL239: 4.117987147 | DM239: 4.138525864 | DN239: 4.159167019 | DO239: 4.179911123 | DP239: 4.200758689 | DQ239: 4.221710234 | DR239: 4.242766276 | DS239: 4.263927336 | DT239: 4.285193939 | DU239: 4.30656661 | DV239: 4.328045878 | DW239: 4.349632276 | DX239: 4.371326337 | DY239: 4.393128598 | DZ239: 4.4150396 | EA239: 4.437059884 | EB239: 4.459189996 | EC239: 4.481430483 | ED239: 4.503781896 | EE239: 4.526244788 | EF239: 4.548819715 | EG239: 4.571507236 | EH239: 4.594307912 | EI239: =$F$239*EI212 -> 4.617222308 | EJ239: 4.640250991 | EK239: 4.663394531 | EL239: 4.686653501 | EM239: 4.710028477 | EN239: 4.733520036 | EO239: 4.757128761 | EP239: 4.780855237 | EQ239: 4.804700049 | ER239: 4.828663789 | ES239: 4.85274705 | ET239: 4.876950427 | EU239: 4.90127452 | EV239: 4.925719931 | EW239: 4.950287265 | EX239: 4.97497713 | EY239: 4.999790138 | EZ239: 5.024726902 | FA239: 5.049788039 | FB239: 5.074974171 | FC239: 5.10028592
B240: Variable O&M revenue | E240: $'000 | J240: =J239*J228/1000*J224 -> 0 | K240: =K239*K228/1000*K224 -> 0 | L240: 0 | M240: 0 | N240: 0 | O240: 0 | P240: 0 | Q240: 0 | R240: 0 | S240: 0 | T240: 0 | U240: 0 | V240: 0 | W240: 0 | X240: 0 | Y240: 0 | Z240: 0 | AA240: 0 | AB240: 0 | AC240: 0 | AD240: 0 | AE240: 0 | AF240: 0 | AG240: 0 | AH240: 0 | AI240: 0 | AJ240: 0 | AK240: 0 | AL240: 0 | AM240: 0 | AN240: 0 | AO240: 0 | AP240: 0 | AQ240: 0 | AR240: 0 | AS240: 0 | AT240: 0 | AU240: 0 | AV240: 0 | AW240: 0 | AX240: 0 | AY240: 0 | AZ240: 0 | BA240: 0 | BB240: 0 | BC240: 0 | BD240: 0 | BE240: 0 | BF240: 0 | BG240: 0 | BH240: 0 | BI240: 0 | BJ240: 0 | BK240: 0 | BL240: 0 | BM240: 0 | BN240: 0 | BO240: 0 | BP240: 0 | BQ240: 0 | BR240: 0 | BS240: 0 | BT240: 0 | BU240: 0 | BV240: 0 | BW240: =BW239*BW228/1000*BW224 -> 0 | BX240: 0 | BY240: 0 | BZ240: 0 | CA240: 0 | CB240: 0 | CC240: 0 | CD240: 0 | CE240: 0 | CF240: 0 | CG240: 0 | CH240: 0 | CI240: 0 | CJ240: 0 | CK240: 0 | CL240: 0 | CM240: 0 | CN240: 0 | CO240: 0 | CP240: 0 | CQ240: 0 | CR240: 0 | CS240: 0 | CT240: 0 | CU240: 0 | CV240: 0 | CW240: 0 | CX240: 0 | CY240: 0 | CZ240: 0 | DA240: 0 | DB240: 0 | DC240: 0 | DD240: 0 | DE240: 0 | DF240: 0 | DG240: 0 | DH240: 0 | DI240: 0 | DJ240: 0 | DK240: 0 | DL240: 0 | DM240: 0 | DN240: 0 | DO240: 0 | DP240: 0 | DQ240: 0 | DR240: 0 | DS240: 0 | DT240: 0 | DU240: 0 | DV240: 0 | DW240: 0 | DX240: 0 | DY240: 0 | DZ240: 0 | EA240: 0 | EB240: 0 | EC240: 0 | ED240: 0 | EE240: 0 | EF240: 0 | EG240: 0 | EH240: 0 | EI240: =EI239*EI228/1000*EI224 -> 0 | EJ240: 0 | EK240: 0 | EL240: 0 | EM240: 0 | EN240: 0 | EO240: 0 | EP240: 0 | EQ240: 0 | ER240: 0 | ES240: 0 | ET240: 0 | EU240: 0 | EV240: 0 | EW240: 0 | EX240: 0 | EY240: 0 | EZ240: 0 | FA240: 0 | FB240: 0 | FC240: 0
B242: PPA Revenue | E242: $'000 | J242: =J240+J237+J233+J226 -> 0 | K242: =K240+K237+K233+K226 -> 0 | L242: 0 | M242: 0 | N242: 0 | O242: 0 | P242: 0 | Q242: 0 | R242: 0 | S242: 0 | T242: 0 | U242: 0 | V242: 0 | W242: 0 | X242: 0 | Y242: 0 | Z242: 0 | AA242: 0 | AB242: 0 | AC242: 0 | AD242: 0 | AE242: 0 | AF242: 0 | AG242: 0 | AH242: 0 | AI242: 0 | AJ242: 0 | AK242: 0 | AL242: 0 | AM242: 0 | AN242: 0 | AO242: 0 | AP242: 0 | AQ242: 0 | AR242: 0 | AS242: 0 | AT242: 0 | AU242: 0 | AV242: 0 | AW242: 0 | AX242: 0 | AY242: 0 | AZ242: 0 | BA242: 0 | BB242: 0 | BC242: 0 | BD242: 0 | BE242: 0 | BF242: 0 | BG242: 0 | BH242: 0 | BI242: 0 | BJ242: 0 | BK242: 0 | BL242: 0 | BM242: 0 | BN242: 0 | BO242: 0 | BP242: 0 | BQ242: 0 | BR242: 0 | BS242: 0 | BT242: 0 | BU242: 0 | BV242: 0 | BW242: =BW240+BW237+BW233+BW226 -> 0 | BX242: 0 | BY242: 0 | BZ242: 0 | CA242: 0 | CB242: 0 | CC242: 0 | CD242: 0 | CE242: 0 | CF242: 0 | CG242: 0 | CH242: 0 | CI242: 0 | CJ242: 0 | CK242: 0 | CL242: 0 | CM242: 0 | CN242: 0 | CO242: 0 | CP242: 0 | CQ242: 0 | CR242: 0 | CS242: 0 | CT242: 0 | CU242: 0 | CV242: 0 | CW242: 0 | CX242: 0 | CY242: 0 | CZ242: 0 | DA242: 0 | DB242: 0 | DC242: 0 | DD242: 0 | DE242: 0 | DF242: 0 | DG242: 0 | DH242: 0 | DI242: 0 | DJ242: 0 | DK242: 0 | DL242: 0 | DM242: 0 | DN242: 0 | DO242: 0 | DP242: 0 | DQ242: 0 | DR242: 0 | DS242: 0 | DT242: 0 | DU242: 0 | DV242: 0 | DW242: 0 | DX242: 0 | DY242: 0 | DZ242: 0 | EA242: 0 | EB242: 0 | EC242: 0 | ED242: 0 | EE242: 0 | EF242: 0 | EG242: 0 | EH242: 0 | EI242: =EI240+EI237+EI233+EI226 -> 0 | EJ242: 0 | EK242: 0 | EL242: 0 | EM242: 0 | EN242: 0 | EO242: 0 | EP242: 0 | EQ242: 0 | ER242: 0 | ES242: 0 | ET242: 0 | EU242: 0 | EV242: 0 | EW242: 0 | EX242: 0 | EY242: 0 | EZ242: 0 | FA242: 0 | FB242: 0 | FC242: 0
B244: Merchant Revenue
C245: Capacity Price | E245: $/MW/Period | J245: =LOOKUP(J9,96:96,102:102)*J10 -> 4760 | K245: 5270 | L245: 5100 | M245: 5270 | N245: 5100 | O245: 5270 | P245: 5270 | Q245: 5100 | R245: 5270 | S245: 5100 | T245: 5270 | U245: 5270 | V245: 4760 | W245: 5270 | X245: 5100 | Y245: 5270 | Z245: 5100 | AA245: 5270 | AB245: 5270 | AC245: 5100 | AD245: 5270 | AE245: 5100 | AF245: 5270 | AG245: 5270 | AH245: 4760 | AI245: 5270 | AJ245: 5100 | AK245: 5270 | AL245: 5100 | AM245: 5270 | AN245: 5270 | AO245: 5100 | AP245: =LOOKUP(AP9,96:96,102:102)*AP10 -> 5270 | AQ245: 5100 | AR245: 5270 | AS245: 5270 | AT245: 4930 | AU245: 5270 | AV245: 5100 | AW245: 5270 | AX245: 5100 | AY245: 5270 | AZ245: 5270 | BA245: 5100 | BB245: 5270 | BC245: 5100 | BD245: 5270 | BE245: 5270 | BF245: 4760 | BG245: 5270 | BH245: 5100 | BI245: 5270 | BJ245: 31110 | BK245: 30940 | BL245: 31110 | BM245: 30940 | BN245: 31110 | BO245: 31110 | BP245: 31110 | BQ245: 30940 | BR245: 31110 | BS245: 30940 | BT245: 31110 | BU245: 30940 | BV245: =LOOKUP(BV9,96:96,102:102)*BV10 -> 31110 | BW245: 31110 | BX245: 31110 | BY245: 30940 | BZ245: 31110 | CA245: 30940 | CB245: 31110 | CC245: 30940 | CD245: 31110 | CE245: 31110 | CF245: 31110 | CG245: 30940 | CH245: 31110 | CI245: 30940 | CJ245: 31110 | CK245: 30940 | CL245: 31110 | CM245: 31110 | CN245: 31110 | CO245: 30940 | CP245: 31110 | CQ245: 30940 | CR245: 31110 | CS245: 30940 | CT245: 31110 | CU245: 31110 | CV245: 31110 | CW245: 30940 | CX245: 31110 | CY245: 30940 | CZ245: 31110 | DA245: 30940 | DB245: =LOOKUP(DB9,96:96,102:102)*DB10 -> 31110 | DC245: 31110 | DD245: 31110 | DE245: 30940 | DF245: 31110 | DG245: 30940 | DH245: 31110 | DI245: 30940 | DJ245: 31110 | DK245: 31110 | DL245: 31110 | DM245: 30940 | DN245: 31110 | DO245: 30940 | DP245: 31110 | DQ245: 30940 | DR245: 31110 | DS245: 31110 | DT245: 31110 | DU245: 30940 | DV245: 31110 | DW245: 30940 | DX245: 31110 | DY245: 30940 | DZ245: 31110 | EA245: 31110 | EB245: 31110 | EC245: 30940 | ED245: 31110 | EE245: 30940 | EF245: 31110 | EG245: 30940 | EH245: =LOOKUP(EH9,96:96,102:102)*EH10 -> 31110 | EI245: 31110 | EJ245: 31110 | EK245: 30940 | EL245: 31110 | EM245: 30940 | EN245: 31110 | EO245: 30940 | EP245: 31110 | EQ245: 31110 | ER245: 31110 | ES245: 30940 | ET245: 31110 | EU245: 30940 | EV245: 31110 | EW245: 30940 | EX245: 31110 | EY245: 31110 | EZ245: 31110 | FA245: 30940 | FB245: 31110 | FC245: 30940
C246: Capacity Revenues | E246: $'000 | J246: =J245*J149*NOT(J224)/1000 -> 0 | K246: =K245*K149*NOT(K224)/1000 -> 0 | L246: 0 | M246: 0 | N246: 0 | O246: 0 | P246: 0 | Q246: 0 | R246: 0 | S246: 0 | T246: 0 | U246: 0 | V246: 0 | W246: 0 | X246: 0 | Y246: 0 | Z246: 0 | AA246: 0 | AB246: 0 | AC246: 0 | AD246: 0 | AE246: 0 | AF246: 0 | AG246: 0 | AH246: 0 | AI246: 0 | AJ246: 0 | AK246: 0 | AL246: 0 | AM246: 0 | AN246: 0 | AO246: 0 | AP246: 0 | AQ246: 0 | AR246: 0 | AS246: 0 | AT246: 0 | AU246: 0 | AV246: 0 | AW246: 0 | AX246: 0 | AY246: 0 | AZ246: 0 | BA246: 0 | BB246: 0 | BC246: 0 | BD246: 0 | BE246: 0 | BF246: 0 | BG246: 0 | BH246: 0 | BI246: 0 | BJ246: 9333 | BK246: 9282 | BL246: 9333 | BM246: 9282 | BN246: 9333 | BO246: 9333 | BP246: 9333 | BQ246: 9282 | BR246: 9333 | BS246: 9282 | BT246: 9333 | BU246: 9282 | BV246: 9333 | BW246: =BW245*BW149*NOT(BW224)/1000 -> 9333 | BX246: 9333 | BY246: 9282 | BZ246: 9333 | CA246: 9282 | CB246: 9333 | CC246: 9282 | CD246: 9333 | CE246: 9333 | CF246: 9333 | CG246: 9282 | CH246: 9333 | CI246: 9282 | CJ246: 9333 | CK246: 9282 | CL246: 9333 | CM246: 9333 | CN246: 9333 | CO246: 9282 | CP246: 9333 | CQ246: 9282 | CR246: 9333 | CS246: 9282 | CT246: 9333 | CU246: 9333 | CV246: 9333 | CW246: 9282 | CX246: 9333 | CY246: 9282 | CZ246: 9333 | DA246: 9282 | DB246: 9333 | DC246: 9333 | DD246: 9333 | DE246: 9282 | DF246: 9333 | DG246: 9282 | DH246: 0 | DI246: 0 | DJ246: 0 | DK246: 0 | DL246: 0 | DM246: 0 | DN246: 0 | DO246: 0 | DP246: 0 | DQ246: 0 | DR246: 0 | DS246: 0 | DT246: 0 | DU246: 0 | DV246: 0 | DW246: 0 | DX246: 0 | DY246: 0 | DZ246: 0 | EA246: 0 | EB246: 0 | EC246: 0 | ED246: 0 | EE246: 0 | EF246: 0 | EG246: 0 | EH246: 0 | EI246: =EI245*EI149*NOT(EI224)/1000 -> 0 | EJ246: 0 | EK246: 0 | EL246: 0 | EM246: 0 | EN246: 0 | EO246: 0 | EP246: 0 | EQ246: 0 | ER246: 0 | ES246: 0 | ET246: 0 | EU246: 0 | EV246: 0 | EW246: 0 | EX246: 0 | EY246: 0 | EZ246: 0 | FA246: 0 | FB246: 0 | FC246: 0
C248: Spark Spread | E248: $/MWH | J248: =LOOKUP(J9,96:96,111:111) -> 22.44 | K248: 22.44 | L248: 22.44 | M248: 22.44 | N248: 22.8888 | O248: 22.8888 | P248: 22.8888 | Q248: 22.8888 | R248: 22.8888 | S248: 22.8888 | T248: 22.8888 | U248: 22.8888 | V248: 22.8888 | W248: 22.8888 | X248: 22.8888 | Y248: 22.8888 | Z248: 23.346576 | AA248: 23.346576 | AB248: 23.346576 | AC248: 23.346576 | AD248: 23.346576 | AE248: 23.346576 | AF248: 23.346576 | AG248: 23.346576 | AH248: 23.346576 | AI248: 23.346576 | AJ248: 23.346576 | AK248: 23.346576 | AL248: 23.81350752 | AM248: 23.81350752 | AN248: 23.81350752 | AO248: 23.81350752 | AP248: =LOOKUP(AP9,96:96,111:111) -> 23.81350752 | AQ248: 23.81350752 | AR248: 23.81350752 | AS248: 23.81350752 | AT248: 23.81350752 | AU248: 23.81350752 | AV248: 23.81350752 | AW248: 23.81350752 | AX248: 24.28977767 | AY248: 24.28977767 | AZ248: 24.28977767 | BA248: 24.28977767 | BB248: 24.28977767 | BC248: 24.28977767 | BD248: 24.28977767 | BE248: 24.28977767 | BF248: 24.28977767 | BG248: 24.28977767 | BH248: 24.28977767 | BI248: 24.28977767 | BJ248: 24.77557322 | BK248: 24.77557322 | BL248: 25.27108469 | BM248: 25.27108469 | BN248: 25.77650638 | BO248: 25.77650638 | BP248: 26.29203651 | BQ248: 26.29203651 | BR248: 26.81787724 | BS248: 26.81787724 | BT248: 26.81787724 | BU248: 26.81787724 | BV248: =LOOKUP(BV9,96:96,111:111) -> 26.81787724 | BW248: 26.81787724 | BX248: 26.81787724 | BY248: 26.81787724 | BZ248: 26.81787724 | CA248: 26.81787724 | CB248: 26.81787724 | CC248: 26.81787724 | CD248: 26.81787724 | CE248: 26.81787724 | CF248: 26.81787724 | CG248: 26.81787724 | CH248: 26.81787724 | CI248: 26.81787724 | CJ248: 26.81787724 | CK248: 26.81787724 | CL248: 26.81787724 | CM248: 26.81787724 | CN248: 26.81787724 | CO248: 26.81787724 | CP248: 26.81787724 | CQ248: 26.81787724 | CR248: 26.81787724 | CS248: 26.81787724 | CT248: 26.81787724 | CU248: 26.81787724 | CV248: 26.81787724 | CW248: 26.81787724 | CX248: 26.81787724 | CY248: 26.81787724 | CZ248: 26.81787724 | DA248: 26.81787724 | DB248: =LOOKUP(DB9,96:96,111:111) -> 26.81787724 | DC248: 26.81787724 | DD248: 26.81787724 | DE248: 26.81787724 | DF248: 26.81787724 | DG248: 26.81787724 | DH248: 26.81787724 | DI248: 26.81787724 | DJ248: 26.81787724 | DK248: 26.81787724 | DL248: 26.81787724 | DM248: 26.81787724 | DN248: 26.81787724 | DO248: 26.81787724 | DP248: 26.81787724 | DQ248: 26.81787724 | DR248: 26.81787724 | DS248: 26.81787724 | DT248: 26.81787724 | DU248: 26.81787724 | DV248: 26.81787724 | DW248: 26.81787724 | DX248: 26.81787724 | DY248: 26.81787724 | DZ248: 26.81787724 | EA248: 26.81787724 | EB248: 26.81787724 | EC248: 26.81787724 | ED248: 26.81787724 | EE248: 26.81787724 | EF248: 26.81787724 | EG248: 26.81787724 | EH248: =LOOKUP(EH9,96:96,111:111) -> 26.81787724 | EI248: 26.81787724 | EJ248: 26.81787724 | EK248: 26.81787724 | EL248: 26.81787724 | EM248: 26.81787724 | EN248: 26.81787724 | EO248: 26.81787724 | EP248: 26.81787724 | EQ248: 26.81787724 | ER248: 26.81787724 | ES248: 26.81787724 | ET248: 26.81787724 | EU248: 26.81787724 | EV248: 26.81787724 | EW248: 26.81787724 | EX248: 26.81787724 | EY248: 26.81787724 | EZ248: 26.81787724 | FA248: 26.81787724 | FB248: 26.81787724 | FC248: 26.81787724
C249: Energy Margin | E249: $'000 | J249: =J248*J189/1000*NOT(J224) -> 0 | K249: 0 | L249: 0 | M249: 0 | N249: 0 | O249: 0 | P249: 0 | Q249: 0 | R249: 0 | S249: 0 | T249: 0 | U249: 0 | V249: 0 | W249: 0 | X249: 0 | Y249: 0 | Z249: 0 | AA249: 0 | AB249: 0 | AC249: 0 | AD249: 0 | AE249: 0 | AF249: 0 | AG249: 0 | AH249: 0 | AI249: 0 | AJ249: 0 | AK249: 0 | AL249: 0 | AM249: 0 | AN249: 0 | AO249: 0 | AP249: =AP248*AP189/1000*NOT(AP224) -> 0 | AQ249: 0 | AR249: 0 | AS249: 0 | AT249: 0 | AU249: 0 | AV249: 0 | AW249: 0 | AX249: 0 | AY249: 0 | AZ249: 0 | BA249: 0 | BB249: 0 | BC249: 0 | BD249: 0 | BE249: 0 | BF249: 0 | BG249: 0 | BH249: 0 | BI249: 0 | BJ249: 23797.69126 | BK249: 23667.64923 | BL249: 24273.64508 | BM249: 24141.00221 | BN249: 24759.11799 | BO249: 24759.11799 | BP249: 25254.30035 | BQ249: 25116.2987 | BR249: 23851.28366 | BS249: 23720.94878 | BT249: 23851.28366 | BU249: 23720.94878 | BV249: =BV248*BV189/1000*NOT(BV224) -> 18219.52944 | BW249: 23851.28366 | BX249: 23851.28366 | BY249: 23720.94878 | BZ249: 23851.28366 | CA249: 23720.94878 | CB249: 23851.28366 | CC249: 23720.94878 | CD249: 23851.28366 | CE249: 23851.28366 | CF249: 23851.28366 | CG249: 23720.94878 | CH249: 23851.28366 | CI249: 23720.94878 | CJ249: 18219.52944 | CK249: 23720.94878 | CL249: 23851.28366 | CM249: 23851.28366 | CN249: 23851.28366 | CO249: 23720.94878 | CP249: 23851.28366 | CQ249: 23720.94878 | CR249: 23851.28366 | CS249: 23720.94878 | CT249: 23851.28366 | CU249: 23851.28366 | CV249: 23851.28366 | CW249: 23720.94878 | CX249: 18219.52944 | CY249: 23720.94878 | CZ249: 23851.28366 | DA249: 23720.94878 | DB249: =DB248*DB189/1000*NOT(DB224) -> 23851.28366 | DC249: 23851.28366 | DD249: 23851.28366 | DE249: 23720.94878 | DF249: 23851.28366 | DG249: 23720.94878 | DH249: 0 | DI249: 0 | DJ249: 0 | DK249: 0 | DL249: 0 | DM249: 0 | DN249: 0 | DO249: 0 | DP249: 0 | DQ249: 0 | DR249: 0 | DS249: 0 | DT249: 0 | DU249: 0 | DV249: 0 | DW249: 0 | DX249: 0 | DY249: 0 | DZ249: 0 | EA249: 0 | EB249: 0 | EC249: 0 | ED249: 0 | EE249: 0 | EF249: 0 | EG249: 0 | EH249: =EH248*EH189/1000*NOT(EH224) -> 0 | EI249: 0 | EJ249: 0 | EK249: 0 | EL249: 0 | EM249: 0 | EN249: 0 | EO249: 0 | EP249: 0 | EQ249: 0 | ER249: 0 | ES249: 0 | ET249: 0 | EU249: 0 | EV249: 0 | EW249: 0 | EX249: 0 | EY249: 0 | EZ249: 0 | FA249: 0 | FB249: 0 | FC249: 0
C251: Merchant Revenues | E251: $'000 | J251: =J249+J246 -> 0 | K251: =K249+K246 -> 0 | L251: 0 | M251: 0 | N251: 0 | O251: 0 | P251: 0 | Q251: 0 | R251: 0 | S251: 0 | T251: 0 | U251: 0 | V251: 0 | W251: 0 | X251: 0 | Y251: 0 | Z251: 0 | AA251: 0 | AB251: 0 | AC251: 0 | AD251: 0 | AE251: 0 | AF251: 0 | AG251: 0 | AH251: 0 | AI251: 0 | AJ251: 0 | AK251: 0 | AL251: 0 | AM251: 0 | AN251: 0 | AO251: 0 | AP251: 0 | AQ251: 0 | AR251: 0 | AS251: 0 | AT251: 0 | AU251: 0 | AV251: 0 | AW251: 0 | AX251: 0 | AY251: 0 | AZ251: 0 | BA251: 0 | BB251: 0 | BC251: 0 | BD251: 0 | BE251: 0 | BF251: 0 | BG251: 0 | BH251: 0 | BI251: 0 | BJ251: 33130.69126 | BK251: 32949.64923 | BL251: 33606.64508 | BM251: 33423.00221 | BN251: 34092.11799 | BO251: 34092.11799 | BP251: 34587.30035 | BQ251: 34398.2987 | BR251: 33184.28366 | BS251: 33002.94878 | BT251: 33184.28366 | BU251: 33002.94878 | BV251: 27552.52944 | BW251: =BW249+BW246 -> 33184.28366 | BX251: 33184.28366 | BY251: 33002.94878 | BZ251: 33184.28366 | CA251: 33002.94878 | CB251: 33184.28366 | CC251: 33002.94878 | CD251: 33184.28366 | CE251: 33184.28366 | CF251: 33184.28366 | CG251: 33002.94878 | CH251: 33184.28366 | CI251: 33002.94878 | CJ251: 27552.52944 | CK251: 33002.94878 | CL251: 33184.28366 | CM251: 33184.28366 | CN251: 33184.28366 | CO251: 33002.94878 | CP251: 33184.28366 | CQ251: 33002.94878 | CR251: 33184.28366 | CS251: 33002.94878 | CT251: 33184.28366 | CU251: 33184.28366 | CV251: 33184.28366 | CW251: 33002.94878 | CX251: 27552.52944 | CY251: 33002.94878 | CZ251: 33184.28366 | DA251: 33002.94878 | DB251: 33184.28366 | DC251: 33184.28366 | DD251: 33184.28366 | DE251: 33002.94878 | DF251: 33184.28366 | DG251: 33002.94878 | DH251: 0 | DI251: 0 | DJ251: 0 | DK251: 0 | DL251: 0 | DM251: 0 | DN251: 0 | DO251: 0 | DP251: 0 | DQ251: 0 | DR251: 0 | DS251: 0 | DT251: 0 | DU251: 0 | DV251: 0 | DW251: 0 | DX251: 0 | DY251: 0 | DZ251: 0 | EA251: 0 | EB251: 0 | EC251: 0 | ED251: 0 | EE251: 0 | EF251: 0 | EG251: 0 | EH251: 0 | EI251: =EI249+EI246 -> 0 | EJ251: 0 | EK251: 0 | EL251: 0 | EM251: 0 | EN251: 0 | EO251: 0 | EP251: 0 | EQ251: 0 | ER251: 0 | ES251: 0 | ET251: 0 | EU251: 0 | EV251: 0 | EW251: 0 | EX251: 0 | EY251: 0 | EZ251: 0 | FA251: 0 | FB251: 0 | FC251: 0
B253: Total Revenue | E253: $'000 | J253: =J251+J242 -> 0 | K253: =K251+K242 -> 0 | L253: 0 | M253: 0 | N253: 0 | O253: 0 | P253: 0 | Q253: 0 | R253: 0 | S253: 0 | T253: 0 | U253: 0 | V253: 0 | W253: 0 | X253: 0 | Y253: 0 | Z253: 0 | AA253: 0 | AB253: 0 | AC253: 0 | AD253: 0 | AE253: 0 | AF253: 0 | AG253: 0 | AH253: 0 | AI253: 0 | AJ253: 0 | AK253: 0 | AL253: 0 | AM253: 0 | AN253: 0 | AO253: 0 | AP253: 0 | AQ253: 0 | AR253: 0 | AS253: 0 | AT253: 0 | AU253: 0 | AV253: 0 | AW253: 0 | AX253: 0 | AY253: 0 | AZ253: 0 | BA253: 0 | BB253: 0 | BC253: 0 | BD253: 0 | BE253: 0 | BF253: 0 | BG253: 0 | BH253: 0 | BI253: 0 | BJ253: 33130.69126 | BK253: 32949.64923 | BL253: 33606.64508 | BM253: 33423.00221 | BN253: 34092.11799 | BO253: 34092.11799 | BP253: 34587.30035 | BQ253: 34398.2987 | BR253: 33184.28366 | BS253: 33002.94878 | BT253: 33184.28366 | BU253: 33002.94878 | BV253: 27552.52944 | BW253: =BW251+BW242 -> 33184.28366 | BX253: 33184.28366 | BY253: 33002.94878 | BZ253: 33184.28366 | CA253: 33002.94878 | CB253: 33184.28366 | CC253: 33002.94878 | CD253: 33184.28366 | CE253: 33184.28366 | CF253: 33184.28366 | CG253: 33002.94878 | CH253: 33184.28366 | CI253: 33002.94878 | CJ253: 27552.52944 | CK253: 33002.94878 | CL253: 33184.28366 | CM253: 33184.28366 | CN253: 33184.28366 | CO253: 33002.94878 | CP253: 33184.28366 | CQ253: 33002.94878 | CR253: 33184.28366 | CS253: 33002.94878 | CT253: 33184.28366 | CU253: 33184.28366 | CV253: 33184.28366 | CW253: 33002.94878 | CX253: 27552.52944 | CY253: 33002.94878 | CZ253: 33184.28366 | DA253: 33002.94878 | DB253: 33184.28366 | DC253: 33184.28366 | DD253: 33184.28366 | DE253: 33002.94878 | DF253: 33184.28366 | DG253: 33002.94878 | DH253: 0 | DI253: 0 | DJ253: 0 | DK253: 0 | DL253: 0 | DM253: 0 | DN253: 0 | DO253: 0 | DP253: 0 | DQ253: 0 | DR253: 0 | DS253: 0 | DT253: 0 | DU253: 0 | DV253: 0 | DW253: 0 | DX253: 0 | DY253: 0 | DZ253: 0 | EA253: 0 | EB253: 0 | EC253: 0 | ED253: 0 | EE253: 0 | EF253: 0 | EG253: 0 | EH253: 0 | EI253: =EI251+EI242 -> 0 | EJ253: 0 | EK253: 0 | EL253: 0 | EM253: 0 | EN253: 0 | EO253: 0 | EP253: 0 | EQ253: 0 | ER253: 0 | ES253: 0 | ET253: 0 | EU253: 0 | EV253: 0 | EW253: 0 | EX253: 0 | EY253: 0 | EZ253: 0 | FA253: 0 | FB253: 0 | FC253: 0
A255: Project Cash flow & Pre-tax Project IRR
B256: EBIT | J256: =J253-J221 -> 0 | K256: =K253-K221 -> 0 | L256: 0 | M256: 0 | N256: 0 | O256: 0 | P256: 0 | Q256: 0 | R256: 0 | S256: 0 | T256: 0 | U256: 0 | V256: 0 | W256: 0 | X256: 0 | Y256: 0 | Z256: 0 | AA256: 0 | AB256: 0 | AC256: 0 | AD256: 0 | AE256: 0 | AF256: 0 | AG256: 0 | AH256: 0 | AI256: 0 | AJ256: 0 | AK256: 0 | AL256: 0 | AM256: 0 | AN256: 0 | AO256: 0 | AP256: 0 | AQ256: 0 | AR256: 0 | AS256: 0 | AT256: 0 | AU256: 0 | AV256: 0 | AW256: 0 | AX256: 0 | AY256: 0 | AZ256: 0 | BA256: 0 | BB256: 0 | BC256: 0 | BD256: 0 | BE256: 0 | BF256: 0 | BG256: 0 | BH256: 0 | BI256: 0 | BJ256: 16425.6578 | BK256: 16265.36263 | BL256: 16787.35385 | BM256: 16624.50793 | BN256: 17157.69037 | BO256: 17099.79037 | BP256: 17536.85027 | BQ256: 17368.74487 | BR256: 17094.4635 | BS256: 16931.55441 | BT256: 16983.4323 | BU256: 16820.5588 | BV256: 14460.35645 | BW256: =BW253-BW221 -> 17152.11342 | BX256: 17096.46522 | BY256: 16932.65501 | BZ256: 16984.51736 | CA256: 16820.73653 | CB256: 16871.69467 | CC256: 16707.94278 | CD256: 16757.98964 | CE256: 16700.80387 | CF256: 16643.39466 | CG256: 16479.6993 | CH256: 16527.90206 | CI256: 16364.23429 | CJ256: 14063.41304 | CK256: 16583.19848 | CL256: 16632.21245 | CM256: 16574.05601 | CN256: 16515.67043 | CO256: 16351.06981 | CP256: 16398.20789 | CQ256: 16233.62786 | CR256: 16279.81684 | CS256: 16115.25687 | CT256: 16160.48923 | CU256: 16100.47167 | CV256: 16040.21692 | CW256: 15875.69547 | CX256: 13638.37716 | CY256: 16090.1552 | CZ256: 16135.15889 | DA256: 15969.66503 | DB256: 16013.69476 | DC256: 15952.59965 | DD256: 15891.26111 | DE256: 15725.79114 | DF256: 15767.8495 | DG256: 15602.39054 | DH256: 0 | DI256: 0 | DJ256: 0 | DK256: 0 | DL256: 0 | DM256: 0 | DN256: 0 | DO256: 0 | DP256: 0 | DQ256: 0 | DR256: 0 | DS256: 0 | DT256: 0 | DU256: 0 | DV256: 0 | DW256: 0 | DX256: 0 | DY256: 0 | DZ256: 0 | EA256: 0 | EB256: 0 | EC256: 0 | ED256: 0 | EE256: 0 | EF256: 0 | EG256: 0 | EH256: 0 | EI256: =EI253-EI221 -> 0 | EJ256: 0 | EK256: 0 | EL256: 0 | EM256: 0 | EN256: 0 | EO256: 0 | EP256: 0 | EQ256: 0 | ER256: 0 | ES256: 0 | ET256: 0 | EU256: 0 | EV256: 0 | EW256: 0 | EX256: 0 | EY256: 0 | EZ256: 0 | FA256: 0 | FB256: 0 | FC256: 0
B258: Pre-tax Free Cash Flow | E258: $'000 | J258: =J253-J221-J207 -> -681.8181818 | K258: =K253-K221-K207 -> -681.8181818 | L258: -681.8181818 | M258: -681.8181818 | N258: -681.8181818 | O258: -681.8181818 | P258: -681.8181818 | Q258: -681.8181818 | R258: -681.8181818 | S258: -681.8181818 | T258: -681.8181818 | U258: -681.8181818 | V258: -681.8181818 | W258: -681.8181818 | X258: -681.8181818 | Y258: -681.8181818 | Z258: -681.8181818 | AA258: -681.8181818 | AB258: -681.8181818 | AC258: -681.8181818 | AD258: -681.8181818 | AE258: -681.8181818 | AF258: -8865 | AG258: -8865 | AH258: -8865 | AI258: -14775 | AJ258: 0 | AK258: -14775 | AL258: -23640 | AM258: -23640 | AN258: -23640 | AO258: 0 | AP258: -35460 | AQ258: -35460 | AR258: -8865 | AS258: -8865 | AT258: -8865 | AU258: -8865 | AV258: -8865 | AW258: -8865 | AX258: -8865 | AY258: -8865 | AZ258: -8865 | BA258: -8865 | BB258: -8865 | BC258: 0 | BD258: 0 | BE258: 0 | BF258: 0 | BG258: 0 | BH258: 0 | BI258: 6.561418076e-11 | BJ258: 16425.6578 | BK258: 16265.36263 | BL258: 16787.35385 | BM258: 16624.50793 | BN258: 17157.69037 | BO258: 17099.79037 | BP258: 17536.85027 | BQ258: 17368.74487 | BR258: 17094.4635 | BS258: 16931.55441 | BT258: 16983.4323 | BU258: 16820.5588 | BV258: 14460.35645 | BW258: =BW253-BW221-BW207 -> 17152.11342 | BX258: 17096.46522 | BY258: 16932.65501 | BZ258: 16984.51736 | CA258: 16820.73653 | CB258: 16871.69467 | CC258: 16707.94278 | CD258: 16757.98964 | CE258: 16700.80387 | CF258: 16643.39466 | CG258: 16479.6993 | CH258: 16527.90206 | CI258: 16364.23429 | CJ258: 14063.41304 | CK258: 16583.19848 | CL258: 16632.21245 | CM258: 16574.05601 | CN258: 16515.67043 | CO258: 16351.06981 | CP258: 16398.20789 | CQ258: 16233.62786 | CR258: 16279.81684 | CS258: 16115.25687 | CT258: 16160.48923 | CU258: 16100.47167 | CV258: 16040.21692 | CW258: 15875.69547 | CX258: 13638.37716 | CY258: 16090.1552 | CZ258: 16135.15889 | DA258: 15969.66503 | DB258: 16013.69476 | DC258: 15952.59965 | DD258: 15891.26111 | DE258: 15725.79114 | DF258: 15767.8495 | DG258: 15602.39054 | DH258: 0 | DI258: 0 | DJ258: 0 | DK258: 0 | DL258: 0 | DM258: 0 | DN258: 0 | DO258: 0 | DP258: 0 | DQ258: 0 | DR258: 0 | DS258: 0 | DT258: 0 | DU258: 0 | DV258: 0 | DW258: 0 | DX258: 0 | DY258: 0 | DZ258: 0 | EA258: 0 | EB258: 0 | EC258: 0 | ED258: 0 | EE258: 0 | EF258: 0 | EG258: 0 | EH258: 0 | EI258: =EI253-EI221-EI207 -> 0 | EJ258: 0 | EK258: 0 | EL258: 0 | EM258: 0 | EN258: 0 | EO258: 0 | EP258: 0 | EQ258: 0 | ER258: 0 | ES258: 0 | ET258: 0 | EU258: 0 | EV258: 0 | EW258: 0 | EX258: 0 | EY258: 0 | EZ258: 0 | FA258: 0 | FB258: 0 | FC258: 0
B259: Project IRR | E259: % | F259: =IFERROR(XIRR(J258:FC258,J5:FC5),FALSE) -> 0.08218312562
B260: Target IRR | E260: % | F260: =F84 -> 0.07
... 204 more rows

Sheet Accuracy Test
C2: Item | D2: Test | E2: Error Tabulation
C4: ='Periodic Model'!B6 -> Development Period | D4: ='Periodic Model'!H6 -> TRUE | E4: =IF(D4,"",C4) -> 
C5: ='Periodic Model'!B7 -> Conctruction Period | D5: ='Periodic Model'!H7 -> TRUE | E5: =IF(D5,"",C5) -> 
C6: ='Periodic Model'!B8 -> Operation Period | D6: ='Periodic Model'!H8 -> TRUE
C7: ='Periodic Model'!B199 -> Development Expenditure | D7: ='Periodic Model'!H199 -> TRUE
C8: ='Periodic Model'!B204 -> Adjusted S-Curve | D8: ='Periodic Model'!H204 -> TRUE
C9: ='Periodic Model'!B334 -> Level Repayment | D9: ='Periodic Model'!H334 -> TRUE
C10: ='Periodic Model'!B335 -> Mortgage Repayment | D10: ='Periodic Model'!H335 -> TRUE
C11: ='Periodic Model'!B339 -> Add debt draws | D11: ='Periodic Model'!H339 -> TRUE
C12: ='Periodic Model'!B345 -> Debt Balance Closing Test (Lookup) | D12: ='Periodic Model'!G345 -> TRUE
C13: ='Periodic Model'!B206 -> Construction Expeniture | D13: ='Periodic Model'!H206 -> TRUE
C14: Balance Sheet | D14: ='Periodic Model'!H492 -> TRUE
C16: Aggregate | D16: =AND(D4:D14) -> TRUE | E16: =add_text(E4:E14) -> 
C17: Message | E17: =IF(D16,"Model OK",E16) -> Model OK
C19: Use CNTL [ to find problem
C20: Use F5 to come back

Sheet Annual Model
A1: Time Lines
B2: Period (EIS and TAB) | H2: 1 | I2: 2 | J2: 3 | K2: 4 | L2: 5 | M2: 6 | N2: 7 | O2: 8 | P2: 9 | Q2: 10 | R2: 11 | S2: 12 | T2: 13 | U2: 14 | V2: 15 | W2: 16 | X2: 17 | Y2: 18 | Z2: 19 | AA2: 20 | AB2: 21 | AC2: 22 | AD2: 23 | AE2: 24 | AF2: 25 | AG2: 26 | AH2: 27 | AI2: 28 | AJ2: 29 | AK2: 30 | AL2: 31 | AM2: 32 | AN2: 33 | AO2: 34 | AP2: 35 | AQ2: 36 | AR2: 37 | AS2: 38 | AT2: 39 | AU2: 40
B3: Year | F3: Bal Acct | H3: =YEAR('Periodic Model'!J4) -> 2017 | I3: =H3+1 -> 2018 | J3: =I3+1 -> 2019 | K3: 2020 | L3: 2021 | M3: 2022 | N3: 2023 | O3: 2024 | P3: 2025 | Q3: 2026 | R3: 2027 | S3: 2028 | T3: 2029 | U3: 2030 | V3: 2031 | W3: 2032 | X3: 2033 | Y3: 2034 | Z3: 2035 | AA3: 2036 | AB3: 2037 | AC3: 2038 | AD3: 2039 | AE3: 2040 | AF3: 2041 | AG3: 2042 | AH3: 2043 | AI3: 2044 | AJ3: 2045 | AK3: 2046 | AL3: 2047 | AM3: 2048 | AN3: 2049 | AO3: 2050 | AP3: 2051 | AQ3: 2052 | AR3: 2053 | AS3: 2054 | AT3: 2055 | AU3: 2056
B4: Days | H4: =SUMIFS('Periodic Model'!10:10,'Periodic Model'!$9:$9,H$3) -> 120 | I4: =SUMIFS('Periodic Model'!10:10,'Periodic Model'!$9:$9,I$3) -> 365 | J4: =SUMIFS('Periodic Model'!10:10,'Periodic Model'!$9:$9,J$3) -> 365 | K4: =SUMIFS('Periodic Model'!10:10,'Periodic Model'!$9:$9,K$3) -> 366 | L4: =SUMIFS('Periodic Model'!10:10,'Periodic Model'!$9:$9,L$3) -> 365 | M4: =SUMIFS('Periodic Model'!10:10,'Periodic Model'!$9:$9,M$3) -> 365 | N4: =SUMIFS('Periodic Model'!10:10,'Periodic Model'!$9:$9,N$3) -> 365 | O4: =SUMIFS('Periodic Model'!10:10,'Periodic Model'!$9:$9,O$3) -> 366 | P4: =SUMIFS('Periodic Model'!10:10,'Periodic Model'!$9:$9,P$3) -> 365 | Q4: =SUMIFS('Periodic Model'!10:10,'Periodic Model'!$9:$9,Q$3) -> 365 | R4: =SUMIFS('Periodic Model'!10:10,'Periodic Model'!$9:$9,R$3) -> 365 | S4: =SUMIFS('Periodic Model'!10:10,'Periodic Model'!$9:$9,S$3) -> 366 | T4: =SUMIFS('Periodic Model'!10:10,'Periodic Model'!$9:$9,T$3) -> 365 | U4: =SUMIFS('Periodic Model'!10:10,'Periodic Model'!$9:$9,U$3) -> 365 | V4: =SUMIFS('Periodic Model'!10:10,'Periodic Model'!$9:$9,V$3) -> 365 | W4: =SUMIFS('Periodic Model'!10:10,'Periodic Model'!$9:$9,W$3) -> 366 | X4: =SUMIFS('Periodic Model'!10:10,'Periodic Model'!$9:$9,X$3) -> 365 | Y4: =SUMIFS('Periodic Model'!10:10,'Periodic Model'!$9:$9,Y$3) -> 365 | Z4: =SUMIFS('Periodic Model'!10:10,'Periodic Model'!$9:$9,Z$3) -> 365 | AA4: =SUMIFS('Periodic Model'!10:10,'Periodic Model'!$9:$9,AA$3) -> 366 | AB4: =SUMIFS('Periodic Model'!10:10,'Periodic Model'!$9:$9,AB$3) -> 365 | AC4: =SUMIFS('Periodic Model'!10:10,'Periodic Model'!$9:$9,AC$3) -> 365 | AD4: =SUMIFS('Periodic Model'!10:10,'Periodic Model'!$9:$9,AD$3) -> 365 | AE4: =SUMIFS('Periodic Model'!10:10,'Periodic Model'!$9:$9,AE$3) -> 366 | AF4: =SUMIFS('Periodic Model'!10:10,'Periodic Model'!$9:$9,AF$3) -> 365 | AG4: =SUMIFS('Periodic Model'!10:10,'Periodic Model'!$9:$9,AG$3) -> 365 | AH4: =SUMIFS('Periodic Model'!10:10,'Periodic Model'!$9:$9,AH$3) -> 365 | AI4: =SUMIFS('Periodic Model'!10:10,'Periodic Model'!$9:$9,AI$3) -> 366 | AJ4: =SUMIFS('Periodic Model'!10:10,'Periodic Model'!$9:$9,AJ$3) -> 365 | AK4: =SUMIFS('Periodic Model'!10:10,'Periodic Model'!$9:$9,AK$3) -> 365 | AL4: =SUMIFS('Periodic Model'!10:10,'Periodic Model'!$9:$9,AL$3) -> 365 | AM4: =SUMIFS('Periodic Model'!10:10,'Periodic Model'!$9:$9,AM$3) -> 366 | AN4: =SUMIFS('Periodic Model'!10:10,'Periodic Model'!$9:$9,AN$3) -> 365 | AO4: =SUMIFS('Periodic Model'!10:10,'Periodic Model'!$9:$9,AO$3) -> 365 | AP4: =SUMIFS('Periodic Model'!10:10,'Periodic Model'!$9:$9,AP$3) -> 365 | AQ4: =SUMIFS('Periodic Model'!10:10,'Periodic Model'!$9:$9,AQ$3) -> 366 | AR4: =SUMIFS('Periodic Model'!10:10,'Periodic Model'!$9:$9,AR$3) -> 365 | AS4: =SUMIFS('Periodic Model'!10:10,'Periodic Model'!$9:$9,AS$3) -> 365 | AT4: =SUMIFS('Periodic Model'!10:10,'Periodic Model'!$9:$9,AT$3) -> 365 | AU4: =SUMIFS('Periodic Model'!10:10,'Periodic Model'!$9:$9,AU$3) -> 366
B5: Hours | H5: =SUMIFS('Periodic Model'!11:11,'Periodic Model'!$9:$9,H$3) -> 2880 | I5: =SUMIFS('Periodic Model'!11:11,'Periodic Model'!$9:$9,I$3) -> 8760 | J5: =SUMIFS('Periodic Model'!11:11,'Periodic Model'!$9:$9,J$3) -> 8760 | K5: =SUMIFS('Periodic Model'!11:11,'Periodic Model'!$9:$9,K$3) -> 8784 | L5: =SUMIFS('Periodic Model'!11:11,'Periodic Model'!$9:$9,L$3) -> 8760 | M5: =SUMIFS('Periodic Model'!11:11,'Periodic Model'!$9:$9,M$3) -> 8760 | N5: =SUMIFS('Periodic Model'!11:11,'Periodic Model'!$9:$9,N$3) -> 8760 | O5: =SUMIFS('Periodic Model'!11:11,'Periodic Model'!$9:$9,O$3) -> 8784 | P5: =SUMIFS('Periodic Model'!11:11,'Periodic Model'!$9:$9,P$3) -> 8760 | Q5: =SUMIFS('Periodic Model'!11:11,'Periodic Model'!$9:$9,Q$3) -> 8760 | R5: =SUMIFS('Periodic Model'!11:11,'Periodic Model'!$9:$9,R$3) -> 8760 | S5: =SUMIFS('Periodic Model'!11:11,'Periodic Model'!$9:$9,S$3) -> 8784 | T5: =SUMIFS('Periodic Model'!11:11,'Periodic Model'!$9:$9,T$3) -> 8760 | U5: =SUMIFS('Periodic Model'!11:11,'Periodic Model'!$9:$9,U$3) -> 8760 | V5: =SUMIFS('Periodic Model'!11:11,'Periodic Model'!$9:$9,V$3) -> 8760 | W5: =SUMIFS('Periodic Model'!11:11,'Periodic Model'!$9:$9,W$3) -> 8784 | X5: =SUMIFS('Periodic Model'!11:11,'Periodic Model'!$9:$9,X$3) -> 8760 | Y5: =SUMIFS('Periodic Model'!11:11,'Periodic Model'!$9:$9,Y$3) -> 8760 | Z5: =SUMIFS('Periodic Model'!11:11,'Periodic Model'!$9:$9,Z$3) -> 8760 | AA5: =SUMIFS('Periodic Model'!11:11,'Periodic Model'!$9:$9,AA$3) -> 8784 | AB5: =SUMIFS('Periodic Model'!11:11,'Periodic Model'!$9:$9,AB$3) -> 8760 | AC5: =SUMIFS('Periodic Model'!11:11,'Periodic Model'!$9:$9,AC$3) -> 8760 | AD5: =SUMIFS('Periodic Model'!11:11,'Periodic Model'!$9:$9,AD$3) -> 8760 | AE5: =SUMIFS('Periodic Model'!11:11,'Periodic Model'!$9:$9,AE$3) -> 8784 | AF5: =SUMIFS('Periodic Model'!11:11,'Periodic Model'!$9:$9,AF$3) -> 8760 | AG5: =SUMIFS('Periodic Model'!11:11,'Periodic Model'!$9:$9,AG$3) -> 8760 | AH5: =SUMIFS('Periodic Model'!11:11,'Periodic Model'!$9:$9,AH$3) -> 8760 | AI5: =SUMIFS('Periodic Model'!11:11,'Periodic Model'!$9:$9,AI$3) -> 8784 | AJ5: =SUMIFS('Periodic Model'!11:11,'Periodic Model'!$9:$9,AJ$3) -> 8760 | AK5: =SUMIFS('Periodic Model'!11:11,'Periodic Model'!$9:$9,AK$3) -> 8760 | AL5: =SUMIFS('Periodic Model'!11:11,'Periodic Model'!$9:$9,AL$3) -> 8760 | AM5: =SUMIFS('Periodic Model'!11:11,'Periodic Model'!$9:$9,AM$3) -> 8784 | AN5: =SUMIFS('Periodic Model'!11:11,'Periodic Model'!$9:$9,AN$3) -> 8760 | AO5: =SUMIFS('Periodic Model'!11:11,'Periodic Model'!$9:$9,AO$3) -> 8760 | AP5: =SUMIFS('Periodic Model'!11:11,'Periodic Model'!$9:$9,AP$3) -> 8760 | AQ5: =SUMIFS('Periodic Model'!11:11,'Periodic Model'!$9:$9,AQ$3) -> 8784 | AR5: =SUMIFS('Periodic Model'!11:11,'Periodic Model'!$9:$9,AR$3) -> 8760 | AS5: =SUMIFS('Periodic Model'!11:11,'Periodic Model'!$9:$9,AS$3) -> 8760 | AT5: =SUMIFS('Periodic Model'!11:11,'Periodic Model'!$9:$9,AT$3) -> 8760 | AU5: =SUMIFS('Periodic Model'!11:11,'Periodic Model'!$9:$9,AU$3) -> 8784
A7: Operations Model
B8: Capacity (with Switch) | E8: MW | F8: TRUE | H8: =IF($F8,SUMIFS('Periodic Model'!149:149,'Periodic Model'!$9:$9,H$3,'Periodic Model'!$12:$12,TRUE),SUMIFS('Periodic Model'!149:149,'Periodic Model'!$9:$9,H$3)) -> 0 | I8: =IF($F8,SUMIFS('Periodic Model'!149:149,'Periodic Model'!$9:$9,I$3,'Periodic Model'!$12:$12,TRUE),SUMIFS('Periodic Model'!149:149,'Periodic Model'!$9:$9,I$3)) -> 0 | J8: =IF($F8,SUMIFS('Periodic Model'!149:149,'Periodic Model'!$9:$9,J$3,'Periodic Model'!$12:$12,TRUE),SUMIFS('Periodic Model'!149:149,'Periodic Model'!$9:$9,J$3)) -> 0 | K8: =IF($F8,SUMIFS('Periodic Model'!149:149,'Periodic Model'!$9:$9,K$3,'Periodic Model'!$12:$12,TRUE),SUMIFS('Periodic Model'!149:149,'Periodic Model'!$9:$9,K$3)) -> 0 | L8: =IF($F8,SUMIFS('Periodic Model'!149:149,'Periodic Model'!$9:$9,L$3,'Periodic Model'!$12:$12,TRUE),SUMIFS('Periodic Model'!149:149,'Periodic Model'!$9:$9,L$3)) -> 0 | M8: =IF($F8,SUMIFS('Periodic Model'!149:149,'Periodic Model'!$9:$9,M$3,'Periodic Model'!$12:$12,TRUE),SUMIFS('Periodic Model'!149:149,'Periodic Model'!$9:$9,M$3)) -> 300 | N8: =IF($F8,SUMIFS('Periodic Model'!149:149,'Periodic Model'!$9:$9,N$3,'Periodic Model'!$12:$12,TRUE),SUMIFS('Periodic Model'!149:149,'Periodic Model'!$9:$9,N$3)) -> 300 | O8: =IF($F8,SUMIFS('Periodic Model'!149:149,'Periodic Model'!$9:$9,O$3,'Periodic Model'!$12:$12,TRUE),SUMIFS('Periodic Model'!149:149,'Periodic Model'!$9:$9,O$3)) -> 300 | P8: =IF($F8,SUMIFS('Periodic Model'!149:149,'Periodic Model'!$9:$9,P$3,'Periodic Model'!$12:$12,TRUE),SUMIFS('Periodic Model'!149:149,'Periodic Model'!$9:$9,P$3)) -> 300 | Q8: =IF($F8,SUMIFS('Periodic Model'!149:149,'Periodic Model'!$9:$9,Q$3,'Periodic Model'!$12:$12,TRUE),SUMIFS('Periodic Model'!149:149,'Periodic Model'!$9:$9,Q$3)) -> 300 | R8: =IF($F8,SUMIFS('Periodic Model'!149:149,'Periodic Model'!$9:$9,R$3,'Periodic Model'!$12:$12,TRUE),SUMIFS('Periodic Model'!149:149,'Periodic Model'!$9:$9,R$3)) -> 300 | S8: =IF($F8,SUMIFS('Periodic Model'!149:149,'Periodic Model'!$9:$9,S$3,'Periodic Model'!$12:$12,TRUE),SUMIFS('Periodic Model'!149:149,'Periodic Model'!$9:$9,S$3)) -> 300 | T8: =IF($F8,SUMIFS('Periodic Model'!149:149,'Periodic Model'!$9:$9,T$3,'Periodic Model'!$12:$12,TRUE),SUMIFS('Periodic Model'!149:149,'Periodic Model'!$9:$9,T$3)) -> 300 | U8: =IF($F8,SUMIFS('Periodic Model'!149:149,'Periodic Model'!$9:$9,U$3,'Periodic Model'!$12:$12,TRUE),SUMIFS('Periodic Model'!149:149,'Periodic Model'!$9:$9,U$3)) -> 300 | V8: =IF($F8,SUMIFS('Periodic Model'!149:149,'Periodic Model'!$9:$9,V$3,'Periodic Model'!$12:$12,TRUE),SUMIFS('Periodic Model'!149:149,'Periodic Model'!$9:$9,V$3)) -> 300 | W8: =IF($F8,SUMIFS('Periodic Model'!149:149,'Periodic Model'!$9:$9,W$3,'Periodic Model'!$12:$12,TRUE),SUMIFS('Periodic Model'!149:149,'Periodic Model'!$9:$9,W$3)) -> 300 | X8: =IF($F8,SUMIFS('Periodic Model'!149:149,'Periodic Model'!$9:$9,X$3,'Periodic Model'!$12:$12,TRUE),SUMIFS('Periodic Model'!149:149,'Periodic Model'!$9:$9,X$3)) -> 300 | Y8: =IF($F8,SUMIFS('Periodic Model'!149:149,'Periodic Model'!$9:$9,Y$3,'Periodic Model'!$12:$12,TRUE),SUMIFS('Periodic Model'!149:149,'Periodic Model'!$9:$9,Y$3)) -> 300 | Z8: =IF($F8,SUMIFS('Periodic Model'!149:149,'Periodic Model'!$9:$9,Z$3,'Periodic Model'!$12:$12,TRUE),SUMIFS('Periodic Model'!149:149,'Periodic Model'!$9:$9,Z$3)) -> 300 | AA8: =IF($F8,SUMIFS('Periodic Model'!149:149,'Periodic Model'!$9:$9,AA$3,'Periodic Model'!$12:$12,TRUE),SUMIFS('Periodic Model'!149:149,'Periodic Model'!$9:$9,AA$3)) -> 300 | AB8: =IF($F8,SUMIFS('Periodic Model'!149:149,'Periodic Model'!$9:$9,AB$3,'Periodic Model'!$12:$12,TRUE),SUMIFS('Periodic Model'!149:149,'Periodic Model'!$9:$9,AB$3)) -> 300 | AC8: =IF($F8,SUMIFS('Periodic Model'!149:149,'Periodic Model'!$9:$9,AC$3,'Periodic Model'!$12:$12,TRUE),SUMIFS('Periodic Model'!149:149,'Periodic Model'!$9:$9,AC$3)) -> 300 | AD8: =IF($F8,SUMIFS('Periodic Model'!149:149,'Periodic Model'!$9:$9,AD$3,'Periodic Model'!$12:$12,TRUE),SUMIFS('Periodic Model'!149:149,'Periodic Model'!$9:$9,AD$3)) -> 300 | AE8: =IF($F8,SUMIFS('Periodic Model'!149:149,'Periodic Model'!$9:$9,AE$3,'Periodic Model'!$12:$12,TRUE),SUMIFS('Periodic Model'!149:149,'Periodic Model'!$9:$9,AE$3)) -> 300 | AF8: =IF($F8,SUMIFS('Periodic Model'!149:149,'Periodic Model'!$9:$9,AF$3,'Periodic Model'!$12:$12,TRUE),SUMIFS('Periodic Model'!149:149,'Periodic Model'!$9:$9,AF$3)) -> 300 | AG8: =IF($F8,SUMIFS('Periodic Model'!149:149,'Periodic Model'!$9:$9,AG$3,'Periodic Model'!$12:$12,TRUE),SUMIFS('Periodic Model'!149:149,'Periodic Model'!$9:$9,AG$3)) -> 300 | AH8: =IF($F8,SUMIFS('Periodic Model'!149:149,'Periodic Model'!$9:$9,AH$3,'Periodic Model'!$12:$12,TRUE),SUMIFS('Periodic Model'!149:149,'Periodic Model'!$9:$9,AH$3)) -> 300 | AI8: =IF($F8,SUMIFS('Periodic Model'!149:149,'Periodic Model'!$9:$9,AI$3,'Periodic Model'!$12:$12,TRUE),SUMIFS('Periodic Model'!149:149,'Periodic Model'!$9:$9,AI$3)) -> 300 | AJ8: =IF($F8,SUMIFS('Periodic Model'!149:149,'Periodic Model'!$9:$9,AJ$3,'Periodic Model'!$12:$12,TRUE),SUMIFS('Periodic Model'!149:149,'Periodic Model'!$9:$9,AJ$3)) -> 300 | AK8: =IF($F8,SUMIFS('Periodic Model'!149:149,'Periodic Model'!$9:$9,AK$3,'Periodic Model'!$12:$12,TRUE),SUMIFS('Periodic Model'!149:149,'Periodic Model'!$9:$9,AK$3)) -> 300 | AL8: =IF($F8,SUMIFS('Periodic Model'!149:149,'Periodic Model'!$9:$9,AL$3,'Periodic Model'!$12:$12,TRUE),SUMIFS('Periodic Model'!149:149,'Periodic Model'!$9:$9,AL$3)) -> 0 | AM8: =IF($F8,SUMIFS('Periodic Model'!149:149,'Periodic Model'!$9:$9,AM$3,'Periodic Model'!$12:$12,TRUE),SUMIFS('Periodic Model'!149:149,'Periodic Model'!$9:$9,AM$3)) -> 0 | AN8: =IF($F8,SUMIFS('Periodic Model'!149:149,'Periodic Model'!$9:$9,AN$3,'Periodic Model'!$12:$12,TRUE),SUMIFS('Periodic Model'!149:149,'Periodic Model'!$9:$9,AN$3)) -> 0 | AO8: =IF($F8,SUMIFS('Periodic Model'!149:149,'Periodic Model'!$9:$9,AO$3,'Periodic Model'!$12:$12,TRUE),SUMIFS('Periodic Model'!149:149,'Periodic Model'!$9:$9,AO$3)) -> 0 | AP8: =IF($F8,SUMIFS('Periodic Model'!149:149,'Periodic Model'!$9:$9,AP$3,'Periodic Model'!$12:$12,TRUE),SUMIFS('Periodic Model'!149:149,'Periodic Model'!$9:$9,AP$3)) -> 0 | AQ8: =IF($F8,SUMIFS('Periodic Model'!149:149,'Periodic Model'!$9:$9,AQ$3,'Periodic Model'!$12:$12,TRUE),SUMIFS('Periodic Model'!149:149,'Periodic Model'!$9:$9,AQ$3)) -> 0 | AR8: =IF($F8,SUMIFS('Periodic Model'!149:149,'Periodic Model'!$9:$9,AR$3,'Periodic Model'!$12:$12,TRUE),SUMIFS('Periodic Model'!149:149,'Periodic Model'!$9:$9,AR$3)) -> 0 | AS8: =IF($F8,SUMIFS('Periodic Model'!149:149,'Periodic Model'!$9:$9,AS$3,'Periodic Model'!$12:$12,TRUE),SUMIFS('Periodic Model'!149:149,'Periodic Model'!$9:$9,AS$3)) -> 0 | AT8: =IF($F8,SUMIFS('Periodic Model'!149:149,'Periodic Model'!$9:$9,AT$3,'Periodic Model'!$12:$12,TRUE),SUMIFS('Periodic Model'!149:149,'Periodic Model'!$9:$9,AT$3)) -> 0 | AU8: =IF($F8,SUMIFS('Periodic Model'!149:149,'Periodic Model'!$9:$9,AU$3,'Periodic Model'!$12:$12,TRUE),SUMIFS('Periodic Model'!149:149,'Periodic Model'!$9:$9,AU$3)) -> 0
B9: Age in Periods (Roudup) | E9: Periods | F9: TRUE | H9: =IF($F9,SUMIFS('Periodic Model'!150:150,'Periodic Model'!$9:$9,H$3,'Periodic Model'!$12:$12,TRUE),SUMIFS('Periodic Model'!150:150,'Periodic Model'!$9:$9,H$3)) -> 0 | I9: =IF($F9,SUMIFS('Periodic Model'!150:150,'Periodic Model'!$9:$9,I$3,'Periodic Model'!$12:$12,TRUE),SUMIFS('Periodic Model'!150:150,'Periodic Model'!$9:$9,I$3)) -> 0 | J9: =IF($F9,SUMIFS('Periodic Model'!150:150,'Periodic Model'!$9:$9,J$3,'Periodic Model'!$12:$12,TRUE),SUMIFS('Periodic Model'!150:150,'Periodic Model'!$9:$9,J$3)) -> 0 | K9: =IF($F9,SUMIFS('Periodic Model'!150:150,'Periodic Model'!$9:$9,K$3,'Periodic Model'!$12:$12,TRUE),SUMIFS('Periodic Model'!150:150,'Periodic Model'!$9:$9,K$3)) -> 0 | L9: =IF($F9,SUMIFS('Periodic Model'!150:150,'Periodic Model'!$9:$9,L$3,'Periodic Model'!$12:$12,TRUE),SUMIFS('Periodic Model'!150:150,'Periodic Model'!$9:$9,L$3)) -> 0 | M9: =IF($F9,SUMIFS('Periodic Model'!150:150,'Periodic Model'!$9:$9,M$3,'Periodic Model'!$12:$12,TRUE),SUMIFS('Periodic Model'!150:150,'Periodic Model'!$9:$9,M$3)) -> 2 | N9: =IF($F9,SUMIFS('Periodic Model'!150:150,'Periodic Model'!$9:$9,N$3,'Periodic Model'!$12:$12,TRUE),SUMIFS('Periodic Model'!150:150,'Periodic Model'!$9:$9,N$3)) -> 4 | O9: =IF($F9,SUMIFS('Periodic Model'!150:150,'Periodic Model'!$9:$9,O$3,'Periodic Model'!$12:$12,TRUE),SUMIFS('Periodic Model'!150:150,'Periodic Model'!$9:$9,O$3)) -> 6 | P9: =IF($F9,SUMIFS('Periodic Model'!150:150,'Periodic Model'!$9:$9,P$3,'Periodic Model'!$12:$12,TRUE),SUMIFS('Periodic Model'!150:150,'Periodic Model'!$9:$9,P$3)) -> 8 | Q9: =IF($F9,SUMIFS('Periodic Model'!150:150,'Periodic Model'!$9:$9,Q$3,'Periodic Model'!$12:$12,TRUE),SUMIFS('Periodic Model'!150:150,'Periodic Model'!$9:$9,Q$3)) -> 10 | R9: =IF($F9,SUMIFS('Periodic Model'!150:150,'Periodic Model'!$9:$9,R$3,'Periodic Model'!$12:$12,TRUE),SUMIFS('Periodic Model'!150:150,'Periodic Model'!$9:$9,R$3)) -> 12 | S9: =IF($F9,SUMIFS('Periodic Model'!150:150,'Periodic Model'!$9:$9,S$3,'Periodic Model'!$12:$12,TRUE),SUMIFS('Periodic Model'!150:150,'Periodic Model'!$9:$9,S$3)) -> 14 | T9: =IF($F9,SUMIFS('Periodic Model'!150:150,'Periodic Model'!$9:$9,T$3,'Periodic Model'!$12:$12,TRUE),SUMIFS('Periodic Model'!150:150,'Periodic Model'!$9:$9,T$3)) -> 16 | U9: =IF($F9,SUMIFS('Periodic Model'!150:150,'Periodic Model'!$9:$9,U$3,'Periodic Model'!$12:$12,TRUE),SUMIFS('Periodic Model'!150:150,'Periodic Model'!$9:$9,U$3)) -> 18 | V9: =IF($F9,SUMIFS('Periodic Model'!150:150,'Periodic Model'!$9:$9,V$3,'Periodic Model'!$12:$12,TRUE),SUMIFS('Periodic Model'!150:150,'Periodic Model'!$9:$9,V$3)) -> 20 | W9: =IF($F9,SUMIFS('Periodic Model'!150:150,'Periodic Model'!$9:$9,W$3,'Periodic Model'!$12:$12,TRUE),SUMIFS('Periodic Model'!150:150,'Periodic Model'!$9:$9,W$3)) -> 22 | X9: =IF($F9,SUMIFS('Periodic Model'!150:150,'Periodic Model'!$9:$9,X$3,'Periodic Model'!$12:$12,TRUE),SUMIFS('Periodic Model'!150:150,'Periodic Model'!$9:$9,X$3)) -> 24 | Y9: =IF($F9,SUMIFS('Periodic Model'!150:150,'Periodic Model'!$9:$9,Y$3,'Periodic Model'!$12:$12,TRUE),SUMIFS('Periodic Model'!150:150,'Periodic Model'!$9:$9,Y$3)) -> 26 | Z9: =IF($F9,SUMIFS('Periodic Model'!150:150,'Periodic Model'!$9:$9,Z$3,'Periodic Model'!$12:$12,TRUE),SUMIFS('Periodic Model'!150:150,'Periodic Model'!$9:$9,Z$3)) -> 28 | AA9: =IF($F9,SUMIFS('Periodic Model'!150:150,'Periodic Model'!$9:$9,AA$3,'Periodic Model'!$12:$12,TRUE),SUMIFS('Periodic Model'!150:150,'Periodic Model'!$9:$9,AA$3)) -> 30 | AB9: =IF($F9,SUMIFS('Periodic Model'!150:150,'Periodic Model'!$9:$9,AB$3,'Periodic Model'!$12:$12,TRUE),SUMIFS('Periodic Model'!150:150,'Periodic Model'!$9:$9,AB$3)) -> 32 | AC9: =IF($F9,SUMIFS('Periodic Model'!150:150,'Periodic Model'!$9:$9,AC$3,'Periodic Model'!$12:$12,TRUE),SUMIFS('Periodic Model'!150:150,'Periodic Model'!$9:$9,AC$3)) -> 34 | AD9: =IF($F9,SUMIFS('Periodic Model'!150:150,'Periodic Model'!$9:$9,AD$3,'Periodic Model'!$12:$12,TRUE),SUMIFS('Periodic Model'!150:150,'Periodic Model'!$9:$9,AD$3)) -> 36 | AE9: =IF($F9,SUMIFS('Periodic Model'!150:150,'Periodic Model'!$9:$9,AE$3,'Periodic Model'!$12:$12,TRUE),SUMIFS('Periodic Model'!150:150,'Periodic Model'!$9:$9,AE$3)) -> 38 | AF9: =IF($F9,SUMIFS('Periodic Model'!150:150,'Periodic Model'!$9:$9,AF$3,'Periodic Model'!$12:$12,TRUE),SUMIFS('Periodic Model'!150:150,'Periodic Model'!$9:$9,AF$3)) -> 40 | AG9: =IF($F9,SUMIFS('Periodic Model'!150:150,'Periodic Model'!$9:$9,AG$3,'Periodic Model'!$12:$12,TRUE),SUMIFS('Periodic Model'!150:150,'Periodic Model'!$9:$9,AG$3)) -> 42 | AH9: =IF($F9,SUMIFS('Periodic Model'!150:150,'Periodic Model'!$9:$9,AH$3,'Periodic Model'!$12:$12,TRUE),SUMIFS('Periodic Model'!150:150,'Periodic Model'!$9:$9,AH$3)) -> 44 | AI9: =IF($F9,SUMIFS('Periodic Model'!150:150,'Periodic Model'!$9:$9,AI$3,'Periodic Model'!$12:$12,TRUE),SUMIFS('Periodic Model'!150:150,'Periodic Model'!$9:$9,AI$3)) -> 46 | AJ9: =IF($F9,SUMIFS('Periodic Model'!150:150,'Periodic Model'!$9:$9,AJ$3,'Periodic Model'!$12:$12,TRUE),SUMIFS('Periodic Model'!150:150,'Periodic Model'!$9:$9,AJ$3)) -> 48 | AK9: =IF($F9,SUMIFS('Periodic Model'!150:150,'Periodic Model'!$9:$9,AK$3,'Periodic Model'!$12:$12,TRUE),SUMIFS('Periodic Model'!150:150,'Periodic Model'!$9:$9,AK$3)) -> 50 | AL9: =IF($F9,SUMIFS('Periodic Model'!150:150,'Periodic Model'!$9:$9,AL$3,'Periodic Model'!$12:$12,TRUE),SUMIFS('Periodic Model'!150:150,'Periodic Model'!$9:$9,AL$3)) -> 50 | AM9: =IF($F9,SUMIFS('Periodic Model'!150:150,'Periodic Model'!$9:$9,AM$3,'Periodic Model'!$12:$12,TRUE),SUMIFS('Periodic Model'!150:150,'Periodic Model'!$9:$9,AM$3)) -> 50 | AN9: =IF($F9,SUMIFS('Periodic Model'!150:150,'Periodic Model'!$9:$9,AN$3,'Periodic Model'!$12:$12,TRUE),SUMIFS('Periodic Model'!150:150,'Periodic Model'!$9:$9,AN$3)) -> 50 | AO9: =IF($F9,SUMIFS('Periodic Model'!150:150,'Periodic Model'!$9:$9,AO$3,'Periodic Model'!$12:$12,TRUE),SUMIFS('Periodic Model'!150:150,'Periodic Model'!$9:$9,AO$3)) -> 50 | AP9: =IF($F9,SUMIFS('Periodic Model'!150:150,'Periodic Model'!$9:$9,AP$3,'Periodic Model'!$12:$12,TRUE),SUMIFS('Periodic Model'!150:150,'Periodic Model'!$9:$9,AP$3)) -> 50 | AQ9: =IF($F9,SUMIFS('Periodic Model'!150:150,'Periodic Model'!$9:$9,AQ$3,'Periodic Model'!$12:$12,TRUE),SUMIFS('Periodic Model'!150:150,'Periodic Model'!$9:$9,AQ$3)) -> 50 | AR9: =IF($F9,SUMIFS('Periodic Model'!150:150,'Periodic Model'!$9:$9,AR$3,'Periodic Model'!$12:$12,TRUE),SUMIFS('Periodic Model'!150:150,'Periodic Model'!$9:$9,AR$3)) -> 50 | AS9: =IF($F9,SUMIFS('Periodic Model'!150:150,'Periodic Model'!$9:$9,AS$3,'Periodic Model'!$12:$12,TRUE),SUMIFS('Periodic Model'!150:150,'Periodic Model'!$9:$9,AS$3)) -> 50 | AT9: =IF($F9,SUMIFS('Periodic Model'!150:150,'Periodic Model'!$9:$9,AT$3,'Periodic Model'!$12:$12,TRUE),SUMIFS('Periodic Model'!150:150,'Periodic Model'!$9:$9,AT$3)) -> 50 | AU9: =IF($F9,SUMIFS('Periodic Model'!150:150,'Periodic Model'!$9:$9,AU$3,'Periodic Model'!$12:$12,TRUE),SUMIFS('Periodic Model'!150:150,'Periodic Model'!$9:$9,AU$3)) -> 50
B10: Age in Years | F10: TRUE | H10: =IF($F10,SUMIFS('Periodic Model'!151:151,'Periodic Model'!$9:$9,H$3,'Periodic Model'!$12:$12,TRUE),SUMIFS('Periodic Model'!151:151,'Periodic Model'!$9:$9,H$3)) -> 0 | I10: =IF($F10,SUMIFS('Periodic Model'!151:151,'Periodic Model'!$9:$9,I$3,'Periodic Model'!$12:$12,TRUE),SUMIFS('Periodic Model'!151:151,'Periodic Model'!$9:$9,I$3)) -> 0 | J10: =IF($F10,SUMIFS('Periodic Model'!151:151,'Periodic Model'!$9:$9,J$3,'Periodic Model'!$12:$12,TRUE),SUMIFS('Periodic Model'!151:151,'Periodic Model'!$9:$9,J$3)) -> 0 | K10: =IF($F10,SUMIFS('Periodic Model'!151:151,'Periodic Model'!$9:$9,K$3,'Periodic Model'!$12:$12,TRUE),SUMIFS('Periodic Model'!151:151,'Periodic Model'!$9:$9,K$3)) -> 0 | L10: =IF($F10,SUMIFS('Periodic Model'!151:151,'Periodic Model'!$9:$9,L$3,'Periodic Model'!$12:$12,TRUE),SUMIFS('Periodic Model'!151:151,'Periodic Model'!$9:$9,L$3)) -> 0 | M10: =IF($F10,SUMIFS('Periodic Model'!151:151,'Periodic Model'!$9:$9,M$3,'Periodic Model'!$12:$12,TRUE),SUMIFS('Periodic Model'!151:151,'Periodic Model'!$9:$9,M$3)) -> 1 | N10: =IF($F10,SUMIFS('Periodic Model'!151:151,'Periodic Model'!$9:$9,N$3,'Periodic Model'!$12:$12,TRUE),SUMIFS('Periodic Model'!151:151,'Periodic Model'!$9:$9,N$3)) -> 2 | O10: =IF($F10,SUMIFS('Periodic Model'!151:151,'Periodic Model'!$9:$9,O$3,'Periodic Model'!$12:$12,TRUE),SUMIFS('Periodic Model'!151:151,'Periodic Model'!$9:$9,O$3)) -> 3 | P10: =IF($F10,SUMIFS('Periodic Model'!151:151,'Periodic Model'!$9:$9,P$3,'Periodic Model'!$12:$12,TRUE),SUMIFS('Periodic Model'!151:151,'Periodic Model'!$9:$9,P$3)) -> 4 | Q10: =IF($F10,SUMIFS('Periodic Model'!151:151,'Periodic Model'!$9:$9,Q$3,'Periodic Model'!$12:$12,TRUE),SUMIFS('Periodic Model'!151:151,'Periodic Model'!$9:$9,Q$3)) -> 5 | R10: =IF($F10,SUMIFS('Periodic Model'!151:151,'Periodic Model'!$9:$9,R$3,'Periodic Model'!$12:$12,TRUE),SUMIFS('Periodic Model'!151:151,'Periodic Model'!$9:$9,R$3)) -> 6 | S10: =IF($F10,SUMIFS('Periodic Model'!151:151,'Periodic Model'!$9:$9,S$3,'Periodic Model'!$12:$12,TRUE),SUMIFS('Periodic Model'!151:151,'Periodic Model'!$9:$9,S$3)) -> 7 | T10: =IF($F10,SUMIFS('Periodic Model'!151:151,'Periodic Model'!$9:$9,T$3,'Periodic Model'!$12:$12,TRUE),SUMIFS('Periodic Model'!151:151,'Periodic Model'!$9:$9,T$3)) -> 8 | U10: =IF($F10,SUMIFS('Periodic Model'!151:151,'Periodic Model'!$9:$9,U$3,'Periodic Model'!$12:$12,TRUE),SUMIFS('Periodic Model'!151:151,'Periodic Model'!$9:$9,U$3)) -> 9 | V10: =IF($F10,SUMIFS('Periodic Model'!151:151,'Periodic Model'!$9:$9,V$3,'Periodic Model'!$12:$12,TRUE),SUMIFS('Periodic Model'!151:151,'Periodic Model'!$9:$9,V$3)) -> 10 | W10: =IF($F10,SUMIFS('Periodic Model'!151:151,'Periodic Model'!$9:$9,W$3,'Periodic Model'!$12:$12,TRUE),SUMIFS('Periodic Model'!151:151,'Periodic Model'!$9:$9,W$3)) -> 11 | X10: =IF($F10,SUMIFS('Periodic Model'!151:151,'Periodic Model'!$9:$9,X$3,'Periodic Model'!$12:$12,TRUE),SUMIFS('Periodic Model'!151:151,'Periodic Model'!$9:$9,X$3)) -> 12 | Y10: =IF($F10,SUMIFS('Periodic Model'!151:151,'Periodic Model'!$9:$9,Y$3,'Periodic Model'!$12:$12,TRUE),SUMIFS('Periodic Model'!151:151,'Periodic Model'!$9:$9,Y$3)) -> 13 | Z10: =IF($F10,SUMIFS('Periodic Model'!151:151,'Periodic Model'!$9:$9,Z$3,'Periodic Model'!$12:$12,TRUE),SUMIFS('Periodic Model'!151:151,'Periodic Model'!$9:$9,Z$3)) -> 14 | AA10: =IF($F10,SUMIFS('Periodic Model'!151:151,'Periodic Model'!$9:$9,AA$3,'Periodic Model'!$12:$12,TRUE),SUMIFS('Periodic Model'!151:151,'Periodic Model'!$9:$9,AA$3)) -> 15 | AB10: =IF($F10,SUMIFS('Periodic Model'!151:151,'Periodic Model'!$9:$9,AB$3,'Periodic Model'!$12:$12,TRUE),SUMIFS('Periodic Model'!151:151,'Periodic Model'!$9:$9,AB$3)) -> 16 | AC10: =IF($F10,SUMIFS('Periodic Model'!151:151,'Periodic Model'!$9:$9,AC$3,'Periodic Model'!$12:$12,TRUE),SUMIFS('Periodic Model'!151:151,'Periodic Model'!$9:$9,AC$3)) -> 17 | AD10: =IF($F10,SUMIFS('Periodic Model'!151:151,'Periodic Model'!$9:$9,AD$3,'Periodic Model'!$12:$12,TRUE),SUMIFS('Periodic Model'!151:151,'Periodic Model'!$9:$9,AD$3)) -> 18 | AE10: =IF($F10,SUMIFS('Periodic Model'!151:151,'Periodic Model'!$9:$9,AE$3,'Periodic Model'!$12:$12,TRUE),SUMIFS('Periodic Model'!151:151,'Periodic Model'!$9:$9,AE$3)) -> 19 | AF10: =IF($F10,SUMIFS('Periodic Model'!151:151,'Periodic Model'!$9:$9,AF$3,'Periodic Model'!$12:$12,TRUE),SUMIFS('Periodic Model'!151:151,'Periodic Model'!$9:$9,AF$3)) -> 20 | AG10: =IF($F10,SUMIFS('Periodic Model'!151:151,'Periodic Model'!$9:$9,AG$3,'Periodic Model'!$12:$12,TRUE),SUMIFS('Periodic Model'!151:151,'Periodic Model'!$9:$9,AG$3)) -> 21 | AH10: =IF($F10,SUMIFS('Periodic Model'!151:151,'Periodic Model'!$9:$9,AH$3,'Periodic Model'!$12:$12,TRUE),SUMIFS('Periodic Model'!151:151,'Periodic Model'!$9:$9,AH$3)) -> 22 | AI10: =IF($F10,SUMIFS('Periodic Model'!151:151,'Periodic Model'!$9:$9,AI$3,'Periodic Model'!$12:$12,TRUE),SUMIFS('Periodic Model'!151:151,'Periodic Model'!$9:$9,AI$3)) -> 23 | AJ10: =IF($F10,SUMIFS('Periodic Model'!151:151,'Periodic Model'!$9:$9,AJ$3,'Periodic Model'!$12:$12,TRUE),SUMIFS('Periodic Model'!151:151,'Periodic Model'!$9:$9,AJ$3)) -> 24 | AK10: =IF($F10,SUMIFS('Periodic Model'!151:151,'Periodic Model'!$9:$9,AK$3,'Periodic Model'!$12:$12,TRUE),SUMIFS('Periodic Model'!151:151,'Periodic Model'!$9:$9,AK$3)) -> 25 | AL10: =IF($F10,SUMIFS('Periodic Model'!151:151,'Periodic Model'!$9:$9,AL$3,'Periodic Model'!$12:$12,TRUE),SUMIFS('Periodic Model'!151:151,'Periodic Model'!$9:$9,AL$3)) -> 25 | AM10: =IF($F10,SUMIFS('Periodic Model'!151:151,'Periodic Model'!$9:$9,AM$3,'Periodic Model'!$12:$12,TRUE),SUMIFS('Periodic Model'!151:151,'Periodic Model'!$9:$9,AM$3)) -> 25 | AN10: =IF($F10,SUMIFS('Periodic Model'!151:151,'Periodic Model'!$9:$9,AN$3,'Periodic Model'!$12:$12,TRUE),SUMIFS('Periodic Model'!151:151,'Periodic Model'!$9:$9,AN$3)) -> 25 | AO10: =IF($F10,SUMIFS('Periodic Model'!151:151,'Periodic Model'!$9:$9,AO$3,'Periodic Model'!$12:$12,TRUE),SUMIFS('Periodic Model'!151:151,'Periodic Model'!$9:$9,AO$3)) -> 25 | AP10: =IF($F10,SUMIFS('Periodic Model'!151:151,'Periodic Model'!$9:$9,AP$3,'Periodic Model'!$12:$12,TRUE),SUMIFS('Periodic Model'!151:151,'Periodic Model'!$9:$9,AP$3)) -> 25 | AQ10: =IF($F10,SUMIFS('Periodic Model'!151:151,'Periodic Model'!$9:$9,AQ$3,'Periodic Model'!$12:$12,TRUE),SUMIFS('Periodic Model'!151:151,'Periodic Model'!$9:$9,AQ$3)) -> 25 | AR10: =IF($F10,SUMIFS('Periodic Model'!151:151,'Periodic Model'!$9:$9,AR$3,'Periodic Model'!$12:$12,TRUE),SUMIFS('Periodic Model'!151:151,'Periodic Model'!$9:$9,AR$3)) -> 25 | AS10: =IF($F10,SUMIFS('Periodic Model'!151:151,'Periodic Model'!$9:$9,AS$3,'Periodic Model'!$12:$12,TRUE),SUMIFS('Periodic Model'!151:151,'Periodic Model'!$9:$9,AS$3)) -> 25 | AT10: =IF($F10,SUMIFS('Periodic Model'!151:151,'Periodic Model'!$9:$9,AT$3,'Periodic Model'!$12:$12,TRUE),SUMIFS('Periodic Model'!151:151,'Periodic Model'!$9:$9,AT$3)) -> 25 | AU10: =IF($F10,SUMIFS('Periodic Model'!151:151,'Periodic Model'!$9:$9,AU$3,'Periodic Model'!$12:$12,TRUE),SUMIFS('Periodic Model'!151:151,'Periodic Model'!$9:$9,AU$3)) -> 25
B11: Capacity Factor (LOOKUP Function) | E11: % | F11: TRUE | H11: =IF($F11,SUMIFS('Periodic Model'!152:152,'Periodic Model'!$9:$9,H$3,'Periodic Model'!$12:$12,TRUE),SUMIFS('Periodic Model'!152:152,'Periodic Model'!$9:$9,H$3)) -> 0 | I11: =IF($F11,SUMIFS('Periodic Model'!152:152,'Periodic Model'!$9:$9,I$3,'Periodic Model'!$12:$12,TRUE),SUMIFS('Periodic Model'!152:152,'Periodic Model'!$9:$9,I$3)) -> 0 | J11: =IF($F11,SUMIFS('Periodic Model'!152:152,'Periodic Model'!$9:$9,J$3,'Periodic Model'!$12:$12,TRUE),SUMIFS('Periodic Model'!152:152,'Periodic Model'!$9:$9,J$3)) -> 0 | K11: =IF($F11,SUMIFS('Periodic Model'!152:152,'Periodic Model'!$9:$9,K$3,'Periodic Model'!$12:$12,TRUE),SUMIFS('Periodic Model'!152:152,'Periodic Model'!$9:$9,K$3)) -> 0 | L11: =IF($F11,SUMIFS('Periodic Model'!152:152,'Periodic Model'!$9:$9,L$3,'Periodic Model'!$12:$12,TRUE),SUMIFS('Periodic Model'!152:152,'Periodic Model'!$9:$9,L$3)) -> 0 | M11: =IF($F11,SUMIFS('Periodic Model'!152:152,'Periodic Model'!$9:$9,M$3,'Periodic Model'!$12:$12,TRUE),SUMIFS('Periodic Model'!152:152,'Periodic Model'!$9:$9,M$3)) -> 0.75 | N11: =IF($F11,SUMIFS('Periodic Model'!152:152,'Periodic Model'!$9:$9,N$3,'Periodic Model'!$12:$12,TRUE),SUMIFS('Periodic Model'!152:152,'Periodic Model'!$9:$9,N$3)) -> 0.75 | O11: =IF($F11,SUMIFS('Periodic Model'!152:152,'Periodic Model'!$9:$9,O$3,'Periodic Model'!$12:$12,TRUE),SUMIFS('Periodic Model'!152:152,'Periodic Model'!$9:$9,O$3)) -> 0.75 | P11: =IF($F11,SUMIFS('Periodic Model'!152:152,'Periodic Model'!$9:$9,P$3,'Periodic Model'!$12:$12,TRUE),SUMIFS('Periodic Model'!152:152,'Periodic Model'!$9:$9,P$3)) -> 0.75 | Q11: =IF($F11,SUMIFS('Periodic Model'!152:152,'Periodic Model'!$9:$9,Q$3,'Periodic Model'!$12:$12,TRUE),SUMIFS('Periodic Model'!152:152,'Periodic Model'!$9:$9,Q$3)) -> 0.7 | R11: =IF($F11,SUMIFS('Periodic Model'!152:152,'Periodic Model'!$9:$9,R$3,'Periodic Model'!$12:$12,TRUE),SUMIFS('Periodic Model'!152:152,'Periodic Model'!$9:$9,R$3)) -> 0.7 | S11: =IF($F11,SUMIFS('Periodic Model'!152:152,'Periodic Model'!$9:$9,S$3,'Periodic Model'!$12:$12,TRUE),SUMIFS('Periodic Model'!152:152,'Periodic Model'!$9:$9,S$3)) -> 0.7 | T11: =IF($F11,SUMIFS('Periodic Model'!152:152,'Periodic Model'!$9:$9,T$3,'Periodic Model'!$12:$12,TRUE),SUMIFS('Periodic Model'!152:152,'Periodic Model'!$9:$9,T$3)) -> 0.7 | U11: =IF($F11,SUMIFS('Periodic Model'!152:152,'Periodic Model'!$9:$9,U$3,'Periodic Model'!$12:$12,TRUE),SUMIFS('Periodic Model'!152:152,'Periodic Model'!$9:$9,U$3)) -> 0.7 | V11: =IF($F11,SUMIFS('Periodic Model'!152:152,'Periodic Model'!$9:$9,V$3,'Periodic Model'!$12:$12,TRUE),SUMIFS('Periodic Model'!152:152,'Periodic Model'!$9:$9,V$3)) -> 0.7 | W11: =IF($F11,SUMIFS('Periodic Model'!152:152,'Periodic Model'!$9:$9,W$3,'Periodic Model'!$12:$12,TRUE),SUMIFS('Periodic Model'!152:152,'Periodic Model'!$9:$9,W$3)) -> 0.7 | X11: =IF($F11,SUMIFS('Periodic Model'!152:152,'Periodic Model'!$9:$9,X$3,'Periodic Model'!$12:$12,TRUE),SUMIFS('Periodic Model'!152:152,'Periodic Model'!$9:$9,X$3)) -> 0.7 | Y11: =IF($F11,SUMIFS('Periodic Model'!152:152,'Periodic Model'!$9:$9,Y$3,'Periodic Model'!$12:$12,TRUE),SUMIFS('Periodic Model'!152:152,'Periodic Model'!$9:$9,Y$3)) -> 0.7 | Z11: =IF($F11,SUMIFS('Periodic Model'!152:152,'Periodic Model'!$9:$9,Z$3,'Periodic Model'!$12:$12,TRUE),SUMIFS('Periodic Model'!152:152,'Periodic Model'!$9:$9,Z$3)) -> 0.7 | AA11: =IF($F11,SUMIFS('Periodic Model'!152:152,'Periodic Model'!$9:$9,AA$3,'Periodic Model'!$12:$12,TRUE),SUMIFS('Periodic Model'!152:152,'Periodic Model'!$9:$9,AA$3)) -> 0.7 | AB11: =IF($F11,SUMIFS('Periodic Model'!152:152,'Periodic Model'!$9:$9,AB$3,'Periodic Model'!$12:$12,TRUE),SUMIFS('Periodic Model'!152:152,'Periodic Model'!$9:$9,AB$3)) -> 0.7 | AC11: =IF($F11,SUMIFS('Periodic Model'!152:152,'Periodic Model'!$9:$9,AC$3,'Periodic Model'!$12:$12,TRUE),SUMIFS('Periodic Model'!152:152,'Periodic Model'!$9:$9,AC$3)) -> 0.7 | AD11: =IF($F11,SUMIFS('Periodic Model'!152:152,'Periodic Model'!$9:$9,AD$3,'Periodic Model'!$12:$12,TRUE),SUMIFS('Periodic Model'!152:152,'Periodic Model'!$9:$9,AD$3)) -> 0.7 | AE11: =IF($F11,SUMIFS('Periodic Model'!152:152,'Periodic Model'!$9:$9,AE$3,'Periodic Model'!$12:$12,TRUE),SUMIFS('Periodic Model'!152:152,'Periodic Model'!$9:$9,AE$3)) -> 0.7 | AF11: =IF($F11,SUMIFS('Periodic Model'!152:152,'Periodic Model'!$9:$9,AF$3,'Periodic Model'!$12:$12,TRUE),SUMIFS('Periodic Model'!152:152,'Periodic Model'!$9:$9,AF$3)) -> 0.7 | AG11: =IF($F11,SUMIFS('Periodic Model'!152:152,'Periodic Model'!$9:$9,AG$3,'Periodic Model'!$12:$12,TRUE),SUMIFS('Periodic Model'!152:152,'Periodic Model'!$9:$9,AG$3)) -> 0.7 | AH11: =IF($F11,SUMIFS('Periodic Model'!152:152,'Periodic Model'!$9:$9,AH$3,'Periodic Model'!$12:$12,TRUE),SUMIFS('Periodic Model'!152:152,'Periodic Model'!$9:$9,AH$3)) -> 0.7 | AI11: =IF($F11,SUMIFS('Periodic Model'!152:152,'Periodic Model'!$9:$9,AI$3,'Periodic Model'!$12:$12,TRUE),SUMIFS('Periodic Model'!152:152,'Periodic Model'!$9:$9,AI$3)) -> 0.7 | AJ11: =IF($F11,SUMIFS('Periodic Model'!152:152,'Periodic Model'!$9:$9,AJ$3,'Periodic Model'!$12:$12,TRUE),SUMIFS('Periodic Model'!152:152,'Periodic Model'!$9:$9,AJ$3)) -> 0.7 | AK11: =IF($F11,SUMIFS('Periodic Model'!152:152,'Periodic Model'!$9:$9,AK$3,'Periodic Model'!$12:$12,TRUE),SUMIFS('Periodic Model'!152:152,'Periodic Model'!$9:$9,AK$3)) -> 0.7 | AL11: =IF($F11,SUMIFS('Periodic Model'!152:152,'Periodic Model'!$9:$9,AL$3,'Periodic Model'!$12:$12,TRUE),SUMIFS('Periodic Model'!152:152,'Periodic Model'!$9:$9,AL$3)) -> 0.7 | AM11: =IF($F11,SUMIFS('Periodic Model'!152:152,'Periodic Model'!$9:$9,AM$3,'Periodic Model'!$12:$12,TRUE),SUMIFS('Periodic Model'!152:152,'Periodic Model'!$9:$9,AM$3)) -> 0.7 | AN11: =IF($F11,SUMIFS('Periodic Model'!152:152,'Periodic Model'!$9:$9,AN$3,'Periodic Model'!$12:$12,TRUE),SUMIFS('Periodic Model'!152:152,'Periodic Model'!$9:$9,AN$3)) -> 0.7 | AO11: =IF($F11,SUMIFS('Periodic Model'!152:152,'Periodic Model'!$9:$9,AO$3,'Periodic Model'!$12:$12,TRUE),SUMIFS('Periodic Model'!152:152,'Periodic Model'!$9:$9,AO$3)) -> 0.7 | AP11: =IF($F11,SUMIFS('Periodic Model'!152:152,'Periodic Model'!$9:$9,AP$3,'Periodic Model'!$12:$12,TRUE),SUMIFS('Periodic Model'!152:152,'Periodic Model'!$9:$9,AP$3)) -> 0.7 | AQ11: =IF($F11,SUMIFS('Periodic Model'!152:152,'Periodic Model'!$9:$9,AQ$3,'Periodic Model'!$12:$12,TRUE),SUMIFS('Periodic Model'!152:152,'Periodic Model'!$9:$9,AQ$3)) -> 0.7 | AR11: =IF($F11,SUMIFS('Periodic Model'!152:152,'Periodic Model'!$9:$9,AR$3,'Periodic Model'!$12:$12,TRUE),SUMIFS('Periodic Model'!152:152,'Periodic Model'!$9:$9,AR$3)) -> 0.7 | AS11: =IF($F11,SUMIFS('Periodic Model'!152:152,'Periodic Model'!$9:$9,AS$3,'Periodic Model'!$12:$12,TRUE),SUMIFS('Periodic Model'!152:152,'Periodic Model'!$9:$9,AS$3)) -> 0.7 | AT11: =IF($F11,SUMIFS('Periodic Model'!152:152,'Periodic Model'!$9:$9,AT$3,'Periodic Model'!$12:$12,TRUE),SUMIFS('Periodic Model'!152:152,'Periodic Model'!$9:$9,AT$3)) -> 0.7 | AU11: =IF($F11,SUMIFS('Periodic Model'!152:152,'Periodic Model'!$9:$9,AU$3,'Periodic Model'!$12:$12,TRUE),SUMIFS('Periodic Model'!152:152,'Periodic Model'!$9:$9,AU$3)) -> 0.7
B12: Forced Outage Rate (LOOKUP Function) | E12: % | F12: TRUE | H12: =IF($F12,SUMIFS('Periodic Model'!153:153,'Periodic Model'!$9:$9,H$3,'Periodic Model'!$12:$12,TRUE),SUMIFS('Periodic Model'!153:153,'Periodic Model'!$9:$9,H$3)) -> 0.02 | I12: =IF($F12,SUMIFS('Periodic Model'!153:153,'Periodic Model'!$9:$9,I$3,'Periodic Model'!$12:$12,TRUE),SUMIFS('Periodic Model'!153:153,'Periodic Model'!$9:$9,I$3)) -> 0.02 | J12: =IF($F12,SUMIFS('Periodic Model'!153:153,'Periodic Model'!$9:$9,J$3,'Periodic Model'!$12:$12,TRUE),SUMIFS('Periodic Model'!153:153,'Periodic Model'!$9:$9,J$3)) -> 0.02 | K12: =IF($F12,SUMIFS('Periodic Model'!153:153,'Periodic Model'!$9:$9,K$3,'Periodic Model'!$12:$12,TRUE),SUMIFS('Periodic Model'!153:153,'Periodic Model'!$9:$9,K$3)) -> 0.02 | L12: =IF($F12,SUMIFS('Periodic Model'!153:153,'Periodic Model'!$9:$9,L$3,'Periodic Model'!$12:$12,TRUE),SUMIFS('Periodic Model'!153:153,'Periodic Model'!$9:$9,L$3)) -> 0.02 | M12: =IF($F12,SUMIFS('Periodic Model'!153:153,'Periodic Model'!$9:$9,M$3,'Periodic Model'!$12:$12,TRUE),SUMIFS('Periodic Model'!153:153,'Periodic Model'!$9:$9,M$3)) -> 0.021 | N12: =IF($F12,SUMIFS('Periodic Model'!153:153,'Periodic Model'!$9:$9,N$3,'Periodic Model'!$12:$12,TRUE),SUMIFS('Periodic Model'!153:153,'Periodic Model'!$9:$9,N$3)) -> 0.021 | O12: =IF($F12,SUMIFS('Periodic Model'!153:153,'Periodic Model'!$9:$9,O$3,'Periodic Model'!$12:$12,TRUE),SUMIFS('Periodic Model'!153:153,'Periodic Model'!$9:$9,O$3)) -> 0.021 | P12: =IF($F12,SUMIFS('Periodic Model'!153:153,'Periodic Model'!$9:$9,P$3,'Periodic Model'!$12:$12,TRUE),SUMIFS('Periodic Model'!153:153,'Periodic Model'!$9:$9,P$3)) -> 0.021 | Q12: =IF($F12,SUMIFS('Periodic Model'!153:153,'Periodic Model'!$9:$9,Q$3,'Periodic Model'!$12:$12,TRUE),SUMIFS('Periodic Model'!153:153,'Periodic Model'!$9:$9,Q$3)) -> 0.025 | R12: =IF($F12,SUMIFS('Periodic Model'!153:153,'Periodic Model'!$9:$9,R$3,'Periodic Model'!$12:$12,TRUE),SUMIFS('Periodic Model'!153:153,'Periodic Model'!$9:$9,R$3)) -> 0.025 | S12: =IF($F12,SUMIFS('Periodic Model'!153:153,'Periodic Model'!$9:$9,S$3,'Periodic Model'!$12:$12,TRUE),SUMIFS('Periodic Model'!153:153,'Periodic Model'!$9:$9,S$3)) -> 0.025 | T12: =IF($F12,SUMIFS('Periodic Model'!153:153,'Periodic Model'!$9:$9,T$3,'Periodic Model'!$12:$12,TRUE),SUMIFS('Periodic Model'!153:153,'Periodic Model'!$9:$9,T$3)) -> 0.025 | U12: =IF($F12,SUMIFS('Periodic Model'!153:153,'Periodic Model'!$9:$9,U$3,'Periodic Model'!$12:$12,TRUE),SUMIFS('Periodic Model'!153:153,'Periodic Model'!$9:$9,U$3)) -> 0.025 | V12: =IF($F12,SUMIFS('Periodic Model'!153:153,'Periodic Model'!$9:$9,V$3,'Periodic Model'!$12:$12,TRUE),SUMIFS('Periodic Model'!153:153,'Periodic Model'!$9:$9,V$3)) -> 0.025 | W12: =IF($F12,SUMIFS('Periodic Model'!153:153,'Periodic Model'!$9:$9,W$3,'Periodic Model'!$12:$12,TRUE),SUMIFS('Periodic Model'!153:153,'Periodic Model'!$9:$9,W$3)) -> 0.025 | X12: =IF($F12,SUMIFS('Periodic Model'!153:153,'Periodic Model'!$9:$9,X$3,'Periodic Model'!$12:$12,TRUE),SUMIFS('Periodic Model'!153:153,'Periodic Model'!$9:$9,X$3)) -> 0.025 | Y12: =IF($F12,SUMIFS('Periodic Model'!153:153,'Periodic Model'!$9:$9,Y$3,'Periodic Model'!$12:$12,TRUE),SUMIFS('Periodic Model'!153:153,'Periodic Model'!$9:$9,Y$3)) -> 0.025 | Z12: =IF($F12,SUMIFS('Periodic Model'!153:153,'Periodic Model'!$9:$9,Z$3,'Periodic Model'!$12:$12,TRUE),SUMIFS('Periodic Model'!153:153,'Periodic Model'!$9:$9,Z$3)) -> 0.025 | AA12: =IF($F12,SUMIFS('Periodic Model'!153:153,'Periodic Model'!$9:$9,AA$3,'Periodic Model'!$12:$12,TRUE),SUMIFS('Periodic Model'!153:153,'Periodic Model'!$9:$9,AA$3)) -> 0.025 | AB12: =IF($F12,SUMIFS('Periodic Model'!153:153,'Periodic Model'!$9:$9,AB$3,'Periodic Model'!$12:$12,TRUE),SUMIFS('Periodic Model'!153:153,'Periodic Model'!$9:$9,AB$3)) -> 0.025 | AC12: =IF($F12,SUMIFS('Periodic Model'!153:153,'Periodic Model'!$9:$9,AC$3,'Periodic Model'!$12:$12,TRUE),SUMIFS('Periodic Model'!153:153,'Periodic Model'!$9:$9,AC$3)) -> 0.025 | AD12: =IF($F12,SUMIFS('Periodic Model'!153:153,'Periodic Model'!$9:$9,AD$3,'Periodic Model'!$12:$12,TRUE),SUMIFS('Periodic Model'!153:153,'Periodic Model'!$9:$9,AD$3)) -> 0.025 | AE12: =IF($F12,SUMIFS('Periodic Model'!153:153,'Periodic Model'!$9:$9,AE$3,'Periodic Model'!$12:$12,TRUE),SUMIFS('Periodic Model'!153:153,'Periodic Model'!$9:$9,AE$3)) -> 0.025 | AF12: =IF($F12,SUMIFS('Periodic Model'!153:153,'Periodic Model'!$9:$9,AF$3,'Periodic Model'!$12:$12,TRUE),SUMIFS('Periodic Model'!153:153,'Periodic Model'!$9:$9,AF$3)) -> 0.025 | AG12: =IF($F12,SUMIFS('Periodic Model'!153:153,'Periodic Model'!$9:$9,AG$3,'Periodic Model'!$12:$12,TRUE),SUMIFS('Periodic Model'!153:153,'Periodic Model'!$9:$9,AG$3)) -> 0.025 | AH12: =IF($F12,SUMIFS('Periodic Model'!153:153,'Periodic Model'!$9:$9,AH$3,'Periodic Model'!$12:$12,TRUE),SUMIFS('Periodic Model'!153:153,'Periodic Model'!$9:$9,AH$3)) -> 0.025 | AI12: =IF($F12,SUMIFS('Periodic Model'!153:153,'Periodic Model'!$9:$9,AI$3,'Periodic Model'!$12:$12,TRUE),SUMIFS('Periodic Model'!153:153,'Periodic Model'!$9:$9,AI$3)) -> 0.025 | AJ12: =IF($F12,SUMIFS('Periodic Model'!153:153,'Periodic Model'!$9:$9,AJ$3,'Periodic Model'!$12:$12,TRUE),SUMIFS('Periodic Model'!153:153,'Periodic Model'!$9:$9,AJ$3)) -> 0.025 | AK12: =IF($F12,SUMIFS('Periodic Model'!153:153,'Periodic Model'!$9:$9,AK$3,'Periodic Model'!$12:$12,TRUE),SUMIFS('Periodic Model'!153:153,'Periodic Model'!$9:$9,AK$3)) -> 0.025 | AL12: =IF($F12,SUMIFS('Periodic Model'!153:153,'Periodic Model'!$9:$9,AL$3,'Periodic Model'!$12:$12,TRUE),SUMIFS('Periodic Model'!153:153,'Periodic Model'!$9:$9,AL$3)) -> 0.025 | AM12: =IF($F12,SUMIFS('Periodic Model'!153:153,'Periodic Model'!$9:$9,AM$3,'Periodic Model'!$12:$12,TRUE),SUMIFS('Periodic Model'!153:153,'Periodic Model'!$9:$9,AM$3)) -> 0.025 | AN12: =IF($F12,SUMIFS('Periodic Model'!153:153,'Periodic Model'!$9:$9,AN$3,'Periodic Model'!$12:$12,TRUE),SUMIFS('Periodic Model'!153:153,'Periodic Model'!$9:$9,AN$3)) -> 0.025 | AO12: =IF($F12,SUMIFS('Periodic Model'!153:153,'Periodic Model'!$9:$9,AO$3,'Periodic Model'!$12:$12,TRUE),SUMIFS('Periodic Model'!153:153,'Periodic Model'!$9:$9,AO$3)) -> 0.025 | AP12: =IF($F12,SUMIFS('Periodic Model'!153:153,'Periodic Model'!$9:$9,AP$3,'Periodic Model'!$12:$12,TRUE),SUMIFS('Periodic Model'!153:153,'Periodic Model'!$9:$9,AP$3)) -> 0.025 | AQ12: =IF($F12,SUMIFS('Periodic Model'!153:153,'Periodic Model'!$9:$9,AQ$3,'Periodic Model'!$12:$12,TRUE),SUMIFS('Periodic Model'!153:153,'Periodic Model'!$9:$9,AQ$3)) -> 0.025 | AR12: =IF($F12,SUMIFS('Periodic Model'!153:153,'Periodic Model'!$9:$9,AR$3,'Periodic Model'!$12:$12,TRUE),SUMIFS('Periodic Model'!153:153,'Periodic Model'!$9:$9,AR$3)) -> 0.025 | AS12: =IF($F12,SUMIFS('Periodic Model'!153:153,'Periodic Model'!$9:$9,AS$3,'Periodic Model'!$12:$12,TRUE),SUMIFS('Periodic Model'!153:153,'Periodic Model'!$9:$9,AS$3)) -> 0.025 | AT12: =IF($F12,SUMIFS('Periodic Model'!153:153,'Periodic Model'!$9:$9,AT$3,'Periodic Model'!$12:$12,TRUE),SUMIFS('Periodic Model'!153:153,'Periodic Model'!$9:$9,AT$3)) -> 0.025 | AU12: =IF($F12,SUMIFS('Periodic Model'!153:153,'Periodic Model'!$9:$9,AU$3,'Periodic Model'!$12:$12,TRUE),SUMIFS('Periodic Model'!153:153,'Periodic Model'!$9:$9,AU$3)) -> 0.025
B14: Generation Before Forced Outage | E14: MWh | F14: FALSE | H14: =IF($F14,SUMIFS('Periodic Model'!155:155,'Periodic Model'!$9:$9,H$3,'Periodic Model'!$12:$12,TRUE),SUMIFS('Periodic Model'!155:155,'Periodic Model'!$9:$9,H$3)) -> 0 | I14: =IF($F14,SUMIFS('Periodic Model'!155:155,'Periodic Model'!$9:$9,I$3,'Periodic Model'!$12:$12,TRUE),SUMIFS('Periodic Model'!155:155,'Periodic Model'!$9:$9,I$3)) -> 0 | J14: =IF($F14,SUMIFS('Periodic Model'!155:155,'Periodic Model'!$9:$9,J$3,'Periodic Model'!$12:$12,TRUE),SUMIFS('Periodic Model'!155:155,'Periodic Model'!$9:$9,J$3)) -> 0 | K14: =IF($F14,SUMIFS('Periodic Model'!155:155,'Periodic Model'!$9:$9,K$3,'Periodic Model'!$12:$12,TRUE),SUMIFS('Periodic Model'!155:155,'Periodic Model'!$9:$9,K$3)) -> 0 | L14: =IF($F14,SUMIFS('Periodic Model'!155:155,'Periodic Model'!$9:$9,L$3,'Periodic Model'!$12:$12,TRUE),SUMIFS('Periodic Model'!155:155,'Periodic Model'!$9:$9,L$3)) -> 0 | M14: =IF($F14,SUMIFS('Periodic Model'!155:155,'Periodic Model'!$9:$9,M$3,'Periodic Model'!$12:$12,TRUE),SUMIFS('Periodic Model'!155:155,'Periodic Model'!$9:$9,M$3)) -> 1971000 | N14: =IF($F14,SUMIFS('Periodic Model'!155:155,'Periodic Model'!$9:$9,N$3,'Periodic Model'!$12:$12,TRUE),SUMIFS('Periodic Model'!155:155,'Periodic Model'!$9:$9,N$3)) -> 1971000 | O14: =IF($F14,SUMIFS('Periodic Model'!155:155,'Periodic Model'!$9:$9,O$3,'Periodic Model'!$12:$12,TRUE),SUMIFS('Periodic Model'!155:155,'Periodic Model'!$9:$9,O$3)) -> 1976400 | P14: =IF($F14,SUMIFS('Periodic Model'!155:155,'Periodic Model'!$9:$9,P$3,'Periodic Model'!$12:$12,TRUE),SUMIFS('Periodic Model'!155:155,'Periodic Model'!$9:$9,P$3)) -> 1971000 | Q14: =IF($F14,SUMIFS('Periodic Model'!155:155,'Periodic Model'!$9:$9,Q$3,'Periodic Model'!$12:$12,TRUE),SUMIFS('Periodic Model'!155:155,'Periodic Model'!$9:$9,Q$3)) -> 1839600 | R14: =IF($F14,SUMIFS('Periodic Model'!155:155,'Periodic Model'!$9:$9,R$3,'Periodic Model'!$12:$12,TRUE),SUMIFS('Periodic Model'!155:155,'Periodic Model'!$9:$9,R$3)) -> 1839600 | S14: =IF($F14,SUMIFS('Periodic Model'!155:155,'Periodic Model'!$9:$9,S$3,'Periodic Model'!$12:$12,TRUE),SUMIFS('Periodic Model'!155:155,'Periodic Model'!$9:$9,S$3)) -> 1844640 | T14: =IF($F14,SUMIFS('Periodic Model'!155:155,'Periodic Model'!$9:$9,T$3,'Periodic Model'!$12:$12,TRUE),SUMIFS('Periodic Model'!155:155,'Periodic Model'!$9:$9,T$3)) -> 1839600 | U14: =IF($F14,SUMIFS('Periodic Model'!155:155,'Periodic Model'!$9:$9,U$3,'Periodic Model'!$12:$12,TRUE),SUMIFS('Periodic Model'!155:155,'Periodic Model'!$9:$9,U$3)) -> 1839600 | V14: =IF($F14,SUMIFS('Periodic Model'!155:155,'Periodic Model'!$9:$9,V$3,'Periodic Model'!$12:$12,TRUE),SUMIFS('Periodic Model'!155:155,'Periodic Model'!$9:$9,V$3)) -> 1839600 | W14: =IF($F14,SUMIFS('Periodic Model'!155:155,'Periodic Model'!$9:$9,W$3,'Periodic Model'!$12:$12,TRUE),SUMIFS('Periodic Model'!155:155,'Periodic Model'!$9:$9,W$3)) -> 1844640 | X14: =IF($F14,SUMIFS('Periodic Model'!155:155,'Periodic Model'!$9:$9,X$3,'Periodic Model'!$12:$12,TRUE),SUMIFS('Periodic Model'!155:155,'Periodic Model'!$9:$9,X$3)) -> 1839600 | Y14: =IF($F14,SUMIFS('Periodic Model'!155:155,'Periodic Model'!$9:$9,Y$3,'Periodic Model'!$12:$12,TRUE),SUMIFS('Periodic Model'!155:155,'Periodic Model'!$9:$9,Y$3)) -> 1839600 | Z14: =IF($F14,SUMIFS('Periodic Model'!155:155,'Periodic Model'!$9:$9,Z$3,'Periodic Model'!$12:$12,TRUE),SUMIFS('Periodic Model'!155:155,'Periodic Model'!$9:$9,Z$3)) -> 1839600 | AA14: =IF($F14,SUMIFS('Periodic Model'!155:155,'Periodic Model'!$9:$9,AA$3,'Periodic Model'!$12:$12,TRUE),SUMIFS('Periodic Model'!155:155,'Periodic Model'!$9:$9,AA$3)) -> 1844640 | AB14: =IF($F14,SUMIFS('Periodic Model'!155:155,'Periodic Model'!$9:$9,AB$3,'Periodic Model'!$12:$12,TRUE),SUMIFS('Periodic Model'!155:155,'Periodic Model'!$9:$9,AB$3)) -> 1839600 | AC14: =IF($F14,SUMIFS('Periodic Model'!155:155,'Periodic Model'!$9:$9,AC$3,'Periodic Model'!$12:$12,TRUE),SUMIFS('Periodic Model'!155:155,'Periodic Model'!$9:$9,AC$3)) -> 1839600 | AD14: =IF($F14,SUMIFS('Periodic Model'!155:155,'Periodic Model'!$9:$9,AD$3,'Periodic Model'!$12:$12,TRUE),SUMIFS('Periodic Model'!155:155,'Periodic Model'!$9:$9,AD$3)) -> 1839600 | AE14: =IF($F14,SUMIFS('Periodic Model'!155:155,'Periodic Model'!$9:$9,AE$3,'Periodic Model'!$12:$12,TRUE),SUMIFS('Periodic Model'!155:155,'Periodic Model'!$9:$9,AE$3)) -> 1844640 | AF14: =IF($F14,SUMIFS('Periodic Model'!155:155,'Periodic Model'!$9:$9,AF$3,'Periodic Model'!$12:$12,TRUE),SUMIFS('Periodic Model'!155:155,'Periodic Model'!$9:$9,AF$3)) -> 1839600 | AG14: =IF($F14,SUMIFS('Periodic Model'!155:155,'Periodic Model'!$9:$9,AG$3,'Periodic Model'!$12:$12,TRUE),SUMIFS('Periodic Model'!155:155,'Periodic Model'!$9:$9,AG$3)) -> 1839600 | AH14: =IF($F14,SUMIFS('Periodic Model'!155:155,'Periodic Model'!$9:$9,AH$3,'Periodic Model'!$12:$12,TRUE),SUMIFS('Periodic Model'!155:155,'Periodic Model'!$9:$9,AH$3)) -> 1839600 | AI14: =IF($F14,SUMIFS('Periodic Model'!155:155,'Periodic Model'!$9:$9,AI$3,'Periodic Model'!$12:$12,TRUE),SUMIFS('Periodic Model'!155:155,'Periodic Model'!$9:$9,AI$3)) -> 1844640 | AJ14: =IF($F14,SUMIFS('Periodic Model'!155:155,'Periodic Model'!$9:$9,AJ$3,'Periodic Model'!$12:$12,TRUE),SUMIFS('Periodic Model'!155:155,'Periodic Model'!$9:$9,AJ$3)) -> 1839600 | AK14: =IF($F14,SUMIFS('Periodic Model'!155:155,'Periodic Model'!$9:$9,AK$3,'Periodic Model'!$12:$12,TRUE),SUMIFS('Periodic Model'!155:155,'Periodic Model'!$9:$9,AK$3)) -> 1839600 | AL14: =IF($F14,SUMIFS('Periodic Model'!155:155,'Periodic Model'!$9:$9,AL$3,'Periodic Model'!$12:$12,TRUE),SUMIFS('Periodic Model'!155:155,'Periodic Model'!$9:$9,AL$3)) -> 0 | AM14: =IF($F14,SUMIFS('Periodic Model'!155:155,'Periodic Model'!$9:$9,AM$3,'Periodic Model'!$12:$12,TRUE),SUMIFS('Periodic Model'!155:155,'Periodic Model'!$9:$9,AM$3)) -> 0 | AN14: =IF($F14,SUMIFS('Periodic Model'!155:155,'Periodic Model'!$9:$9,AN$3,'Periodic Model'!$12:$12,TRUE),SUMIFS('Periodic Model'!155:155,'Periodic Model'!$9:$9,AN$3)) -> 0 | AO14: =IF($F14,SUMIFS('Periodic Model'!155:155,'Periodic Model'!$9:$9,AO$3,'Periodic Model'!$12:$12,TRUE),SUMIFS('Periodic Model'!155:155,'Periodic Model'!$9:$9,AO$3)) -> 0 | AP14: =IF($F14,SUMIFS('Periodic Model'!155:155,'Periodic Model'!$9:$9,AP$3,'Periodic Model'!$12:$12,TRUE),SUMIFS('Periodic Model'!155:155,'Periodic Model'!$9:$9,AP$3)) -> 0 | AQ14: =IF($F14,SUMIFS('Periodic Model'!155:155,'Periodic Model'!$9:$9,AQ$3,'Periodic Model'!$12:$12,TRUE),SUMIFS('Periodic Model'!155:155,'Periodic Model'!$9:$9,AQ$3)) -> 0 | AR14: =IF($F14,SUMIFS('Periodic Model'!155:155,'Periodic Model'!$9:$9,AR$3,'Periodic Model'!$12:$12,TRUE),SUMIFS('Periodic Model'!155:155,'Periodic Model'!$9:$9,AR$3)) -> 0 | AS14: =IF($F14,SUMIFS('Periodic Model'!155:155,'Periodic Model'!$9:$9,AS$3,'Periodic Model'!$12:$12,TRUE),SUMIFS('Periodic Model'!155:155,'Periodic Model'!$9:$9,AS$3)) -> 0 | AT14: =IF($F14,SUMIFS('Periodic Model'!155:155,'Periodic Model'!$9:$9,AT$3,'Periodic Model'!$12:$12,TRUE),SUMIFS('Periodic Model'!155:155,'Periodic Model'!$9:$9,AT$3)) -> 0 | AU14: =IF($F14,SUMIFS('Periodic Model'!155:155,'Periodic Model'!$9:$9,AU$3,'Periodic Model'!$12:$12,TRUE),SUMIFS('Periodic Model'!155:155,'Periodic Model'!$9:$9,AU$3)) -> 0
B15: Forced Outage | E15: MWh | F15: FALSE | H15: =IF($F15,SUMIFS('Periodic Model'!156:156,'Periodic Model'!$9:$9,H$3,'Periodic Model'!$12:$12,TRUE),SUMIFS('Periodic Model'!156:156,'Periodic Model'!$9:$9,H$3)) -> 0 | I15: =IF($F15,SUMIFS('Periodic Model'!156:156,'Periodic Model'!$9:$9,I$3,'Periodic Model'!$12:$12,TRUE),SUMIFS('Periodic Model'!156:156,'Periodic Model'!$9:$9,I$3)) -> 0 | J15: =IF($F15,SUMIFS('Periodic Model'!156:156,'Periodic Model'!$9:$9,J$3,'Periodic Model'!$12:$12,TRUE),SUMIFS('Periodic Model'!156:156,'Periodic Model'!$9:$9,J$3)) -> 0 | K15: =IF($F15,SUMIFS('Periodic Model'!156:156,'Periodic Model'!$9:$9,K$3,'Periodic Model'!$12:$12,TRUE),SUMIFS('Periodic Model'!156:156,'Periodic Model'!$9:$9,K$3)) -> 0 | L15: =IF($F15,SUMIFS('Periodic Model'!156:156,'Periodic Model'!$9:$9,L$3,'Periodic Model'!$12:$12,TRUE),SUMIFS('Periodic Model'!156:156,'Periodic Model'!$9:$9,L$3)) -> 0 | M15: =IF($F15,SUMIFS('Periodic Model'!156:156,'Periodic Model'!$9:$9,M$3,'Periodic Model'!$12:$12,TRUE),SUMIFS('Periodic Model'!156:156,'Periodic Model'!$9:$9,M$3)) -> 55188 | N15: =IF($F15,SUMIFS('Periodic Model'!156:156,'Periodic Model'!$9:$9,N$3,'Periodic Model'!$12:$12,TRUE),SUMIFS('Periodic Model'!156:156,'Periodic Model'!$9:$9,N$3)) -> 55188 | O15: =IF($F15,SUMIFS('Periodic Model'!156:156,'Periodic Model'!$9:$9,O$3,'Periodic Model'!$12:$12,TRUE),SUMIFS('Periodic Model'!156:156,'Periodic Model'!$9:$9,O$3)) -> 55339.2 | P15: =IF($F15,SUMIFS('Periodic Model'!156:156,'Periodic Model'!$9:$9,P$3,'Periodic Model'!$12:$12,TRUE),SUMIFS('Periodic Model'!156:156,'Periodic Model'!$9:$9,P$3)) -> 55188 | Q15: =IF($F15,SUMIFS('Periodic Model'!156:156,'Periodic Model'!$9:$9,Q$3,'Periodic Model'!$12:$12,TRUE),SUMIFS('Periodic Model'!156:156,'Periodic Model'!$9:$9,Q$3)) -> 65700 | R15: =IF($F15,SUMIFS('Periodic Model'!156:156,'Periodic Model'!$9:$9,R$3,'Periodic Model'!$12:$12,TRUE),SUMIFS('Periodic Model'!156:156,'Periodic Model'!$9:$9,R$3)) -> 65700 | S15: =IF($F15,SUMIFS('Periodic Model'!156:156,'Periodic Model'!$9:$9,S$3,'Periodic Model'!$12:$12,TRUE),SUMIFS('Periodic Model'!156:156,'Periodic Model'!$9:$9,S$3)) -> 65880 | T15: =IF($F15,SUMIFS('Periodic Model'!156:156,'Periodic Model'!$9:$9,T$3,'Periodic Model'!$12:$12,TRUE),SUMIFS('Periodic Model'!156:156,'Periodic Model'!$9:$9,T$3)) -> 65700 | U15: =IF($F15,SUMIFS('Periodic Model'!156:156,'Periodic Model'!$9:$9,U$3,'Periodic Model'!$12:$12,TRUE),SUMIFS('Periodic Model'!156:156,'Periodic Model'!$9:$9,U$3)) -> 65700 | V15: =IF($F15,SUMIFS('Periodic Model'!156:156,'Periodic Model'!$9:$9,V$3,'Periodic Model'!$12:$12,TRUE),SUMIFS('Periodic Model'!156:156,'Periodic Model'!$9:$9,V$3)) -> 65700 | W15: =IF($F15,SUMIFS('Periodic Model'!156:156,'Periodic Model'!$9:$9,W$3,'Periodic Model'!$12:$12,TRUE),SUMIFS('Periodic Model'!156:156,'Periodic Model'!$9:$9,W$3)) -> 65880 | X15: =IF($F15,SUMIFS('Periodic Model'!156:156,'Periodic Model'!$9:$9,X$3,'Periodic Model'!$12:$12,TRUE),SUMIFS('Periodic Model'!156:156,'Periodic Model'!$9:$9,X$3)) -> 65700 | Y15: =IF($F15,SUMIFS('Periodic Model'!156:156,'Periodic Model'!$9:$9,Y$3,'Periodic Model'!$12:$12,TRUE),SUMIFS('Periodic Model'!156:156,'Periodic Model'!$9:$9,Y$3)) -> 65700 | Z15: =IF($F15,SUMIFS('Periodic Model'!156:156,'Periodic Model'!$9:$9,Z$3,'Periodic Model'!$12:$12,TRUE),SUMIFS('Periodic Model'!156:156,'Periodic Model'!$9:$9,Z$3)) -> 65700 | AA15: =IF($F15,SUMIFS('Periodic Model'!156:156,'Periodic Model'!$9:$9,AA$3,'Periodic Model'!$12:$12,TRUE),SUMIFS('Periodic Model'!156:156,'Periodic Model'!$9:$9,AA$3)) -> 65880 | AB15: =IF($F15,SUMIFS('Periodic Model'!156:156,'Periodic Model'!$9:$9,AB$3,'Periodic Model'!$12:$12,TRUE),SUMIFS('Periodic Model'!156:156,'Periodic Model'!$9:$9,AB$3)) -> 65700 | AC15: =IF($F15,SUMIFS('Periodic Model'!156:156,'Periodic Model'!$9:$9,AC$3,'Periodic Model'!$12:$12,TRUE),SUMIFS('Periodic Model'!156:156,'Periodic Model'!$9:$9,AC$3)) -> 65700 | AD15: =IF($F15,SUMIFS('Periodic Model'!156:156,'Periodic Model'!$9:$9,AD$3,'Periodic Model'!$12:$12,TRUE),SUMIFS('Periodic Model'!156:156,'Periodic Model'!$9:$9,AD$3)) -> 65700 | AE15: =IF($F15,SUMIFS('Periodic Model'!156:156,'Periodic Model'!$9:$9,AE$3,'Periodic Model'!$12:$12,TRUE),SUMIFS('Periodic Model'!156:156,'Periodic Model'!$9:$9,AE$3)) -> 65880 | AF15: =IF($F15,SUMIFS('Periodic Model'!156:156,'Periodic Model'!$9:$9,AF$3,'Periodic Model'!$12:$12,TRUE),SUMIFS('Periodic Model'!156:156,'Periodic Model'!$9:$9,AF$3)) -> 65700 | AG15: =IF($F15,SUMIFS('Periodic Model'!156:156,'Periodic Model'!$9:$9,AG$3,'Periodic Model'!$12:$12,TRUE),SUMIFS('Periodic Model'!156:156,'Periodic Model'!$9:$9,AG$3)) -> 65700 | AH15: =IF($F15,SUMIFS('Periodic Model'!156:156,'Periodic Model'!$9:$9,AH$3,'Periodic Model'!$12:$12,TRUE),SUMIFS('Periodic Model'!156:156,'Periodic Model'!$9:$9,AH$3)) -> 65700 | AI15: =IF($F15,SUMIFS('Periodic Model'!156:156,'Periodic Model'!$9:$9,AI$3,'Periodic Model'!$12:$12,TRUE),SUMIFS('Periodic Model'!156:156,'Periodic Model'!$9:$9,AI$3)) -> 65880 | AJ15: =IF($F15,SUMIFS('Periodic Model'!156:156,'Periodic Model'!$9:$9,AJ$3,'Periodic Model'!$12:$12,TRUE),SUMIFS('Periodic Model'!156:156,'Periodic Model'!$9:$9,AJ$3)) -> 65700 | AK15: =IF($F15,SUMIFS('Periodic Model'!156:156,'Periodic Model'!$9:$9,AK$3,'Periodic Model'!$12:$12,TRUE),SUMIFS('Periodic Model'!156:156,'Periodic Model'!$9:$9,AK$3)) -> 65700 | AL15: =IF($F15,SUMIFS('Periodic Model'!156:156,'Periodic Model'!$9:$9,AL$3,'Periodic Model'!$12:$12,TRUE),SUMIFS('Periodic Model'!156:156,'Periodic Model'!$9:$9,AL$3)) -> 0 | AM15: =IF($F15,SUMIFS('Periodic Model'!156:156,'Periodic Model'!$9:$9,AM$3,'Periodic Model'!$12:$12,TRUE),SUMIFS('Periodic Model'!156:156,'Periodic Model'!$9:$9,AM$3)) -> 0 | AN15: =IF($F15,SUMIFS('Periodic Model'!156:156,'Periodic Model'!$9:$9,AN$3,'Periodic Model'!$12:$12,TRUE),SUMIFS('Periodic Model'!156:156,'Periodic Model'!$9:$9,AN$3)) -> 0 | AO15: =IF($F15,SUMIFS('Periodic Model'!156:156,'Periodic Model'!$9:$9,AO$3,'Periodic Model'!$12:$12,TRUE),SUMIFS('Periodic Model'!156:156,'Periodic Model'!$9:$9,AO$3)) -> 0 | AP15: =IF($F15,SUMIFS('Periodic Model'!156:156,'Periodic Model'!$9:$9,AP$3,'Periodic Model'!$12:$12,TRUE),SUMIFS('Periodic Model'!156:156,'Periodic Model'!$9:$9,AP$3)) -> 0 | AQ15: =IF($F15,SUMIFS('Periodic Model'!156:156,'Periodic Model'!$9:$9,AQ$3,'Periodic Model'!$12:$12,TRUE),SUMIFS('Periodic Model'!156:156,'Periodic Model'!$9:$9,AQ$3)) -> 0 | AR15: =IF($F15,SUMIFS('Periodic Model'!156:156,'Periodic Model'!$9:$9,AR$3,'Periodic Model'!$12:$12,TRUE),SUMIFS('Periodic Model'!156:156,'Periodic Model'!$9:$9,AR$3)) -> 0 | AS15: =IF($F15,SUMIFS('Periodic Model'!156:156,'Periodic Model'!$9:$9,AS$3,'Periodic Model'!$12:$12,TRUE),SUMIFS('Periodic Model'!156:156,'Periodic Model'!$9:$9,AS$3)) -> 0 | AT15: =IF($F15,SUMIFS('Periodic Model'!156:156,'Periodic Model'!$9:$9,AT$3,'Periodic Model'!$12:$12,TRUE),SUMIFS('Periodic Model'!156:156,'Periodic Model'!$9:$9,AT$3)) -> 0 | AU15: =IF($F15,SUMIFS('Periodic Model'!156:156,'Periodic Model'!$9:$9,AU$3,'Periodic Model'!$12:$12,TRUE),SUMIFS('Periodic Model'!156:156,'Periodic Model'!$9:$9,AU$3)) -> 0
B16: Net Generation Before Sched Maintenance | E16: MWh | F16: FALSE | H16: =IF($F16,SUMIFS('Periodic Model'!157:157,'Periodic Model'!$9:$9,H$3,'Periodic Model'!$12:$12,TRUE),SUMIFS('Periodic Model'!157:157,'Periodic Model'!$9:$9,H$3)) -> 0 | I16: =IF($F16,SUMIFS('Periodic Model'!157:157,'Periodic Model'!$9:$9,I$3,'Periodic Model'!$12:$12,TRUE),SUMIFS('Periodic Model'!157:157,'Periodic Model'!$9:$9,I$3)) -> 0 | J16: =IF($F16,SUMIFS('Periodic Model'!157:157,'Periodic Model'!$9:$9,J$3,'Periodic Model'!$12:$12,TRUE),SUMIFS('Periodic Model'!157:157,'Periodic Model'!$9:$9,J$3)) -> 0 | K16: =IF($F16,SUMIFS('Periodic Model'!157:157,'Periodic Model'!$9:$9,K$3,'Periodic Model'!$12:$12,TRUE),SUMIFS('Periodic Model'!157:157,'Periodic Model'!$9:$9,K$3)) -> 0 | L16: =IF($F16,SUMIFS('Periodic Model'!157:157,'Periodic Model'!$9:$9,L$3,'Periodic Model'!$12:$12,TRUE),SUMIFS('Periodic Model'!157:157,'Periodic Model'!$9:$9,L$3)) -> 0 | M16: =IF($F16,SUMIFS('Periodic Model'!157:157,'Periodic Model'!$9:$9,M$3,'Periodic Model'!$12:$12,TRUE),SUMIFS('Periodic Model'!157:157,'Periodic Model'!$9:$9,M$3)) -> 1915812 | N16: =IF($F16,SUMIFS('Periodic Model'!157:157,'Periodic Model'!$9:$9,N$3,'Periodic Model'!$12:$12,TRUE),SUMIFS('Periodic Model'!157:157,'Periodic Model'!$9:$9,N$3)) -> 1915812 | O16: =IF($F16,SUMIFS('Periodic Model'!157:157,'Periodic Model'!$9:$9,O$3,'Periodic Model'!$12:$12,TRUE),SUMIFS('Periodic Model'!157:157,'Periodic Model'!$9:$9,O$3)) -> 1921060.8 | P16: =IF($F16,SUMIFS('Periodic Model'!157:157,'Periodic Model'!$9:$9,P$3,'Periodic Model'!$12:$12,TRUE),SUMIFS('Periodic Model'!157:157,'Periodic Model'!$9:$9,P$3)) -> 1915812 | Q16: =IF($F16,SUMIFS('Periodic Model'!157:157,'Periodic Model'!$9:$9,Q$3,'Periodic Model'!$12:$12,TRUE),SUMIFS('Periodic Model'!157:157,'Periodic Model'!$9:$9,Q$3)) -> 1773900 | R16: =IF($F16,SUMIFS('Periodic Model'!157:157,'Periodic Model'!$9:$9,R$3,'Periodic Model'!$12:$12,TRUE),SUMIFS('Periodic Model'!157:157,'Periodic Model'!$9:$9,R$3)) -> 1773900 | S16: =IF($F16,SUMIFS('Periodic Model'!157:157,'Periodic Model'!$9:$9,S$3,'Periodic Model'!$12:$12,TRUE),SUMIFS('Periodic Model'!157:157,'Periodic Model'!$9:$9,S$3)) -> 1778760 | T16: =IF($F16,SUMIFS('Periodic Model'!157:157,'Periodic Model'!$9:$9,T$3,'Periodic Model'!$12:$12,TRUE),SUMIFS('Periodic Model'!157:157,'Periodic Model'!$9:$9,T$3)) -> 1773900 | U16: =IF($F16,SUMIFS('Periodic Model'!157:157,'Periodic Model'!$9:$9,U$3,'Periodic Model'!$12:$12,TRUE),SUMIFS('Periodic Model'!157:157,'Periodic Model'!$9:$9,U$3)) -> 1773900 | V16: =IF($F16,SUMIFS('Periodic Model'!157:157,'Periodic Model'!$9:$9,V$3,'Periodic Model'!$12:$12,TRUE),SUMIFS('Periodic Model'!157:157,'Periodic Model'!$9:$9,V$3)) -> 1773900 | W16: =IF($F16,SUMIFS('Periodic Model'!157:157,'Periodic Model'!$9:$9,W$3,'Periodic Model'!$12:$12,TRUE),SUMIFS('Periodic Model'!157:157,'Periodic Model'!$9:$9,W$3)) -> 1778760 | X16: =IF($F16,SUMIFS('Periodic Model'!157:157,'Periodic Model'!$9:$9,X$3,'Periodic Model'!$12:$12,TRUE),SUMIFS('Periodic Model'!157:157,'Periodic Model'!$9:$9,X$3)) -> 1773900 | Y16: =IF($F16,SUMIFS('Periodic Model'!157:157,'Periodic Model'!$9:$9,Y$3,'Periodic Model'!$12:$12,TRUE),SUMIFS('Periodic Model'!157:157,'Periodic Model'!$9:$9,Y$3)) -> 1773900 | Z16: =IF($F16,SUMIFS('Periodic Model'!157:157,'Periodic Model'!$9:$9,Z$3,'Periodic Model'!$12:$12,TRUE),SUMIFS('Periodic Model'!157:157,'Periodic Model'!$9:$9,Z$3)) -> 1773900 | AA16: =IF($F16,SUMIFS('Periodic Model'!157:157,'Periodic Model'!$9:$9,AA$3,'Periodic Model'!$12:$12,TRUE),SUMIFS('Periodic Model'!157:157,'Periodic Model'!$9:$9,AA$3)) -> 1778760 | AB16: =IF($F16,SUMIFS('Periodic Model'!157:157,'Periodic Model'!$9:$9,AB$3,'Periodic Model'!$12:$12,TRUE),SUMIFS('Periodic Model'!157:157,'Periodic Model'!$9:$9,AB$3)) -> 1773900 | AC16: =IF($F16,SUMIFS('Periodic Model'!157:157,'Periodic Model'!$9:$9,AC$3,'Periodic Model'!$12:$12,TRUE),SUMIFS('Periodic Model'!157:157,'Periodic Model'!$9:$9,AC$3)) -> 1773900 | AD16: =IF($F16,SUMIFS('Periodic Model'!157:157,'Periodic Model'!$9:$9,AD$3,'Periodic Model'!$12:$12,TRUE),SUMIFS('Periodic Model'!157:157,'Periodic Model'!$9:$9,AD$3)) -> 1773900 | AE16: =IF($F16,SUMIFS('Periodic Model'!157:157,'Periodic Model'!$9:$9,AE$3,'Periodic Model'!$12:$12,TRUE),SUMIFS('Periodic Model'!157:157,'Periodic Model'!$9:$9,AE$3)) -> 1778760 | AF16: =IF($F16,SUMIFS('Periodic Model'!157:157,'Periodic Model'!$9:$9,AF$3,'Periodic Model'!$12:$12,TRUE),SUMIFS('Periodic Model'!157:157,'Periodic Model'!$9:$9,AF$3)) -> 1773900 | AG16: =IF($F16,SUMIFS('Periodic Model'!157:157,'Periodic Model'!$9:$9,AG$3,'Periodic Model'!$12:$12,TRUE),SUMIFS('Periodic Model'!157:157,'Periodic Model'!$9:$9,AG$3)) -> 1773900 | AH16: =IF($F16,SUMIFS('Periodic Model'!157:157,'Periodic Model'!$9:$9,AH$3,'Periodic Model'!$12:$12,TRUE),SUMIFS('Periodic Model'!157:157,'Periodic Model'!$9:$9,AH$3)) -> 1773900 | AI16: =IF($F16,SUMIFS('Periodic Model'!157:157,'Periodic Model'!$9:$9,AI$3,'Periodic Model'!$12:$12,TRUE),SUMIFS('Periodic Model'!157:157,'Periodic Model'!$9:$9,AI$3)) -> 1778760 | AJ16: =IF($F16,SUMIFS('Periodic Model'!157:157,'Periodic Model'!$9:$9,AJ$3,'Periodic Model'!$12:$12,TRUE),SUMIFS('Periodic Model'!157:157,'Periodic Model'!$9:$9,AJ$3)) -> 1773900 | AK16: =IF($F16,SUMIFS('Periodic Model'!157:157,'Periodic Model'!$9:$9,AK$3,'Periodic Model'!$12:$12,TRUE),SUMIFS('Periodic Model'!157:157,'Periodic Model'!$9:$9,AK$3)) -> 1773900 | AL16: =IF($F16,SUMIFS('Periodic Model'!157:157,'Periodic Model'!$9:$9,AL$3,'Periodic Model'!$12:$12,TRUE),SUMIFS('Periodic Model'!157:157,'Periodic Model'!$9:$9,AL$3)) -> 0 | AM16: =IF($F16,SUMIFS('Periodic Model'!157:157,'Periodic Model'!$9:$9,AM$3,'Periodic Model'!$12:$12,TRUE),SUMIFS('Periodic Model'!157:157,'Periodic Model'!$9:$9,AM$3)) -> 0 | AN16: =IF($F16,SUMIFS('Periodic Model'!157:157,'Periodic Model'!$9:$9,AN$3,'Periodic Model'!$12:$12,TRUE),SUMIFS('Periodic Model'!157:157,'Periodic Model'!$9:$9,AN$3)) -> 0 | AO16: =IF($F16,SUMIFS('Periodic Model'!157:157,'Periodic Model'!$9:$9,AO$3,'Periodic Model'!$12:$12,TRUE),SUMIFS('Periodic Model'!157:157,'Periodic Model'!$9:$9,AO$3)) -> 0 | AP16: =IF($F16,SUMIFS('Periodic Model'!157:157,'Periodic Model'!$9:$9,AP$3,'Periodic Model'!$12:$12,TRUE),SUMIFS('Periodic Model'!157:157,'Periodic Model'!$9:$9,AP$3)) -> 0 | AQ16: =IF($F16,SUMIFS('Periodic Model'!157:157,'Periodic Model'!$9:$9,AQ$3,'Periodic Model'!$12:$12,TRUE),SUMIFS('Periodic Model'!157:157,'Periodic Model'!$9:$9,AQ$3)) -> 0 | AR16: =IF($F16,SUMIFS('Periodic Model'!157:157,'Periodic Model'!$9:$9,AR$3,'Periodic Model'!$12:$12,TRUE),SUMIFS('Periodic Model'!157:157,'Periodic Model'!$9:$9,AR$3)) -> 0 | AS16: =IF($F16,SUMIFS('Periodic Model'!157:157,'Periodic Model'!$9:$9,AS$3,'Periodic Model'!$12:$12,TRUE),SUMIFS('Periodic Model'!157:157,'Periodic Model'!$9:$9,AS$3)) -> 0 | AT16: =IF($F16,SUMIFS('Periodic Model'!157:157,'Periodic Model'!$9:$9,AT$3,'Periodic Model'!$12:$12,TRUE),SUMIFS('Periodic Model'!157:157,'Periodic Model'!$9:$9,AT$3)) -> 0 | AU16: =IF($F16,SUMIFS('Periodic Model'!157:157,'Periodic Model'!$9:$9,AU$3,'Periodic Model'!$12:$12,TRUE),SUMIFS('Periodic Model'!157:157,'Periodic Model'!$9:$9,AU$3)) -> 0
B18: Run hours (before scheduled maintenance) | E18: hours | F18: FALSE | H18: =IF($F18,SUMIFS('Periodic Model'!159:159,'Periodic Model'!$9:$9,H$3,'Periodic Model'!$12:$12,TRUE),SUMIFS('Periodic Model'!159:159,'Periodic Model'!$9:$9,H$3)) -> 0 | I18: =IF($F18,SUMIFS('Periodic Model'!159:159,'Periodic Model'!$9:$9,I$3,'Periodic Model'!$12:$12,TRUE),SUMIFS('Periodic Model'!159:159,'Periodic Model'!$9:$9,I$3)) -> 0 | J18: =IF($F18,SUMIFS('Periodic Model'!159:159,'Periodic Model'!$9:$9,J$3,'Periodic Model'!$12:$12,TRUE),SUMIFS('Periodic Model'!159:159,'Periodic Model'!$9:$9,J$3)) -> 0 | K18: =IF($F18,SUMIFS('Periodic Model'!159:159,'Periodic Model'!$9:$9,K$3,'Periodic Model'!$12:$12,TRUE),SUMIFS('Periodic Model'!159:159,'Periodic Model'!$9:$9,K$3)) -> 0 | L18: =IF($F18,SUMIFS('Periodic Model'!159:159,'Periodic Model'!$9:$9,L$3,'Periodic Model'!$12:$12,TRUE),SUMIFS('Periodic Model'!159:159,'Periodic Model'!$9:$9,L$3)) -> 0 | M18: =IF($F18,SUMIFS('Periodic Model'!159:159,'Periodic Model'!$9:$9,M$3,'Periodic Model'!$12:$12,TRUE),SUMIFS('Periodic Model'!159:159,'Periodic Model'!$9:$9,M$3)) -> 6386.04 | N18: =IF($F18,SUMIFS('Periodic Model'!159:159,'Periodic Model'!$9:$9,N$3,'Periodic Model'!$12:$12,TRUE),SUMIFS('Periodic Model'!159:159,'Periodic Model'!$9:$9,N$3)) -> 6386.04 | O18: =IF($F18,SUMIFS('Periodic Model'!159:159,'Periodic Model'!$9:$9,O$3,'Periodic Model'!$12:$12,TRUE),SUMIFS('Periodic Model'!159:159,'Periodic Model'!$9:$9,O$3)) -> 6403.536 | P18: =IF($F18,SUMIFS('Periodic Model'!159:159,'Periodic Model'!$9:$9,P$3,'Periodic Model'!$12:$12,TRUE),SUMIFS('Periodic Model'!159:159,'Periodic Model'!$9:$9,P$3)) -> 6386.04 | Q18: =IF($F18,SUMIFS('Periodic Model'!159:159,'Periodic Model'!$9:$9,Q$3,'Periodic Model'!$12:$12,TRUE),SUMIFS('Periodic Model'!159:159,'Periodic Model'!$9:$9,Q$3)) -> 5913 | R18: =IF($F18,SUMIFS('Periodic Model'!159:159,'Periodic Model'!$9:$9,R$3,'Periodic Model'!$12:$12,TRUE),SUMIFS('Periodic Model'!159:159,'Periodic Model'!$9:$9,R$3)) -> 5913 | S18: =IF($F18,SUMIFS('Periodic Model'!159:159,'Periodic Model'!$9:$9,S$3,'Periodic Model'!$12:$12,TRUE),SUMIFS('Periodic Model'!159:159,'Periodic Model'!$9:$9,S$3)) -> 5929.2 | T18: =IF($F18,SUMIFS('Periodic Model'!159:159,'Periodic Model'!$9:$9,T$3,'Periodic Model'!$12:$12,TRUE),SUMIFS('Periodic Model'!159:159,'Periodic Model'!$9:$9,T$3)) -> 5913 | U18: =IF($F18,SUMIFS('Periodic Model'!159:159,'Periodic Model'!$9:$9,U$3,'Periodic Model'!$12:$12,TRUE),SUMIFS('Periodic Model'!159:159,'Periodic Model'!$9:$9,U$3)) -> 5913 | V18: =IF($F18,SUMIFS('Periodic Model'!159:159,'Periodic Model'!$9:$9,V$3,'Periodic Model'!$12:$12,TRUE),SUMIFS('Periodic Model'!159:159,'Periodic Model'!$9:$9,V$3)) -> 5913 | W18: =IF($F18,SUMIFS('Periodic Model'!159:159,'Periodic Model'!$9:$9,W$3,'Periodic Model'!$12:$12,TRUE),SUMIFS('Periodic Model'!159:159,'Periodic Model'!$9:$9,W$3)) -> 5929.2 | X18: =IF($F18,SUMIFS('Periodic Model'!159:159,'Periodic Model'!$9:$9,X$3,'Periodic Model'!$12:$12,TRUE),SUMIFS('Periodic Model'!159:159,'Periodic Model'!$9:$9,X$3)) -> 5913 | Y18: =IF($F18,SUMIFS('Periodic Model'!159:159,'Periodic Model'!$9:$9,Y$3,'Periodic Model'!$12:$12,TRUE),SUMIFS('Periodic Model'!159:159,'Periodic Model'!$9:$9,Y$3)) -> 5913 | Z18: =IF($F18,SUMIFS('Periodic Model'!159:159,'Periodic Model'!$9:$9,Z$3,'Periodic Model'!$12:$12,TRUE),SUMIFS('Periodic Model'!159:159,'Periodic Model'!$9:$9,Z$3)) -> 5913 | AA18: =IF($F18,SUMIFS('Periodic Model'!159:159,'Periodic Model'!$9:$9,AA$3,'Periodic Model'!$12:$12,TRUE),SUMIFS('Periodic Model'!159:159,'Periodic Model'!$9:$9,AA$3)) -> 5929.2 | AB18: =IF($F18,SUMIFS('Periodic Model'!159:159,'Periodic Model'!$9:$9,AB$3,'Periodic Model'!$12:$12,TRUE),SUMIFS('Periodic Model'!159:159,'Periodic Model'!$9:$9,AB$3)) -> 5913 | AC18: =IF($F18,SUMIFS('Periodic Model'!159:159,'Periodic Model'!$9:$9,AC$3,'Periodic Model'!$12:$12,TRUE),SUMIFS('Periodic Model'!159:159,'Periodic Model'!$9:$9,AC$3)) -> 5913 | AD18: =IF($F18,SUMIFS('Periodic Model'!159:159,'Periodic Model'!$9:$9,AD$3,'Periodic Model'!$12:$12,TRUE),SUMIFS('Periodic Model'!159:159,'Periodic Model'!$9:$9,AD$3)) -> 5913 | AE18: =IF($F18,SUMIFS('Periodic Model'!159:159,'Periodic Model'!$9:$9,AE$3,'Periodic Model'!$12:$12,TRUE),SUMIFS('Periodic Model'!159:159,'Periodic Model'!$9:$9,AE$3)) -> 5929.2 | AF18: =IF($F18,SUMIFS('Periodic Model'!159:159,'Periodic Model'!$9:$9,AF$3,'Periodic Model'!$12:$12,TRUE),SUMIFS('Periodic Model'!159:159,'Periodic Model'!$9:$9,AF$3)) -> 5913 | AG18: =IF($F18,SUMIFS('Periodic Model'!159:159,'Periodic Model'!$9:$9,AG$3,'Periodic Model'!$12:$12,TRUE),SUMIFS('Periodic Model'!159:159,'Periodic Model'!$9:$9,AG$3)) -> 5913 | AH18: =IF($F18,SUMIFS('Periodic Model'!159:159,'Periodic Model'!$9:$9,AH$3,'Periodic Model'!$12:$12,TRUE),SUMIFS('Periodic Model'!159:159,'Periodic Model'!$9:$9,AH$3)) -> 5913 | AI18: =IF($F18,SUMIFS('Periodic Model'!159:159,'Periodic Model'!$9:$9,AI$3,'Periodic Model'!$12:$12,TRUE),SUMIFS('Periodic Model'!159:159,'Periodic Model'!$9:$9,AI$3)) -> 5929.2 | AJ18: =IF($F18,SUMIFS('Periodic Model'!159:159,'Periodic Model'!$9:$9,AJ$3,'Periodic Model'!$12:$12,TRUE),SUMIFS('Periodic Model'!159:159,'Periodic Model'!$9:$9,AJ$3)) -> 5913 | AK18: =IF($F18,SUMIFS('Periodic Model'!159:159,'Periodic Model'!$9:$9,AK$3,'Periodic Model'!$12:$12,TRUE),SUMIFS('Periodic Model'!159:159,'Periodic Model'!$9:$9,AK$3)) -> 5913 | AL18: =IF($F18,SUMIFS('Periodic Model'!159:159,'Periodic Model'!$9:$9,AL$3,'Periodic Model'!$12:$12,TRUE),SUMIFS('Periodic Model'!159:159,'Periodic Model'!$9:$9,AL$3)) -> 0 | AM18: =IF($F18,SUMIFS('Periodic Model'!159:159,'Periodic Model'!$9:$9,AM$3,'Periodic Model'!$12:$12,TRUE),SUMIFS('Periodic Model'!159:159,'Periodic Model'!$9:$9,AM$3)) -> 0 | AN18: =IF($F18,SUMIFS('Periodic Model'!159:159,'Periodic Model'!$9:$9,AN$3,'Periodic Model'!$12:$12,TRUE),SUMIFS('Periodic Model'!159:159,'Periodic Model'!$9:$9,AN$3)) -> 0 | AO18: =IF($F18,SUMIFS('Periodic Model'!159:159,'Periodic Model'!$9:$9,AO$3,'Periodic Model'!$12:$12,TRUE),SUMIFS('Periodic Model'!159:159,'Periodic Model'!$9:$9,AO$3)) -> 0 | AP18: =IF($F18,SUMIFS('Periodic Model'!159:159,'Periodic Model'!$9:$9,AP$3,'Periodic Model'!$12:$12,TRUE),SUMIFS('Periodic Model'!159:159,'Periodic Model'!$9:$9,AP$3)) -> 0 | AQ18: =IF($F18,SUMIFS('Periodic Model'!159:159,'Periodic Model'!$9:$9,AQ$3,'Periodic Model'!$12:$12,TRUE),SUMIFS('Periodic Model'!159:159,'Periodic Model'!$9:$9,AQ$3)) -> 0 | AR18: =IF($F18,SUMIFS('Periodic Model'!159:159,'Periodic Model'!$9:$9,AR$3,'Periodic Model'!$12:$12,TRUE),SUMIFS('Periodic Model'!159:159,'Periodic Model'!$9:$9,AR$3)) -> 0 | AS18: =IF($F18,SUMIFS('Periodic Model'!159:159,'Periodic Model'!$9:$9,AS$3,'Periodic Model'!$12:$12,TRUE),SUMIFS('Periodic Model'!159:159,'Periodic Model'!$9:$9,AS$3)) -> 0 | AT18: =IF($F18,SUMIFS('Periodic Model'!159:159,'Periodic Model'!$9:$9,AT$3,'Periodic Model'!$12:$12,TRUE),SUMIFS('Periodic Model'!159:159,'Periodic Model'!$9:$9,AT$3)) -> 0 | AU18: =IF($F18,SUMIFS('Periodic Model'!159:159,'Periodic Model'!$9:$9,AU$3,'Periodic Model'!$12:$12,TRUE),SUMIFS('Periodic Model'!159:159,'Periodic Model'!$9:$9,AU$3)) -> 0
